Workbook

Sheet PI vs gap
A1: Measurement | B1: Hall
A2: Type | B2: Gap dependence
A4: PS type | B4: HXR
A5: PS serial no | B5: 16329
A7: Measurement date | B7: ='DF raw data'!B2 -> 4. okt 2017
C11: Nominal gap [mm] | D11: Encoder [counts] | E11: Encoder [mm] | F11: PI [T^2mm^3] | H11: Encoder offset
C12: 10 | D12: =' 10 mm'!B3 -> 1635121 | E12: =(D12-$H$12)*-0.00025+10 -> 10.002 | F12: =' 10 mm'!Q3 -> 702.5649323 | H12: 1635129
C13: 12 | D13: =' 12 mm'!B3 -> 1627091 | E13: =(D13-$H$12)*-0.00025+10 -> 12.0095 | F13: =' 12 mm'!Q3 -> 538.9440118
C14: 15 | D14: =' 15 mm'!B3 -> 1615075 | E14: 15.0135 | F14: =' 15 mm'!Q3 -> 367.6888079
C15: 20 | D15: =' 20 mm'!B3 -> 1595068 | E15: 20.01525 | F15: =' 20 mm'!Q3 -> 201.6479581
C16: 30 | D16: =' 30 mm'!B3 -> 1555062 | E16: 30.01675 | F16: =' 30 mm'!Q3 -> 68.10189053
C17: 100 | D17: =' 100 mm'!B3 -> 1275083 | E17: 100.0115 | F17: =' 100 mm'!Q3 -> 0.4115306212
A41: Measuring series at 10 mm gap:
A42: Reference magnet
A43: Tref | B43: 20.65 | C43: degC
A44: Hall ref field | B44: 0.50564 | C44: T
A45: NMR ref field | B45: 0.5066325 | C45: T
A47: Measuring series at larger gaps:
A48: Reference magnet
A49: Tref | B49: 20.67 | C49: degC
A50: Hall ref field | B50: 0.505555 | C50: T
A51: NMR ref field | B51: 0.50662 | C51: T
A53: Offset from Faro | B53: 1.109666667

Sheet 10 mm
A1: dz | B1: ='DF raw data'!B7 -> 0.50013 | C1: mm | F1: T_coeff | G1: -0.0008 | H1: /degC | L1: Hallref | M1: ='PI vs gap'!B44 -> 0.50564 | N1: T | P1: IBy total | Q1: =L1203*1000 -> 8.764163146 | R1: muTm | X1: DF ref | Y1: 18
A2: Tref | B2: ='DF raw data'!B8 -> 21.38 | C2: degC | F2: Tcorr | G2: 20 | H2: degC | L2: NMRref | M2: ='PI vs gap'!B45 -> 0.5066325 | N2: T | P2: JBy total | Q2: =M1203 -> 0.06842488848 | R2: muTm^2
A3: Encoder | B3: ='DF raw data'!B9 -> 1635121 | P3: PI total | Q3: =N1203 -> 702.5649323 | R3: T^2mm^3
A5: z [mm] | B5: Bx | C5: By | D5: Bz | F5: Bx_corr | G5: By_corr | H5: Bz_corr | J5: Ix | K5: Jx | L5: Iy | M5: Jy | N5: PI
A6: -0.068 | B6: ='DF raw data'!A11 -> -9.7278444e-06 | C6: ='DF raw data'!B11 -> 4.2275477e-07 | D6: ='DF raw data'!C11 -> -5.579433e-06 | F6: =(1-$G$1*($B$2-$G$2))*B6 -> -9.73858394e-06 | G6: =(1-$G$1*($B$2-$G$2))*C6*$M$2/$M$1 -> 4.240522154e-07 | H6: =(1-$G$1*($B$2-$G$2))*D6 -> -5.585592694e-06 | J6: =F6*$B$1 -> -4.870557986e-06 | K6: =J6*$B$1 -> -2.435912166e-06 | L6: =G6*$B$1 -> 2.120812345e-07 | M6: =L6*$B$1 -> 1.060681878e-07 | N6: =(J6^2+L6)^2*$B$1 -> 2.250010486e-14
A7: =A6+$B$1 -> 0.43213 | B7: ='DF raw data'!A12 -> -9.5745254e-06 | C7: ='DF raw data'!B12 -> -3.358705e-06 | D7: ='DF raw data'!C12 -> -3.1925986e-06 | F7: =(1-$G$1*($B$2-$G$2))*B7 -> -9.585095676e-06 | G7: =(1-$G$1*($B$2-$G$2))*C7*$M$2/$M$1 -> -3.369012953e-06 | H7: =(1-$G$1*($B$2-$G$2))*D7 -> -3.196123229e-06 | J7: =F7*$B$1+J6 -> -9.664351886e-06 | K7: =J7*$B$1+K6 -> -7.269344475e-06 | L7: =G7*$B$1+L6 -> -1.472863214e-06 | M7: =L7*$B$1+M6 -> -6.305548912e-07 | N7: =(J7^2+L7^2)*$B$1+N6 -> 4.781943579e-11
A8: =A7+$B$1 -> 0.93226 | B8: ='DF raw data'!A13 -> -1.0186011e-05 | C8: ='DF raw data'!B13 -> 1.3509825e-05 | D8: ='DF raw data'!C13 -> -1.7855158e-06 | F8: -1.019725636e-05 | G8: 1.3551287e-05 | H8: -1.787487009e-06 | J8: =F8*$B$1+J7 -> -1.476430571e-05 | K8: =J8*$B$1+K7 -> -1.465341669e-05 | L8: =G8*$B$1+L7 -> 5.304541955e-06 | M8: =L8*$B$1+M7 -> 2.022405677e-06 | N8: =(J8^2+L8^2)*$B$1+N7 -> 1.70912876e-10
A9: 1.43239 | B9: ='DF raw data'!A14 -> -9.7220964e-06 | C9: ='DF raw data'!B14 -> 1.2093076e-06 | D9: ='DF raw data'!C14 -> 8.2281315e-07 | F9: -9.732829594e-06 | G9: 1.213018996e-06 | H9: 8.237215357e-07 | J9: -1.963198577e-05 | K9: -2.447196173e-05 | L9: 5.911209146e-06 | M9: 4.978778707e-06 | N9: 3.811461519e-10
A10: 1.93252 | B10: ='DF raw data'!A15 -> -9.7686916e-06 | C10: ='DF raw data'!B15 -> 2.6831447e-06 | D10: ='DF raw data'!C15 -> 2.1954227e-06 | F10: -9.779476236e-06 | G10: 2.691379341e-06 | H10: 2.197846447e-06 | J10: -2.452299522e-05 | K10: -3.673664733e-05 | L10: 7.257248696e-06 | M10: 8.608346497e-06 | N10: 7.082536544e-10
A11: 2.43265 | B11: ='DF raw data'!A16 -> -9.6972708e-06 | C11: ='DF raw data'!B16 -> -4.8708466e-07 | D11: ='DF raw data'!C16 -> -5.1970087e-06 | F11: =(1-$G$1*($B$2-$G$2))*B11 -> -9.707976587e-06 | G11: -4.885795355e-07 | H11: =(1-$G$1*($B$2-$G$2))*D11 -> -5.202746198e-06 | J11: -2.937824555e-05 | K11: -5.142958928e-05 | L11: 7.012895413e-06 | M11: 1.211570588e-05 | N11: 1.164503255e-09
A12: 2.93278 | B12: ='DF raw data'!A17 -> -9.6752392e-06 | C12: ='DF raw data'!B17 -> -1.1694312e-06 | D12: ='DF raw data'!C17 -> -5.8809196e-06 | F12: -9.685920664e-06 | G12: -1.173020215e-06 | H12: -5.887412135e-06 | J12: -3.422246505e-05 | K12: -6.854527073e-05 | L12: 6.426232813e-06 | M12: 1.53296577e-05 | N12: 1.770897668e-09
A13: 3.43291 | B13: ='DF raw data'!A18 -> -9.5339983e-06 | C13: ='DF raw data'!B18 -> -4.0545265e-06 | D13: ='DF raw data'!C18 -> -5.7922023e-07 | F13: -9.544523834e-06 | G13: -4.066969947e-06 | H13: -5.798596891e-07 | J13: -3.899596776e-05 | K13: -8.804832409e-05 | L13: 4.392219133e-06 | M13: 1.752633825e-05 | N13: 2.54108641e-09
A14: 3.93304 | B14: ='DF raw data'!A19 -> -9.5959458e-06 | C14: ='DF raw data'!B19 -> -1.4320169e-06 | D14: ='DF raw data'!C19 -> 4.5396487e-06 | F14: -9.606539724e-06 | G14: -1.436411797e-06 | H14: 4.544660472e-06 | J14: -4.380048647e-05 | K14: -0.0001099542614 | L14: 3.673826501e-06 | M14: 1.93637291e-05 | N14: 3.507327376e-09
A15: 4.43317 | B15: ='DF raw data'!A20 -> -1.0009395e-05 | C15: ='DF raw data'!B20 -> 9.3941308e-06 | D15: ='DF raw data'!C20 -> 2.0035411e-06 | F15: -1.002044537e-05 | G15: 9.422961631e-06 | H15: 2.005753009e-06 | J15: -4.881201182e-05 | K15: -0.0001343666129 | L15: 8.386532302e-06 | M15: 2.35580855e-05 | N15: 4.73411947e-09
A16: 4.9333 | B16: ='DF raw data'!A21 -> -1.0025751e-05 | C16: ='DF raw data'!B21 -> 8.9207315e-06 | D16: ='DF raw data'!C21 -> -2.8129682e-06 | F16: -1.003681943e-05 | G16: 8.948109456e-06 | H16: -2.816073717e-06 | J16: -5.383172632e-05 | K16: -0.0001612894741 | L16: 1.286175028e-05 | M16: 2.999063267e-05 | N16: 6.266157385e-09
A17: 5.43343 | B17: ='DF raw data'!A22 -> -9.801608e-06 | C17: ='DF raw data'!B22 -> 3.2067126e-06 | D17: ='DF raw data'!C22 -> 1.5367245e-07 | F17: -9.812428975e-06 | G17: 3.216554084e-06 | H17: 1.538421044e-07 | J17: -5.873921642e-05 | K17: -0.0001906667184 | L17: 1.447044548e-05 | M17: 3.722773657e-05 | N17: 8.096477814e-09
A18: 5.93356 | B18: ='DF raw data'!A23 -> -9.8375804e-06 | C18: ='DF raw data'!B23 -> 4.0619807e-06 | D18: ='DF raw data'!C23 -> -4.1123292e-07 | F18: -9.848441089e-06 | G18: 4.074447024e-06 | H18: -4.116869211e-07 | J18: -6.366471726e-05 | K18: -0.0002225073535 | L18: 1.650819867e-05 | M18: 4.548398197e-05 | N18: 1.025989858e-08
A19: 6.43369 | B19: ='DF raw data'!A24 -> -9.440022e-06 | C19: ='DF raw data'!B24 -> -7.6331771e-06 | D19: ='DF raw data'!C24 -> -5.7597895e-06 | F19: -9.450443784e-06 | G19: -7.656603519e-06 | H19: -5.766148308e-06 | J19: -6.839116771e-05 | K19: -0.0002567118282 | L19: 1.267890155e-05 | M19: 5.1825081e-05 | N19: 1.267958072e-08
A20: 6.93382 | B20: ='DF raw data'!A25 -> -9.5133782e-06 | C20: ='DF raw data'!B25 -> -5.5630544e-06 | D20: ='DF raw data'!C25 -> -5.8262044e-06 | F20: -9.52388097e-06 | G20: -5.580127558e-06 | H20: -5.83263653e-06 | J20: -7.31543463e-05 | K20: -0.0002932985114 | L20: 9.888112355e-06 | M20: 5.677042263e-05 | N20: 1.540495571e-08
A21: 7.43395 | B21: ='DF raw data'!A26 -> -9.5932828e-06 | C21: ='DF raw data'!B26 -> -2.2108318e-06 | D21: ='DF raw data'!C26 -> 8.4795886e-07 | F21: -9.603873784e-06 | G21: -2.2176169e-06 | H21: 8.488950066e-07 | J21: -7.79575317e-05 | K21: -0.0003322874117 | L21: 8.779015615e-06 | M21: 6.116107171e-05 | N21: 1.848297972e-08
A22: 7.93408 | B22: ='DF raw data'!A27 -> -1.0116788e-05 | C22: ='DF raw data'!B27 -> -6.034853e-06 | D22: ='DF raw data'!C27 -> 4.2251818e-06 | F22: -1.012795693e-05 | G22: -6.05337412e-06 | H22: 4.229846401e-06 | J22: -8.30228268e-05 | K22: -0.0003738096181 | L22: 5.751541616e-06 | M22: 6.403759022e-05 | N22: 2.194681508e-08
A23: 8.43421 | B23: ='DF raw data'!A28 -> -7.7501954e-06 | C23: ='DF raw data'!B28 -> 2.1675821e-06 | D23: ='DF raw data'!C28 -> 3.0779963e-06 | F23: -7.758751616e-06 | G23: 2.174234466e-06 | H23: 3.081394408e-06 | J23: -8.690321124e-05 | K23: -0.0004172725211 | L23: 6.838941499e-06 | M23: 6.745795003e-05 | N23: 2.574727256e-08
A24: 8.93434 | B24: ='DF raw data'!A29 -> 3.4353525e-06 | C24: ='DF raw data'!B29 -> 2.2141483e-06 | D24: ='DF raw data'!C29 -> 1.8585166e-06 | F24: 3.439145129e-06 | G24: 2.220943579e-06 | H24: 1.860568402e-06 | J24: -8.518319159e-05 | K24: -0.0004598751908 | L24: 7.949702011e-06 | M24: 7.14338345e-05 | N24: 2.940791103e-08
A25: 9.43447 | B25: ='DF raw data'!A30 -> 1.004655e-05 | C25: ='DF raw data'!B30 -> -6.8861182e-06 | D25: ='DF raw data'!C30 -> 3.150072e-06 | F25: 1.005764139e-05 | G25: -6.907251875e-06 | H25: 3.153549679e-06 | J25: -8.01530634e-05 | K25: -0.0004999621424 | L25: 4.495178131e-06 | M25: 7.368200794e-05 | N25: 3.263110894e-08
A26: 9.9346 | B26: ='DF raw data'!A31 -> 4.6489968e-06 | C26: ='DF raw data'!B31 -> -8.5009879e-06 | D26: ='DF raw data'!C31 -> -3.8380344e-06 | F26: 4.654129292e-06 | G26: -8.527077652e-06 | H26: -3.84227159e-06 | J26: -7.782539372e-05 | K26: -0.0005388849565 | L26: 2.305307843e-07 | M26: 7.37973033e-05 | N26: 3.566031886e-08
A27: 10.43473 | B27: ='DF raw data'!A32 -> -8.8908388e-07 | C27: ='DF raw data'!B32 -> -5.838715e-06 | D27: ='DF raw data'!C32 -> 1.7865137e-06 | F27: -8.900654286e-07 | G27: -5.856634168e-06 | H27: 1.788486011e-06 | J27: -7.827054214e-05 | K27: -0.0005780304028 | L27: -2.698547662e-06 | M27: 7.244767866e-05 | N27: 3.872789618e-08
A28: 10.93486 | B28: ='DF raw data'!A33 -> -2.2195945e-06 | C28: ='DF raw data'!B33 -> -6.6036528e-06 | D28: ='DF raw data'!C33 -> 2.610516e-06 | F28: -2.222044932e-06 | G28: -6.623919582e-06 | H28: 2.61339801e-06 | J28: -7.938185347e-05 | K28: -0.0006177316491 | L28: -6.011368562e-06 | M28: 6.94412129e-05 | N28: 4.189752768e-08
A29: 11.43499 | B29: ='DF raw data'!A34 -> -1.5261959e-06 | C29: ='DF raw data'!B34 -> -2.8476782e-06 | D29: ='DF raw data'!C34 -> -1.4161445e-06 | F29: -1.52788082e-06 | G29: -2.856417798e-06 | H29: -1.417707924e-06 | J29: -8.014599251e-05 | K29: -0.0006578150644 | L29: -7.439948796e-06 | M29: 6.57202713e-05 | N29: 4.513773639e-08
A30: 11.93512 | B30: ='DF raw data'!A35 -> -1.4151357e-06 | C30: ='DF raw data'!B35 -> -1.0336947e-05 | D30: ='DF raw data'!C35 -> -3.4048383e-06 | F30: -1.41669801e-06 | G30: -1.036867136e-05 | H30: -3.408597241e-06 | J30: -8.085452568e-05 | K30: -0.0006982528383 | L30: -1.26256324e-05 | M30: 5.940581377e-05 | N30: 4.848703744e-08
A31: 12.43525 | B31: ='DF raw data'!A36 -> -8.0782684e-06 | C31: ='DF raw data'!B36 -> -2.9536197e-06 | D31: ='DF raw data'!C36 -> 2.4938038e-07 | F31: -8.087186808e-06 | G31: -2.962684435e-06 | H31: 2.496556959e-07 | J31: -8.489917042e-05 | K31: -0.0007407134604 | L31: -1.410735977e-05 | M31: 5.235029993e-05 | N31: 5.219144371e-08
A32: 12.93538 | B32: ='DF raw data'!A37 -> -1.06305e-05 | C32: ='DF raw data'!B37 -> 4.5808792e-06 | D32: ='DF raw data'!C37 -> 1.3308787e-06 | F32: -1.064223607e-05 | G32: 4.594938037e-06 | H32: 1.33234799e-06 | J32: -9.022167195e-05 | K32: -0.0007858360252 | L32: -1.180929341e-05 | M32: 4.644411802e-05 | N32: 5.633222478e-08
A33: 13.43551 | B33: ='DF raw data'!A38 -> -2.2598451e-06 | C33: ='DF raw data'!B38 -> -2.1943036e-07 | D33: ='DF raw data'!C38 -> 4.9526175e-06 | F33: -2.262339969e-06 | G33: -2.201037975e-07 | H33: 4.95808519e-06 | J33: -9.135313604e-05 | K33: -0.0008315244691 | L33: -1.191937392e-05 | M33: 4.048288154e-05 | N33: 6.057706162e-08
A34: 13.93564 | B34: ='DF raw data'!A39 -> 5.178119e-06 | C34: ='DF raw data'!B39 -> -5.7206316e-06 | D34: ='DF raw data'!C39 -> 1.1589042e-06 | F34: 5.183835643e-06 | G34: -5.738188367e-06 | H34: 1.16018363e-06 | J34: -8.876054432e-05 | K34: -0.0008759162802 | L34: -1.478921407e-05 | M34: 3.308635191e-05 | N34: 6.462669179e-08
A35: 14.43577 | B35: ='DF raw data'!A40 -> 6.156255e-06 | C35: ='DF raw data'!B40 -> -1.073365e-06 | D35: ='DF raw data'!C40 -> 4.8193801e-06 | F35: 6.163051506e-06 | G35: -1.076659185e-06 | H35: 4.824700696e-06 | J35: -8.567821737e-05 | K35: -0.000918766527 | L35: -1.532768363e-05 | M35: 2.542051749e-05 | N35: 6.841552404e-08
A36: 14.9359 | B36: ='DF raw data'!A41 -> 2.7794104e-06 | C36: ='DF raw data'!B41 -> -6.3327961e-06 | D36: ='DF raw data'!C41 -> -1.658725e-06 | F36: 2.782478869e-06 | G36: -6.352231616e-06 | H36: -1.660556232e-06 | J36: -8.428661621e-05 | K36: -0.0009609207924 | L36: -1.850462522e-05 | M36: 1.616579928e-05 | N36: 7.213981952e-08
A37: 15.43603 | B37: ='DF raw data'!A42 -> 3.3725811e-08 | C37: ='DF raw data'!B42 -> 6.882231e-06 | D37: ='DF raw data'!C42 -> -3.0807234e-06 | F37: 3.37630443e-08 | G37: 6.903352746e-06 | H37: -3.084124519e-06 | J37: -8.42697303e-05 | K37: -0.001003066613 | L37: -1.505205142e-05 | M37: 8.637816805e-06 | N37: 7.5804748e-08
A38: 15.93616 | B38: ='DF raw data'!A43 -> -1.6935429e-06 | C38: ='DF raw data'!B43 -> 6.4748783e-06 | D38: ='DF raw data'!C43 -> -8.6539819e-07 | F38: -1.695412571e-06 | G38: 6.49474987e-06 | H38: -8.663535896e-07 | J38: -8.511765699e-05 | K38: -0.001045636506 | L38: -1.180383216e-05 | M38: 2.734366225e-06 | N38: 7.949788096e-08
A39: 16.43629 | B39: ='DF raw data'!A44 -> -2.7089318e-06 | C39: ='DF raw data'!B44 -> 5.8309588e-06 | D39: ='DF raw data'!C44 -> -2.3861023e-06 | F39: -2.711922461e-06 | G39: 5.848854164e-06 | H39: -2.388736557e-06 | J39: -8.647397077e-05 | K39: -0.001088884733 | L39: -8.878644731e-06 | M39: -1.706110365e-06 | N39: 8.327715229e-08
A40: 16.93642 | B40: ='DF raw data'!A45 -> 1.8742811e-06 | C40: ='DF raw data'!B45 -> -5.483399e-06 | D40: ='DF raw data'!C45 -> -8.1297139e-06 | F40: 1.876350306e-06 | G40: -5.500227694e-06 | H40: -8.138689104e-06 | J40: -8.553555169e-05 | K40: -0.001131663629 | L40: -1.162947361e-05 | M40: -7.522359e-06 | N40: 8.700390862e-08
A41: 17.43655 | B41: ='DF raw data'!A46 -> 4.3216514e-06 | C41: ='DF raw data'!B46 -> -4.3279188e-06 | D41: ='DF raw data'!C46 -> -5.3136714e-06 | F41: 4.326422503e-06 | G41: -4.341201295e-06 | H41: -5.319537693e-06 | J41: -8.3371778e-05 | K41: -0.001173360356 | L41: -1.380063861e-05 | M41: -1.442447239e-05 | N41: 9.057549249e-08
A42: 17.93668 | B42: ='DF raw data'!A47 -> 3.7698283e-06 | C42: ='DF raw data'!B47 -> -8.5174111e-07 | D42: ='DF raw data'!C47 -> -3.3267672e-06 | F42: 3.77399019e-06 | G42: -8.543551256e-07 | H42: -3.330439951e-06 | J42: -8.148429229e-05 | K42: -0.001214113095 | L42: -1.422792724e-05 | M42: -2.154028564e-05 | N42: 9.399744387e-08
A43: 18.43681 | B43: ='DF raw data'!A48 -> 3.0062165e-06 | C43: ='DF raw data'!B48 -> -3.4178285e-07 | D43: ='DF raw data'!C48 -> 2.0541963e-06 | F43: 3.009535363e-06 | G43: -3.428317904e-07 | H43: 2.056464133e-06 | J43: -7.997913337e-05 | K43: -0.001254113059 | L43: -1.43993877e-05 | M43: -2.874185141e-05 | N43: 9.730030446e-08
A44: 18.93694 | B44: ='DF raw data'!A49 -> 9.4592718e-07 | C44: ='DF raw data'!B49 -> 2.0077357e-06 | D44: ='DF raw data'!C49 -> 3.964295e-06 | F44: 9.469714836e-07 | G44: 2.013897493e-06 | H44: 3.968671582e-06 | J44: -7.950552452e-05 | K44: -0.001293876157 | L44: -1.339217715e-05 | M44: -3.543968097e-05 | N44: 1.005513889e-07
A45: 19.43707 | B45: ='DF raw data'!A50 -> 1.0610764e-06 | C45: ='DF raw data'!B50 -> 4.1439052e-06 | D45: ='DF raw data'!C50 -> -1.1607002e-06 | F45: 1.062247828e-06 | G45: 4.156622953e-06 | H45: -1.161981613e-06 | J45: -7.897426251e-05 | K45: -0.001333373555 | L45: -1.131332531e-05 | M45: -4.109781436e-05 | N45: 1.037346791e-07
A46: 19.9372 | B46: ='DF raw data'!A51 -> -3.583822e-06 | C46: ='DF raw data'!B51 -> -5.8404503e-06 | D46: ='DF raw data'!C51 -> 3.5738237e-06 | F46: -3.587778539e-06 | G46: -5.858374794e-06 | H46: 3.577769201e-06 | J46: -8.07686182e-05 | K46: -0.001373768364 | L46: -1.42432743e-05 | M46: -4.822130313e-05 | N46: 1.070987738e-07
A47: 20.43733 | B47: ='DF raw data'!A52 -> -6.087057e-06 | C47: ='DF raw data'!B52 -> -4.9667697e-06 | D47: ='DF raw data'!C52 -> 7.0817518e-06 | F47: -6.093777111e-06 | G47: -4.982012845e-06 | H47: 7.089570054e-06 | J47: -8.381629894e-05 | K47: -0.00141568741 | L47: -1.673492838e-05 | M47: -5.659094287e-05 | N47: 1.107523384e-07
A48: 20.93746 | B48: ='DF raw data'!A53 -> -1.7941403e-06 | C48: ='DF raw data'!B53 -> -4.1403209e-06 | D48: ='DF raw data'!C53 -> 1.1594054e-05 | F48: -1.796121031e-06 | G48: -4.153027652e-06 | H48: 1.160685384e-05 | J48: -8.471459295e-05 | K48: -0.001458055719 | L48: -1.88119821e-05 | M48: -6.599937947e-05 | N48: 1.145185438e-07
A49: 21.43759 | B49: ='DF raw data'!A54 -> -1.1475987e-06 | C49: ='DF raw data'!B54 -> 8.9987861e-06 | D49: ='DF raw data'!C54 -> 5.5452879e-06 | F49: -1.148865649e-06 | G49: 9.026403608e-06 | H49: 5.551409898e-06 | J49: -8.528917513e-05 | K49: -0.001500711394 | L49: -1.429760687e-05 | M49: -7.31500416e-05 | N49: 1.182588485e-07
A50: 21.93772 | B50: ='DF raw data'!A55 -> -6.4090096e-07 | C50: ='DF raw data'!B55 -> 2.537842e-06 | D50: ='DF raw data'!C55 -> -1.0084676e-05 | F50: -6.416085147e-07 | G50: 2.545630703e-06 | H50: -1.009580948e-05 | J50: -8.56100628e-05 | K50: -0.001543527555 | L50: -1.302446058e-05 | M50: -7.966396507e-05 | N50: 1.220091831e-07
A51: 22.43785 | B51: ='DF raw data'!A56 -> 8.8505652e-07 | C51: ='DF raw data'!B56 -> -5.0911231e-06 | D51: ='DF raw data'!C56 -> -6.3625007e-06 | F51: 8.860336224e-07 | G51: -5.106747889e-06 | H51: -6.369524901e-06 | J51: -8.51669308e-05 | K51: -0.001586122092 | L51: -1.55784984e-05 | M51: -8.745523947e-05 | N51: 1.257582054e-07
A52: 22.93798 | B52: ='DF raw data'!A57 -> 3.2236221e-06 | C52: ='DF raw data'!B57 -> -4.7197946e-06 | D52: ='DF raw data'!C57 -> 5.1396387e-06 | F52: 3.227180979e-06 | G52: -4.734279772e-06 | H52: 5.145312861e-06 | J52: -8.355292078e-05 | K52: -0.001627909414 | L52: -1.794625375e-05 | M52: -9.643069936e-05 | N52: 1.294107341e-07
A53: 23.43811 | B53: ='DF raw data'!A58 -> 4.91633e-06 | C53: ='DF raw data'!B58 -> 8.7026979e-07 | D53: ='DF raw data'!C58 -> -8.9515686e-07 | F53: 4.921757628e-06 | G53: 8.729406706e-07 | H53: -8.961451132e-07 | J53: -8.109140214e-05 | K53: -0.001668465657 | L53: -1.750966993e-05 | M53: -0.0001051878106 | N53: 1.328528309e-07
A54: 23.93824 | B54: ='DF raw data'!A59 -> 6.6426674e-06 | C54: ='DF raw data'!B59 -> -1.8908734e-06 | D54: ='DF raw data'!C59 -> -1.1083578e-05 | F54: 6.650000905e-06 | G54: -1.89667654e-06 | H54: -1.109581427e-05 | J54: -7.776553718e-05 | K54: -0.001707358535 | L54: -1.845825477e-05 | M54: -0.0001144193375 | N54: 1.360477543e-07
A55: 24.43837 | B55: ='DF raw data'!A60 -> 1.0383645e-05 | C55: ='DF raw data'!B60 -> 4.0821104e-07 | D55: ='DF raw data'!C60 -> -1.1621344e-05 | F55: 1.039510854e-05 | G55: 4.094638503e-07 | H55: -1.163417396e-05 | J55: -7.256663155e-05 | K55: -0.001743651285 | L55: -1.825346961e-05 | M55: -0.0001235484453 | N55: 1.388480348e-07
A56: 24.9385 | B56: ='DF raw data'!A61 -> 1.1365317e-05 | C56: ='DF raw data'!B61 -> 2.4500466e-06 | D56: ='DF raw data'!C61 -> -3.9520487e-06 | F56: 1.137786431e-05 | G56: 2.457565857e-06 | H56: -3.956411762e-06 | J56: -6.687622027e-05 | K56: -0.001777098089 | L56: -1.70243672e-05 | M56: -0.0001320628421 | N56: 1.412297828e-07
A57: 25.43863 | B57: ='DF raw data'!A62 -> 8.0400587e-06 | C57: ='DF raw data'!B62 -> 5.7136758e-06 | D57: ='DF raw data'!C62 -> 1.6860182e-06 | F57: 8.048934925e-06 | G57: 5.731211219e-06 | H57: 1.687879564e-06 | J57: -6.285070645e-05 | K57: -0.001808531613 | L57: -1.415801653e-05 | M57: -0.0001391436909 | N57: 1.433056528e-07
A58: 25.93876 | B58: ='DF raw data'!A63 -> 4.0126706e-06 | C58: ='DF raw data'!B63 -> 2.3946748e-06 | D58: ='DF raw data'!C63 -> -1.0812505e-05 | F58: 4.017100588e-06 | G58: 2.402024119e-06 | H58: -1.082444201e-05 | J58: -6.084163393e-05 | K58: -0.001838960339 | L58: -1.295669221e-05 | M58: -0.0001456237213 | N58: 1.45240946e-07
A59: 26.43889 | B59: ='DF raw data'!A64 -> 2.1815304e-06 | C59: ='DF raw data'!B64 -> -3.4018024e-06 | D59: ='DF raw data'!C64 -> -7.5331295e-06 | F59: 2.18393881e-06 | G59: -3.41224262e-06 | H59: -7.541446075e-06 | J59: -5.974938061e-05 | K59: -0.001868842797 | L59: -1.466325711e-05 | M59: -0.0001529572561 | N59: 1.471339378e-07
A60: 26.93902 | B60: ='DF raw data'!A65 -> 3.5109206e-06 | C60: ='DF raw data'!B65 -> -3.6513113e-06 | D60: ='DF raw data'!C65 -> 4.9005071e-06 | F60: 3.514796656e-06 | G60: -3.662517269e-06 | H60: 4.90591726e-06 | J60: -5.799152536e-05 | K60: -0.001897846098 | L60: -1.649499187e-05 | M60: -0.0001612068964 | N60: 1.489519613e-07
A61: 27.43915 | B61: ='DF raw data'!A66 -> 6.5960139e-06 | C61: ='DF raw data'!B66 -> 4.8914981e-06 | D61: ='DF raw data'!C66 -> 9.253605e-07 | F61: 6.603295899e-06 | G61: 4.906510235e-06 | H61: 9.26382098e-07 | J61: -5.468901898e-05 | K61: -0.001925197717 | L61: -1.404109891e-05 | M61: -0.0001682292712 | N61: 1.505463963e-07
A62: 27.93928 | B62: ='DF raw data'!A67 -> 8.4974399e-06 | C62: ='DF raw data'!B67 -> 2.2439024e-06 | D62: ='DF raw data'!C67 -> 2.8096445e-06 | F62: 8.506821074e-06 | G62: 2.250788995e-06 | H62: 2.812746348e-06 | J62: -5.043450256e-05 | K62: -0.001950421525 | L62: -1.291541181e-05 | M62: -0.0001746886561 | N62: 1.519019721e-07
A63: 28.43941 | B63: ='DF raw data'!A68 -> 9.0327612e-06 | C63: ='DF raw data'!B68 -> 1.8316121e-06 | D63: ='DF raw data'!C68 -> 8.3913374e-06 | F63: 9.042733368e-06 | G63: 1.837233365e-06 | H63: 8.400601436e-06 | J63: -4.591196032e-05 | K63: -0.001973383474 | L63: -1.199655629e-05 | M63: -0.0001806884938 | N63: 1.530281776e-07
A64: 28.93954 | B64: ='DF raw data'!A69 -> 4.1527037e-06 | C64: ='DF raw data'!B69 -> -6.4630212e-06 | D64: ='DF raw data'!C69 -> 1.7495623e-08 | F64: 4.157288285e-06 | G64: -6.48285638e-06 | H64: 1.751493817e-08 | J64: -4.383277573e-05 | K64: -0.00199530556 | L64: -1.523882725e-05 | M64: -0.0001883098885 | N64: 1.541052246e-07
A65: 29.43967 | B65: ='DF raw data'!A70 -> 1.2148611e-06 | C65: ='DF raw data'!B70 -> -1.4101345e-06 | D65: ='DF raw data'!C70 -> -1.3551138e-06 | F65: 1.216202307e-06 | G65: -1.414462239e-06 | H65: -1.356609846e-06 | J65: -4.322451647e-05 | K65: -0.002016923437 | L65: -1.594624225e-05 | M65: -0.0001962850826 | N65: 1.551668213e-07
A66: 29.9398 | B66: ='DF raw data'!A71 -> 3.5595094e-06 | C66: ='DF raw data'!B71 -> 3.4790244e-07 | D66: ='DF raw data'!C71 -> -2.13647e-07 | F66: 3.563439098e-06 | G66: 3.489701616e-07 | H66: -2.138828663e-07 | J66: -4.144233367e-05 | K66: -0.002037649992 | L66: -1.57717118e-05 | M66: -0.0002041729888 | N66: 1.561501839e-07
A67: 30.43993 | B67: ='DF raw data'!A72 -> 1.3804037e-06 | C67: ='DF raw data'!B72 -> -2.5505371e-06 | D67: ='DF raw data'!C72 -> -7.7922175e-07 | F67: 1.381927666e-06 | G67: -2.558364765e-06 | H67: -7.800820108e-07 | J67: -4.075119019e-05 | K67: -0.002058030885 | L67: -1.705122677e-05 | M67: -0.0002127008189 | N67: 1.571261395e-07
A68: 30.94006 | B68: ='DF raw data'!A73 -> -2.7101978e-06 | C68: ='DF raw data'!B73 -> -8.4909816e-06 | D68: ='DF raw data'!C73 -> -7.5908861e-06 | F68: -2.713189858e-06 | G68: -8.517040643e-06 | H68: -7.599266438e-06 | J68: -4.210813783e-05 | K68: -0.002079090428 | L68: -2.131085431e-05 | M68: -0.0002233590165 | N68: 1.582400529e-07
A69: 31.44019 | B69: ='DF raw data'!A74 -> -3.6330221e-06 | C69: ='DF raw data'!B74 -> -1.0622481e-05 | D69: ='DF raw data'!C74 -> -8.4037119e-06 | F69: -3.637032956e-06 | G69: -1.065508167e-05 | H69: -8.412989598e-06 | J69: -4.392712713e-05 | K69: -0.002101059702 | L69: -2.66397803e-05 | M69: -0.0002366823698 | N69: 1.595600312e-07
A70: 31.94032 | B70: ='DF raw data'!A75 -> -4.882304e-06 | C70: ='DF raw data'!B75 -> -1.1416104e-05 | D70: ='DF raw data'!C75 -> -6.2139547e-06 | F70: -4.887694064e-06 | G70: -1.145114032e-05 | H70: -6.220814906e-06 | J70: -4.637160956e-05 | K70: -0.002124251535 | L70: -3.236683911e-05 | M70: -0.000252869997 | N70: 1.611594162e-07
A71: 32.44045 | B71: ='DF raw data'!A76 -> -6.1246446e-06 | C71: ='DF raw data'!B76 -> 7.1517543e-06 | D71: ='DF raw data'!C76 -> -2.9305768e-06 | F71: -6.131406208e-06 | G71: =(1-$G$1*($B$2-$G$2))*C71*$M$2/$M$1 -> 7.17370322e-06 | H71: -2.933812157e-06 | J71: -4.943810974e-05 | K71: -0.002148977017 | L71: -2.877905492e-05 | M71: -0.0002672632658 | N71: 1.627960219e-07
A72: =A71+$B$1 -> 32.94058 | B72: ='DF raw data'!A77 -> -2.1055803e-06 | C72: ='DF raw data'!B77 -> 8.7687577e-06 | D72: ='DF raw data'!C77 -> 1.4406875e-06 | F72: -2.107904861e-06 | G72: 8.795669245e-06 | H72: 1.442278019e-06 | J72: =F72*$B$1+J71 -> -5.04923362e-05 | K72: =J72*$B$1+K71 -> -0.002174229749 | L72: =G72*$B$1+L71 -> -2.438007686e-05 | M72: =L72*$B$1+M71 -> -0.0002794564736 | N72: =(J72^2+L72^2)*$B$1+N71 -> 1.643683627e-07
A73: 33.44071 | B73: ='DF raw data'!A78 -> 3.451767e-06 | C73: ='DF raw data'!B78 -> -3.8578555e-06 | D73: ='DF raw data'!C78 -> -4.354773e-06 | F73: 3.455577751e-06 | G73: -3.869695359e-06 | H73: -4.359580669e-06 | J73: -4.87640981e-05 | K73: -0.002198618137 | L73: -2.63154276e-05 | M73: -0.0002926176084 | N73: 1.659039813e-07
A74: 33.94084 | B74: ='DF raw data'!A79 -> 2.6525759e-06 | C74: ='DF raw data'!B79 -> -2.572285e-06 | D74: ='DF raw data'!C79 -> -9.1998243e-07 | F74: 2.655504344e-06 | G74: -2.580179409e-06 | H74: -9.209980906e-07 | J74: -4.743600071e-05 | K74: -0.002222342304 | L74: -2.760585273e-05 | M74: -0.0003064241235 | N74: 1.674105016e-07
A75: 34.44097 | B75: ='DF raw data'!A80 -> 1.0781604e-06 | C75: ='DF raw data'!B80 -> 7.7182858e-06 | D75: ='DF raw data'!C80 -> 5.0167769e-06 | F75: =(1-$G$1*($B$2-$G$2))*B75 -> 1.079350689e-06 | G75: 7.741973419e-06 | H75: =(1-$G$1*($B$2-$G$2))*D75 -> 5.022315422e-06 | J75: -4.689618505e-05 | K75: -0.002245796493 | L75: -2.373385956e-05 | M75: -0.0003182941387 | N75: 1.687921348e-07
A76: 34.9411 | B76: ='DF raw data'!A81 -> 1.4617052e-06 | C76: ='DF raw data'!B81 -> 4.0661033e-07 | D76: ='DF raw data'!C81 -> -7.8793835e-07 | F76: 1.463318923e-06 | G76: 4.078582277e-07 | H76: -7.888082339e-07 | J76: -4.616433536e-05 | K76: -0.002268884662 | L76: -2.352987743e-05 | M76: -0.0003300621363 | N76: 1.701348844e-07
A77: 35.44123 | B77: ='DF raw data'!A82 -> -3.1440049e-06 | C77: ='DF raw data'!B82 -> -7.766223e-07 | D77: ='DF raw data'!C82 -> -2.4231661e-06 | F77: -3.147475881e-06 | G77: -7.79005774e-07 | H77: -2.425841275e-06 | J77: -4.773848247e-05 | K77: -0.002292760109 | L77: -2.391948158e-05 | M77: -0.0003420249866 | N77: 1.715608072e-07
A78: 35.94136 | B78: ='DF raw data'!A83 -> -5.4449247e-06 | C78: ='DF raw data'!B83 -> -9.4874149e-06 | D78: ='DF raw data'!C83 -> 1.3357625e-07 | F78: -5.450935897e-06 | G78: -9.516532023e-06 | H78: 1.337237182e-07 | J78: -5.046465904e-05 | K78: -0.002317998999 | L78: -2.867898474e-05 | M78: -0.0003563682073 | N78: 1.732458281e-07
A79: 36.44149 | B79: ='DF raw data'!A84 -> -2.3044322e-06 | C79: ='DF raw data'!B84 -> 9.5112659e-07 | D79: ='DF raw data'!C84 -> 9.5923735e-07 | F79: -2.306976293e-06 | G79: 9.540456222e-07 | H79: 9.60296348e-07 | J79: -5.16184471e-05 | K79: -0.002343814933 | L79: -2.820183791e-05 | M79: -0.0003704727925 | N79: 1.749761818e-07
A80: 36.94162 | B80: ='DF raw data'!A85 -> -1.38609e-06 | C80: ='DF raw data'!B85 -> 1.3251226e-06 | D80: ='DF raw data'!C85 -> 6.3437369e-06 | F80: -1.387620243e-06 | G80: 1.329189436e-06 | H80: 6.350740386e-06 | J80: -5.231243761e-05 | K80: -0.002369977953 | L80: -2.753707039e-05 | M80: -0.0003842449075 | N80: 1.767240768e-07
A81: 37.44175 | B81: ='DF raw data'!A86 -> 6.0224005e-07 | C81: ='DF raw data'!B86 -> -3.5503065e-06 | D81: ='DF raw data'!C86 -> 4.0209311e-06 | F81: 6.02904923e-07 | G81: -3.561202483e-06 | H81: 4.025370208e-06 | J81: -5.201090677e-05 | K81: -0.002395990167 | L81: -2.931813459e-05 | M81: -0.0003989077861 | N81: 1.785068839e-07
A82: 37.94188 | B82: ='DF raw data'!A87 -> 6.822951e-06 | C82: ='DF raw data'!B87 -> 1.5184336e-05 | D82: ='DF raw data'!C87 -> 3.5752789e-06 | F82: 6.830483538e-06 | G82: 1.523093712e-05 | H82: 3.579226008e-06 | J82: -4.859477704e-05 | K82: -0.002420293873 | L82: -2.170068601e-05 | M82: -0.0004097609502 | N82: 1.799234382e-07
A83: 38.44201 | B83: ='DF raw data'!A88 -> 7.7701352e-06 | C83: ='DF raw data'!B88 -> 1.1263312e-05 | D83: ='DF raw data'!C88 -> 7.1347936e-06 | F83: 7.778713429e-06 | G83: 1.12978794e-05 | H83: 7.142670412e-06 | J83: -4.470440909e-05 | K83: -0.002442651889 | L83: -1.605027759e-05 | M83: -0.0004177881756 | N83: 1.810517793e-07
A84: 38.94214 | B84: ='DF raw data'!A89 -> 5.906486e-06 | C84: ='DF raw data'!B89 -> 1.6547961e-05 | D84: ='DF raw data'!C89 -> 7.9760403e-06 | F84: 5.913006761e-06 | G84: 1.659874712e-05 | H84: 7.984845848e-06 | J84: -4.174713702e-05 | K84: -0.002463530885 | L84: -7.748746189e-06 | M84: -0.000421663556 | N84: 1.819534469e-07
A85: 39.44227 | B85: ='DF raw data'!A90 -> 7.1137129e-06 | C85: ='DF raw data'!B90 -> -2.9318719e-06 | D85: ='DF raw data'!C90 -> 4.9713563e-08 | F85: 7.121566439e-06 | G85: -2.940869891e-06 | H85: 4.976844677e-08 | J85: -3.8185428e-05 | K85: -0.002482628563 | L85: -9.219563448e-06 | M85: -0.0004262745363 | N85: 1.827252112e-07
A86: 39.9424 | B86: ='DF raw data'!A91 -> 3.4651839e-06 | C86: ='DF raw data'!B91 -> -1.1203555e-05 | D86: ='DF raw data'!C91 -> -9.896462e-06 | F86: 3.469009463e-06 | G86: -1.1237939e-05 | H86: -9.907387694e-06 | J86: -3.645047229e-05 | K86: -0.002500858538 | L86: -1.483999388e-05 | M86: -0.0004336964624 | N86: 1.834998437e-07
A87: 40.44253 | B87: ='DF raw data'!A92 -> 1.9157978e-06 | C87: ='DF raw data'!B92 -> -7.8929702e-07 | D87: ='DF raw data'!C92 -> -4.2445567e-06 | F87: 1.917912841e-06 | G87: -7.91719393e-07 | H87: -4.249242691e-06 | J87: -3.549126655e-05 | K87: -0.002518608785 | L87: -1.52359565e-05 | M87: -0.0004413164213 | N87: 1.842459198e-07
A88: 40.94266 | B88: ='DF raw data'!A93 -> 2.4686833e-06 | C88: ='DF raw data'!B93 -> -1.03679e-05 | D88: ='DF raw data'!C93 -> -7.9373001e-07 | F88: 2.471408726e-06 | G88: -1.039971935e-05 | H88: -7.946062879e-07 | J88: -3.42552409e-05 | K88: -0.002535740859 | L88: -2.043716814e-05 | M88: -0.0004515376622 | N88: 1.850416763e-07
A89: 41.44279 | B89: ='DF raw data'!A94 -> -1.9328407e-07 | C89: ='DF raw data'!B94 -> -6.2678164e-06 | D89: ='DF raw data'!C94 -> -4.1543842e-07 | F89: -1.934974556e-07 | G89: -6.287052491e-06 | H89: -4.15897064e-07 | J89: -3.435201478e-05 | K89: -0.002552921332 | L89: -2.35815117e-05 | M89: -0.0004633314837 | N89: 1.859099763e-07
A90: 41.94292 | B90: ='DF raw data'!A95 -> -6.0958755e-06 | C90: ='DF raw data'!B95 -> 4.1567146e-06 | D90: ='DF raw data'!C95 -> 4.0811267e-07 | F90: -6.102605347e-06 | G90: 4.169471665e-06 | H90: 4.085632264e-07 | J90: -3.740411079e-05 | K90: -0.00257162825 | L90: -2.149623384e-05 | M90: -0.0004740823951 | N90: 1.868407961e-07
A91: 42.44305 | B91: ='DF raw data'!A96 -> -9.8826331e-06 | C91: ='DF raw data'!B96 -> -4.5588813e-06 | D91: ='DF raw data'!C96 -> 2.7758404e-06 | F91: -9.893543527e-06 | G91: -4.572872625e-06 | H91: 2.778904928e-06 | J91: -4.235216872e-05 | K91: -0.00259280984 | L91: -2.378326463e-05 | M91: -0.0004859771192 | N91: 1.880207777e-07
A92: 42.94318 | B92: ='DF raw data'!A97 -> -8.4588009e-06 | C92: ='DF raw data'!B97 -> -6.6199309e-06 | D92: ='DF raw data'!C97 -> -2.6745358e-06 | F92: -8.468139416e-06 | G92: -6.64024764e-06 | H92: -2.677488488e-06 | J92: -4.658733928e-05 | K92: -0.002616109566 | L92: -2.710425168e-05 | M92: -0.0004995327686 | N92: 1.894736657e-07
A93: 43.44331 | B93: ='DF raw data'!A98 -> -3.9600909e-06 | C93: ='DF raw data'!B98 -> 2.3969258e-07 | D93: ='DF raw data'!C98 -> 3.734084e-06 | F93: -3.96446284e-06 | G93: 2.404282027e-07 | H93: 3.738206429e-06 | J93: -4.857008608e-05 | K93: -0.002640400923 | L93: -2.698400632e-05 | M93: -0.0005130282797 | N93: 1.91017662e-07
A94: 43.94344 | B94: ='DF raw data'!A99 -> -1.6674513e-06 | C94: ='DF raw data'!B99 -> -6.8842678e-07 | D94: ='DF raw data'!C99 -> 1.285358e-05 | F94: -1.669292166e-06 | G94: -6.905395797e-07 | H94: 1.286777035e-05 | J94: -4.940494918e-05 | K94: -0.00266510982 | L94: -2.732936588e-05 | M94: -0.0005266965155 | N94: 1.92611948e-07
A95: 44.44357 | B95: ='DF raw data'!A100 -> -4.4328099e-06 | C95: ='DF raw data'!B100 -> -9.5890873e-06 | D95: ='DF raw data'!C100 -> 4.4144003e-06 | F95: -4.437703722e-06 | G95: -9.618516458e-06 | H95: 4.419273798e-06 | J95: -5.162437794e-05 | K95: -0.00269092872 | L95: -3.213987452e-05 | M95: -0.0005427706309 | N95: 1.944614527e-07
A96: 44.9437 | B96: ='DF raw data'!A101 -> -9.9993104e-06 | C96: ='DF raw data'!B101 -> 4.8366592e-06 | D96: ='DF raw data'!C101 -> -6.3013738e-07 | F96: -1.001034964e-05 | G96: 4.851503033e-06 | H96: -6.308330517e-07 | J96: -5.66308541e-05 | K96: -0.002719251509 | L96: -2.97134923e-05 | M96: -0.0005576312398 | N96: 1.96506957e-07
A97: 45.44383 | B97: ='DF raw data'!A102 -> -1.0373309e-05 | C97: ='DF raw data'!B102 -> -5.9341155e-06 | D97: ='DF raw data'!C102 -> 3.1080401e-07 | F97: -1.038476113e-05 | G97: -5.952327454e-06 | H97: 3.111471376e-07 | J97: -6.182458469e-05 | K97: -0.002750171839 | L97: -3.269042983e-05 | M97: -0.0005739807045 | N97: 1.989530646e-07
A98: 45.94396 | B98: ='DF raw data'!A103 -> -7.6278429e-06 | C98: ='DF raw data'!B103 -> -4.5802308e-06 | D98: ='DF raw data'!C103 -> 2.6869864e-06 | F98: -7.636264039e-06 | G98: -4.594287647e-06 | H98: 2.689952833e-06 | J98: -6.564370942e-05 | K98: -0.002783002227 | L98: -3.498817092e-05 | M98: -0.0005914793384 | N98: 2.017204183e-07
A99: 46.44409 | B99: ='DF raw data'!A104 -> -7.0165461e-06 | C99: ='DF raw data'!B104 -> 1.0527061e-05 | D99: ='DF raw data'!C104 -> 3.0869166e-06 | F99: -7.024292367e-06 | G99: 1.055936882e-05 | H99: 3.090324556e-06 | J99: -6.915676876e-05 | K99: -0.002817589602 | L99: -2.970711379e-05 | M99: -0.0006063367572 | N99: 2.045537404e-07
A100: 46.94422 | B100: ='DF raw data'!A105 -> -5.6823537e-06 | C100: ='DF raw data'!B105 -> 1.0182419e-05 | D100: ='DF raw data'!C105 -> 9.0653966e-06 | F100: -5.688627018e-06 | G100: 1.021366911e-05 | H100: 9.075404798e-06 | J100: -7.200182179e-05 | K100: -0.002853599873 | L100: -2.459895146e-05 | M100: -0.0006186394308 | N100: 2.074491784e-07
A101: 47.44435 | B101: ='DF raw data'!A106 -> -3.2604203e-06 | C101: ='DF raw data'!B106 -> -7.3944766e-06 | D101: ='DF raw data'!C106 -> 3.8732437e-06 | F101: -3.264019804e-06 | G101: -7.417170441e-06 | H101: 3.877519761e-06 | J101: -7.363425602e-05 | K101: -0.002890426574 | L101: -2.830850091e-05 | M101: -0.0006327973614 | N101: 2.105616748e-07
A102: 47.94448 | B102: ='DF raw data'!A107 -> -3.6324109e-06 | C102: ='DF raw data'!B107 -> 3.7457582e-06 | D102: ='DF raw data'!C107 -> -4.3548312e-06 | F102: -3.636421082e-06 | G102: 3.757254029e-06 | H102: -4.359638934e-06 | J102: -7.545293929e-05 | K102: -0.002928162852 | L102: -2.642938545e-05 | M102: -0.0006460154899 | N102: 2.13758335e-07
A103: 48.44461 | B103: ='DF raw data'!A108 -> -2.0734788e-06 | C103: ='DF raw data'!B108 -> -1.1877121e-06 | D103: ='DF raw data'!C108 -> 7.555833e-07 | F103: -2.075767921e-06 | G103: -1.191357219e-06 | H103: 7.56417464e-07 | J103: -7.64910931e-05 | K103: -0.002966418343 | L103: -2.702521894e-05 | M103: -0.0006595316127 | N103: 2.170498154e-07
A104: 48.94474 | B104: ='DF raw data'!A109 -> -3.8495344e-08 | C104: ='DF raw data'!B109 -> -3.358705e-06 | D104: ='DF raw data'!C109 -> 2.7164103e-06 | F104: -3.853784286e-08 | G104: -3.369012953e-06 | H104: 2.719409217e-06 | J104: -7.651036704e-05 | K104: -0.003004683473 | L104: -2.871016338e-05 | M104: -0.0006738904267 | N104: 2.203897385e-07
A105: 49.44487 | B105: ='DF raw data'!A110 -> 2.5457794e-06 | C105: ='DF raw data'!B110 -> -9.5495916e-06 | D105: ='DF raw data'!C110 -> -2.826356e-06 | F105: 2.54858994e-06 | G105: -9.578899544e-06 | H105: -2.829476297e-06 | J105: -7.523574075e-05 | K105: -0.003042311124 | L105: -3.350085841e-05 | M105: -0.000690645211 | N105: 2.237819823e-07
A106: 49.945 | B106: ='DF raw data'!A111 -> 3.4959612e-06 | C106: ='DF raw data'!B111 -> -1.0655115e-07 | D106: ='DF raw data'!C111 -> -3.0003969e-06 | F106: 3.499820741e-06 | G106: -1.068781582e-07 | H106: -3.003709338e-06 | J106: -7.34853754e-05 | K106: -0.003079063364 | L106: -3.355431139e-05 | M106: -0.0007074267288 | N106: 2.270458268e-07
A107: 50.44513 | B107: ='DF raw data'!A112 -> -2.8505074e-06 | C107: ='DF raw data'!B112 -> 3.7254774e-06 | D107: ='DF raw data'!C112 -> -3.9992406e-06 | F107: -2.85365436e-06 | G107: 3.736910987e-06 | H107: -4.003655762e-06 | J107: -7.491257356e-05 | K107: -0.00311652939 | L107: -3.168537009e-05 | M107: -0.0007232735329 | N107: 2.30354615e-07
A108: 50.94526 | B108: ='DF raw data'!A113 -> -5.7405032e-06 | C108: ='DF raw data'!B113 -> -5.0649714e-06 | D108: ='DF raw data'!C113 -> 1.5662851e-06 | F108: -5.746840716e-06 | G108: -5.080515929e-06 | H108: 1.568014279e-06 | J108: -7.7786741e-05 | K108: -0.003155432873 | L108: -3.422628853e-05 | M108: -0.0007403911266 | N108: 2.339666619e-07
A109: 51.44539 | B109: ='DF raw data'!A114 -> -5.6421759e-06 | C109: ='DF raw data'!B114 -> 7.1033201e-06 | D109: ='DF raw data'!C114 -> 3.7619654e-06 | F109: -5.648404862e-06 | G109: 7.125120374e-06 | H109: 3.76611861e-06 | J109: -8.061167773e-05 | K109: -0.003195749191 | L109: -3.066280207e-05 | M109: -0.0007557265138 | N109: 2.376868539e-07
A110: 51.94552 | B110: ='DF raw data'!A115 -> -5.7630587e-06 | C110: ='DF raw data'!B115 -> 6.2854115e-06 | D110: ='DF raw data'!C115 -> 3.2471564e-07 | F110: -5.769421117e-06 | G110: 6.304701591e-06 | H110: 3.250741261e-07 | J110: -8.349713831e-05 | K110: -0.003237508615 | L110: -2.750963167e-05 | M110: -0.0007694849059 | N110: 2.415521346e-07
A111: 52.44565 | B111: ='DF raw data'!A116 -> -7.6699331e-07 | C111: ='DF raw data'!B116 -> 5.4769762e-06 | D111: ='DF raw data'!C116 -> -1.2233317e-06 | F111: -7.678400706e-07 | G111: 5.493785182e-06 | H111: -1.224682258e-06 | J111: -8.388115816e-05 | K111: -0.003279460098 | L111: -2.476202488e-05 | M111: -0.0007818691374 | N111: 2.453777323e-07
A112: 52.94578 | B112: ='DF raw data'!A117 -> 1.0305756e-06 | C112: ='DF raw data'!B117 -> 1.6593574e-06 | D112: ='DF raw data'!C117 -> -6.3466682e-06 | F112: 1.031713355e-06 | G112: 1.664450011e-06 | H112: -6.353674922e-06 | J112: -8.336516736e-05 | K112: -0.00332115352 | L112: -2.39295835e-05 | M112: -0.00079383704 | N112: 2.491398982e-07
A113: 53.44591 | B113: ='DF raw data'!A118 -> -5.5639799e-07 | C113: ='DF raw data'!B118 -> 7.9384399e-06 | D113: ='DF raw data'!C118 -> -3.5151272e-06 | F113: -5.570122534e-07 | G113: 7.962803178e-06 | H113: -3.5190079e-06 | J113: -8.36437459e-05 | K113: -0.003362986266 | L113: -1.994714675e-05 | M113: -0.0008038132065 | N113: 2.528379419e-07
A114: 53.94604 | B114: ='DF raw data'!A119 -> 2.6421358e-07 | C114: ='DF raw data'!B119 -> 1.2305111e-05 | D114: ='DF raw data'!C119 -> -1.6422231e-06 | F114: 2.645052718e-07 | G114: 1.23428757e-05 | H114: -1.644036114e-06 | J114: -8.351145888e-05 | K114: -0.003404752852 | L114: -1.377410432e-05 | M114: -0.0008107020493 | N114: 2.564208181e-07
A115: 54.44617 | B115: ='DF raw data'!A120 -> 5.836136e-07 | C115: ='DF raw data'!B120 -> 2.6615287e-06 | D115: ='DF raw data'!C120 -> 5.2697271e-07 | F115: 5.842579094e-07 | G115: 2.669697001e-06 | H115: 5.275544879e-07 | J115: -8.321925397e-05 | K115: -0.003446373298 | L115: -1.243890876e-05 | M115: -0.0008169231207 | N115: 2.599618238e-07
A116: 54.9463 | B116: ='DF raw data'!A121 -> 1.7497313e-06 | C116: ='DF raw data'!B121 -> 1.8497583e-06 | D116: ='DF raw data'!C121 -> 8.6584814e-06 | F116: 1.751663003e-06 | G116: 1.855435256e-06 | H116: 8.668040363e-06 | J116: -8.234319476e-05 | K116: -0.0034875556 | L116: -1.151094992e-05 | M116: -0.0008226800921 | N116: 2.634191744e-07
A117: 55.44643 | B117: ='DF raw data'!A122 -> 4.6454606e-06 | C117: ='DF raw data'!B122 -> 8.5292559e-06 | D117: ='DF raw data'!C122 -> 1.0683191e-05 | F117: 4.650589189e-06 | G117: 8.555432408e-06 | H117: 1.069498524e-05 | J117: -8.001729558e-05 | K117: -0.00352757465 | L117: -7.232121514e-06 | M117: -0.000826297093 | N117: 2.666475491e-07
A118: 55.94656 | B118: ='DF raw data'!A123 -> 4.2015108e-06 | C118: ='DF raw data'!B123 -> 6.4895548e-06 | D118: ='DF raw data'!C123 -> 7.0089341e-06 | F118: 4.206149268e-06 | G118: 6.509471412e-06 | H118: 7.016671963e-06 | J118: -7.791367415e-05 | K118: -0.003566541615 | L118: -3.976539577e-06 | M118: -0.0008282858798 | N118: 2.696915171e-07
A119: 56.44669 | B119: ='DF raw data'!A124 -> 7.4307349e-07 | C119: ='DF raw data'!B124 -> 3.1395991e-06 | D119: ='DF raw data'!C124 -> 4.5122329e-06 | F119: 7.438938431e-07 | G119: 3.149234611e-06 | H119: 4.517214405e-06 | J119: -7.754163052e-05 | K119: -0.003605322511 | L119: -2.401512871e-06 | M119: -0.0008294869484 | N119: 2.727015353e-07
A120: 56.94682 | B120: ='DF raw data'!A125 -> -4.8371118e-07 | C120: ='DF raw data'!B125 -> 1.4645536e-06 | D120: ='DF raw data'!C125 -> 1.9936313e-06 | F120: -4.842451971e-07 | G120: 1.469048353e-06 | H120: 1.995832269e-06 | J120: -7.778381607e-05 | K120: -0.003644224531 | L120: -1.666797718e-06 | M120: -0.0008303205639 | N120: 2.757288724e-07
A121: 57.44695 | B121: ='DF raw data'!A126 -> -6.1707948e-07 | C121: ='DF raw data'!B126 -> 5.5330156e-06 | D121: ='DF raw data'!C126 -> -4.5699958e-06 | F121: -6.177607357e-07 | G121: 5.549996568e-06 | H121: -4.575041075e-06 | J121: -7.809277675e-05 | K121: -0.003683281071 | L121: 1.108922066e-06 | M121: -0.0008297659587 | N121: 2.787795211e-07
A122: 57.94708 | B122: ='DF raw data'!A127 -> -1.6598467e-07 | C122: ='DF raw data'!B127 -> 9.29833e-06 | D122: ='DF raw data'!C127 -> -4.1042617e-06 | F122: -1.661679171e-07 | G122: 9.326866816e-06 | H122: -4.108792805e-06 | J122: -7.817588231e-05 | K122: -0.003722379176 | L122: 5.773567966e-06 | M122: -0.0008268784242 | N122: 2.818527212e-07
A123: 58.44721 | B123: ='DF raw data'!A128 -> 1.0925086e-06 | C123: ='DF raw data'!B128 -> -7.1256209e-06 | D123: ='DF raw data'!C128 -> -1.4502017e-07 | F123: 1.093714729e-06 | G123: -7.147489615e-06 | H123: -1.451802723e-07 | J123: -7.762888276e-05 | K123: -0.003761203709 | L123: 2.198893985e-06 | M123: -0.0008257786913 | N123: 2.848690446e-07
A124: 58.94734 | B124: ='DF raw data'!A129 -> -2.3976227e-06 | C124: ='DF raw data'!B129 -> -5.2563055e-06 | D124: ='DF raw data'!C129 -> -3.7531238e-06 | F124: -2.400269675e-06 | G124: -5.272437238e-06 | H124: -3.757267249e-06 | J124: -7.882932964e-05 | K124: -0.003800628621 | L124: -4.380100509e-07 | M124: -0.0008259977533 | N124: 2.879769799e-07
A125: 59.44747 | B125: ='DF raw data'!A130 -> -2.6438556e-06 | C125: ='DF raw data'!B130 -> 9.8336395e-06 | D125: ='DF raw data'!C130 -> -5.9259723e-06 | F125: -2.646774417e-06 | G125: 9.863819195e-06 | H125: -5.932514573e-06 | J125: -8.015306092e-05 | K125: -0.003840715572 | L125: 4.495181843e-06 | M125: -0.000823749578 | N125: 2.912001777e-07
A126: 59.9476 | B126: ='DF raw data'!A131 -> 3.8823728e-06 | C126: ='DF raw data'!B131 -> 1.2826929e-06 | D126: ='DF raw data'!C131 -> -6.5974996e-06 | F126: 3.88665894e-06 | G126: 1.286629518e-06 | H126: -6.60478324e-06 | J126: -7.820922619e-05 | K126: -0.003879830352 | L126: 5.138663864e-06 | M126: -0.0008211795781 | N126: 2.942725207e-07
A127: 60.44773 | B127: ='DF raw data'!A132 -> 7.951292e-06 | C127: ='DF raw data'!B132 -> -2.6712889e-06 | D127: ='DF raw data'!C132 -> -4.4340372e-06 | F127: 7.960070226e-06 | G127: -2.679487155e-06 | H127: -4.438932377e-06 | J127: -7.422815627e-05 | K127: -0.00391695408 | L127: 3.798571953e-06 | M127: -0.0008192797983 | N127: 2.970353631e-07
A128: 60.94786 | B128: ='DF raw data'!A133 -> 7.4086802e-06 | C128: ='DF raw data'!B133 -> 4.1684561e-06 | D128: ='DF raw data'!C133 -> -1.5648942e-06 | F128: 7.416859383e-06 | G128: 4.1812492e-06 | H128: -1.566621843e-06 | J128: -7.051876238e-05 | K128: -0.003952222628 | L128: 5.889740115e-06 | M128: -0.0008163341625 | N128: 2.995398065e-07
A129: 61.44799 | B129: ='DF raw data'!A134 -> 4.4016142e-06 | C129: ='DF raw data'!B134 -> -6.9796506e-06 | D129: ='DF raw data'!C134 -> 1.1327099e-05 | F129: 4.406473582e-06 | G129: -7.001071329e-06 | H129: 1.133960412e-05 | J129: -6.831495275e-05 | K129: -0.003986388986 | L129: 2.388294312e-06 | M129: -0.0008151397049 | N129: 3.018767323e-07
A130: 61.94812 | B130: ='DF raw data'!A135 -> -9.4020476e-07 | C130: ='DF raw data'!B135 -> -1.0062352e-05 | D130: ='DF raw data'!C135 -> 1.1206245e-05 | F130: -9.412427461e-07 | G130: -1.009323362e-05 | H130: 1.121861669e-05 | J130: -6.878569649e-05 | K130: -0.004020790776 | L130: -2.659634618e-06 | M130: -0.000816469868 | N130: 3.042466211e-07
A131: 62.44825 | B131: ='DF raw data'!A136 -> -5.803382e-06 | C131: ='DF raw data'!B136 -> 2.5597072e-07 | D131: ='DF raw data'!C136 -> 1.0749105e-06 | F131: -5.809788934e-06 | G131: 2.567563008e-07 | H131: 1.076097201e-06 | J131: -7.169134623e-05 | K131: -0.004056645769 | L131: -2.53122309e-06 | M131: -0.0008177358086 | N131: 3.068203182e-07
A132: 62.94838 | B132: ='DF raw data'!A137 -> -6.8949357e-06 | C132: ='DF raw data'!B137 -> -6.0970297e-06 | D132: ='DF raw data'!C137 -> 8.4549959e-07 | F132: -6.902547709e-06 | G132: -6.115741642e-06 | H132: 8.464330215e-07 | J132: -7.514351741e-05 | K132: -0.004094227296 | L132: -5.589888957e-06 | M132: -0.0008205314797 | N132: 3.096599539e-07
A133: 63.44851 | B133: ='DF raw data'!A138 -> -4.9746795e-06 | C133: ='DF raw data'!B138 -> -9.3964181e-06 | D133: ='DF raw data'!C138 -> 2.4115186e-06 | F133: -4.980171546e-06 | G133: -9.425255951e-06 | H133: 2.414180917e-06 | J133: -7.763425061e-05 | K133: -0.004133054514 | L133: -1.030374222e-05 | M133: -0.0008256846903 | N133: 3.127273732e-07
A134: 63.94864 | B134: ='DF raw data'!A139 -> -3.4492605e-06 | C134: ='DF raw data'!B139 -> -3.7782004e-06 | D134: ='DF raw data'!C139 -> -2.8633615e-06 | F134: -3.453068484e-06 | G134: -3.789795795e-06 | H134: -2.866522651e-06 | J134: -7.936123375e-05 | K134: -0.004172745448 | L134: -1.219913279e-05 | M134: -0.0008317858426 | N134: 3.159517234e-07
A135: 64.44877 | B135: ='DF raw data'!A140 -> -4.0323848e-06 | C135: ='DF raw data'!B140 -> 2.5042189e-06 | D135: ='DF raw data'!C140 -> -4.9080368e-06 | F135: -4.036836553e-06 | G135: =(1-$G$1*($B$2-$G$2))*C135*$M$2/$M$1 -> 2.511904413e-06 | H135: -4.913455273e-06 | J135: -8.138017681e-05 | K135: -0.004213446116 | L135: -1.094285403e-05 | M135: -0.0008372586922 | N135: 3.193238396e-07
A136: =A135+$B$1 -> 64.9489 | B136: ='DF raw data'!A141 -> -3.28024e-06 | C136: ='DF raw data'!B141 -> -1.1140594e-06 | D136: ='DF raw data'!C141 -> -1.5566287e-06 | F136: -3.283861385e-06 | G136: -1.117478477e-06 | H136: -1.558347218e-06 | J136: =F136*$B$1+J135 -> -8.302253441e-05 | K136: =J136*$B$1+K135 -> -0.004254968176 | L136: =G136*$B$1+L135 -> -1.150173854e-05 | M136: =L136*$B$1+M135 -> -0.0008430110567 | N136: =(J136^2+L136^2)*$B$1+N135 -> 3.228372684e-07
A137: 65.44903 | B137: ='DF raw data'!A142 -> 3.3356801e-07 | C137: ='DF raw data'!B142 -> -1.2891153e-06 | D137: ='DF raw data'!C142 -> 2.5928791e-06 | F137: 3.339362691e-07 | G137: -1.293071628e-06 | H137: 2.595741639e-06 | J137: -8.285552286e-05 | K137: -0.004296406709 | L137: -1.214844246e-05 | M137: -0.0008490868572 | N137: 3.263444912e-07
A138: 65.94916 | B138: ='DF raw data'!A143 -> -2.8499025e-07 | C138: ='DF raw data'!B143 -> -4.5631523e-06 | D138: ='DF raw data'!C143 -> 7.1197469e-06 | F138: -2.853048792e-07 | G138: -4.577156733e-06 | H138: 7.127607101e-06 | J138: -8.299821239e-05 | K138: -0.004337916605 | L138: -1.443761585e-05 | M138: -0.000856307542 | N138: 3.298939879e-07
A139: 66.44929 | B139: ='DF raw data'!A144 -> -3.5459725e-06 | C139: ='DF raw data'!B144 -> -6.4628885e-06 | D139: ='DF raw data'!C144 -> 4.8137194e-06 | F139: =(1-$G$1*($B$2-$G$2))*B139 -> -3.549887254e-06 | G139: -6.482723273e-06 | H139: =(1-$G$1*($B$2-$G$2))*D139 -> 4.819033746e-06 | J139: -8.47736175e-05 | K139: -0.004380314434 | L139: -1.767982024e-05 | M139: -0.0008651497505 | N139: 3.336445339e-07
A140: 66.94942 | B140: ='DF raw data'!A145 -> -3.4354362e-06 | C140: ='DF raw data'!B145 -> 3.9432307e-06 | D140: ='DF raw data'!C145 -> 6.1523008e-07 | F140: -3.439228922e-06 | G140: 3.955332577e-06 | H140: 6.15909294e-07 | J140: -8.649367906e-05 | K140: -0.004423572518 | L140: -1.570163976e-05 | M140: -0.0008730026116 | N140: 3.375093875e-07
A141: 67.44955 | B141: ='DF raw data'!A146 -> 1.2920299e-06 | C141: ='DF raw data'!B146 -> 7.6743881e-06 | D141: ='DF raw data'!C146 -> 6.6786436e-07 | F141: 1.293456301e-06 | G141: 7.697940996e-06 | H141: 6.686016823e-07 | J141: -8.584678276e-05 | K141: -0.004466507069 | L141: -1.185166853e-05 | M141: -0.0008789299866 | N141: 3.412654299e-07
A142: 67.94968 | B142: ='DF raw data'!A147 -> 6.508164e-06 | C142: ='DF raw data'!B147 -> 4.5912866e-06 | D142: ='DF raw data'!C147 -> -7.2789715e-07 | F142: 6.515349013e-06 | G142: 4.605377378e-06 | H142: -7.287007485e-07 | J142: -8.258826126e-05 | K142: -0.004507811936 | L142: -9.548381144e-06 | M142: -0.0008837054185 | N142: 3.447223247e-07
A143: 68.44981 | B143: ='DF raw data'!A148 -> 9.2636565e-06 | C143: ='DF raw data'!B148 -> -3.1693719e-06 | D143: ='DF raw data'!C148 -> -5.9906014e-08 | F143: 9.273883577e-06 | G143: -3.179098785e-06 | H143: -5.997215024e-08 | J143: -7.795011387e-05 | K143: -0.004546797127 | L143: -1.113834382e-05 | M143: -0.0008892760384 | N143: 3.478232722e-07
A144: 68.94994 | B144: ='DF raw data'!A149 -> 4.5314464e-06 | C144: ='DF raw data'!B149 -> -8.5288748e-06 | D144: ='DF raw data'!C149 -> -1.4868814e-06 | F144: 4.536449117e-06 | G144: -8.555050138e-06 | H144: -1.488522917e-06 | J144: -7.568129957e-05 | K144: -0.004584647615 | L144: -1.541698104e-05 | M144: -0.0008969865331 | N144: 3.508067189e-07
A145: 69.45007 | B145: ='DF raw data'!A150 -> -5.5244598e-08 | C145: ='DF raw data'!B150 -> 5.3416807e-06 | D145: ='DF raw data'!C150 -> -6.1016722e-06 | F145: -5.530558804e-08 | G145: 5.358074457e-06 | H145: -6.108408446e-06 | J145: -7.570895955e-05 | K145: -0.004622511937 | L145: -1.273724727e-05 | M145: -0.0009033568126 | N145: 3.537545272e-07
A146: 69.9502 | B146: ='DF raw data'!A151 -> 2.7931619e-06 | C146: ='DF raw data'!B151 -> -2.6311257e-06 | D146: ='DF raw data'!C151 -> -6.3385482e-06 | F146: 2.796245551e-06 | G146: -2.639200693e-06 | H146: -6.345545957e-06 | J146: -7.431047327e-05 | K146: -0.004659676834 | L146: -1.405719071e-05 | M146: -0.0009103872354 | N146: 3.566150962e-07
A147: 70.45033 | B147: ='DF raw data'!A152 -> 2.3189004e-06 | C147: ='DF raw data'!B152 -> -1.3094753e-05 | D147: ='DF raw data'!C152 -> 2.076455e-07 | F147: 2.321460466e-06 | G147: -1.313494114e-05 | H147: 2.078747406e-07 | J147: -7.314944124e-05 | K147: -0.004696261064 | L147: -2.062636882e-05 | M147: -0.0009207031012 | N147: 3.595039911e-07
A148: 70.95046 | B148: ='DF raw data'!A153 -> -2.1328215e-06 | C148: ='DF raw data'!B153 -> 5.9591821e-06 | D148: ='DF raw data'!C153 -> 4.4263038e-06 | F148: -2.135176135e-06 | G148: 5.977470984e-06 | H148: 4.431190439e-06 | J148: -7.421730688e-05 | K148: -0.004733379366 | L148: -1.763685626e-05 | M148: -0.0009295238221 | N148: 3.624143812e-07
A149: 71.45059 | B149: ='DF raw data'!A154 -> -4.3874807e-06 | C149: ='DF raw data'!B154 -> -7.2989433e-06 | D149: ='DF raw data'!C154 -> 5.2388682e-06 | F149: -4.392324479e-06 | G149: -7.321343946e-06 | H149: 5.24465191e-06 | J149: -7.641404013e-05 | K149: -0.00477159632 | L149: -2.129848e-05 | M149: -0.0009401758309 | N149: 3.655615647e-07
A150: 71.95072 | B150: ='DF raw data'!A155 -> -7.2870225e-06 | C150: ='DF raw data'!B155 -> -9.699831e-06 | D150: ='DF raw data'!C155 -> 5.4646662e-08 | F150: -7.295067373e-06 | G150: -9.729600033e-06 | H150: 5.470699191e-08 | J150: -8.006252217e-05 | K150: -0.004811637989 | L150: -2.616454487e-05 | M150: -0.0009532615048 | N150: 3.691097824e-07
A151: 72.45085 | B151: ='DF raw data'!A156 -> -6.0671646e-06 | C151: ='DF raw data'!B156 -> 2.5525194e-06 | D151: ='DF raw data'!C156 -> -6.1089336e-06 | F151: -6.07386275e-06 | G151: 2.560353148e-06 | H151: -6.115677863e-06 | J151: -8.310024315e-05 | K151: -0.004853198913 | L151: -2.488403545e-05 | M151: -0.0009657067574 | N151: 3.728731935e-07
A152: 72.95098 | B152: ='DF raw data'!A157 -> -4.4137905e-06 | C152: ='DF raw data'!B157 -> -6.2628797e-06 | D152: ='DF raw data'!C157 -> -5.2256323e-06 | F152: -4.418663325e-06 | G152: -6.28210064e-06 | H152: -5.231401398e-06 | J152: -8.531014924e-05 | K152: -0.004895865078 | L152: -2.802590244e-05 | M152: -0.000979723352 | N152: 3.769058781e-07
A153: 73.45111 | B153: ='DF raw data'!A158 -> -7.8744833e-06 | C153: ='DF raw data'!B158 -> -6.4600854e-06 | D153: ='DF raw data'!C158 -> 2.8807306e-06 | F153: -7.88317673e-06 | G153: -6.47991157e-06 | H153: 2.883910927e-06 | J153: -8.925276241e-05 | K153: -0.004940503062 | L153: -3.126670062e-05 | M153: -0.000995360767 | N153: 3.813788718e-07
A154: 73.95124 | B154: ='DF raw data'!A159 -> -6.997454e-06 | C154: ='DF raw data'!B159 -> -6.9520311e-06 | D154: ='DF raw data'!C159 -> 2.8021211e-06 | F154: -7.005179189e-06 | G154: -6.973367064e-06 | H154: 2.805214642e-06 | J154: -9.275626268e-05 | K154: -0.004986893252 | L154: -3.475429069e-05 | M154: -0.00101274243 | N154: 3.862859398e-07
A155: 74.45137 | B155: ='DF raw data'!A160 -> -4.7491394e-06 | C155: ='DF raw data'!B160 -> -8.2314646e-06 | D155: ='DF raw data'!C160 -> -4.3978378e-07 | F155: -4.75438245e-06 | G155: -8.256727178e-06 | H155: -4.402693013e-07 | J155: -9.513407198e-05 | K155: -0.005034472655 | L155: -3.888372765e-05 | M155: -0.001032189349 | N155: 3.915685309e-07
A156: 74.9515 | B156: ='DF raw data'!A161 -> -9.1411839e-06 | C156: ='DF raw data'!B161 -> 5.8232199e-06 | D156: ='DF raw data'!C161 -> -2.7567978e-06 | F156: -9.151275767e-06 | G156: 5.841091513e-06 | H156: -2.759841305e-06 | J156: -9.971089953e-05 | K156: -0.005084341068 | L156: -3.596242255e-05 | M156: -0.001050175235 | N156: 3.971877712e-07
A157: 75.45163 | B157: ='DF raw data'!A162 -> -1.1992792e-05 | C157: ='DF raw data'!B162 -> 1.1136406e-06 | D157: ='DF raw data'!C162 -> -6.3122529e-06 | F157: -1.200603204e-05 | G157: 1.117058392e-06 | H157: -6.319221627e-06 | J157: -0.0001057154763 | K157: -0.005137212549 | L157: -3.540374814e-05 | M157: -0.001067881712 | N157: 4.034039807e-07
A158: 75.95176 | B158: ='DF raw data'!A163 -> -9.1323072e-06 | C158: ='DF raw data'!B163 -> -3.5736568e-06 | D158: ='DF raw data'!C163 -> -1.5192303e-06 | F158: -9.142389267e-06 | G158: -3.584624445e-06 | H158: -1.52090753e-06 | J158: -0.0001102878595 | K158: -0.005192370816 | L158: -3.719652636e-05 | M158: -0.001086484811 | N158: 4.101792385e-07
A159: 76.45189 | B159: ='DF raw data'!A164 -> -6.483684e-06 | C159: ='DF raw data'!B164 -> 1.8314784e-06 | D159: ='DF raw data'!C164 -> 4.166983e-07 | F159: -6.490841987e-06 | G159: 1.837099255e-06 | H159: 4.171583349e-07 | J159: -0.0001135341243 | K159: -0.005249152638 | L159: -3.627773791e-05 | M159: -0.001104628396 | N159: 4.172841211e-07
A160: 76.95202 | B160: ='DF raw data'!A165 -> -4.5400138e-06 | C160: ='DF raw data'!B165 -> -9.4809572e-08 | D160: ='DF raw data'!C165 -> -1.1425976e-06 | F160: -4.545025975e-06 | G160: -9.510054504e-08 | H160: -1.143859028e-06 | J160: -0.0001158072281 | K160: -0.005307071307 | L160: -3.632530055e-05 | M160: -0.001122795768 | N160: 4.246514569e-07
A161: 77.45215 | B161: ='DF raw data'!A166 -> -8.7907216e-07 | C161: ='DF raw data'!B166 -> -1.3570309e-06 | D161: ='DF raw data'!C166 -> 5.1239169e-07 | F161: -8.800426557e-07 | G161: -1.361195663e-06 | H161: 5.129573704e-07 | J161: -0.0001162473639 | K161: -0.005365210101 | L161: -3.700607533e-05 | M161: -0.001141303617 | N161: 4.320948413e-07
A162: 77.95228 | B162: ='DF raw data'!A167 -> 3.5414214e-06 | C162: ='DF raw data'!B167 -> -5.2088062e-06 | D162: ='DF raw data'!C167 -> 2.7072135e-06 | F162: 3.545331129e-06 | G162: -5.224792161e-06 | H162: 2.710202264e-06 | J162: -0.0001144742374 | K162: -0.005422462101 | L162: -3.961915064e-05 | M162: -0.001161118343 | N162: 4.39433763e-07
A163: 78.45241 | B163: ='DF raw data'!A168 -> 2.156763e-06 | C163: ='DF raw data'!B168 -> -1.1246004e-06 | D163: ='DF raw data'!C168 -> 5.230952e-06 | F163: 2.159144066e-06 | G163: -1.128051828e-06 | H163: 5.236726971e-06 | J163: -0.0001133943847 | K163: -0.005479174035 | L163: -4.01833232e-05 | M163: -0.001181215228 | N163: 4.466721374e-07
A164: 78.95254 | B164: ='DF raw data'!A169 -> -1.15454e-06 | C164: ='DF raw data'!B169 -> -1.0927361e-05 | D164: ='DF raw data'!C169 -> -3.7518578e-06 | F164: -1.155814612e-06 | G164: -1.096089735e-05 | H164: -3.755999851e-06 | J164: -0.0001139724422 | K164: -0.005536175072 | L164: -4.566519679e-05 | M164: -0.001204053763 | N164: 4.542116111e-07
A165: 79.45267 | B165: ='DF raw data'!A170 -> 1.6068169e-06 | C165: ='DF raw data'!B170 -> -1.3087413e-05 | D165: ='DF raw data'!C170 -> -2.6326118e-06 | F165: 1.608590826e-06 | G165: -1.312757861e-05 | H165: -2.635518203e-06 | J165: -0.0001131679377 | K165: -0.005592773753 | L165: -5.223069268e-05 | M165: -0.001230175899 | N165: 4.619811443e-07
A166: 79.9528 | B166: ='DF raw data'!A171 -> 5.1190382e-06 | C166: ='DF raw data'!B171 -> -2.1071585e-06 | D166: ='DF raw data'!C171 -> 1.3588329e-06 | F166: 5.124689618e-06 | G166: -2.113625424e-06 | H166: 1.360333052e-06 | J166: -0.0001106049267 | K166: -0.005648090595 | L166: -5.328778017e-05 | M166: -0.001256826717 | N166: 4.695196225e-07
A167: 80.45293 | B167: ='DF raw data'!A172 -> 2.1415417e-06 | C167: ='DF raw data'!B172 -> -6.400177e-06 | D167: ='DF raw data'!C172 -> 8.2364613e-06 | F167: 2.143905962e-06 | G167: -6.419819309e-06 | H167: 8.245554353e-06 | J167: -0.000109532695 | K167: -0.005702871182 | L167: -5.64985244e-05 | M167: -0.001285083324 | N167: 4.771163444e-07
A168: 80.95306 | B168: ='DF raw data'!A173 -> -1.3452428e-06 | C168: ='DF raw data'!B173 -> 4.1747271e-06 | D168: ='DF raw data'!C173 -> 1.5290865e-05 | F168: -1.346727948e-06 | G168: 4.187539446e-06 | H168: 1.530774611e-05 | J168: -0.000110206234 | K168: -0.005757988625 | L168: -5.440421029e-05 | M168: -0.001312292501 | N168: 4.846709241e-07
A169: 81.45319 | B169: ='DF raw data'!A174 -> -1.2741567e-06 | C169: ='DF raw data'!B174 -> 9.4493698e-06 | D169: ='DF raw data'!C174 -> 7.4527238e-06 | F169: -1.275563369e-06 | G169: 9.478370161e-06 | H169: 7.460951607e-06 | J169: -0.0001108441816 | K169: -0.005813425126 | L169: -4.966379302e-05 | M169: -0.001337130854 | N169: 4.920493045e-07
A170: 81.95332 | B170: ='DF raw data'!A175 -> -3.3569431e-06 | C170: ='DF raw data'!B175 -> -4.424076e-08 | D170: ='DF raw data'!C175 -> -4.1884446e-06 | F170: -3.360649165e-06 | G170: -4.437653604e-08 | H170: -4.193068643e-06 | J170: -0.000112524943 | K170: -0.005869702226 | L170: -4.968598706e-05 | M170: -0.001361980307 | N170: 4.996165515e-07
A171: 82.45345 | B171: ='DF raw data'!A176 -> -5.3459426e-06 | C171: ='DF raw data'!B176 -> 7.5836579e-06 | D171: ='DF raw data'!C176 -> -5.0734193e-06 | F171: -5.351844521e-06 | G171: 7.606932343e-06 | H171: -5.079020355e-06 | J171: -0.000115201561 | K171: -0.005927317982 | L171: -4.588153199e-05 | M171: -0.001384927038 | N171: 5.073068078e-07
A172: 82.95358 | B172: ='DF raw data'!A177 -> -2.0541975e-06 | C172: ='DF raw data'!B177 -> 4.6243767e-06 | D172: ='DF raw data'!C177 -> 5.6159665e-06 | F172: -2.056465334e-06 | G172: 4.638569032e-06 | H172: 5.622166527e-06 | J172: -0.000116230061 | K172: -0.005985448123 | L172: -4.356164446e-05 | M172: -0.001406713523 | N172: 5.150123327e-07
A173: 83.45371 | B173: ='DF raw data'!A178 -> 4.6394507e-06 | C173: ='DF raw data'!B178 -> -2.4960984e-06 | D173: ='DF raw data'!C178 -> 7.7830964e-06 | F173: 4.644572654e-06 | G173: -2.503758991e-06 | H173: 7.791688938e-06 | J173: -0.0001139071709 | K173: -0.006042416516 | L173: -4.481384944e-05 | M173: -0.001429126273 | N173: 5.225058428e-07
A174: 83.95384 | B174: ='DF raw data'!A179 -> 7.859906e-06 | C174: ='DF raw data'!B179 -> 5.3512877e-06 | D174: ='DF raw data'!C179 -> 5.3989975e-06 | F174: 7.868583336e-06 | G174: 5.367710941e-06 | H174: 5.404957993e-06 | J174: -0.0001099718563 | K174: -0.006097416741 | L174: -4.212929617e-05 | M174: -0.001450196398 | N174: 5.294419891e-07
A175: 84.45397 | B175: ='DF raw data'!A180 -> 7.4302461e-06 | C175: ='DF raw data'!B180 -> 1.4118502e-06 | D175: ='DF raw data'!C180 -> 2.4988447e-06 | F175: 7.438449092e-06 | G175: 1.416183205e-06 | H175: 2.501603425e-06 | J175: -0.0001062516648 | K175: -0.006150556386 | L175: -4.142102046e-05 | M175: -0.001470912293 | N175: 5.359462384e-07
A176: 84.9541 | B176: ='DF raw data'!A181 -> 6.7216261e-06 | C176: ='DF raw data'!B181 -> -5.932915e-06 | D176: ='DF raw data'!C181 -> 3.8767071e-06 | F176: 6.729046775e-06 | G176: -5.95112327e-06 | H176: 3.880986985e-06 | J176: -0.0001028862666 | K176: -0.006202012894 | L176: -4.439735574e-05 | M176: -0.001493116743 | N176: 5.422262253e-07
A177: 85.45423 | B177: ='DF raw data'!A182 -> 7.437915e-06 | C177: ='DF raw data'!B182 -> 8.2285114e-06 | D177: ='DF raw data'!C182 -> 6.3451339e-06 | F177: 7.446126458e-06 | G177: 8.253764915e-06 | H177: 6.352138928e-06 | J177: -9.916223539e-05 | K177: -0.006251606903 | L177: -4.02694003e-05 | M177: -0.001513256678 | N177: 5.479551012e-07
A178: 85.95436 | B178: ='DF raw data'!A183 -> 9.0613994e-06 | C178: ='DF raw data'!B183 -> 2.3451737e-06 | D178: ='DF raw data'!C183 -> 1.5854499e-06 | F178: 9.071403185e-06 | G178: 2.352371099e-06 | H178: 1.587200237e-06 | J178: -9.462535452e-05 | K178: -0.006298931882 | L178: -3.909290894e-05 | M178: -0.001532808214 | N178: 5.531975705e-07
A179: 86.45449 | B179: ='DF raw data'!A184 -> 6.0311086e-06 | C179: ='DF raw data'!B184 -> -6.999132e-06 | D179: ='DF raw data'!C184 -> 2.6730165e-06 | F179: 6.037766944e-06 | G179: -7.020612518e-06 | H179: 2.67596751e-06 | J179: -9.160568613e-05 | K179: -0.006344746633 | L179: -4.260412788e-05 | M179: -0.001554115817 | N179: 5.583022541e-07
A180: 86.95462 | B180: ='DF raw data'!A185 -> 1.6667562e-06 | C180: ='DF raw data'!B185 -> 4.0908017e-06 | D180: ='DF raw data'!C185 -> 1.2351496e-05 | F180: 1.668596299e-06 | G180: 4.103356477e-06 | H180: 1.236513205e-05 | J180: -9.077117107e-05 | K180: -0.006390144019 | L180: -4.05519162e-05 | M180: -0.001574397047 | N180: 5.632454707e-07
A181: 87.45475 | B181: ='DF raw data'!A186 -> -1.9395345e-07 | C181: ='DF raw data'!B186 -> 3.4818393e-06 | D181: ='DF raw data'!C186 -> 1.2962007e-05 | F181: -1.941675746e-07 | G181: 3.492525155e-06 | H181: 1.297631706e-05 | J181: -9.08682801e-05 | K181: -0.006435589972 | L181: -3.88051996e-05 | M181: -0.001593804691 | N181: 5.681281838e-07
A182: 87.95488 | B182: ='DF raw data'!A187 -> 1.2039908e-06 | C182: ='DF raw data'!B187 -> -5.6277668e-06 | D182: ='DF raw data'!C187 -> 2.5896777e-06 | F182: 1.205320006e-06 | G182: -5.645038562e-06 | H182: 2.592536704e-06 | J182: -9.02654634e-05 | K182: -0.006480734438 | L182: -4.162845273e-05 | M182: -0.001614624329 | N182: 5.730698593e-07
A183: 88.45501 | B183: ='DF raw data'!A188 -> 4.6373116e-06 | C183: ='DF raw data'!B188 -> -4.402239e-06 | D183: ='DF raw data'!C188 -> -4.2781571e-06 | F183: 4.642431192e-06 | G183: -4.415749586e-06 | H183: -4.282880185e-06 | J183: -8.794364429e-05 | K183: -0.006524717693 | L183: -4.383690157e-05 | M183: -0.001636548479 | N183: 5.778989938e-07
A184: 88.95514 | B184: ='DF raw data'!A189 -> 4.0951072e-06 | C184: ='DF raw data'!B189 -> 2.6208343e-06 | D184: ='DF raw data'!C189 -> -1.7433152e-06 | F184: 4.099628198e-06 | G184: 2.628877708e-06 | H184: -1.74523982e-06 | J184: -8.589329724e-05 | K184: -0.006567675508 | L184: -4.252212097e-05 | M184: -0.001657815067 | N184: 5.824930826e-07
A185: 89.45527 | B185: ='DF raw data'!A190 -> -4.7857435e-07 | C185: ='DF raw data'!B190 -> 6.7473366e-06 | D185: ='DF raw data'!C190 -> 1.9571496e-06 | F185: -4.791026961e-07 | G185: 6.768044351e-06 | H185: 1.959310293e-06 | J185: -8.613291087e-05 | K185: -0.006610753161 | L185: -3.913721895e-05 | M185: -0.001677388765 | N185: 5.869695463e-07
A186: 89.9554 | B186: ='DF raw data'!A191 -> -1.3061273e-06 | C186: ='DF raw data'!B191 -> 6.891838e-06 | D186: ='DF raw data'!C191 -> 3.890415e-06 | F186: -1.307569265e-06 | G186: 6.91298923e-06 | H186: 3.894710018e-06 | J186: -8.678686549e-05 | K186: -0.006654157876 | L186: -3.567982564e-05 | M186: -0.001695233316 | N186: 5.913731959e-07
A187: 90.45553 | B187: ='DF raw data'!A192 -> 6.1766859e-06 | C187: ='DF raw data'!B192 -> -3.431823e-06 | D187: ='DF raw data'!C192 -> 5.0641579e-06 | F187: 6.183504961e-06 | G187: -3.442355354e-06 | H187: 5.06974873e-06 | J187: -8.369430915e-05 | K187: -0.006696015911 | L187: -3.740145082e-05 | M187: -0.001713938903 | N187: 5.955760913e-07
A188: 90.95566 | B188: ='DF raw data'!A193 -> 9.3893414e-06 | C188: ='DF raw data'!B193 -> -1.5134076e-06 | D188: ='DF raw data'!C193 -> 5.6378672e-06 | F188: 9.399707233e-06 | G188: -1.518052287e-06 | H188: 5.644091405e-06 | J188: -7.899323357e-05 | K188: -0.006735522796 | L188: -3.816067432e-05 | M188: -0.001733024201 | N188: 5.994251758e-07
A189: 91.45579 | B189: ='DF raw data'!A194 -> 9.9956178e-06 | C189: ='DF raw data'!B194 -> 1.2972366e-06 | D189: ='DF raw data'!C194 -> 2.5235975e-06 | F189: 1.000665296e-05 | G189: 1.301217853e-06 | H189: 2.526383552e-06 | J189: -7.398860623e-05 | K189: -0.006772526718 | L189: -3.750989623e-05 | M189: -0.001751784026 | N189: 6.028667235e-07
A190: 91.95592 | B190: ='DF raw data'!A195 -> 8.0865957e-06 | C190: ='DF raw data'!B195 -> 1.4492095e-06 | D190: ='DF raw data'!C195 -> 4.3899095e-06 | F190: 8.095523302e-06 | G190: 1.453657162e-06 | H190: 4.39475596e-06 | J190: -6.993979216e-05 | K190: -0.006807505706 | L190: -3.678287867e-05 | M190: -0.001770180247 | N190: 6.059898126e-07
A191: 92.45605 | B191: ='DF raw data'!A196 -> 1.7328365e-06 | C191: ='DF raw data'!B196 -> -6.5155918e-06 | D191: ='DF raw data'!C196 -> 7.0565334e-06 | F191: 1.734749551e-06 | G191: -6.53558832e-06 | H191: 7.064323813e-06 | J191: -6.907219186e-05 | K191: -0.006842050782 | L191: -4.005152246e-05 | M191: -0.001790211215 | N191: 6.091781875e-07
A192: 92.95618 | B192: ='DF raw data'!A197 -> -7.2473455e-07 | C192: ='DF raw data'!B197 -> -9.3486515e-06 | D192: ='DF raw data'!C197 -> 3.5064047e-06 | F192: -7.255346569e-07 | G192: -9.377342754e-06 | H192: 3.510275771e-06 | J192: -6.943505351e-05 | K192: -0.006876777335 | L192: -4.474141289e-05 | M192: -0.001812587738 | N192: 6.125905848e-07
A193: 93.45631 | B193: ='DF raw data'!A198 -> -9.2833039e-07 | C193: ='DF raw data'!B198 -> 4.6490431e-08 | D193: ='DF raw data'!C198 -> -1.9538231e-06 | F193: -9.293552668e-07 | G193: 4.663311134e-08 | H193: -1.955980121e-06 | J193: -6.989985196e-05 | K193: -0.006911736348 | L193: -4.471809027e-05 | M193: -0.001834952596 | N193: 6.160343284e-07
A194: 93.95644 | B194: ='DF raw data'!A199 -> -2.3552828e-07 | C194: ='DF raw data'!B199 -> -7.5922153e-06 | D194: ='DF raw data'!C199 -> -4.7938915e-06 | F194: -2.357883032e-07 | G194: -7.615516006e-06 | H194: -4.799183956e-06 | J194: -7.001777677e-05 | K194: -0.006946754339 | L194: -4.852683829e-05 | M194: -0.001859222324 | N194: 6.196639434e-07
A195: 94.45657 | B195: ='DF raw data'!A200 -> -1.3203445e-06 | C195: ='DF raw data'!B200 -> -5.133953e-06 | D195: ='DF raw data'!C200 -> -1.0109226e-05 | F195: -1.32180216e-06 | G195: -5.149709235e-06 | H195: -1.012038659e-05 | J195: -7.067884968e-05 | K195: -0.006982102952 | L195: -5.110236237e-05 | M195: -0.001884780148 | N195: 6.234684079e-07
A196: 94.9567 | B196: ='DF raw data'!A201 -> -5.7921625e-06 | C196: ='DF raw data'!B201 -> 5.6748486e-06 | D196: ='DF raw data'!C201 -> -1.5307709e-05 | F196: -5.798557047e-06 | G196: 5.692264858e-06 | H196: -1.532460871e-05 | J196: -7.357888202e-05 | K196: -0.007018901958 | L196: -4.825548995e-05 | M196: -0.001908914167 | N196: 6.273406365e-07
A197: 95.45683 | B197: ='DF raw data'!A202 -> -8.2733659e-06 | C197: ='DF raw data'!B202 -> 2.0149407e-06 | D197: ='DF raw data'!C202 -> -5.6794629e-06 | F197: -8.282499696e-06 | G197: 2.021124605e-06 | H197: -5.685733027e-06 | J197: -7.772120859e-05 | K197: -0.007057772666 | L197: -4.72446649e-05 | M197: -0.001932542641 | N197: 6.314780343e-07
A198: 95.95696 | B198: ='DF raw data'!A203 -> -4.675172e-06 | C198: ='DF raw data'!B203 -> 1.0230431e-06 | D198: ='DF raw data'!C203 -> 5.197599e-06 | F198: -4.68033339e-06 | G198: 1.026182846e-06 | H198: 5.203337149e-06 | J198: -8.006198373e-05 | K198: -0.007097814066 | L198: -4.673144008e-05 | M198: -0.001955914436 | N198: 6.357760258e-07
A199: 96.45709 | B199: ='DF raw data'!A204 -> 1.4531632e-06 | C199: ='DF raw data'!B204 -> 7.0106374e-08 | D199: ='DF raw data'!C204 -> 4.8143161e-06 | F199: 1.454767492e-06 | G199: =(1-$G$1*($B$2-$G$2))*C199*$M$2/$M$1 -> 7.032153228e-08 | H199: 4.819631105e-06 | J199: -7.933441086e-05 | K199: -0.007137491585 | L199: -4.669627017e-05 | M199: -0.001979268641 | N199: 6.400143727e-07
A200: =A199+$B$1 -> 96.95722 | B200: ='DF raw data'!A205 -> 4.4571589e-06 | C200: ='DF raw data'!B205 -> -1.487974e-05 | D200: ='DF raw data'!C205 -> 5.4459856e-06 | F200: 4.462079603e-06 | G200: -1.492540631e-05 | H200: 5.451997968e-06 | J200: =F200*$B$1+J199 -> -7.710279099e-05 | K200: =J200*$B$1+K199 -> -0.007176053004 | L200: =G200*$B$1+L199 -> -5.416091362e-05 | M200: =L200*$B$1+M199 -> -0.002006356139 | N200: =(J200^2+L200^2)*$B$1+N199 -> 6.444546494e-07
A201: 97.45735 | B201: ='DF raw data'!A206 -> 2.3817793e-06 | C201: ='DF raw data'!B206 -> -6.8949257e-06 | D201: ='DF raw data'!C206 -> 3.1310381e-06 | F201: 2.384408784e-06 | G201: -6.916086406e-06 | H201: 3.134494766e-06 | J201: -7.591027662e-05 | K201: -0.00721401801 | L201: -5.761985592e-05 | M201: -0.002035173558 | N201: 6.48997039e-07
... 1002 more rows

Sheet 12 mm
A1: dz | B1: ='DF raw data'!E7 -> 0.50024 | C1: mm | F1: T_coeff | G1: -0.0008 | H1: /degC | L1: Hallref | M1: ='PI vs gap'!B50 -> 0.505555 | N1: T | P1: IBy total | Q1: =L1203*1000 -> 10.42796672 | R1: muTm | X1: DF ref | Y1: 19
A2: Tref | B2: ='DF raw data'!E8 -> 21.54 | C2: degC | F2: Tcorr | G2: 20 | H2: degC | L2: NMRref | M2: ='PI vs gap'!B51 -> 0.50662 | N2: T | P2: JBy total | Q2: =M1203 -> 0.6976079003 | R2: muTm^2
A3: Encoder | B3: ='DF raw data'!E9 -> 1627091 | P3: PI total | Q3: =N1203 -> 538.9440118 | R3: T^2mm^3
A5: z [mm] | B5: Bx | C5: By | D5: Bz | F5: Bx_corr | G5: By_corr | H5: Bz_corr | J5: Ix | K5: Jx | L5: Iy | M5: Jy | N5: PI
A6: -0.068 | B6: ='DF raw data'!D11 -> -3.9060005e-06 | C6: ='DF raw data'!E11 -> -3.8597964e-06 | D6: ='DF raw data'!F11 -> -8.3104969e-06 | F6: =(1-$G$1*($B$2-$G$2))*B6 -> -3.910812693e-06 | G6: =(1-$G$1*($B$2-$G$2))*C6*$M$2/$M$1 -> -3.872692717e-06 | H6: =(1-$G$1*($B$2-$G$2))*D6 -> -8.320735432e-06 | J6: =F6*$B$1 -> -1.956344941e-06 | K6: =J6*$B$1 -> -9.786419935e-07 | L6: =G6*$B$1 -> -1.937275805e-06 | M6: =L6*$B$1 -> -9.691028486e-07 | N6: =(J6^2+L6)^2*$B$1 -> 1.877412083e-12
A7: =A6+$B$1 -> 0.43224 | B7: ='DF raw data'!D12 -> -3.9174092e-06 | C7: ='DF raw data'!E12 -> -3.5455751e-06 | D7: ='DF raw data'!F12 -> -8.2808838e-06 | F7: =(1-$G$1*($B$2-$G$2))*B7 -> -3.922235448e-06 | G7: =(1-$G$1*($B$2-$G$2))*C7*$M$2/$M$1 -> -3.557421544e-06 | H7: -8.291085849e-06 | J7: =F7*$B$1+J6 -> -3.918404002e-06 | K7: =J7*$B$1+K6 -> -2.938784411e-06 | L7: =G7*$B$1+L6 -> -3.716840358e-06 | M7: =L7*$B$1+M6 -> -2.828415069e-06 | N7: =(J7^2+L7^2)*$B$1+N6 -> 1.646880868e-11
A8: =A7+$B$1 -> 0.93248 | B8: ='DF raw data'!D13 -> -4.3255759e-06 | C8: ='DF raw data'!E13 -> 7.7174127e-06 | D8: ='DF raw data'!F13 -> -7.2134139e-06 | F8: -4.33090501e-06 | G8: 7.74319805e-06 | H8: -7.222300826e-06 | J8: =F8*$B$1+J7 -> -6.084895924e-06 | K8: =J8*$B$1+K7 -> -5.982692748e-06 | L8: =G8*$B$1+L7 -> 1.566170347e-07 | M8: =L8*$B$1+M7 -> -2.750068964e-06 | N8: =(J8^2+L8^2)*$B$1+N7 -> 3.500294444e-11
A9: 1.43272 | B9: ='DF raw data'!D14 -> -4.1845387e-06 | C9: ='DF raw data'!E14 -> 4.6919513e-06 | D9: ='DF raw data'!F14 -> -1.6694689e-06 | F9: -4.189694052e-06 | G9: 4.707628006e-06 | H9: -1.671525686e-06 | J9: -8.180748476e-06 | K9: -1.007503037e-05 | L9: 2.511560868e-06 | M9: -1.493685755e-06 | N9: 7.163681208e-11
A10: 1.93296 | B10: ='DF raw data'!D15 -> -4.0835484e-06 | C10: ='DF raw data'!E15 -> 2.5214922e-06 | D10: ='DF raw data'!F15 -> 2.3435418e-06 | F10: -4.088579332e-06 | G10: 2.529916987e-06 | H10: 2.346429043e-06 | J10: -1.02260194e-05 | K10: -1.519049431e-05 | L10: 3.777126542e-06 | M10: 3.957840263e-07 | N10: 1.310844121e-10
A11: 2.4332 | B11: ='DF raw data'!D16 -> -3.8895714e-06 | C11: ='DF raw data'!E16 -> -1.7050796e-06 | D11: ='DF raw data'!F16 -> 8.8199886e-06 | F11: -3.894363352e-06 | G11: -1.710776597e-06 | H11: 8.830854826e-06 | J11: -1.217413572e-05 | K11: -2.128048397e-05 | L11: 2.921327657e-06 | M11: 1.857148974e-06 | N11: 2.094938985e-10
A12: 2.93344 | B12: ='DF raw data'!D17 -> -3.6510073e-06 | C12: ='DF raw data'!E17 -> -8.2583565e-06 | D12: ='DF raw data'!F17 -> 8.1317557e-06 | F12: -3.655505341e-06 | G12: -8.285949247e-06 | H12: 8.141774023e-06 | J12: -1.400276572e-05 | K12: -2.828522749e-05 | L12: -1.223635594e-06 | M12: 1.245037504e-06 | N12: 3.083286824e-10
A13: 3.43368 | B13: ='DF raw data'!D18 -> -3.7030741e-06 | C13: ='DF raw data'!E18 -> -7.6443239e-06 | D13: ='DF raw data'!F18 -> 2.4755859e-06 | F13: -3.707636287e-06 | G13: -7.669865047e-06 | H13: 2.478635822e-06 | J13: -1.585747369e-05 | K13: -3.621777013e-05 | L13: -5.060408885e-06 | M13: -1.286381437e-06 | N13: 4.469287835e-10
A14: 3.93392 | B14: ='DF raw data'!D19 -> -3.7843756e-06 | C14: ='DF raw data'!E19 -> -5.9037675e-06 | D14: ='DF raw data'!F19 -> -9.7723432e-07 | F14: -3.789037951e-06 | G14: -5.923493115e-06 | H14: -9.784382727e-07 | J14: -1.775290204e-05 | K14: -4.509848184e-05 | L14: -8.023577081e-06 | M14: -5.300095635e-06 | N14: 6.367915338e-10
A15: 4.43416 | B15: ='DF raw data'!D20 -> -4.3976079e-06 | C15: ='DF raw data'!E20 -> 1.0967432e-05 | D15: ='DF raw data'!F20 -> 1.4626086e-07 | F15: -4.403025753e-06 | G15: 1.100407629e-05 | H15: 1.464410534e-07 | J15: -1.995547164e-05 | K15: -5.508100698e-05 | L15: -2.51889796e-06 | M15: -6.560149151e-06 | N15: 8.391714772e-10
A16: 4.9344 | B16: ='DF raw data'!D21 -> -4.1739886e-06 | C16: ='DF raw data'!E21 -> 4.8566008e-06 | D16: ='DF raw data'!F21 -> 8.8600746e-07 | F16: -4.179130954e-06 | G16: 4.872827631e-06 | H16: 8.870990212e-07 | J16: -2.204604011e-05 | K16: -6.610931808e-05 | L16: -8.131466549e-08 | M16: -6.600825999e-06 | N16: 1.082305374e-09
A17: 5.43464 | B17: ='DF raw data'!D22 -> -4.2837974e-06 | C17: ='DF raw data'!E22 -> 6.6205084e-06 | D17: ='DF raw data'!F22 -> -6.1505566e-06 | F17: -4.289075038e-06 | G17: 6.642628783e-06 | H17: -6.158134086e-06 | J17: -2.419160701e-05 | K17: -7.821092757e-05 | L17: 3.241593957e-06 | M17: -4.979251038e-06 | N17: 1.380319242e-09
A18: 5.93488 | B18: ='DF raw data'!D23 -> -3.8600019e-06 | C18: ='DF raw data'!E23 -> -4.7606964e-06 | D18: ='DF raw data'!F23 -> -5.5441783e-06 | F18: -3.864757422e-06 | G18: -4.776602796e-06 | H18: -5.551008728e-06 | J18: -2.612491326e-05 | K18: -9.127965418e-05 | L18: 8.521461743e-07 | M18: -4.552973436e-06 | N18: 1.722101842e-09
A19: 6.43512 | B19: ='DF raw data'!D24 -> -4.2229267e-06 | C19: ='DF raw data'!E24 -> 5.9418971e-06 | D19: ='DF raw data'!F24 -> -1.0895751e-06 | F19: -4.228129346e-06 | G19: 5.961750113e-06 | H19: -1.090917457e-06 | J19: -2.823999268e-05 | K19: -0.0001054064281 | L19: 3.834452051e-06 | M19: -2.634827142e-06 | N19: 2.128396875e-09
A20: 6.93536 | B20: ='DF raw data'!D25 -> -4.4469971e-06 | C20: ='DF raw data'!E25 -> 1.1432692e-05 | D20: ='DF raw data'!F25 -> -4.2501638e-06 | F20: -4.4524758e-06 | G20: 1.147089081e-05 | H20: -4.255400002e-06 | J20: -3.046729918e-05 | K20: -0.0001206473899 | L20: 9.572650469e-06 | M20: 2.153795529e-06 | N20: 2.638587627e-09
A21: 7.4356 | B21: ='DF raw data'!D26 -> -4.3090886e-06 | C21: ='DF raw data'!E26 -> 6.3504513e-06 | D21: ='DF raw data'!F26 -> -1.1516211e-05 | F21: -4.314397397e-06 | G21: 6.371669371e-06 | H21: -1.153039897e-05 | J21: -3.262553333e-05 | K21: -0.0001369679866 | L21: 1.276001436e-05 | M21: 8.53686511e-06 | N21: 3.252503861e-09
A22: 7.93584 | B22: ='DF raw data'!D27 -> -1.5465968e-06 | C22: ='DF raw data'!E27 -> -6.9591761e-06 | D22: ='DF raw data'!F27 -> -6.6209805e-07 | F22: -1.548502207e-06 | G22: -6.982428037e-06 | H22: -6.629137548e-07 | J22: -3.340015607e-05 | K22: -0.0001536760807 | L22: 9.267124554e-06 | M22: 1.31726515e-05 | N22: 3.853517221e-09
A23: 8.43608 | B23: ='DF raw data'!D28 -> 9.5911207e-07 | C23: ='DF raw data'!E28 -> -5.7188379e-07 | D23: ='DF raw data'!F28 -> 7.8524317e-06 | F23: =(1-$G$1*($B$2-$G$2))*B23 -> 9.602936961e-07 | G23: -5.73794563e-07 | H23: 7.862105896e-06 | J23: -3.291977876e-05 | K23: -0.0001701438708 | L23: 8.980089562e-06 | M23: 1.76648515e-05 | N23: 4.435973587e-09
A24: 8.93632 | B24: ='DF raw data'!D29 -> -5.5010897e-08 | C24: ='DF raw data'!E29 -> 9.8562505e-06 | D24: ='DF raw data'!F29 -> 3.1439263e-06 | F24: -5.507867043e-08 | G24: 9.889182116e-06 | H24: 3.147799617e-06 | J24: -3.294733131e-05 | K24: -0.0001866254439 | L24: 1.392705402e-05 | M24: 2.4631721e-05 | N24: 5.076025401e-09
A25: 9.43656 | B25: ='DF raw data'!D30 -> 4.5131846e-06 | C25: ='DF raw data'!E30 -> -1.6913372e-06 | D25: ='DF raw data'!F30 -> -1.9663571e-06 | F25: 4.518744843e-06 | G25: -1.696988281e-06 | H25: -1.968779652e-06 | J25: -3.068687439e-05 | K25: -0.0002019762459 | L25: 1.307815261e-05 | M25: 3.117393606e-05 | N25: 5.632653622e-09
A26: 9.9368 | B26: ='DF raw data'!D31 -> 8.865255e-06 | C26: ='DF raw data'!E31 -> -1.100242e-05 | D26: ='DF raw data'!F31 -> 1.6720874e-06 | F26: 8.876176994e-06 | G26: -1.103918119e-05 | H26: 1.674147412e-06 | J26: -2.624665561e-05 | K26: -0.0002151058729 | L26: 7.555912609e-06 | M26: 3.495370579e-05 | N26: 6.00582203e-09
A27: 10.43704 | B27: ='DF raw data'!D32 -> 6.9096959e-06 | C27: ='DF raw data'!E32 -> -6.7298142e-06 | D27: ='DF raw data'!F32 -> -2.8496002e-06 | F27: 6.918208645e-06 | G27: -6.752299795e-06 | H27: -2.853110907e-06 | J27: -2.278589092e-05 | K27: -0.000226504287 | L27: 4.178142159e-06 | M27: 3.704377962e-05 | N27: 6.274277675e-09
A28: 10.93728 | B28: ='DF raw data'!D33 -> -2.9844989e-07 | C28: ='DF raw data'!E33 -> -9.5455187e-07 | D28: ='DF raw data'!F33 -> -2.8987129e-06 | F28: -2.988175803e-07 | G28: -9.577412102e-07 | H28: -2.902284114e-06 | J28: -2.293537142e-05 | K28: -0.0002379774772 | L28: 3.699041696e-06 | M28: 3.889418824e-05 | N28: 6.544264293e-09
A29: 11.43752 | B29: ='DF raw data'!D34 -> -5.6280596e-06 | C29: ='DF raw data'!E34 -> 7.7977365e-06 | D29: ='DF raw data'!F34 -> 8.8920888e-07 | F29: -5.634993369e-06 | G29: 7.823790227e-06 | H29: 8.903043853e-07 | J29: -2.575422051e-05 | K29: -0.0002508607684 | L29: 7.61281452e-06 | M29: 4.270242257e-05 | N29: 6.905054798e-09
A30: 11.93776 | B30: ='DF raw data'!D35 -> -4.0103232e-06 | C30: ='DF raw data'!E35 -> -2.5355321e-06 | D30: ='DF raw data'!F35 -> 6.5100858e-07 | F30: -4.015263918e-06 | G30: -2.544003797e-06 | H30: 6.518106226e-07 | J30: -2.776281613e-05 | K30: -0.0002647488396 | L30: 6.34020206e-06 | M30: 4.587404525e-05 | N30: 7.310735493e-09
A31: 12.438 | B31: ='DF raw data'!D36 -> 5.8918783e-07 | C31: ='DF raw data'!E36 -> 2.9212397e-06 | D31: ='DF raw data'!F36 -> -6.2699551e-06 | F31: 5.899137094e-07 | G31: 2.93100012e-06 | H31: -6.277679685e-06 | J31: -2.74677177e-05 | K31: -0.0002784892907 | L31: 7.80640556e-06 | M31: 4.977912157e-05 | N31: 7.718638934e-09
A32: 12.93824 | B32: ='DF raw data'!D37 -> 1.0309985e-06 | C32: ='DF raw data'!E37 -> 1.0331115e-06 | D32: ='DF raw data'!F37 -> -2.3371399e-06 | F32: 1.03226869e-06 | G32: 1.036563323e-06 | H32: -2.340019256e-06 | J32: -2.695133561e-05 | K32: -0.0002919714268 | L32: 8.324935997e-06 | M32: 5.394358755e-05 | N32: 8.116669422e-09
A33: 13.43848 | B33: ='DF raw data'!D38 -> -2.3438524e-06 | C33: ='DF raw data'!E38 -> 2.0190055e-06 | D33: ='DF raw data'!F38 -> 9.3586232e-07 | F33: -2.346740026e-06 | G33: 2.025751383e-06 | H33: 9.370153024e-07 | J33: -2.812526884e-05 | K33: -0.0003060408113 | L33: 9.338297869e-06 | M33: 5.861497768e-05 | N33: 8.555997475e-09
A34: 13.93872 | B34: ='DF raw data'!D39 -> -3.5613675e-06 | C34: ='DF raw data'!E39 -> -2.7031156e-06 | D34: ='DF raw data'!F39 -> 6.2734903e-06 | F34: -3.565755105e-06 | G34: -2.712147226e-06 | H34: 6.28121924e-06 | J34: -2.990900217e-05 | K34: -0.0003210024905 | L34: 7.981573341e-06 | M34: 6.260767993e-05 | N34: 9.035354418e-09
A35: 14.43896 | B35: ='DF raw data'!D40 -> -3.6821177e-07 | C35: ='DF raw data'!E40 -> 4.3735945e-06 | D35: ='DF raw data'!F40 -> 6.7350584e-07 | F35: -3.686654069e-07 | G35: 4.388207515e-06 | H35: 6.743355992e-07 | J35: -3.009342335e-05 | K35: -0.0003360564246 | L35: 1.017673027e-05 | M35: 6.769848748e-05 | N35: 9.540186605e-09
A36: 14.9392 | B36: ='DF raw data'!D41 -> 5.6338422e-06 | C36: ='DF raw data'!E41 -> -1.6938728e-06 | D36: ='DF raw data'!F41 -> -1.3213736e-05 | F36: 5.640783094e-06 | G36: -1.699532353e-06 | H36: -1.323001532e-05 | J36: -2.727167802e-05 | K36: -0.0003496988089 | L36: 9.326556204e-06 | M36: 7.236400395e-05 | N36: 9.955750517e-09
A37: 15.43944 | B37: ='DF raw data'!D42 -> 7.7559334e-06 | C37: ='DF raw data'!E42 -> -3.4236227e-06 | D37: ='DF raw data'!F42 -> -1.3967059e-05 | F37: 7.76548871e-06 | G37: -3.435061678e-06 | H37: -1.398426642e-05 | J37: -2.338706995e-05 | K37: -0.0003613979567 | L37: 7.60820095e-06 | M37: 7.616993039e-05 | N37: 1.025831556e-08
A38: 15.93968 | B38: ='DF raw data'!D43 -> 4.227225e-06 | C38: ='DF raw data'!E43 -> -1.9065563e-06 | D38: ='DF raw data'!F43 -> -1.0906442e-05 | F38: 4.232432941e-06 | G38: -1.912926469e-06 | H38: -1.091987874e-05 | J38: -2.126983769e-05 | K38: -0.0003720379803 | L38: 6.651278613e-06 | M38: 7.949716601e-05 | N38: 1.050675751e-08
A39: 16.43992 | B39: ='DF raw data'!D44 -> 3.5584044e-06 | C39: ='DF raw data'!E44 -> 5.3061167e-06 | D39: ='DF raw data'!F44 -> -3.7143332e-06 | F39: 3.562788354e-06 | G39: 5.32384545e-06 | H39: -3.718909259e-06 | J39: -1.948758845e-05 | K39: -0.0003817864516 | L39: 9.314479061e-06 | M39: 8.415664101e-05 | N39: 1.074013228e-08
A40: 16.94016 | B40: ='DF raw data'!D45 -> 2.7500018e-06 | C40: ='DF raw data'!E45 -> 6.4309079e-06 | D40: ='DF raw data'!F45 -> 4.0920563e-06 | F40: 2.753389802e-06 | G40: 6.452394792e-06 | H40: 4.097097713e-06 | J40: -1.811023273e-05 | K40: -0.0003908459144 | L40: 1.254222503e-05 | M40: 9.043076366e-05 | N40: 1.098289272e-08
A41: 17.4404 | B41: ='DF raw data'!D46 -> -1.5003508e-06 | C41: ='DF raw data'!E46 -> -1.8240996e-07 | D41: ='DF raw data'!F46 -> 8.6644577e-06 | F41: -1.502199232e-06 | G41: -1.830194265e-07 | H41: 8.675132312e-06 | J41: -1.886169287e-05 | K41: -0.0004002812876 | L41: 1.245067139e-05 | M41: 9.665908752e-05 | N41: 1.123840665e-08
A42: 17.94064 | B42: ='DF raw data'!D47 -> -2.4664814e-06 | C42: ='DF raw data'!E47 -> -2.6548159e-06 | D42: ='DF raw data'!F47 -> 4.2655588e-06 | F42: -2.469520105e-06 | G42: -2.663686147e-06 | H42: 4.270813968e-06 | J42: -2.009704561e-05 | K42: -0.0004103346337 | L42: 1.111818904e-05 | M42: 0.0001022208504 | N42: 1.150228593e-08
A43: 18.44088 | B43: ='DF raw data'!D48 -> 4.6947343e-06 | C43: ='DF raw data'!E48 -> -1.2035279e-06 | D43: ='DF raw data'!F48 -> 1.5986002e-06 | F43: 4.700518213e-06 | G43: -1.207549117e-06 | H43: 1.600569675e-06 | J43: -1.774565838e-05 | K43: -0.0004192117219 | L43: 1.051412467e-05 | M43: 0.0001074804361 | N43: 1.171511565e-08
A44: 18.94112 | B44: ='DF raw data'!D49 -> 1.1420018e-05 | C44: ='DF raw data'!E49 -> 1.1330486e-06 | D44: ='DF raw data'!F49 -> -6.1334435e-06 | F44: 1.143408746e-05 | G44: 1.136834332e-06 | H44: -6.140999902e-06 | J44: -1.202587047e-05 | K44: -0.0004252275433 | L44: 1.108281467e-05 | M44: 0.0001130245033 | N44: 1.184890501e-08
A45: 19.44136 | B45: ='DF raw data'!D50 -> 8.6922328e-06 | C45: ='DF raw data'!E50 -> 1.0117901e-05 | D45: ='DF raw data'!F50 -> -2.2227327e-06 | F45: 8.702941631e-06 | G45: 1.015170684e-05 | H45: -2.225471107e-06 | J45: -7.672310948e-06 | K45: -0.0004290655402 | L45: 1.61611045e-05 | M45: 0.0001211089343 | N45: 1.200900464e-08
A46: 19.9416 | B46: ='DF raw data'!D51 -> 1.0732427e-06 | C46: ='DF raw data'!E51 -> 1.7026497e-06 | D46: ='DF raw data'!F51 -> 5.5569685e-06 | F46: 1.074564935e-06 | G46: 1.708338578e-06 | H46: 5.563814685e-06 | J46: -7.134770585e-06 | K46: -0.0004326346378 | L46: 1.701568379e-05 | M46: 0.0001296208599 | N46: 1.217930557e-08
A47: 20.44184 | B47: ='DF raw data'!D52 -> -1.2096472e-06 | C47: ='DF raw data'!E52 -> -7.4424488e-06 | D47: ='DF raw data'!F52 -> 4.3901523e-06 | F47: -1.211137485e-06 | G47: -7.467315443e-06 | H47: 4.395560968e-06 | J47: -7.74063e-06 | K47: -0.0004365068105 | L47: 1.328023391e-05 | M47: 0.0001362641641 | N47: 1.229750326e-08
A48: 20.94208 | B48: ='DF raw data'!D53 -> 8.1806036e-07 | C48: ='DF raw data'!E53 -> 8.6325883e-07 | D48: ='DF raw data'!F53 -> 4.8612851e-06 | F48: 8.190682104e-07 | G48: 8.661431427e-07 | H48: 4.867274203e-06 | J48: -7.330899319e-06 | K48: -0.0004401740196 | L48: 1.371351336e-05 | M48: 0.0001431242121 | N48: 1.241846256e-08
A49: 21.44232 | B49: ='DF raw data'!D54 -> 3.3458737e-06 | C49: ='DF raw data'!E54 -> -4.6534215e-06 | D49: ='DF raw data'!F54 -> 4.516201e-06 | F49: 3.349995816e-06 | G49: -4.66896947e-06 | H49: 4.52176496e-06 | J49: -5.655097412e-06 | K49: -0.0004430029255 | L49: 1.137790807e-05 | M49: 0.0001488158968 | N49: 1.249921977e-08
A50: 21.94256 | B50: ='DF raw data'!D55 -> 3.8760581e-06 | C50: ='DF raw data'!E55 -> -7.6791484e-06 | D50: ='DF raw data'!F55 -> 2.3428142e-06 | F50: 3.880833404e-06 | G50: -7.704805902e-06 | H50: 2.345700547e-06 | J50: -3.71374931e-06 | K50: -0.0004448606915 | L50: 7.523655968e-06 | M50: 0.0001525795304 | N50: 1.253443533e-08
A51: 22.4428 | B51: ='DF raw data'!D56 -> 2.216063e-06 | C51: ='DF raw data'!E56 -> -1.5701457e-05 | D51: ='DF raw data'!F56 -> 1.1722e-06 | F51: 2.21879319e-06 | G51: -1.575391857e-05 | H51: 1.17364415e-06 | J51: -2.603820205e-06 | K51: -0.0004461632265 | L51: -3.570842564e-07 | M51: 0.0001524009026 | N51: 1.253789068e-08
A52: 22.94304 | B52: ='DF raw data'!D57 -> -3.0090205e-06 | C52: ='DF raw data'!E57 -> -8.8140796e-06 | D52: ='DF raw data'!F57 -> -6.8626878e-07 | F52: -3.012727613e-06 | G52: -8.843529124e-06 | H52: -6.871142631e-07 | J52: -4.110907066e-06 | K52: -0.0004482196667 | L52: -4.780971265e-06 | M52: 0.0001500092696 | N52: 1.255777884e-08
A53: 23.44328 | B53: ='DF raw data'!D58 -> -4.8460251e-06 | C53: ='DF raw data'!E58 -> 3.1939644e-06 | D53: ='DF raw data'!F58 -> -1.8350552e-06 | F53: -4.851995403e-06 | G53: 3.204636045e-06 | H53: -1.837315988e-06 | J53: -6.538069246e-06 | K53: -0.0004514902704 | L53: -3.17788413e-06 | M53: 0.0001484195648 | N53: 1.258421418e-08
A54: 23.94352 | B54: ='DF raw data'!D59 -> 1.5057257e-06 | C54: ='DF raw data'!E59 -> -1.7777992e-06 | D54: ='DF raw data'!F59 -> -1.1981906e-06 | F54: 1.507580754e-06 | G54: -1.783739167e-06 | H54: -1.199666771e-06 | J54: -5.78391705e-06 | K54: -0.0004543836171 | L54: -4.070181811e-06 | M54: 0.000146383497 | N54: 1.260923622e-08
A55: 24.44376 | B55: ='DF raw data'!D60 -> 4.0407276e-06 | C55: ='DF raw data'!E60 -> -1.2783755e-07 | D55: ='DF raw data'!F60 -> 8.8489763e-08 | F55: 4.045705776e-06 | G55: -1.282646797e-07 | H55: 8.859878239e-08 | J55: -3.760093192e-06 | K55: -0.0004562645661 | L55: -4.134344934e-06 | M55: 0.0001443153323 | N55: 1.262485927e-08
A56: 24.944 | B56: ='DF raw data'!D61 -> -6.083166e-08 | C56: ='DF raw data'!E61 -> 6.4343767e-06 | D56: ='DF raw data'!F61 -> 1.8469868e-06 | F56: -6.090660461e-08 | G56: 6.455875182e-06 | H56: 1.849262288e-06 | J56: -3.790561112e-06 | K56: -0.0004581607564 | L56: -9.048579332e-07 | M56: 0.0001438626862 | N56: 1.263245647e-08
A57: 25.44424 | B57: ='DF raw data'!D62 -> -2.8129318e-07 | C57: ='DF raw data'!E62 -> 5.9485692e-06 | D57: ='DF raw data'!F62 -> 3.8450667e-06 | F57: -2.816397332e-07 | G57: 5.968444506e-06 | H57: 3.849803822e-06 | J57: -3.931448572e-06 | K57: -0.0004601274242 | L57: 2.080796747e-06 | M57: 0.000144903584 | N57: 1.264235422e-08
A58: 25.94448 | B58: ='DF raw data'!D63 -> 2.1066035e-06 | C58: ='DF raw data'!E63 -> 7.810678e-07 | D58: ='DF raw data'!F63 -> 5.6572021e-06 | F58: 2.109198836e-06 | G58: 7.836774967e-07 | H58: 5.664171773e-06 | J58: -2.876342947e-06 | K58: -0.000461566286 | L58: 2.472823578e-06 | M58: 0.0001461405892 | N58: 1.264955178e-08
A59: 26.44472 | B59: ='DF raw data'!D64 -> -1.5199086e-06 | C59: ='DF raw data'!E64 -> 9.197387e-06 | D59: ='DF raw data'!F64 -> 7.6294091e-06 | F59: -1.521781127e-06 | G59: 9.228117227e-06 | H59: 7.638808532e-06 | J59: -3.637598738e-06 | K59: -0.0004633859584 | L59: 7.089096939e-06 | M59: 0.0001496868391 | N59: 1.268131073e-08
A60: 26.94496 | B60: ='DF raw data'!D65 -> -1.4479493e-06 | C60: ='DF raw data'!E65 -> 1.7465736e-05 | D60: ='DF raw data'!F65 -> 1.0908989e-05 | F60: -1.449733174e-06 | G60: 1.752409236e-05 | H60: 1.092242887e-05 | J60: -4.362813261e-06 | K60: -0.0004655684121 | L60: 1.58553489e-05 | M60: 0.0001576183188 | N60: 1.281658874e-08
A61: 27.4452 | B61: ='DF raw data'!D66 -> 3.0049239e-07 | C61: ='DF raw data'!E66 -> 1.5741323e-05 | D61: ='DF raw data'!F66 -> 4.4706098e-06 | F61: 3.008625966e-07 | G61: 1.579391777e-05 | H61: 4.476117591e-06 | J61: -4.212309755e-06 | K61: -0.000467675578 | L61: 2.375609833e-05 | M61: 0.0001695020694 | N61: 1.310777633e-08
A62: 27.94544 | B62: ='DF raw data'!D67 -> 3.3546064e-07 | C62: ='DF raw data'!E67 -> 2.8185004e-06 | D62: ='DF raw data'!F67 -> 5.0805056e-07 | F62: 3.358739275e-07 | G62: 2.827917548e-06 | H62: 5.086764783e-07 | J62: -4.044292182e-06 | K62: -0.0004696986947 | L62: 2.51707358e-05 | M62: 0.0001820934783 | N62: 1.343289343e-08
A63: 28.44568 | B63: ='DF raw data'!D68 -> 9.9642318e-07 | C63: ='DF raw data'!E68 -> -2.4338613e-07 | D63: ='DF raw data'!F68 -> 4.9089426e-06 | F63: 9.976507734e-07 | G63: -2.441993296e-07 | H63: 4.914990417e-06 | J63: -3.545227359e-06 | K63: -0.0004714721592 | L63: 2.504857753e-05 | M63: 0.0001946237787 | N63: 1.375304697e-08
A64: 28.94592 | B64: ='DF raw data'!D69 -> 4.1343837e-06 | C64: ='DF raw data'!E69 -> -7.0575124e-06 | D64: ='DF raw data'!F69 -> 4.7564677e-06 | F64: 4.139477261e-06 | G64: -7.081092897e-06 | H64: 4.762327668e-06 | J64: -1.474495254e-06 | K64: -0.0004722097607 | L64: 2.150633162e-05 | M64: 0.0002053821061 | N64: 1.398550671e-08
A65: 29.44616 | B65: ='DF raw data'!D70 -> 5.8297546e-06 | C65: ='DF raw data'!E70 -> 2.4323626e-06 | D65: ='DF raw data'!F70 -> 2.0822476e-06 | F65: 5.836936858e-06 | G65: 2.440489588e-06 | H65: 2.084812929e-06 | J65: 1.44537404e-06 | K65: -0.0004714867268 | L65: 2.272716213e-05 | M65: 0.0002167511417 | N65: 1.424493768e-08
A66: 29.9464 | B66: ='DF raw data'!D71 -> 2.8527966e-06 | C66: ='DF raw data'!E71 -> 4.5020852e-06 | D66: ='DF raw data'!F71 -> -1.031804e-06 | F66: 2.856311245e-06 | G66: 4.517127527e-06 | H66: -1.033075183e-06 | J66: 2.874215177e-06 | K66: -0.0004700489294 | L66: 2.498681e-05 | M66: 0.0002292505435 | N66: 1.45613904e-08
A67: 30.44664 | B67: ='DF raw data'!D72 -> 1.3016642e-06 | C67: ='DF raw data'!E72 -> -5.166582e-06 | D67: ='DF raw data'!F72 -> -3.7366412e-06 | F67: 1.30326785e-06 | G67: -5.183844538e-06 | H67: -3.741244742e-06 | J67: 3.526161886e-06 | K67: -0.0004682850022 | L67: 2.239364361e-05 | M67: 0.0002404527398 | N67: 1.481846828e-08
A68: 30.94688 | B68: ='DF raw data'!D73 -> 3.0266046e-06 | C68: ='DF raw data'!E73 -> 1.2214842e-05 | D68: ='DF raw data'!F73 -> 1.6454574e-06 | F68: 3.030333377e-06 | G68: 1.225565412e-05 | H68: 1.647484604e-06 | J68: 5.042055855e-06 | K68: -0.0004657627642 | L68: 2.852441203e-05 | M68: 0.0002547217916 | N68: 1.523820186e-08
A69: 31.44712 | B69: ='DF raw data'!D74 -> 1.8870586e-06 | C69: ='DF raw data'!E74 -> 1.2787245e-05 | D69: ='DF raw data'!F74 -> 7.228678e-06 | F69: 1.889383456e-06 | G69: 1.282996963e-05 | H69: 7.237583731e-06 | J69: 5.987201035e-06 | K69: -0.0004627677267 | L69: 3.494247604e-05 | M69: 0.0002722014159 | N69: 1.58669151e-08
A70: 31.94736 | B70: ='DF raw data'!D75 -> -2.4131486e-06 | C70: ='DF raw data'!E75 -> -1.2562313e-06 | D70: ='DF raw data'!F75 -> 3.149456e-06 | F70: -2.416121599e-06 | G70: -1.260428609e-06 | H70: 3.15333613e-06 | J70: 4.778560366e-06 | K70: -0.0004603772997 | L70: 3.431195923e-05 | M70: 0.0002893656303 | N70: 1.646727573e-08
A71: 32.4476 | B71: ='DF raw data'!D76 -> -2.0134512e-06 | C71: ='DF raw data'!E76 -> -6.8817872e-06 | D71: ='DF raw data'!F76 -> -3.8326111e-06 | F71: -2.015931772e-06 | G71: =(1-$G$1*($B$2-$G$2))*C71*$M$2/$M$1 -> -6.904780566e-06 | H71: -3.837332877e-06 | J71: 3.770110657e-06 | K71: -0.0004584913395 | L71: 3.08579118e-05 | M71: 0.0003048019921 | N71: 1.69507199e-08
A72: =A71+$B$1 -> 32.94784 | B72: ='DF raw data'!D77 -> -4.4977526e-07 | C72: ='DF raw data'!E77 -> 6.8620113e-07 | D72: ='DF raw data'!F77 -> -2.2581376e-06 | F72: -4.503293831e-07 | G72: 6.884938591e-07 | H72: -2.260919626e-06 | J72: =F72*$B$1+J71 -> 3.544837886e-06 | K72: =J72*$B$1+K71 -> -0.0004567180698 | L72: =G72*$B$1+L71 -> 3.120232397e-05 | M72: =L72*$B$1+M71 -> 0.0003204106427 | N72: =(J72^2+L72^2)*$B$1+N71 -> 1.744403202e-08
A73: 33.44808 | B73: ='DF raw data'!D78 -> -1.5755696e-06 | C73: ='DF raw data'!E78 -> 4.8850206e-06 | D73: ='DF raw data'!F78 -> -3.3468245e-06 | F73: -1.577510702e-06 | G73: 4.901342387e-06 | H73: -3.350947788e-06 | J73: 2.755703933e-06 | K73: -0.0004553395565 | L73: 3.365417148e-05 | M73: 0.0003372458054 | N73: 1.801440425e-08
A74: 33.94832 | B74: ='DF raw data'!D79 -> -7.4909085e-06 | C74: ='DF raw data'!E79 -> 5.4918473e-06 | D74: ='DF raw data'!F79 -> -5.5077112e-06 | F74: -7.500137299e-06 | G74: 5.510196611e-06 | H74: -5.5144967e-06 | J74: -9.961647499e-07 | K74: -0.000455837878 | L74: 3.641059223e-05 | M74: 0.0003554598401 | N74: 1.867808445e-08
A75: 34.44856 | B75: ='DF raw data'!D80 -> -9.8609789e-06 | C75: ='DF raw data'!E80 -> 2.0334155e-06 | D75: ='DF raw data'!F80 -> -1.5541304e-06 | F75: -9.873127626e-06 | G75: 2.04020953e-06 | H75: -1.556045089e-06 | J75: -5.935098114e-06 | K75: -0.0004588068514 | L75: 3.743118665e-05 | M75: 0.0003741844169 | N75: 1.939658873e-08
A76: 34.9488 | B76: ='DF raw data'!D81 -> -4.1980866e-06 | C76: ='DF raw data'!E81 -> 3.6548226e-06 | D76: ='DF raw data'!F81 -> -6.4646929e-07 | F76: -4.203258643e-06 | G76: 3.667034061e-06 | H76: -6.472657402e-07 | J76: -8.037736217e-06 | K76: -0.0004628276486 | L76: 3.926558377e-05 | M76: 0.0003938266325 | N76: 2.02001699e-08
A77: 35.44904 | B77: ='DF raw data'!D82 -> 9.824679e-07 | C77: ='DF raw data'!E82 -> 6.5883523e-06 | D77: ='DF raw data'!F82 -> -3.374575e-06 | F77: 9.836783005e-07 | G77: 6.610365244e-06 | H77: -3.378732476e-06 | J77: -7.545660984e-06 | K77: -0.00046660229 | L77: 4.257235288e-05 | M77: 0.0004151230263 | N77: 2.113528966e-08
A78: 35.94928 | B78: ='DF raw data'!D83 -> 6.8039617e-06 | C78: ='DF raw data'!E83 -> -1.2963927e-06 | D78: ='DF raw data'!F83 -> -6.1477481e-06 | F78: 6.812344181e-06 | G78: -1.300724196e-06 | H78: -6.155322126e-06 | J78: -4.137853931e-06 | K78: -0.0004686722101 | L78: 4.192167861e-05 | M78: 0.0004360939268 | N78: 2.202299003e-08
A79: 36.44952 | B79: ='DF raw data'!D84 -> 6.9064217e-06 | C79: ='DF raw data'!E84 -> 1.5389343e-06 | D79: ='DF raw data'!F84 -> -2.7718638e-06 | F79: 6.914930412e-06 | G79: 1.544076174e-06 | H79: -2.775278736e-06 | J79: -6.787291419e-07 | K79: -0.0004690117376 | L79: 4.269408727e-05 | M79: 0.000457451217 | N79: 2.293505049e-08
A80: 36.94976 | B80: ='DF raw data'!D85 -> -7.9106132e-07 | C80: ='DF raw data'!E85 -> 1.1902756e-05 | D80: ='DF raw data'!F85 -> -2.0490847e-06 | F80: -7.920359075e-07 | G80: 1.194252538e-05 | H80: -2.051609172e-06 | J80: -1.074937184e-06 | K80: -0.0004695494641 | L80: 4.866821617e-05 | M80: 0.0004817970055 | N80: 2.412049461e-08
A81: 37.45 | B81: ='DF raw data'!D86 -> -5.7340703e-06 | C81: ='DF raw data'!E86 -> 5.9346921e-06 | D81: ='DF raw data'!F86 -> -5.5268761e-06 | F81: -5.741134675e-06 | G81: 5.95452104e-06 | H81: -5.533685211e-06 | J81: -3.946882394e-06 | K81: -0.0004715238526 | L81: 5.164690577e-05 | M81: 0.0005076328536 | N81: 2.546262891e-08
A82: 37.95024 | B82: ='DF raw data'!D87 -> -3.2610596e-06 | C82: ='DF raw data'!E87 -> 2.8343784e-06 | D82: ='DF raw data'!F87 -> -1.0246154e-06 | F82: -3.265077225e-06 | G82: 2.8438486e-06 | H82: -1.025877726e-06 | J82: -5.580204625e-06 | K82: -0.0004743152942 | L82: 5.30695126e-05 | M82: 0.0005341803466 | N82: 2.688706823e-08
A83: 38.45048 | B83: ='DF raw data'!D88 -> 3.0739275e-06 | C83: ='DF raw data'!E88 -> -7.0464273e-07 | D83: ='DF raw data'!F88 -> 4.1989401e-06 | F83: 3.077714579e-06 | G83: -7.06997076e-07 | H83: 4.204113194e-06 | J83: -4.040608684e-06 | K83: -0.0004763365682 | L83: 5.271584438e-05 | M83: 0.0005605509206 | N83: 2.828538249e-08
A84: 38.95072 | B84: ='DF raw data'!D89 -> 6.3877042e-06 | C84: ='DF raw data'!E89 -> -3.9594661e-06 | D84: ='DF raw data'!F89 -> 2.8173376e-06 | F84: 6.395573852e-06 | G84: -3.972695433e-06 | H84: 2.82080856e-06 | J84: -8.412868208e-07 | K84: -0.0004767574136 | L84: 5.072854322e-05 | M84: 0.0005859273671 | N84: 2.95730467e-08
A85: 39.45096 | B85: ='DF raw data'!D90 -> 1.8627569e-06 | C85: ='DF raw data'!E90 -> 5.0700885e-07 | D85: ='DF raw data'!F90 -> 1.6547706e-06 | F85: 1.865051817e-06 | G85: 5.087028634e-07 | H85: 1.656809277e-06 | J85: 9.16866999e-08 | K85: -0.0004767115482 | L85: 5.098301674e-05 | M85: 0.0006114311114 | N85: 3.087330873e-08
A86: 39.9512 | B86: ='DF raw data'!D91 -> -4.8312113e-06 | C86: ='DF raw data'!E91 -> 4.6309751e-06 | D86: ='DF raw data'!F91 -> -5.5095052e-07 | F86: -4.837163352e-06 | G86: 4.646448073e-06 | H86: -5.51629291e-07 | J86: -2.328055895e-06 | K86: -0.0004778761349 | L86: 5.330735592e-05 | M86: 0.0006380975831 | N86: 3.229753905e-08
A87: 40.45144 | B87: ='DF raw data'!D92 -> -7.5885664e-06 | C87: ='DF raw data'!E92 -> 3.5851735e-06 | D87: ='DF raw data'!F92 -> -2.7296525e-07 | F87: =(1-$G$1*($B$2-$G$2))*B87 -> -7.597915514e-06 | G87: 3.59715225e-06 | H87: -2.733015432e-07 | J87: -6.128837152e-06 | K87: -0.0004809420244 | L87: 5.510679536e-05 | M87: 0.0006656642064 | N87: 3.383543766e-08
A88: 40.95168 | B88: ='DF raw data'!D93 -> -8.250111e-06 | C88: ='DF raw data'!E93 -> 5.0943681e-06 | D88: ='DF raw data'!F93 -> 6.7422366e-06 | F88: -8.260275137e-06 | G88: 5.111389357e-06 | H88: 6.750543035e-06 | J88: -1.026095719e-05 | K88: -0.0004860749656 | L88: 5.766371677e-05 | M88: 0.0006945099041 | N88: 3.555145669e-08
A89: 41.45192 | B89: ='DF raw data'!D94 -> -1.0387569e-05 | C89: ='DF raw data'!E94 -> 5.539081e-06 | D89: ='DF raw data'!F94 -> 9.8715391e-06 | F89: -1.040036649e-05 | G89: 5.557588128e-06 | H89: 9.883700836e-06 | J89: -1.546363652e-05 | K89: -0.0004938104951 | L89: 6.044384466e-05 | M89: 0.0007247463329 | N89: 3.749868211e-08
A90: 41.95216 | B90: ='DF raw data'!D95 -> -9.7897619e-06 | C90: ='DF raw data'!E95 -> 4.9725486e-06 | D90: ='DF raw data'!F95 -> 2.2846502e-06 | F90: -9.801822887e-06 | G90: 4.989162835e-06 | H90: 2.287464889e-06 | J90: -2.03669004e-05 | K90: -0.0005039988334 | L90: 6.293962347e-05 | M90: 0.0007562312502 | N90: 3.968783582e-08
A91: 42.4524 | B91: ='DF raw data'!D96 -> -4.3376685e-06 | C91: ='DF raw data'!E96 -> 4.0836576e-06 | D91: ='DF raw data'!F96 -> -5.4165871e-06 | F91: -4.343012508e-06 | G91: 4.09730188e-06 | H91: -5.423260335e-06 | J91: -2.253944897e-05 | K91: -0.0005152739673 | L91: 6.498925777e-05 | M91: 0.0007887414765 | N91: 4.20547866e-08
A92: 42.95264 | B92: ='DF raw data'!D97 -> 8.9536013e-07 | C92: ='DF raw data'!E97 -> -2.6549487e-06 | D92: ='DF raw data'!F97 -> -1.3301037e-06 | F92: 8.964632137e-07 | G92: -2.663819391e-06 | H92: -1.331742388e-06 | J92: -2.209100222e-05 | K92: -0.0005263247703 | L92: 6.365670876e-05 | M92: 0.0008205851085 | N92: 4.432597072e-08
A93: 43.45288 | B93: ='DF raw data'!D98 -> 2.2594568e-06 | C93: ='DF raw data'!E98 -> -2.0860143e-06 | D93: ='DF raw data'!F98 -> 4.8699435e-06 | F93: 2.262240451e-06 | G93: -2.092984072e-06 | H93: 4.87594327e-06 | J93: -2.095933905e-05 | K93: -0.0005368094701 | L93: 6.26097144e-05 | M93: 0.000851904992 | N93: 4.650665206e-08
A94: 43.95312 | B94: ='DF raw data'!D99 -> 1.0090979e-06 | C94: ='DF raw data'!E99 -> -2.9083267e-06 | D94: ='DF raw data'!F99 -> -9.010987e-07 | F94: 1.010341109e-06 | G94: -2.918043975e-06 | H94: -9.022088536e-07 | J94: -2.045392602e-05 | K94: -0.000547041342 | L94: 6.114999208e-05 | M94: 0.000882494664 | N94: 4.858649222e-08
A95: 44.45336 | B95: ='DF raw data'!D100 -> -1.9021146e-06 | C95: ='DF raw data'!E100 -> -5.6900162e-06 | D95: ='DF raw data'!F100 -> -8.8479137e-06 | F95: -1.904458005e-06 | G95: -5.709027631e-06 | H95: -8.85881433e-06 | J95: -2.140661209e-05 | K95: -0.0005577497856 | L95: 5.82941081e-05 | M95: 0.0009116557087 | N95: 5.051564081e-08
A96: 44.9536 | B96: ='DF raw data'!D101 -> -5.2427249e-06 | C96: ='DF raw data'!E101 -> 7.0737606e-06 | D96: ='DF raw data'!F101 -> -1.0518488e-05 | F96: -5.249183937e-06 | G96: 7.097395386e-06 | H96: -1.053144678e-05 | J96: -2.403246386e-05 | K96: -0.0005697717854 | L96: 6.184450917e-05 | M96: 0.0009425928059 | N96: 5.271784867e-08
A97: 45.45384 | B97: ='DF raw data'!D102 -> -6.7269621e-06 | C97: ='DF raw data'!E102 -> 1.1759989e-05 | D97: ='DF raw data'!F102 -> -8.3533523e-06 | F97: -6.735249717e-06 | G97: 1.179928137e-05 | H97: -8.36364363e-06 | J97: -2.740170518e-05 | K97: -0.0005834792144 | L97: 6.774698168e-05 | M97: 0.0009764825561 | N97: 5.538938388e-08
A98: 45.95408 | B98: ='DF raw data'!D103 -> -1.8481707e-06 | C98: ='DF raw data'!E103 -> -3.5998792e-06 | D98: ='DF raw data'!F103 -> 1.6079862e-06 | F98: -1.850447646e-06 | G98: -3.611907084e-06 | H98: 1.609967239e-06 | J98: -2.832737311e-05 | K98: -0.0005976496995 | L98: 6.594016128e-05 | M98: 0.001009468462 | N98: 5.796589248e-08
A99: 46.45432 | B99: ='DF raw data'!D104 -> 4.9557957e-06 | C99: ='DF raw data'!E104 -> -1.3144006e-07 | D99: ='DF raw data'!F104 -> 7.0597011e-06 | F99: 4.96190124e-06 | G99: -1.318792264e-07 | H99: 7.068398652e-06 | J99: -2.584523164e-05 | K99: -0.0006105785182 | L99: 6.587419002e-05 | M99: 0.001042421367 | N99: 6.047078671e-08
A100: 46.95456 | B100: ='DF raw data'!D105 -> 4.7765161e-06 | C100: ='DF raw data'!E105 -> -3.0688398e-06 | D100: ='DF raw data'!F105 -> 7.0256933e-06 | F100: 4.782400768e-06 | G100: -3.07909338e-06 | H100: 7.034348954e-06 | J100: -2.345288348e-05 | K100: -0.0006223105886 | L100: 6.433390435e-05 | M100: 0.001074603759 | N100: 6.281635654e-08
A101: 47.4548 | B101: ='DF raw data'!D106 -> -8.2483632e-07 | C101: ='DF raw data'!E106 -> -1.0095516e-05 | D101: ='DF raw data'!F106 -> 6.2845311e-07 | F101: -8.258525183e-07 | G101: -1.012924705e-05 | H101: 6.292273642e-07 | J101: -2.386600794e-05 | K101: -0.0006342493204 | L101: 5.92668498e-05 | M101: 0.001104251408 | N101: 6.485840916e-08
A102: 47.95504 | B102: ='DF raw data'!D107 -> -7.6392944e-06 | C102: ='DF raw data'!E107 -> 3.472961e-06 | D102: ='DF raw data'!F107 -> -7.2807748e-06 | F102: -7.648706011e-06 | G102: 3.484564826e-06 | H102: -7.289744715e-06 | J102: -2.769219663e-05 | K102: -0.0006481020649 | L102: 6.100996851e-05 | M102: 0.001134771035 | N102: 6.710402355e-08
A103: 48.45528 | B103: ='DF raw data'!D108 -> -6.0122738e-06 | C103: ='DF raw data'!E108 -> -1.0195986e-05 | D103: ='DF raw data'!F108 -> -6.943214e-06 | F103: -6.019680921e-06 | G103: -1.023005274e-05 | H103: -6.95176804e-06 | J103: -3.070348182e-05 | K103: -0.0006634611746 | L103: 5.589248693e-05 | M103: 0.001162730693 | N103: 6.91383365e-08
A104: 48.95552 | B104: ='DF raw data'!D109 -> -1.2254069e-06 | C104: ='DF raw data'!E109 -> 2.9245723e-07 | D104: ='DF raw data'!F109 -> -1.4447146e-06 | F104: -1.226916601e-06 | G104: 2.934343855e-07 | H104: -1.446494488e-06 | J104: -3.131723458e-05 | K104: -0.000679127308 | L104: 5.603927455e-05 | M104: 0.001190763779 | N104: 7.119991031e-08
A105: 49.45576 | B105: ='DF raw data'!D110 -> -7.9766789e-07 | C105: ='DF raw data'!E110 -> 1.0499503e-05 | D105: ='DF raw data'!F110 -> -3.8144978e-07 | F105: -7.986506168e-07 | G105: 1.053458385e-05 | H105: -3.819197261e-07 | J105: -3.171675156e-05 | K105: -0.0006949932958 | L105: 6.130909477e-05 | M105: 0.001221433041 | N105: 7.358343257e-08
A106: 49.956 | B106: ='DF raw data'!D111 -> -4.6612595e-06 | C106: ='DF raw data'!E111 -> 5.6677045e-06 | D106: ='DF raw data'!F111 -> 6.9367479e-07 | F106: -4.667002172e-06 | G106: 5.686641384e-06 | H106: 6.945293973e-07 | J106: -3.405137273e-05 | K106: -0.0007120271545 | L106: 6.415378026e-05 | M106: 0.001253525328 | N106: 7.622230037e-08
A107: 50.45624 | B107: ='DF raw data'!D112 -> -8.2583329e-06 | C107: ='DF raw data'!E112 -> 5.7310826e-06 | D107: ='DF raw data'!F112 -> 9.2848641e-06 | F107: -8.268507166e-06 | G107: 5.750231242e-06 | H107: 9.296303053e-06 | J107: -3.818761075e-05 | K107: -0.0007311301249 | L107: 6.703027593e-05 | M107: 0.001287056553 | N107: 7.919940445e-08
A108: 50.95648 | B108: ='DF raw data'!D113 -> -7.1653094e-06 | C108: ='DF raw data'!E113 -> -6.986661e-06 | D108: ='DF raw data'!F113 -> 1.0496093e-05 | F108: -7.174137061e-06 | G108: -7.010004769e-06 | H108: 1.050902419e-05 | J108: -4.177640108e-05 | K108: -0.0007520283518 | L108: 6.352359115e-05 | M108: 0.001318833594 | N108: 8.209104893e-08
A109: 51.45672 | B109: ='DF raw data'!D114 -> -3.8766202e-06 | C109: ='DF raw data'!E114 -> -9.6512022e-06 | D109: ='DF raw data'!F114 -> 3.3379906e-06 | F109: -3.881396196e-06 | G109: -9.68344871e-06 | H109: 3.342103004e-06 | J109: -4.371803071e-05 | K109: -0.0007738978595 | L109: 5.867954276e-05 | M109: 0.001348187449 | N109: 8.47696115e-08
A110: 51.95696 | B110: ='DF raw data'!D115 -> -3.7819746e-06 | C110: ='DF raw data'!E115 -> -9.5348594e-07 | D110: ='DF raw data'!F115 -> -5.4536258e-07 | F110: -3.786633993e-06 | G110: -9.566717187e-07 | H110: -5.460344667e-07 | J110: -4.56122565e-05 | K110: -0.0007967149347 | L110: 5.82009773e-05 | M110: 0.001377301906 | N110: 8.750483963e-08
A111: 52.4572 | B111: ='DF raw data'!D116 -> -4.1643116e-06 | C111: ='DF raw data'!E116 -> -6.0987031e-06 | D111: ='DF raw data'!F116 -> -1.0088556e-06 | F111: -4.169442032e-06 | G111: -6.119080032e-06 | H111: -1.01009851e-06 | J111: -4.769797818e-05 | K111: -0.0008205753713 | L111: 5.513996871e-05 | M111: 0.001404885124 | N111: 9.016387199e-08
A112: 52.95744 | B112: ='DF raw data'!D117 -> -3.2627331e-06 | C112: ='DF raw data'!E117 -> -1.1349465e-06 | D112: ='DF raw data'!F117 -> 4.9514301e-07 | F112: -3.266752787e-06 | G112: -1.138738573e-06 | H112: 4.957530262e-07 | J112: -4.93321386e-05 | K112: -0.0008452532803 | L112: 5.457032612e-05 | M112: 0.001432183384 | N112: 9.287096096e-08
A113: 53.45768 | B113: ='DF raw data'!D118 -> 1.0205794e-06 | C113: ='DF raw data'!E118 -> -5.7754105e-06 | D113: ='DF raw data'!F118 -> 3.0437654e-06 | F113: 1.021836754e-06 | G113: -5.79470725e-06 | H113: 3.047515319e-06 | J113: -4.882097498e-05 | K113: -0.0008696754848 | L113: 5.167158177e-05 | M113: 0.001458031576 | N113: 9.539889377e-08
A114: 53.95792 | B114: ='DF raw data'!D119 -> 3.7820091e-06 | C114: ='DF raw data'!E119 -> -8.5619022e-06 | D114: ='DF raw data'!F119 -> -1.8239375e-06 | F114: 3.786668535e-06 | G114: -8.590509151e-06 | H114: -1.826184591e-06 | J114: -4.692673191e-05 | K114: -0.0008931501132 | L114: 4.737426547e-05 | M114: 0.001481730078 | N114: 9.762318051e-08
A115: 54.45816 | B115: ='DF raw data'!D120 -> 3.5936944e-07 | C115: ='DF raw data'!E120 -> 8.9037139e-06 | D115: ='DF raw data'!F120 -> -2.581452e-06 | F115: 3.598121832e-07 | G115: 8.933462909e-06 | H115: -2.584632349e-06 | J115: -4.674673946e-05 | K115: -0.0009165347021 | L115: 5.184314096e-05 | M115: 0.001507664091 | N115: 1.000608345e-07
A116: 54.9584 | B116: ='DF raw data'!D121 -> -2.3541406e-06 | C116: ='DF raw data'!E121 -> -2.624528e-06 | D116: ='DF raw data'!F121 -> 1.1809748e-06 | F116: -2.357040901e-06 | G116: -2.633297049e-06 | H116: 1.182429761e-06 | J116: -4.79258256e-05 | K116: -0.0009405091171 | L116: 5.052586044e-05 | M116: 0.001532939148 | N116: 1.024868721e-07
A117: 55.45864 | B117: ='DF raw data'!D122 -> -3.633123e-06 | C117: ='DF raw data'!E122 -> -1.2687337e-05 | D117: ='DF raw data'!F122 -> -3.753798e-06 | F117: -3.637599008e-06 | G117: -1.272972782e-05 | H117: -3.758422679e-06 | J117: -4.974549813e-05 | K117: -0.0009653938051 | L117: 4.41579414e-05 | M117: 0.001555028716 | N117: 1.047002032e-07
A118: 55.95888 | B118: ='DF raw data'!D123 -> -7.4520824e-07 | C118: ='DF raw data'!E123 -> -9.1001484e-06 | D118: ='DF raw data'!F123 -> -1.8799042e-06 | F118: -7.461263366e-07 | G118: -9.130553734e-06 | H118: -1.882220242e-06 | J118: -5.011874037e-05 | K118: -0.0009904652038 | L118: 3.95904732e-05 | M118: 0.001574833455 | N118: 1.06740829e-07
A119: 56.45912 | B119: ='DF raw data'!D124 -> 6.2036806e-06 | C119: ='DF raw data'!E124 -> -8.1444095e-06 | D119: ='DF raw data'!F124 -> 2.6441699e-06 | F119: 6.211323534e-06 | G119: -8.171621528e-06 | H119: 2.647427517e-06 | J119: -4.701158788e-05 | K119: -0.001013982281 | L119: 3.550270125e-05 | M119: 0.001592593326 | N119: 1.084769276e-07
A120: 56.95936 | B120: ='DF raw data'!D125 -> 6.4045262e-06 | C120: ='DF raw data'!E125 -> -6.8545696e-06 | D120: ='DF raw data'!F125 -> -1.2975656e-06 | F120: 6.412416576e-06 | G120: -6.877472027e-06 | H120: -1.299164201e-06 | J120: -4.380384062e-05 | K120: -0.001035894714 | L120: 3.206231464e-05 | M120: 0.001608632178 | N120: 1.09951019e-07
A121: 57.4596 | B121: ='DF raw data'!D126 -> 6.8843901e-06 | C121: ='DF raw data'!E126 -> -6.2478748e-06 | D121: ='DF raw data'!F126 -> -6.2775366e-06 | F121: 6.892871669e-06 | G121: -6.268750143e-06 | H121: -6.285270525e-06 | J121: -4.035575049e-05 | K121: -0.001056082274 | L121: 2.892643507e-05 | M121: 0.001623102338 | N121: 1.111842733e-07
A122: 57.95984 | B122: ='DF raw data'!D127 -> 1.1944673e-05 | C122: ='DF raw data'!E127 -> -1.2309471e-05 | D122: ='DF raw data'!F127 -> -8.4690255e-06 | F122: 1.195938884e-05 | G122: -1.235059929e-05 | H122: -8.479459339e-06 | J122: -3.437318582e-05 | K122: -0.001073277117 | L122: 2.274817128e-05 | M122: 0.001634481883 | N122: 1.120341787e-07
A123: 58.46008 | B123: ='DF raw data'!D128 -> 7.7691611e-06 | C123: ='DF raw data'!E128 -> -6.3344696e-06 | D123: ='DF raw data'!F128 -> -5.4884008e-06 | F123: 7.778732706e-06 | G123: -6.355634273e-06 | H123: -5.49516251e-06 | J123: -3.048195257e-05 | K123: -0.001088525409 | L123: 1.956882879e-05 | M123: 0.001644270994 | N123: 1.126905378e-07
A124: 58.96032 | B124: ='DF raw data'!D129 -> -6.7805115e-07 | C124: ='DF raw data'!E129 -> -2.7951801e-06 | D124: ='DF raw data'!F129 -> 1.1222141e-06 | F124: -6.78886509e-07 | G124: -2.804519331e-06 | H124: 1.123596668e-06 | J124: -3.082155876e-05 | K124: -0.001103943585 | L124: 1.816589604e-05 | M124: 0.001653358302 | N124: 1.133308292e-07
A125: 59.46056 | B125: ='DF raw data'!D130 -> 2.6891473e-07 | C125: ='DF raw data'!E130 -> -1.0136743e-05 | D125: ='DF raw data'!F130 -> 4.0675654e-06 | F125: 2.692460329e-07 | G125: -1.017061179e-05 | H125: 4.072576641e-06 | J125: -3.068687112e-05 | K125: -0.001119294386 | L125: 1.307814919e-05 | M125: 0.001659900515 | N125: 1.138874572e-07
A126: 59.9608 | B126: ='DF raw data'!D131 -> 2.7908491e-06 | C126: ='DF raw data'!E131 -> -8.4375488e-06 | D126: ='DF raw data'!F131 -> 1.6980334e-06 | F126: 2.794287426e-06 | G126: -8.465740263e-06 | H126: 1.700125377e-06 | J126: -2.928905678e-05 | K126: -0.001133945944 | L126: 8.843247284e-06 | M126: 0.001664324261 | N126: 1.143557078e-07
A127: 60.46104 | B127: ='DF raw data'!D132 -> 2.0125544e-06 | C127: ='DF raw data'!E132 -> 1.0556615e-06 | D127: ='DF raw data'!F132 -> 2.3498719e-06 | F127: 2.015033867e-06 | G127: 1.059188667e-06 | H127: 2.352766942e-06 | J127: -2.828105624e-05 | K127: -0.001148093259 | L127: 9.373095823e-06 | M127: 0.001669013059 | N127: 1.147997574e-07
A128: 60.96128 | B128: ='DF raw data'!D133 -> 5.7257521e-06 | C128: ='DF raw data'!E133 -> 3.440271e-06 | D128: ='DF raw data'!F133 -> 2.5615732e-06 | F128: 5.732806227e-06 | G128: 3.451765603e-06 | H128: 2.564729058e-06 | J128: -2.541327725e-05 | K128: -0.001160805997 | L128: 1.109980705e-05 | M128: 0.001674565626 | N128: 1.151844622e-07
A129: 61.46152 | B129: ='DF raw data'!D134 -> 8.662998e-06 | C129: ='DF raw data'!E134 -> -4.9753808e-06 | D129: ='DF raw data'!F134 -> 2.973276e-06 | F129: 8.673670814e-06 | G129: -4.992004498e-06 | H129: 2.976939076e-06 | J129: -2.107436017e-05 | K129: -0.001171348235 | L129: 8.602606718e-06 | M129: 0.001678868994 | N129: 1.154436533e-07
A130: 61.96176 | B130: ='DF raw data'!D135 -> 6.0557022e-06 | C130: ='DF raw data'!E135 -> -4.4181879e-06 | D130: ='DF raw data'!F135 -> -3.5164708e-06 | F130: 6.063162825e-06 | G130: -4.43294991e-06 | H130: -3.520803092e-06 | J130: -1.804132359e-05 | K130: -0.001180373227 | L130: 6.385067855e-06 | M130: 0.001682063061 | N130: 1.156268704e-07
A131: 62.462 | B131: ='DF raw data'!D136 -> 9.498307e-06 | C131: ='DF raw data'!E136 -> 4.0625755e-06 | D131: ='DF raw data'!F136 -> -9.8306627e-06 | F131: 9.510008914e-06 | G131: 4.076149341e-06 | H131: -9.842774076e-06 | J131: -1.328403673e-05 | K131: -0.001187018433 | L131: 8.424120801e-06 | M131: 0.001686277143 | N131: 1.157506455e-07
A132: 62.96224 | B132: ='DF raw data'!D137 -> 1.3162319e-05 | C132: ='DF raw data'!E137 -> -2.7181932e-06 | D132: ='DF raw data'!F137 -> -8.1423204e-06 | F132: 1.317853498e-05 | G132: -2.727275203e-06 | H132: -8.152351739e-06 | J132: -6.691606398e-06 | K132: -0.001190365842 | L132: 7.059828654e-06 | M132: 0.001689808751 | N132: 1.157979776e-07
A133: 63.46248 | B133: ='DF raw data'!D138 -> 7.626305e-06 | C133: ='DF raw data'!E138 -> -8.0021755e-06 | D133: ='DF raw data'!F138 -> -1.8204742e-06 | F133: 7.635700608e-06 | G133: -8.028912297e-06 | H133: -1.822717024e-06 | J133: -2.871923526e-06 | K133: -0.001191802493 | L133: 3.043445566e-06 | M133: 0.001691331205 | N133: 1.15806737e-07
A134: 63.96272 | B134: ='DF raw data'!D139 -> -1.2428983e-06 | C134: ='DF raw data'!E139 -> -8.1855042e-06 | D134: ='DF raw data'!F139 -> -2.3069195e-07 | F134: -1.244429551e-06 | G134: -8.212853533e-06 | H134: -2.309761625e-07 | J134: -3.494436965e-06 | K134: -0.00119355055 | L134: -1.064952285e-06 | M134: 0.001690798473 | N134: 1.158134129e-07
A135: 64.46296 | B135: ='DF raw data'!D140 -> -5.3313606e-06 | C135: ='DF raw data'!E140 -> 2.5777981e-06 | D135: ='DF raw data'!F140 -> -3.6000715e-06 | F135: -5.337928836e-06 | G135: =(1-$G$1*($B$2-$G$2))*C135*$M$2/$M$1 -> 2.586411016e-06 | H135: -3.604506788e-06 | J135: -6.164682486e-06 | K135: -0.001196634371 | L135: 2.288739612e-07 | M135: 0.001690912965 | N135: 1.158324498e-07
A136: =A135+$B$1 -> 64.9632 | B136: ='DF raw data'!D141 -> -3.928687e-06 | C136: ='DF raw data'!E141 -> 1.0106827e-05 | D136: ='DF raw data'!F141 -> -6.3621269e-06 | F136: -3.933527142e-06 | G136: 1.014059584e-05 | H136: -6.36996504e-06 | J136: =F136*$B$1+J135 -> -8.132390103e-06 | K136: =J136*$B$1+K135 -> -0.001200702518 | L136: =G136*$B$1+L135 -> 5.301605624e-06 | M136: =L136*$B$1+M135 -> 0.00169356504 | N136: =(J136^2+L136^2)*$B$1+N135 -> 1.158795938e-07
A137: 65.46344 | B137: ='DF raw data'!D142 -> -3.0765705e-06 | C137: ='DF raw data'!E142 -> 4.0784535e-06 | D137: ='DF raw data'!F142 -> -2.1455203e-06 | F137: -3.080360835e-06 | G137: 4.092080392e-06 | H137: -2.148163581e-06 | J137: -9.673309807e-06 | K137: -0.001205541495 | L137: 7.34862792e-06 | M137: 0.001697241118 | N137: 1.159534169e-07
A138: 65.96368 | B138: ='DF raw data'!D143 -> -4.3391965e-06 | C138: ='DF raw data'!E143 -> 6.3393773e-06 | D138: ='DF raw data'!F143 -> 6.1296737e-06 | F138: -4.34454239e-06 | G138: 6.360558371e-06 | H138: 6.137225458e-06 | J138: -1.184662369e-05 | K138: -0.00121146765 | L138: 1.053043364e-05 | M138: 0.001702508862 | N138: 1.160790935e-07
A139: 66.46392 | B139: ='DF raw data'!D144 -> -3.1164864e-06 | C139: ='DF raw data'!E144 -> -2.644673e-07 | D139: ='DF raw data'!F144 -> 5.1766833e-06 | F139: -3.120325911e-06 | G139: -2.653509358e-07 | H139: 5.183060974e-06 | J139: -1.340753553e-05 | K139: -0.001218174635 | L139: 1.039769449e-05 | M139: 0.001707710204 | N139: 1.162230996e-07
A140: 66.96416 | B140: ='DF raw data'!D145 -> -1.8958701e-07 | C140: ='DF raw data'!E145 -> -5.7778116e-06 | D140: ='DF raw data'!F145 -> 1.4867978e-06 | F140: -1.898205812e-07 | G140: -5.797116372e-06 | H140: 1.488629535e-06 | J140: -1.350249137e-05 | K140: -0.001224929121 | L140: 7.497744993e-06 | M140: 0.001711460876 | N140: 1.163424235e-07
A141: 67.4644 | B141: ='DF raw data'!D146 -> 1.3429188e-06 | C141: ='DF raw data'!E146 -> 1.9648342e-06 | D141: ='DF raw data'!F146 -> -1.5954579e-06 | F141: 1.344573276e-06 | G141: 1.971399086e-06 | H141: -1.597423504e-06 | J141: -1.282988204e-05 | K141: -0.001231347142 | L141: 8.483917672e-06 | M141: 0.001715704871 | N141: 1.164607717e-07
A142: 67.96464 | B142: ='DF raw data'!D147 -> 2.7622837e-06 | C142: ='DF raw data'!E147 -> -2.9137982e-06 | D142: ='DF raw data'!F147 -> -8.4447383e-06 | F142: 2.765686834e-06 | G142: -2.923533756e-06 | H142: -8.455142218e-06 | J142: -1.144637486e-05 | K142: -0.001237073076 | L142: 7.021449145e-06 | M142: 0.001719217281 | N142: 1.165509751e-07
A143: 68.46488 | B143: ='DF raw data'!D148 -> 3.9098331e-06 | C143: ='DF raw data'!E148 -> 3.2031712e-06 | D143: ='DF raw data'!F148 -> -8.0470782e-06 | F143: 3.914650014e-06 | G143: 3.213873607e-06 | H143: -8.0569922e-06 | J143: -9.488110334e-06 | K143: -0.001241819409 | L143: 8.629157279e-06 | M143: 0.001723533931 | N143: 1.166332579e-07
A144: 68.96512 | B144: ='DF raw data'!D149 -> 2.8232125e-06 | C144: ='DF raw data'!E149 -> 4.4771341e-06 | D144: ='DF raw data'!F149 -> 6.2245772e-07 | F144: 2.826690698e-06 | G144: 4.49209306e-06 | H144: 6.232245879e-07 | J144: -8.074086579e-06 | K144: -0.00124585839 | L144: 1.087628191e-05 | M144: 0.001728974682 | N144: 1.167250441e-07
A145: 69.46536 | B145: ='DF raw data'!D150 -> -1.071273e-06 | C145: ='DF raw data'!E150 -> 2.799153e-07 | D145: ='DF raw data'!F150 -> 1.2519881e-06 | F145: -1.072592808e-06 | G145: 2.808505505e-07 | H145: 1.253530549e-06 | J145: -8.610640405e-06 | K145: -0.001250165776 | L145: 1.101677459e-05 | M145: 0.001734485713 | N145: 1.168228472e-07
A146: 69.9656 | B146: ='DF raw data'!D151 -> 2.0858249e-07 | C146: ='DF raw data'!E151 -> 2.7384449e-06 | D146: ='DF raw data'!F151 -> -4.9345982e-08 | F146: 2.088394636e-07 | G146: 2.747594568e-06 | H146: -4.940677625e-08 | J146: -8.506170552e-06 | K146: -0.001254420903 | L146: 1.23912313e-05 | M146: 0.001740684303 | N146: 1.169358502e-07
A147: 70.46584 | B147: ='DF raw data'!D152 -> 3.2369962e-06 | C147: ='DF raw data'!E152 -> -1.0692992e-06 | D147: ='DF raw data'!F152 -> 2.0825823e-06 | F147: 3.240984179e-06 | G147: -1.072871933e-06 | H147: 2.085148041e-06 | J147: -6.884900626e-06 | K147: -0.001257865006 | L147: 1.185453784e-05 | M147: 0.001746614417 | N147: 1.170298613e-07
A148: 70.96608 | B148: ='DF raw data'!D153 -> 5.8090779e-07 | C148: ='DF raw data'!E153 -> -4.7071926e-06 | D148: ='DF raw data'!F153 -> 4.8648794e-06 | F148: 5.816234684e-07 | G148: -4.72292023e-06 | H148: 4.870872931e-06 | J148: -6.593949302e-06 | K148: -0.001261163563 | L148: 9.491944225e-06 | M148: 0.001751362667 | N148: 1.170966819e-07
A149: 71.46632 | B149: ='DF raw data'!D154 -> -2.7665856e-06 | C149: ='DF raw data'!E154 -> -2.7047179e-07 | D149: ='DF raw data'!F154 -> 3.7896384e-06 | F149: -2.769994033e-06 | G149: -2.713754879e-07 | H149: 3.794307235e-06 | J149: -7.979611118e-06 | K149: -0.001265155284 | L149: 9.356191351e-06 | M149: 0.001756043008 | N149: 1.171723245e-07
A150: 71.96656 | B150: ='DF raw data'!D155 -> -2.8924742e-06 | C150: ='DF raw data'!E155 -> 5.2387359e-06 | D150: ='DF raw data'!F155 -> 8.0966129e-06 | F150: -2.896037728e-06 | G150: 5.256239517e-06 | H150: 8.106587927e-06 | J150: -9.428325031e-06 | K150: -0.001269871709 | L150: 1.198557261e-05 | M150: 0.001762038671 | N150: 1.172886539e-07
A151: 72.4668 | B151: ='DF raw data'!D156 -> 8.3949533e-07 | C151: ='DF raw data'!E156 -> 7.5238142e-07 | D151: ='DF raw data'!F156 -> 1.204999e-05 | F151: =(1-$G$1*($B$2-$G$2))*B151 -> 8.405295882e-07 | G151: 7.548952701e-07 | H151: 1.206483559e-05 | J151: -9.00785851e-06 | K151: -0.0012743778 | L151: 1.236320142e-05 | M151: 0.001768223239 | N151: 1.174057052e-07
A152: 72.96704 | B152: ='DF raw data'!D157 -> 4.1078847e-06 | C152: ='DF raw data'!E157 -> -1.0032535e-06 | D152: ='DF raw data'!F157 -> 7.1560639e-06 | F152: 4.112945614e-06 | G152: -1.006605562e-06 | H152: 7.164880171e-06 | J152: -6.950398596e-06 | K152: -0.001277854667 | L152: 1.185965705e-05 | M152: 0.001774155914 | N152: 1.175002303e-07
A153: 73.46728 | B153: ='DF raw data'!D158 -> 2.2777485e-06 | C153: ='DF raw data'!E158 -> 3.6015845e-06 | D153: ='DF raw data'!F158 -> 3.2209932e-06 | F153: 2.280554686e-06 | G153: 3.613618082e-06 | H153: 3.224961464e-06 | J153: -5.809573919e-06 | K153: -0.001280760849 | L153: 1.366733336e-05 | M153: 0.001780992861 | N153: 1.176105568e-07
A154: 73.96752 | B154: ='DF raw data'!D159 -> -2.3917137e-06 | C154: ='DF raw data'!E159 -> 4.3874707e-06 | D154: ='DF raw data'!F159 -> 3.8412648e-07 | F154: -2.394660291e-06 | G154: 4.402130078e-06 | H154: 3.845997238e-07 | J154: -7.007478784e-06 | K154: -0.00128426627 | L154: 1.586945491e-05 | M154: 0.001788931397 | N154: 1.177611012e-07
A155: 74.46776 | B155: ='DF raw data'!D160 -> -6.8877607e-06 | C155: ='DF raw data'!E160 -> 4.1312906e-06 | D155: ='DF raw data'!F160 -> -2.888803e-06 | F155: -6.896246421e-06 | G155: 4.145094031e-06 | H155: -2.892362005e-06 | J155: -1.045725709e-05 | K155: -0.001289497408 | L155: 1.794299675e-05 | M155: 0.001797907201 | N155: 1.179768574e-07
A156: 74.968 | B156: ='DF raw data'!D161 -> -8.3633249e-06 | C156: ='DF raw data'!E161 -> 1.2247398e-05 | D156: ='DF raw data'!F161 -> 2.9751386e-06 | F156: -8.373628516e-06 | G156: 1.22883189e-05 | H156: 2.978803971e-06 | J156: -1.464608102e-05 | K156: -0.001296823964 | L156: 2.409010539e-05 | M156: 0.001809958036 | N156: 1.183744686e-07
A157: 75.46824 | B157: ='DF raw data'!D162 -> -6.6905095e-06 | C157: ='DF raw data'!E162 -> 1.4696855e-05 | D157: ='DF raw data'!F162 -> 1.0754782e-05 | F157: -6.698752208e-06 | G157: 1.474596e-05 | H157: 1.076803189e-05 | J157: -1.799706483e-05 | K157: -0.001305826816 | L157: 3.146662442e-05 | M157: 0.0018256989 | N157: 1.190318054e-07
A158: 75.96848 | B158: ='DF raw data'!D163 -> -1.2890861e-06 | C158: ='DF raw data'!E163 -> 3.7334112e-06 | D158: ='DF raw data'!F163 -> 6.4307674e-06 | F158: -1.290674254e-06 | G158: 3.74588524e-06 | H158: 6.438690105e-06 | J158: -1.864271172e-05 | K158: -0.001315152646 | L158: 3.334046606e-05 | M158: 0.001842377135 | N158: 1.197617243e-07
A159: 76.46872 | B159: ='DF raw data'!D164 -> 2.2394333e-06 | C159: ='DF raw data'!E164 -> -7.0882006e-06 | D159: ='DF raw data'!F164 -> -1.0855879e-06 | F159: 2.242192282e-06 | G159: -7.111883632e-06 | H159: -1.086925344e-06 | J159: -1.752107745e-05 | K159: -0.001323917389 | L159: 2.978281739e-05 | M159: 0.001857275691 | N159: 1.20359013e-07
A160: 76.96896 | B160: ='DF raw data'!D165 -> -3.8957123e-06 | C160: ='DF raw data'!E165 -> -1.0121267e-05 | D160: ='DF raw data'!F165 -> -1.1715024e-06 | F160: -3.900511818e-06 | G160: -1.015508409e-05 | H160: -1.172945691e-06 | J160: -1.947226948e-05 | K160: -0.001333658197 | L160: 2.470283813e-05 | M160: 0.001869633039 | N160: 1.208539502e-07
A161: 77.4692 | B161: ='DF raw data'!D166 -> -8.2012602e-06 | C161: ='DF raw data'!E166 -> 4.3322336e-07 | D161: ='DF raw data'!F166 -> 1.7391717e-06 | F161: -8.211364153e-06 | G161: 4.34670842e-07 | H161: 1.74131436e-06 | J161: -2.357992228e-05 | K161: -0.001345453818 | L161: 2.492027787e-05 | M161: 0.001882099159 | N161: 1.214427492e-07
A162: 77.96944 | B162: ='DF raw data'!D167 -> -3.6932661e-06 | C162: ='DF raw data'!E167 -> -7.4487207e-06 | D162: ='DF raw data'!F167 -> -6.7973497e-07 | F162: -3.697816204e-06 | G162: -7.473608299e-06 | H162: -6.805724035e-07 | J162: -2.542971786e-05 | K162: -0.00135817478 | L162: 2.118168005e-05 | M162: 0.001892695082 | N162: 1.219906791e-07
A163: 78.46968 | B163: ='DF raw data'!D168 -> 3.9651013e-06 | C163: ='DF raw data'!E168 -> -8.2854413e-06 | D163: ='DF raw data'!F168 -> -6.1392352e-06 | F163: 3.969986305e-06 | G163: -8.313124542e-06 | H163: -6.146798738e-06 | J163: -2.344377191e-05 | K163: -0.001369902292 | L163: 1.702312263e-05 | M163: 0.001901210729 | N163: 1.224105792e-07
A164: 78.96992 | B164: ='DF raw data'!D169 -> 1.0469967e-05 | C164: ='DF raw data'!E169 -> 3.494576e-06 | D164: ='DF raw data'!F169 -> -6.8674713e-06 | F164: 1.0482866e-05 | G164: 3.506252046e-06 | H164: -6.875932025e-06 | J164: -1.819982302e-05 | K164: -0.001379006572 | L164: 1.877709015e-05 | M164: 0.001910603781 | N164: 1.227526496e-07
A165: 79.47016 | B165: ='DF raw data'!D170 -> 7.1114e-06 | C165: ='DF raw data'!E170 -> 5.6726412e-06 | D165: ='DF raw data'!F170 -> 1.9118262e-07 | F165: 7.120161245e-06 | G165: 5.691594578e-06 | H165: 1.91418157e-07 | J165: -1.463803356e-05 | K165: -0.001386329102 | L165: 2.162425343e-05 | M165: 0.001921421097 | N165: 1.230937535e-07
A166: 79.9704 | B166: ='DF raw data'!D171 -> -1.0292861e-08 | C166: ='DF raw data'!E171 -> -9.8817588e-07 | D166: ='DF raw data'!F171 -> 6.4187184e-06 | F166: -1.03055418e-08 | G166: -9.914775644e-07 | H166: 6.426626261e-06 | J166: -1.464318881e-05 | K166: -0.00139365421 | L166: 2.112827669e-05 | M166: 0.001931990307 | N166: 1.234243256e-07
A167: 80.47064 | B167: ='DF raw data'!D172 -> 1.1622859e-06 | C167: ='DF raw data'!E172 -> -5.7640691e-06 | D167: ='DF raw data'!F172 -> 7.4543054e-06 | F167: 1.163717836e-06 | G167: -5.783327956e-06 | H167: 7.463489104e-06 | J167: -1.40610506e-05 | K167: -0.00140068811 | L167: 1.823522471e-05 | M167: 0.001941112295 | N167: 1.236895711e-07
A168: 80.97088 | B168: ='DF raw data'!D173 -> 5.5319206e-06 | C168: ='DF raw data'!E173 -> -4.7669682e-06 | D168: ='DF raw data'!F173 -> 2.6489574e-06 | F168: 5.538735926e-06 | G168: -4.782895551e-06 | H168: 2.652220916e-06 | J168: -1.129035334e-05 | K168: -0.001406335997 | L168: 1.584262904e-05 | M168: 0.001949037412 | N168: 1.238788924e-07
A169: 81.47112 | B169: ='DF raw data'!D174 -> 6.8954059e-06 | C169: ='DF raw data'!E174 -> -9.7981056e-06 | D169: ='DF raw data'!F174 -> -1.6338604e-06 | F169: 6.90390104e-06 | G169: -9.830842943e-06 | H169: -1.635873316e-06 | J169: -7.836745882e-06 | K169: -0.001410256251 | L169: 1.092484817e-05 | M169: 0.001954502458 | N169: 1.239693193e-07
A170: 81.97136 | B170: ='DF raw data'!D175 -> 4.9742912e-06 | C170: ='DF raw data'!E175 -> -8.1901753e-06 | D170: ='DF raw data'!F175 -> 6.4747578e-06 | F170: 4.980419527e-06 | G170: -8.21754024e-06 | H170: 6.482734702e-06 | J170: -5.345340818e-06 | K170: -0.001412930204 | L170: 6.814105838e-06 | M170: 0.001957911146 | N170: 1.240068396e-07
A171: 82.4716 | B171: ='DF raw data'!D176 -> 3.8118405e-06 | C171: ='DF raw data'!E176 -> -4.6793057e-06 | D171: ='DF raw data'!F176 -> 9.2567789e-06 | F171: 3.816536687e-06 | G171: -4.694940154e-06 | H171: 9.268183252e-06 | J171: -3.436156505e-06 | K171: -0.001414649107 | L171: 4.465508975e-06 | M171: 0.001960144973 | N171: 1.240227212e-07
A172: 82.97184 | B172: ='DF raw data'!D177 -> 4.5751322e-06 | C172: ='DF raw data'!E177 -> -4.7895164e-06 | D172: ='DF raw data'!F177 -> 7.6403812e-06 | F172: 4.580768763e-06 | G172: -4.805519089e-06 | H172: 7.64979415e-06 | J172: -1.144672739e-06 | K172: -0.001415221718 | L172: 2.061596106e-06 | M172: 0.001961176266 | N172: 1.240255028e-07
A173: 83.47208 | B173: ='DF raw data'!D178 -> 4.4708677e-06 | C173: ='DF raw data'!E178 -> -1.4444841e-05 | D173: ='DF raw data'!F178 -> 1.0625532e-05 | F173: 4.476375809e-06 | G173: -1.449310397e-05 | H173: 1.063862266e-05 | J173: 1.094589496e-06 | K173: -0.00141467416 | L173: -5.188434226e-06 | M173: 0.001958580803 | N173: 1.240395685e-07
A174: 83.97232 | B174: ='DF raw data'!D179 -> 1.9747631e-06 | C174: ='DF raw data'!E179 -> -1.0868992e-05 | D174: ='DF raw data'!F179 -> 8.090763e-06 | F174: 1.977196008e-06 | G174: -1.090530738e-05 | H174: 8.10073082e-06 | J174: 2.083662027e-06 | K174: -0.001413631829 | L174: -1.064370519e-05 | M174: 0.001953256396 | N174: 1.240984118e-07
A175: 84.47256 | B175: ='DF raw data'!D180 -> -6.8379916e-07 | C175: ='DF raw data'!E180 -> -4.6967841e-07 | D175: ='DF raw data'!F180 -> 3.4906693e-06 | F175: -6.846416006e-07 | G175: -4.712476953e-07 | H175: 3.494969805e-06 | J175: 1.741176912e-06 | K175: -0.001412760823 | L175: -1.087944214e-05 | M175: 0.001947814064 | N175: 1.241591379e-07
A176: 84.9728 | B176: ='DF raw data'!D181 -> -5.5437442e-07 | C176: ='DF raw data'!E181 -> 5.625144e-07 | D176: ='DF raw data'!F181 -> 9.5416863e-07 | F176: -5.550574093e-07 | G176: 5.643938681e-07 | H176: 9.553441658e-07 | J176: 1.463514994e-06 | K176: -0.001412028714 | L176: -1.059710975e-05 | M176: 0.001942512966 | N176: 1.242163857e-07
A177: 85.47304 | B177: ='DF raw data'!D182 -> -2.3584043e-06 | C177: ='DF raw data'!E182 -> 1.0377017e-05 | D177: ='DF raw data'!F182 -> -2.6462808e-06 | F177: -2.361309854e-06 | G177: 1.04116886e-05 | H177: -2.649541018e-06 | J177: 2.822933526e-07 | K177: -0.0014118875 | L177: -5.388766644e-06 | M177: 0.001939817289 | N177: 1.242309519e-07
A178: 85.97328 | B178: ='DF raw data'!D183 -> -7.4258905e-06 | C178: ='DF raw data'!E183 -> -6.0857822e-08 | D178: ='DF raw data'!F183 -> -5.9386803e-08 | F178: -7.435039197e-06 | G178: -6.106115961e-08 | H178: -5.945996754e-08 | J178: -3.437010655e-06 | K178: -0.00141360683 | L178: -5.419311878e-06 | M178: 0.001937106333 | N178: 1.242515528e-07
A179: 86.47352 | B179: ='DF raw data'!D184 -> -8.6693663e-06 | C179: ='DF raw data'!E184 -> -5.6954877e-06 | D179: ='DF raw data'!F184 -> -4.8792617e-07 | F179: -8.680046959e-06 | G179: -5.714517413e-06 | H179: -4.88527295e-07 | J179: -7.779117346e-06 | K179: -0.001417498256 | L179: -8.277942069e-06 | M179: 0.001932965375 | N179: 1.243161033e-07
A180: 86.97376 | B180: ='DF raw data'!D185 -> -2.6063108e-06 | C180: ='DF raw data'!E185 -> -6.2022436e-06 | D180: ='DF raw data'!F185 -> 1.8522401e-06 | F180: -2.609521775e-06 | G180: -6.222966481e-06 | H180: 1.85452206e-06 | J180: -9.084504519e-06 | K180: -0.001422042688 | L180: -1.139091882e-05 | M180: 0.001927267182 | N180: 1.244222948e-07
A181: 87.474 | B181: ='DF raw data'!D186 -> 6.5367594e-06 | C181: ='DF raw data'!E186 -> -9.670016e-06 | D181: ='DF raw data'!F186 -> 1.7569978e-06 | F181: 6.544812688e-06 | G181: -9.702325371e-06 | H181: 1.759162421e-06 | J181: -5.81052742e-06 | K181: -0.001424949346 | L181: -1.624441006e-05 | M181: 0.001919141078 | N181: 1.245711878e-07
A182: 87.97424 | B182: ='DF raw data'!D187 -> 9.8167611e-06 | C182: ='DF raw data'!E187 -> -4.6857103e-06 | D182: ='DF raw data'!F187 -> -8.1642065e-06 | F182: 9.82885535e-06 | G182: -4.701366153e-06 | H182: -8.174264802e-06 | J182: -8.9374082e-07 | K182: -0.001425396431 | L182: -1.859622147e-05 | M182: 0.001909838504 | N182: 1.247445801e-07
A183: 88.47448 | B183: ='DF raw data'!D188 -> 4.9289038e-06 | C183: ='DF raw data'!E188 -> -5.3892718e-06 | D183: ='DF raw data'!F188 -> -5.0649837e-06 | F183: 4.934976209e-06 | G183: -5.407278387e-06 | H183: -5.07122376e-06 | J183: 1.574931679e-06 | K183: -0.001424608588 | L183: -2.130115841e-05 | M183: 0.001899182813 | N183: 1.249727995e-07
A184: 88.97472 | B184: ='DF raw data'!D189 -> -1.7676113e-06 | C184: ='DF raw data'!E189 -> -2.5937052e-06 | D184: ='DF raw data'!F189 -> -1.8261931e-06 | F184: -1.769788997e-06 | G184: -2.602371265e-06 | H184: -1.82844297e-06 | J184: 6.896124311e-07 | K184: -0.001424263616 | L184: -2.260296861e-05 | M184: 0.001887875904 | N184: 1.252286071e-07
A185: 89.47496 | B185: ='DF raw data'!D190 -> -3.075028e-06 | C185: ='DF raw data'!E190 -> 1.5796296e-06 | D185: ='DF raw data'!F190 -> -1.0271474e-06 | F185: -3.078816434e-06 | G185: 1.584907444e-06 | H185: -1.028412846e-06 | J185: -8.505347021e-07 | K185: -0.001424689087 | L185: -2.181013451e-05 | M185: 0.001876965602 | N185: 1.254669241e-07
A186: 89.9752 | B186: ='DF raw data'!D191 -> 1.252144e-06 | C186: ='DF raw data'!E191 -> 1.5337038e-05 | D186: ='DF raw data'!F191 -> 3.8829453e-06 | F186: 1.253686641e-06 | G186: 1.538828197e-05 | H186: 3.887729089e-06 | J186: -2.233904966e-07 | K186: -0.001424800836 | L186: -1.411230034e-05 | M186: 0.001869906065 | N186: 1.255665754e-07
A187: 90.47544 | B187: ='DF raw data'!D192 -> 3.4539362e-06 | C187: ='DF raw data'!E192 -> 7.2345397e-06 | D187: ='DF raw data'!F192 -> 2.5248441e-06 | F187: 3.458191449e-06 | G187: 7.258711679e-06 | H187: 2.527954708e-06 | J187: 1.506535194e-06 | K187: -0.001424047207 | L187: -1.048120241e-05 | M187: 0.001864662948 | N187: 1.256226649e-07
A188: 90.97568 | B188: ='DF raw data'!D193 -> -9.284314e-07 | C188: ='DF raw data'!E193 -> 5.7118687e-06 | D188: ='DF raw data'!F193 -> 6.6352322e-07 | F188: -9.295752275e-07 | G188: 5.730953145e-06 | H188: 6.643406806e-07 | J188: 1.041524482e-06 | K188: -0.001423526195 | L188: -7.614350405e-06 | M188: 0.001860853945 | N188: 1.256522106e-07
A189: 91.47592 | B189: ='DF raw data'!D194 -> -3.1298305e-06 | C189: ='DF raw data'!E194 -> 1.2567757e-05 | D189: ='DF raw data'!F194 -> 5.177149e-06 | F189: -3.133686451e-06 | G189: 1.260974828e-05 | H189: 5.183527248e-06 | J189: -5.26070828e-07 | K189: -0.001423789356 | L189: -1.306449927e-06 | M189: 0.001860200407 | N189: 1.256532029e-07
A190: 91.97616 | B190: ='DF raw data'!D195 -> 3.0229683e-07 | C190: ='DF raw data'!E195 -> 4.2044085e-06 | D190: ='DF raw data'!F195 -> 7.4000559e-06 | F190: 3.026692597e-07 | G190: 4.218456232e-06 | H190: 7.409172769e-06 | J190: -3.746635576e-07 | K190: -0.001423976778 | L190: 8.037906189e-07 | M190: 0.001860602495 | N190: 1.256535963e-07
A191: 92.4764 | B191: ='DF raw data'!D196 -> 3.6229421e-06 | C191: ='DF raw data'!E196 -> 1.6139203e-06 | D191: ='DF raw data'!F196 -> 4.3858886e-06 | F191: 3.627405565e-06 | G191: 1.619312716e-06 | H191: 4.391292015e-06 | J191: 1.439909802e-06 | K191: -0.001423256478 | L191: 1.613835612e-06 | M191: 0.0018614098 | N191: 1.256559363e-07
A192: 92.97664 | B192: ='DF raw data'!D197 -> 2.2714039e-06 | C192: ='DF raw data'!E197 -> 7.4469558e-06 | D192: ='DF raw data'!F197 -> 1.9145368e-06 | F192: 2.27420227e-06 | G192: 7.471837502e-06 | H192: 1.916895509e-06 | J192: 2.577556745e-06 | K192: -0.001421967081 | L192: 5.351547604e-06 | M192: 0.001864086858 | N192: 1.256735862e-07
A193: 93.47688 | B193: ='DF raw data'!D198 -> -1.1165295e-06 | C193: ='DF raw data'!E198 -> 4.6017533e-07 | D193: ='DF raw data'!F198 -> -1.5406845e-06 | F193: -1.117905064e-06 | G193: 4.617128637e-07 | H193: -1.542582623e-06 | J193: 2.018335916e-06 | K193: -0.001420957428 | L193: 5.582514847e-06 | M193: 0.001866879456 | N193: 1.256912138e-07
A194: 93.97712 | B194: ='DF raw data'!D199 -> -2.6798707e-06 | C194: ='DF raw data'!E199 -> 2.7804745e-06 | D194: ='DF raw data'!F199 -> -9.8430319e-06 | F194: -2.683172301e-06 | G194: 2.789764597e-06 | H194: -9.855158515e-06 | J194: 6.761058044e-07 | K194: -0.001420619213 | L194: 6.978066689e-06 | M194: 0.001870370164 | N194: 1.257158008e-07
A195: 94.47736 | B195: ='DF raw data'!D200 -> -2.3746297e-06 | C195: ='DF raw data'!E200 -> 3.9922597e-06 | D195: ='DF raw data'!F200 -> -1.278572e-05 | F195: -2.377555244e-06 | G195: 4.005598602e-06 | H195: -1.280147201e-05 | J195: -5.132424308e-07 | K195: -0.001420875958 | L195: 8.981827334e-06 | M195: 0.001874863233 | N195: 1.257562886e-07
A196: 94.9776 | B196: ='DF raw data'!D201 -> 3.6898999e-08 | C196: ='DF raw data'!E201 -> -4.0255118e-06 | D196: ='DF raw data'!F201 -> -5.8996379e-06 | F196: 3.694445857e-08 | G196: -4.038961804e-06 | H196: -5.906906254e-06 | J196: -4.947613348e-07 | K196: -0.001421123457 | L196: 6.961377081e-06 | M196: 0.001878345592 | N196: 1.257806531e-07
A197: 95.47784 | B197: ='DF raw data'!D202 -> -4.9204683e-08 | C197: ='DF raw data'!E202 -> 3.8058615e-06 | D197: ='DF raw data'!F202 -> -2.9963562e-06 | F197: -4.926530317e-08 | G197: 3.81857761e-06 | H197: -3.000047711e-06 | J197: -5.194058101e-07 | K197: -0.001421383285 | L197: 8.871582345e-06 | M197: 0.001882783513 | N197: 1.258201594e-07
A198: 95.97808 | B198: ='DF raw data'!D203 -> -1.2089196e-06 | C198: ='DF raw data'!E203 -> 8.0096188e-06 | D198: ='DF raw data'!F203 -> -6.7374208e-06 | F198: -1.210408989e-06 | G198: 8.036380467e-06 | H198: -6.745721302e-06 | J198: -1.124900803e-06 | K198: -0.001421946005 | L198: 1.289170131e-05 | M198: 0.001889232457 | N198: 1.259039303e-07
A199: 96.47832 | B199: ='DF raw data'!D204 -> -3.0486729e-07 | C199: ='DF raw data'!E204 -> 9.7813981e-06 | D199: ='DF raw data'!F204 -> -7.3176493e-06 | F199: -3.052428865e-07 | G199: =(1-$G$1*($B$2-$G$2))*C199*$M$2/$M$1 -> 9.81407962e-06 | H199: -7.326664644e-06 | J199: -1.277595504e-06 | K199: -0.001422585109 | L199: 1.78010965e-05 | M199: 0.001898137278 | N199: 1.260632623e-07
A200: =A199+$B$1 -> 96.97856 | B200: ='DF raw data'!D205 -> -4.3471228e-08 | C200: ='DF raw data'!E205 -> 6.9847658e-07 | D200: ='DF raw data'!F205 -> -2.9128282e-06 | F200: -4.352478455e-08 | G200: 7.008103237e-07 | H200: -2.916416804e-06 | J200: =F200*$B$1+J199 -> -1.299368343e-06 | K200: =J200*$B$1+K199 -> -0.001423235105 | L200: =G200*$B$1+L199 -> 1.815166985e-05 | M200: =L200*$B$1+M199 -> 0.001907217469 | N200: =(J200^2+L200^2)*$B$1+N199 -> 1.262289276e-07
A201: 97.4788 | B201: ='DF raw data'!D206 -> -1.051788e-06 | C201: ='DF raw data'!E206 -> 2.5986128e-06 | D201: ='DF raw data'!F206 -> 4.8545621e-06 | F201: -1.053083803e-06 | G201: 2.607295262e-06 | H201: 4.860542921e-06 | J201: -1.826162984e-06 | K201: -0.001424148625 | L201: 1.945594324e-05 | M201: 0.00191695011 | N201: 1.264199535e-07
... 1002 more rows

Sheet 15 mm
A1: dz | B1: ='DF raw data'!H7 -> 0.50015 | C1: mm | F1: T_coeff | G1: -0.0008 | H1: /degC | L1: Hallref | M1: ='PI vs gap'!B50 -> 0.505555 | N1: T | P1: IBy total | Q1: =L1203*1000 -> 8.036891596 | R1: muTm | X1: DF ref | Y1: 20
A2: Tref | B2: ='DF raw data'!H8 -> 21.54 | C2: degC | F2: Tcorr | G2: 20 | H2: degC | L2: NMRref | M2: ='PI vs gap'!B51 -> 0.50662 | N2: T | P2: JBy total | Q2: =M1203 -> 0.04003905038 | R2: muTm^2
A3: Encoder | B3: ='DF raw data'!H9 -> 1615075 | P3: PI total | Q3: =N1203 -> 367.6888079 | R3: T^2mm^3
A5: z [mm] | B5: Bx | C5: By | D5: Bz | F5: Bx_corr | G5: By_corr | H5: Bz_corr | J5: Ix | K5: Jx | L5: Iy | M5: Jy | N5: PI
A6: -0.068 | B6: ='DF raw data'!G11 -> -2.3446237e-06 | C6: ='DF raw data'!H11 -> 7.3048554e-06 | D6: ='DF raw data'!I11 -> 2.2898403e-06 | F6: =(1-$G$1*($B$2-$G$2))*B6 -> -2.347512276e-06 | G6: =(1-$G$1*($B$2-$G$2))*C6*$M$2/$M$1 -> 7.329262317e-06 | H6: =(1-$G$1*($B$2-$G$2))*D6 -> 2.292661383e-06 | J6: =F6*$B$1 -> -1.174108265e-06 | K6: =J6*$B$1 -> -5.872302488e-07 | L6: =G6*$B$1 -> 3.665730548e-06 | M6: =L6*$B$1 -> 1.833415134e-06 | N6: =(J6^2+L6)^2*$B$1 -> 6.720810917e-12
A7: =A6+$B$1 -> 0.43215 | B7: ='DF raw data'!G12 -> -1.3552535e-06 | C7: ='DF raw data'!H12 -> -1.9972329e-05 | D7: ='DF raw data'!I12 -> -4.7815234e-07 | F7: =(1-$G$1*($B$2-$G$2))*B7 -> -1.356923172e-06 | G7: =(1-$G$1*($B$2-$G$2))*C7*$M$2/$M$1 -> -2.003906037e-05 | H7: -4.787414237e-07 | J7: =F7*$B$1+J6 -> -1.85277339e-06 | K7: =J7*$B$1+K6 -> -1.51389486e-06 | L7: =G7*$B$1+L6 -> -6.356805494e-06 | M7: =L7*$B$1+M6 -> -1.345941134e-06 | N7: =(J7^2+L7^2)*$B$1+N6 -> 2.864825984e-11
A8: =A7+$B$1 -> 0.9323 | B8: ='DF raw data'!G13 -> -1.8046167e-06 | C8: ='DF raw data'!H13 -> -6.6639027e-06 | D8: ='DF raw data'!I13 -> 4.1775729e-06 | F8: -1.806839988e-06 | G8: -6.686168072e-06 | H8: 4.18271967e-06 | J8: =F8*$B$1+J7 -> -2.75646441e-06 | K8: =J8*$B$1+K7 -> -2.892540534e-06 | L8: =G8*$B$1+L7 -> -9.700892456e-06 | M8: =L8*$B$1+M7 -> -6.197842496e-06 | N8: =(J8^2+L8^2)*$B$1+N7 -> 7.951622089e-11
A9: 1.43245 | B9: ='DF raw data'!G14 -> -1.8747714e-06 | C9: ='DF raw data'!H14 -> -5.6214362e-06 | D9: ='DF raw data'!I14 -> -1.4718008e-06 | F9: -1.877081118e-06 | G9: -5.640218492e-06 | H9: -1.473614059e-06 | J9: -3.695286531e-06 | K9: -4.740738092e-06 | L9: -1.252184773e-05 | M9: -1.246064464e-05 | N9: 1.647676953e-10
A10: 1.9326 | B10: ='DF raw data'!G15 -> -1.8905894e-06 | C10: ='DF raw data'!H15 -> -5.66053e-06 | D10: ='DF raw data'!I15 -> -4.0410578e-06 | F10: -1.892918606e-06 | G10: -5.679442912e-06 | H10: -4.046036383e-06 | J10: -4.642029772e-06 | K10: -7.062449283e-06 | L10: -1.536242111e-05 | M10: -2.014415956e-05 | N10: 2.935825395e-10
A11: 2.43275 | B11: ='DF raw data'!G16 -> -1.811427e-06 | C11: ='DF raw data'!H16 -> -7.0188185e-06 | D11: ='DF raw data'!I16 -> 7.3341101e-07 | F11: -1.813658678e-06 | G11: -7.042269714e-06 | H11: 7.343145724e-07 | J11: -5.54913116e-06 | K11: -9.837847232e-06 | L11: -1.88846123e-05 | M11: -2.95892984e-05 | N11: 4.87351372e-10
A12: 2.9329 | B12: ='DF raw data'!G17 -> -1.7368047e-06 | C12: ='DF raw data'!H17 -> -7.1174222e-06 | D12: ='DF raw data'!I17 -> 1.2041341e-05 | F12: -1.738944443e-06 | G12: -7.141202867e-06 | H12: 1.205617593e-05 | J12: -6.418864223e-06 | K12: -1.304824217e-05 | L12: -2.245628492e-05 | M12: -4.08208093e-05 | N12: 7.601764701e-10
A13: 3.43305 | B13: ='DF raw data'!G18 -> -1.9156187e-06 | C13: ='DF raw data'!H18 -> -2.7510166e-06 | D13: ='DF raw data'!I18 -> 8.8644538e-06 | F13: -1.917978742e-06 | G13: -2.760208272e-06 | H13: 8.875374807e-06 | J13: -7.378141291e-06 | K13: -1.673841954e-05 | L13: -2.383680309e-05 | M13: -5.274278637e-05 | N13: 1.07158494e-09
A14: 3.9332 | B14: ='DF raw data'!G19 -> -1.9746994e-06 | C14: ='DF raw data'!H19 -> -1.3364231e-06 | D14: ='DF raw data'!I19 -> 8.1194394e-06 | F14: -1.97713223e-06 | G14: -1.340888345e-06 | H14: 8.129442549e-06 | J14: -8.367003976e-06 | K14: -2.092317658e-05 | L14: -2.450744839e-05 | M14: -6.500018668e-05 | N14: 1.406996424e-09
A15: 4.43335 | B15: ='DF raw data'!G20 -> -2.2508366e-06 | C15: ='DF raw data'!H20 -> 5.2039109e-06 | D15: ='DF raw data'!I20 -> 2.6243451e-06 | F15: -2.253609631e-06 | G15: 5.221298161e-06 | H15: 2.627578293e-06 | J15: -9.494146832e-06 | K15: -2.567167412e-05 | L15: -2.189601612e-05 | M15: -7.595147914e-05 | N15: 1.691869033e-09
A16: 4.9335 | B16: ='DF raw data'!G21 -> -1.3937724e-06 | C16: ='DF raw data'!H21 -> -1.8612438e-05 | D16: ='DF raw data'!I21 -> -4.5224996e-07 | F16: -1.395489528e-06 | G16: -1.867462571e-05 | H16: -4.52807132e-07 | J16: -1.019210092e-05 | K16: -3.076925339e-05 | L16: -3.123613017e-05 | M16: -9.157422964e-05 | N16: 2.231818344e-09
A17: 5.43365 | B17: ='DF raw data'!G22 -> -2.1391652e-06 | C17: ='DF raw data'!H22 -> 1.027239e-06 | D17: ='DF raw data'!I22 -> -5.3990861e-06 | F17: -2.141800652e-06 | G17: 1.030671202e-06 | H17: -5.405737774e-06 | J17: -1.126332252e-05 | K17: -3.640260415e-05 | L17: -3.072063996e-05 | M17: -0.0001069391577 | N17: 2.767289014e-09
A18: 5.9338 | B18: ='DF raw data'!G23 -> -2.2087233e-06 | C18: ='DF raw data'!H23 -> 2.8706693e-06 | D18: ='DF raw data'!I23 -> -5.6418703e-06 | F18: -2.211444447e-06 | G18: 2.880260755e-06 | H18: -5.648821084e-06 | J18: -1.236937646e-05 | K18: -4.258914778e-05 | L18: -2.928007755e-05 | M18: -0.0001215835885 | N18: 3.27260277e-09
A19: 6.43395 | B19: ='DF raw data'!G24 -> -2.3750517e-06 | C19: ='DF raw data'!H24 -> 8.0411055e-06 | D19: ='DF raw data'!I24 -> -1.0198911e-06 | F19: -2.377977764e-06 | G19: 8.06797237e-06 | H19: -1.021147606e-06 | J19: -1.355872203e-05 | K19: -4.937054261e-05 | L19: -2.524488117e-05 | M19: -0.0001342098158 | N19: 3.683297426e-09
A20: 6.9341 | B20: ='DF raw data'!G25 -> -2.2063077e-06 | C20: ='DF raw data'!H25 -> 4.0370901e-06 | D20: ='DF raw data'!I25 -> 3.0791653e-06 | F20: -2.209025871e-06 | G20: 4.050578789e-06 | H20: 3.082958832e-06 | J20: -1.466356632e-05 | K20: -5.67045253e-05 | L20: -2.321898419e-05 | M20: -0.0001458227908 | N20: 4.060481249e-09
A21: 7.43425 | B21: ='DF raw data'!G26 -> -1.8184992e-06 | C21: ='DF raw data'!H26 -> -7.1390373e-06 | D21: ='DF raw data'!I26 -> -8.0172873e-07 | F21: -1.820739591e-06 | G21: -7.162890188e-06 | H21: -8.027164598e-07 | J21: -1.557420923e-05 | K21: -6.449396605e-05 | L21: -2.680150371e-05 | M21: -0.0001592275628 | N21: 4.541063677e-09
A22: 7.9344 | B22: ='DF raw data'!G27 -> -1.6512249e-06 | C22: ='DF raw data'!H27 -> -5.800236e-07 | D22: ='DF raw data'!I27 -> -1.3620503e-06 | F22: -1.653259209e-06 | G22: -5.819615697e-07 | H22: -1.363728346e-06 | J22: -1.640108682e-05 | K22: -7.269696963e-05 | L22: -2.709257179e-05 | M22: -0.0001727779126 | N22: 5.042715676e-09
A23: 8.43455 | B23: ='DF raw data'!G28 -> -7.1396208e-08 | C23: ='DF raw data'!H28 -> 5.339873e-06 | D23: ='DF raw data'!I28 -> 7.7868699e-06 | F23: =(1-$G$1*($B$2-$G$2))*B23 -> -7.148416813e-08 | G23: 5.357714536e-06 | H23: 7.796463324e-06 | J23: -1.643683963e-05 | K23: -8.091785497e-05 | L23: -2.441291087e-05 | M23: -0.00018498803 | N23: 5.475925557e-09
A24: 8.9347 | B24: ='DF raw data'!G29 -> 3.5709918e-06 | C24: ='DF raw data'!H29 -> -2.3332566e-06 | D24: ='DF raw data'!I29 -> 1.469884e-05 | F24: 3.575391262e-06 | G24: -2.341052456e-06 | H24: 1.471694897e-05 | J24: -1.464860769e-05 | K24: -8.82443561e-05 | L24: -2.558378825e-05 | M24: -0.0001977837617 | N24: 5.910611888e-09
A25: 9.43485 | B25: ='DF raw data'!G30 -> 3.5804651e-06 | C25: ='DF raw data'!H30 -> -4.744285e-06 | D25: ='DF raw data'!I30 -> -1.8417457e-07 | F25: 3.584876233e-06 | G25: -4.760136563e-06 | H25: -1.844014731e-07 | J25: -1.285563184e-05 | K25: -9.467410037e-05 | L25: -2.796457055e-05 | M25: -0.0002117702417 | N25: 6.384396219e-09
A26: 9.935 | B26: ='DF raw data'!G31 -> -1.8118199e-06 | C26: ='DF raw data'!H31 -> -1.2671742e-06 | D26: ='DF raw data'!I31 -> -1.0913622e-05 | F26: -1.814052062e-06 | G26: -1.271408071e-06 | H26: -1.092706758e-05 | J26: -1.376292998e-05 | K26: -0.0001015576298 | L26: -2.86004653e-05 | M26: -0.0002260747644 | N26: 6.888249758e-09
A27: 10.43515 | B27: ='DF raw data'!G32 -> -2.1335627e-06 | C27: ='DF raw data'!H32 -> 4.5997526e-06 | D27: ='DF raw data'!I32 -> -7.3355386e-06 | F27: -2.136191249e-06 | G27: 4.615121252e-06 | H27: -7.344575984e-06 | J27: -1.483134603e-05 | K27: -0.0001089755275 | L27: -2.629221241e-05 | M27: -0.0002392248144 | N27: 7.344011074e-09
A28: 10.9353 | B28: ='DF raw data'!G33 -> -5.231604e-07 | C28: ='DF raw data'!H33 -> -3.9962929e-06 | D28: ='DF raw data'!I33 -> -1.0067216e-06 | F28: -5.238049336e-07 | G28: -4.009645278e-06 | H28: -1.007961881e-06 | J28: -1.509332707e-05 | K28: -0.0001165244551 | L28: -2.829763649e-05 | M28: -0.0002533778773 | N28: 7.858447736e-09
A29: 11.43545 | B29: ='DF raw data'!G34 -> -5.7717408e-08 | C29: ='DF raw data'!H34 -> 6.6672069e-06 | D29: ='DF raw data'!I34 -> 5.2749911e-06 | F29: -5.778851585e-08 | G29: 6.689483312e-06 | H29: 5.281489889e-06 | J29: -1.512223e-05 | K29: -0.0001240878384 | L29: -2.495189141e-05 | M29: -0.0002658575658 | N29: 8.28421479e-09
A30: 11.9356 | B30: ='DF raw data'!G35 -> 2.5970467e-06 | C30: ='DF raw data'!H35 -> -2.7938484e-06 | D30: ='DF raw data'!I35 -> 7.4528307e-06 | F30: 2.600246262e-06 | G30: -2.803183181e-06 | H30: 7.462012587e-06 | J30: -1.382171683e-05 | K30: -0.0001310007701 | L30: -2.635390348e-05 | M30: -0.0002790384706 | N30: 8.727131668e-09
A31: 12.43575 | B31: ='DF raw data'!G36 -> 3.4371172e-07 | C31: ='DF raw data'!H36 -> 3.551015e-06 | D31: ='DF raw data'!I36 -> 1.0416787e-06 | F31: 3.441351728e-07 | G31: 3.56287962e-06 | H31: 1.042962048e-06 | J31: -1.364959762e-05 | K31: -0.0001378276163 | L31: -2.457192924e-05 | M31: -0.000291328121 | N31: 9.122295793e-09
A32: 12.9359 | B32: ='DF raw data'!G37 -> -1.7707107e-06 | C32: ='DF raw data'!H37 -> -7.8237854e-06 | D32: ='DF raw data'!I37 -> 2.7289589e-06 | F32: -1.772892216e-06 | G32: -7.849926162e-06 | H32: 2.732320977e-06 | J32: -1.453630967e-05 | K32: -0.0001450979516 | L32: -2.849806981e-05 | M32: -0.0003055814306 | N32: 9.63417145e-09
A33: 13.43605 | B33: ='DF raw data'!G38 -> -3.4605373e-06 | C33: ='DF raw data'!H38 -> -6.9538405e-06 | D33: ='DF raw data'!I38 -> 1.7043584e-06 | F33: -3.464800682e-06 | G33: -6.97707461e-06 | H33: 1.70645817e-06 | J33: -1.626922973e-05 | K33: -0.0001532350068 | L33: -3.198765368e-05 | M33: -0.0003215800556 | N33: 1.027831355e-08
A34: 13.9362 | B34: ='DF raw data'!G39 -> -3.5566527e-06 | C34: ='DF raw data'!H39 -> 1.5058424e-06 | D34: ='DF raw data'!I39 -> 4.312149e-06 | F34: -3.561034496e-06 | G34: 1.510873707e-06 | H34: 4.317461568e-06 | J34: -1.805028113e-05 | K34: -0.0001622628549 | L34: -3.123199019e-05 | M34: -0.0003372007355 | N34: 1.092913366e-08
A35: 14.43635 | B35: ='DF raw data'!G40 -> -2.2735376e-06 | C35: ='DF raw data'!H40 -> 1.4140863e-05 | D35: ='DF raw data'!I40 -> 5.7941743e-06 | F35: -2.276338598e-06 | G35: 1.418811032e-05 | H35: 5.801312723e-06 | J35: -1.918879188e-05 | K35: -0.0001718601292 | L35: -2.413580681e-05 | M35: -0.0003492722593 | N35: 1.140464973e-08
A36: 14.9365 | B36: ='DF raw data'!G41 -> -4.5697526e-08 | C36: ='DF raw data'!H41 -> 1.151208e-05 | D36: ='DF raw data'!I41 -> 8.4562083e-07 | F36: -4.575382535e-08 | G36: 1.155054406e-05 | H36: 8.466626349e-07 | J36: -1.921167566e-05 | K36: -0.0001814688488 | L36: -1.83588022e-05 | M36: -0.0003584544142 | N36: 1.17578227e-08
A37: 15.43665 | B37: ='DF raw data'!G42 -> 1.7644734e-06 | C37: ='DF raw data'!H42 -> -3.240161e-06 | D37: ='DF raw data'!I42 -> -7.4727777e-06 | F37: 1.766647231e-06 | G37: -3.250986997e-06 | H37: -7.481984162e-06 | J37: -1.832808704e-05 | K37: -0.0001906356415 | L37: -1.998478335e-05 | M37: -0.0003684498036 | N37: 1.212558816e-08
A38: 15.9368 | B38: ='DF raw data'!G43 -> 2.5343716e-06 | C38: ='DF raw data'!H43 -> -3.7508194e-08 | D38: ='DF raw data'!I43 -> -7.1290324e-06 | F38: 2.537493946e-06 | G38: -3.763351604e-08 | H38: -7.137815368e-06 | J38: -1.705895945e-05 | K38: -0.0001991676801 | L38: -2.000360575e-05 | M38: -0.000378454607 | N38: 1.247126801e-08
A39: 16.43695 | B39: ='DF raw data'!G44 -> 6.0764241e-06 | C39: ='DF raw data'!H44 -> -4.6731698e-06 | D39: ='DF raw data'!I44 -> 1.721195e-06 | F39: 6.083910254e-06 | G39: -4.688783753e-06 | H39: 1.723315512e-06 | J39: -1.401609173e-05 | K39: -0.0002061778284 | L39: -2.234870095e-05 | M39: -0.0003896323098 | N39: 1.281933003e-08
A40: 16.9371 | B40: ='DF raw data'!G45 -> 3.0514739e-06 | C40: ='DF raw data'!H45 -> -9.9319341e-06 | D40: ='DF raw data'!I45 -> 7.400924e-06 | F40: 3.055233316e-06 | G40: -9.965118589e-06 | H40: 7.410041938e-06 | J40: -1.248801679e-05 | K40: -0.00021242371 | L40: -2.733275501e-05 | M40: -0.0004033027872 | N40: 1.327098051e-08
A41: 17.43725 | B41: ='DF raw data'!G46 -> -6.2962545e-06 | C41: ='DF raw data'!H46 -> -9.4708292e-07 | D41: ='DF raw data'!I46 -> 1.067974e-06 | F41: -6.304011486e-06 | G41: -9.50247305e-07 | H41: 1.069289744e-06 | J41: -1.564096813e-05 | K41: -0.0002202465402 | L41: -2.78080212e-05 | M41: -0.000417210969 | N41: 1.378009616e-08
A42: 17.9374 | B42: ='DF raw data'!G47 -> -1.0184148e-05 | C42: ='DF raw data'!H47 -> 5.7296143e-06 | D42: ='DF raw data'!I47 -> -2.5694808e-06 | F42: -1.019669487e-05 | G42: 5.748758036e-06 | H42: -2.5726464e-06 | J42: -2.074084507e-05 | K42: -0.0002306200738 | L42: -2.493277987e-05 | M42: -0.0004296810989 | N42: 1.430616702e-08
A43: 18.43755 | B43: ='DF raw data'!G48 -> -5.1388824e-06 | C43: ='DF raw data'!H48 -> 1.6083152e-06 | D43: ='DF raw data'!I48 -> 3.7775844e-06 | F43: -5.145213503e-06 | G43: 1.613688888e-06 | H43: 3.782238384e-06 | J43: -2.331422361e-05 | K43: -0.0002422806828 | L43: -2.412569337e-05 | M43: -0.0004417475644 | N43: 1.486913691e-08
A44: 18.9377 | B44: ='DF raw data'!G49 -> 2.5422441e-06 | C44: ='DF raw data'!H49 -> -4.7752405e-06 | D44: ='DF raw data'!I49 -> 5.0071776e-06 | F44: 2.545376145e-06 | G44: -4.791195491e-06 | H44: 5.013346443e-06 | J44: -2.204115373e-05 | K44: -0.0002533045658 | L44: -2.652200979e-05 | M44: -0.0004550125476 | N44: 1.546393003e-08
A45: 19.43785 | B45: ='DF raw data'!G50 -> 5.6514355e-06 | C45: ='DF raw data'!H50 -> -7.1817326e-06 | D45: ='DF raw data'!I50 -> -4.1412395e-07 | F45: 5.658398069e-06 | G45: -7.205728141e-06 | H45: -4.146341507e-07 | J45: -1.921110593e-05 | K45: -0.0002629130004 | L45: -3.012595472e-05 | M45: -0.0004700800439 | N45: 1.610244139e-08
A46: 19.938 | B46: ='DF raw data'!G51 -> 6.3569705e-06 | C46: ='DF raw data'!H51 -> -1.036077e-05 | D46: ='DF raw data'!I51 -> 3.5074427e-06 | F46: 6.364802288e-06 | G46: -1.039538731e-05 | H46: 3.511763869e-06 | J46: -1.602775007e-05 | K46: -0.0002709292796 | L46: -3.532520769e-05 | M46: -0.0004877479465 | N46: 1.685504664e-08
A47: 20.43815 | B47: ='DF raw data'!G52 -> 4.9904147e-06 | C47: ='DF raw data'!H52 -> -2.7168596e-06 | D47: ='DF raw data'!I52 -> 3.4241912e-06 | F47: 4.996562891e-06 | G47: -2.725937147e-06 | H47: 3.428409804e-06 | J47: -1.352871914e-05 | K47: -0.0002776956685 | L47: -3.668858515e-05 | M47: -0.0005060977424 | N47: 1.761981526e-08
A48: 20.9383 | B48: ='DF raw data'!G53 -> 4.557277e-06 | C48: ='DF raw data'!H53 -> -4.2033721e-06 | D48: ='DF raw data'!I53 -> 2.1233809e-06 | F48: 4.562891565e-06 | G48: -4.217416369e-06 | H48: 2.125996905e-06 | J48: -1.124658892e-05 | K48: -0.00028332065 | L48: -3.879792595e-05 | M48: -0.000525502525 | N48: 1.843594244e-08
A49: 21.43845 | B49: ='DF raw data'!G54 -> 5.6505623e-06 | C49: ='DF raw data'!H54 -> -3.6093541e-06 | D49: ='DF raw data'!I54 -> 5.9354006e-06 | F49: 5.657523793e-06 | G49: -3.621413642e-06 | H49: 5.942713014e-06 | J49: -8.416978399e-06 | K49: -0.0002875304017 | L49: -4.060917598e-05 | M49: -0.0005458132044 | N49: 1.929617578e-08
A50: 21.9386 | B50: ='DF raw data'!G55 -> 2.6260195e-06 | C50: ='DF raw data'!H55 -> 1.3158435e-06 | D50: ='DF raw data'!I55 -> 1.1487349e-05 | F50: 2.629254756e-06 | G50: 1.320239985e-06 | H50: 1.150150141e-05 | J50: -7.101956632e-06 | K50: -0.0002910824453 | L50: -3.994885795e-05 | M50: -0.0005657936257 | N50: 2.011959725e-08
A51: 22.43875 | B51: ='DF raw data'!G56 -> -7.3509449e-07 | C51: ='DF raw data'!H56 -> -7.4547247e-06 | D51: ='DF raw data'!I56 -> 8.8181932e-06 | F51: -7.360001264e-07 | G51: -7.479632359e-06 | H51: 8.829057214e-06 | J51: -7.470067096e-06 | K51: -0.0002948185994 | L51: -4.368979608e-05 | M51: -0.0005876450772 | N51: 2.110219204e-08
A52: 22.9389 | B52: ='DF raw data'!G57 -> -4.4971575e-06 | C52: ='DF raw data'!H57 -> 8.5271796e-07 | D52: ='DF raw data'!I57 -> 2.2905679e-06 | F52: -4.502697998e-06 | G52: 8.555670536e-07 | H52: 2.29338988e-06 | J52: -9.722091499e-06 | K52: -0.0002996811034 | L52: -4.326188422e-05 | M52: -0.0006092825086 | N52: 2.20855418e-08
A53: 23.43905 | B53: ='DF raw data'!G58 -> -8.0547661e-06 | C53: ='DF raw data'!H58 -> -3.8902185e-06 | D53: ='DF raw data'!I58 -> -7.015679e-07 | F53: -8.064689572e-06 | G53: -3.903216463e-06 | H53: -7.024322317e-07 | J53: -1.375564599e-05 | K53: -0.0003065609898 | L53: -4.521407793e-05 | M53: -0.0006318963297 | N53: 2.320264215e-08
A54: 23.9392 | B54: ='DF raw data'!G59 -> -9.4641191e-06 | C54: ='DF raw data'!H59 -> -1.156415e-05 | D54: ='DF raw data'!I59 -> -1.9909028e-07 | F54: -9.475778895e-06 | G54: -1.160278803e-05 | H54: -1.993355592e-07 | J54: -1.84949568e-05 | K54: -0.0003158112424 | L54: -5.101721236e-05 | M54: -0.0006574125884 | N54: 2.467549356e-08
A55: 24.43935 | B55: ='DF raw data'!G60 -> -2.4586234e-06 | C55: ='DF raw data'!H60 -> -2.6071837e-06 | D55: ='DF raw data'!I60 -> -5.0215949e-06 | F55: -2.461652424e-06 | G55: -2.615894799e-06 | H55: -5.027781505e-06 | J55: -1.972615226e-05 | K55: -0.0003256772775 | L55: -5.232555215e-05 | M55: -0.0006835832133 | N55: 2.623950487e-08
A56: 24.9395 | B56: ='DF raw data'!G61 -> 2.7566375e-06 | C56: ='DF raw data'!H61 -> 1.0681229e-05 | D56: ='DF raw data'!I61 -> -6.0255607e-06 | F56: 2.760033677e-06 | G56: 1.071691703e-05 | H56: -6.032984191e-06 | J56: -1.834572142e-05 | K56: -0.0003348528901 | L56: -4.69654861e-05 | M56: -0.0007070730012 | N56: 2.751104741e-08
A57: 25.43965 | B57: ='DF raw data'!G62 -> -6.0185715e-07 | C57: ='DF raw data'!H62 -> -3.2370924e-06 | D57: ='DF raw data'!I62 -> -6.1371011e-06 | F57: -6.02598638e-07 | G57: -3.247908144e-06 | H57: -6.144662009e-06 | J57: -1.864711113e-05 | K57: -0.0003441792427 | L57: -4.858992736e-05 | M57: -0.0007313752534 | N57: 2.886580161e-08
A58: 25.9398 | B58: ='DF raw data'!G63 -> -5.9256608e-06 | C58: ='DF raw data'!H63 -> -5.8107694e-06 | D58: ='DF raw data'!I63 -> -5.5292676e-06 | F58: -5.932961214e-06 | G58: -5.830184291e-06 | H58: -5.536079658e-06 | J58: -2.161448168e-05 | K58: -0.0003549897257 | L58: -5.150589403e-05 | M58: -0.0007571359263 | N58: 3.042629108e-08
A59: 26.43995 | B59: ='DF raw data'!G64 -> -4.1730864e-06 | C59: ='DF raw data'!H64 -> -1.1065283e-06 | D59: ='DF raw data'!I64 -> -3.2579173e-06 | F59: -4.178227642e-06 | G59: -1.110225422e-06 | H59: -3.261931054e-06 | J59: -2.370422223e-05 | K59: -0.0003668453924 | L59: -5.206117327e-05 | M59: -0.0007831743221 | N59: 3.206290988e-08
A60: 26.9401 | B60: ='DF raw data'!G65 -> -3.83593e-07 | C60: ='DF raw data'!H65 -> 2.8442512e-06 | D60: ='DF raw data'!I65 -> 9.3459124e-07 | F60: -3.840655866e-07 | G60: 2.853754387e-06 | H60: 9.357426564e-07 | J60: -2.389631264e-05 | K60: -0.0003787971332 | L60: -5.063386802e-05 | M60: -0.0008084988512 | N60: 3.363079128e-08
A61: 27.44025 | B61: ='DF raw data'!G66 -> 2.1373371e-06 | C61: ='DF raw data'!H66 -> -1.1837826e-06 | D61: ='DF raw data'!I66 -> 2.1061889e-07 | F61: 2.139970299e-06 | G61: -1.187737844e-06 | H61: 2.108783725e-07 | J61: -2.282600649e-05 | K61: -0.0003902135604 | L61: -5.12279151e-05 | M61: -0.0008341204929 | N61: 3.5203926e-08
A62: 27.9404 | B62: ='DF raw data'!G67 -> 3.0664914e-06 | C62: ='DF raw data'!H67 -> -1.3664437e-06 | D62: ='DF raw data'!I67 -> -3.2713488e-06 | F62: 3.070269317e-06 | G62: -1.371009249e-06 | H62: -3.275379102e-06 | J62: -2.129041129e-05 | K62: -0.0004008619596 | L62: -5.191362538e-05 | M62: -0.0008600850926 | N62: 3.677855131e-08
A63: 28.44055 | B63: ='DF raw data'!G68 -> 3.6699157e-06 | C63: ='DF raw data'!H68 -> -3.2473661e-06 | D63: ='DF raw data'!I68 -> 1.13383e-07 | F63: 3.674437036e-06 | G63: -3.258216171e-06 | H63: 1.135226879e-07 | J63: -1.945264161e-05 | K63: -0.0004105911983 | L63: -5.354322219e-05 | M63: -0.0008868647352 | N63: 3.840167905e-08
A64: 28.9407 | B64: ='DF raw data'!G69 -> 6.5971353e-06 | C64: ='DF raw data'!H69 -> -1.3544347e-06 | D64: ='DF raw data'!I69 -> 8.488077e-07 | F64: 6.605262971e-06 | G64: -1.358960125e-06 | H64: 8.498534311e-07 | J64: -1.614901933e-05 | K64: -0.0004186681303 | L64: -5.42229061e-05 | M64: -0.0009139843217 | N64: 4.000261638e-08
A65: 29.44085 | B65: ='DF raw data'!G70 -> 7.6757524e-06 | C65: ='DF raw data'!H70 -> -2.0626674e-06 | D65: ='DF raw data'!I70 -> -1.72384e-06 | F65: 7.685208927e-06 | G65: -2.069559166e-06 | H65: -1.725963771e-06 | J65: -1.230526209e-05 | K65: -0.0004248226071 | L65: -5.525799612e-05 | M65: -0.0009416216085 | N65: 4.160552991e-08
A66: 29.941 | B66: ='DF raw data'!G71 -> 2.4331775e-06 | C66: ='DF raw data'!H71 -> -6.9546409e-06 | D66: ='DF raw data'!I71 -> -3.2648295e-06 | F66: 2.436175175e-06 | G66: -6.977877684e-06 | H66: -3.26885177e-06 | J66: -1.108680908e-05 | K66: -0.0004303676747 | L66: -5.874798164e-05 | M66: -0.0009710044115 | N66: 4.339318739e-08
A67: 30.44115 | B67: ='DF raw data'!G72 -> -1.5371525e-06 | C67: ='DF raw data'!H72 -> -8.9278451e-08 | D67: ='DF raw data'!I72 -> -1.3375594e-06 | F67: -1.539046272e-06 | G67: -8.957674736e-08 | H67: -1.339207273e-06 | J67: -1.185656307e-05 | K67: -0.0004362977347 | L67: -5.879278345e-05 | M67: -0.001000409622 | N67: 4.51923117e-08
A68: 30.9413 | B68: ='DF raw data'!G73 -> 1.0846952e-06 | C68: ='DF raw data'!H73 -> -1.343228e-06 | D68: ='DF raw data'!I73 -> 8.1619686e-07 | F68: 1.086031544e-06 | G68: -1.347715981e-06 | H68: 8.172024145e-07 | J68: -1.131338439e-05 | K68: -0.0004419561239 | L68: -5.94668436e-05 | M68: -0.001030151964 | N68: 4.702501042e-08
A69: 31.44145 | B69: ='DF raw data'!G74 -> 7.0249325e-06 | C69: ='DF raw data'!H74 -> -7.0556439e-06 | D69: ='DF raw data'!I74 -> -1.6266041e-06 | F69: 7.033587217e-06 | G69: -7.079218154e-06 | H69: -1.628608076e-06 | J69: -7.795535746e-06 | K69: -0.0004458550611 | L69: -6.300751456e-05 | M69: -0.001061665172 | N69: 4.904097366e-08
A70: 31.9416 | B70: ='DF raw data'!G75 -> 1.2229658e-05 | C70: ='DF raw data'!H75 -> -1.2278252e-05 | D70: ='DF raw data'!I75 -> -2.9683342e-06 | F70: 1.224472494e-05 | G70: -1.231927599e-05 | H70: -2.971991188e-06 | J70: -1.671336568e-06 | K70: -0.0004466909801 | L70: -6.916900044e-05 | M70: -0.001096260048 | N70: 5.143526373e-08
A71: 32.44175 | B71: ='DF raw data'!G76 -> 1.1195249e-05 | C71: ='DF raw data'!H76 -> -4.1676144e-06 | D71: ='DF raw data'!I76 -> 2.9327439e-06 | F71: 1.120904155e-05 | G71: =(1-$G$1*($B$2-$G$2))*C71*$M$2/$M$1 -> -4.181539196e-06 | H71: 2.93635704e-06 | J71: 3.934865562e-06 | K71: -0.0004447229571 | L71: -7.126039727e-05 | M71: -0.001131900936 | N71: 5.398279145e-08
A72: =A71+$B$1 -> 32.9419 | B72: ='DF raw data'!G77 -> 5.7124371e-06 | C72: ='DF raw data'!H77 -> -2.5708912e-06 | D72: ='DF raw data'!I77 -> 7.5133958e-06 | F72: 5.719474823e-06 | G72: -2.579481039e-06 | H72: 7.522652304e-06 | J72: =F72*$B$1+J71 -> 6.795460894e-06 | K72: =J72*$B$1+K71 -> -0.0004413242073 | L72: =G72*$B$1+L71 -> -7.255052471e-05 | M72: =L72*$B$1+M71 -> -0.001168187081 | N72: =(J72^2+L72^2)*$B$1+N71 -> 5.663846638e-08
A73: 33.44205 | B73: ='DF raw data'!G78 -> -2.0825e-06 | C73: ='DF raw data'!H78 -> 7.5626363e-06 | D73: ='DF raw data'!I78 -> 1.0252496e-06 | F73: -2.08506564e-06 | G73: 7.587904513e-06 | H73: 1.026512708e-06 | J73: 5.752615314e-06 | K73: -0.0004384470368 | L73: -6.875543427e-05 | M73: -0.001202575111 | N73: 5.90193816e-08
A74: 33.9422 | B74: ='DF raw data'!G79 -> -7.2209414e-06 | C74: ='DF raw data'!H79 -> 7.4405502e-06 | D74: ='DF raw data'!I79 -> 2.7912556e-06 | F74: -7.2298376e-06 | G74: 7.4654105e-06 | H74: 2.794694427e-06 | J74: 2.136612039e-06 | K74: -0.0004373784103 | L74: -6.502160921e-05 | M74: -0.001235095669 | N74: 6.113620384e-08
A75: 34.44235 | B75: ='DF raw data'!G80 -> -5.3320591e-06 | C75: ='DF raw data'!H80 -> 8.8211209e-06 | D75: ='DF raw data'!I80 -> -2.2128716e-06 | F75: -5.338628197e-06 | G75: 8.85059395e-06 | H75: -2.215597858e-06 | J75: -5.335028537e-07 | K75: -0.0004376452417 | L75: -6.059498465e-05 | M75: -0.00126540225 | N75: 6.297277304e-08
A76: 34.9425 | B76: ='DF raw data'!G81 -> -1.9836343e-06 | C76: ='DF raw data'!H81 -> 1.2387896e-05 | D76: ='DF raw data'!I81 -> -9.0980957e-06 | F76: -1.986078137e-06 | G76: 1.242928633e-05 | H76: -9.109304554e-06 | J76: -1.526839834e-06 | K76: -0.0004384088907 | L76: -5.437847709e-05 | M76: -0.001292599646 | N76: 6.445289195e-08
A77: 35.44265 | B77: ='DF raw data'!G82 -> 3.8517013e-07 | C77: ='DF raw data'!H82 -> -1.5461708e-06 | D77: ='DF raw data'!I82 -> -1.1652714e-05 | F77: 3.856446596e-07 | G77: -1.551336852e-06 | H77: -1.166707014e-05 | J77: -1.333959658e-06 | K77: -0.0004390760706 | L77: -5.515437822e-05 | M77: -0.001320185108 | N77: 6.597524096e-08
A78: 35.9428 | B78: ='DF raw data'!G83 -> 1.4070347e-06 | C78: ='DF raw data'!H83 -> -7.07339e-06 | D78: ='DF raw data'!I83 -> -1.1521004e-05 | F78: 1.408768167e-06 | G78: -7.097023547e-06 | H78: -1.153519788e-05 | J78: -6.293642591e-07 | K78: -0.0004393908471 | L78: -5.870395454e-05 | M78: -0.001349545891 | N78: 6.769903313e-08
A79: 36.44295 | B79: ='DF raw data'!G84 -> 3.408054e-06 | C79: ='DF raw data'!H84 -> -2.9986575e-06 | D79: ='DF raw data'!I84 -> -8.235822e-06 | F79: 3.412252723e-06 | G79: -3.008676588e-06 | H79: -8.245968533e-06 | J79: 1.07727394e-06 | K79: -0.0004388520485 | L79: -6.020874414e-05 | M79: -0.001379659294 | N79: 6.951270377e-08
A80: 36.9431 | B80: ='DF raw data'!G85 -> 3.4282084e-06 | C80: ='DF raw data'!H85 -> 5.1278571e-06 | D80: ='DF raw data'!I85 -> -2.5821264e-06 | F80: 3.432431953e-06 | G80: 5.14499025e-06 | H80: -2.58530758e-06 | J80: 2.794004781e-06 | K80: -0.0004374546271 | L80: -5.763547726e-05 | M80: -0.001408485678 | N80: 7.117803057e-08
A81: 37.44325 | B81: ='DF raw data'!G86 -> -1.833444e-06 | C81: ='DF raw data'!H86 -> -3.4950069e-06 | D81: ='DF raw data'!I86 -> -1.0688874e-06 | F81: -1.835702803e-06 | G81: -3.506684386e-06 | H81: -1.070204269e-06 | J81: 1.875878024e-06 | K81: -0.0004365164067 | L81: -5.938934546e-05 | M81: -0.001438189259 | N81: 7.294386679e-08
A82: 37.9434 | B82: ='DF raw data'!G87 -> -8.8934075e-06 | C82: ='DF raw data'!H87 -> -2.5436718e-06 | D82: ='DF raw data'!I87 -> 1.2274339e-06 | F82: -8.904364178e-06 | G82: -2.552170693e-06 | H82: 1.228946099e-06 | J82: -2.577639719e-06 | K82: -0.0004378056132 | L82: -6.066581363e-05 | M82: -0.001468531266 | N82: 7.478791243e-08
A83: 38.44355 | B83: ='DF raw data'!G88 -> -1.11749e-05 | C83: ='DF raw data'!H88 -> -1.5807279e-06 | D83: ='DF raw data'!I88 -> 6.1114582e-07 | F83: -1.118866748e-05 | G83: -1.586009414e-06 | H83: 6.118987517e-07 | J83: -8.173651758e-06 | K83: -0.0004418936651 | L83: -6.145905624e-05 | M83: -0.001499270013 | N83: 7.671050112e-08
A84: 38.9437 | B84: ='DF raw data'!G89 -> -8.5198162e-06 | C84: ='DF raw data'!H89 -> 6.9068415e-06 | D84: ='DF raw data'!I89 -> 7.5935708e-07 | F84: -8.530312614e-06 | G84: 6.929918577e-06 | H84: 7.602926079e-07 | J84: -1.244008761e-05 | K84: -0.0004481155749 | L84: -5.799305746e-05 | M84: -0.001528275241 | N84: 7.847000406e-08
A85: 39.44385 | B85: ='DF raw data'!G90 -> -2.1886271e-06 | C85: ='DF raw data'!H90 -> -9.0691964e-07 | D85: ='DF raw data'!I90 -> -9.9280999e-07 | F85: -2.191323489e-06 | G85: -9.099498318e-07 | H85: -9.940331319e-07 | J85: -1.353607805e-05 | K85: -0.0004548856444 | L85: -5.844816887e-05 | M85: -0.001557508092 | N85: 8.02702509e-08
A86: 39.944 | B86: ='DF raw data'!G91 -> 2.682481e-06 | C86: ='DF raw data'!H91 -> -4.0316504e-06 | D86: ='DF raw data'!I91 -> 9.8018234e-07 | F86: 2.685785817e-06 | G86: -4.045120914e-06 | H86: 9.813899246e-07 | J86: -1.219278228e-05 | K86: -0.0004609838644 | L86: -6.04713361e-05 | M86: -0.001587752831 | N86: 8.217354493e-08
A87: 40.44415 | B87: ='DF raw data'!G92 -> 1.2426999e-06 | C87: ='DF raw data'!H92 -> -6.0350675e-07 | D87: ='DF raw data'!I92 -> 4.3329874e-06 | F87: =(1-$G$1*($B$2-$G$2))*B87 -> 1.244230906e-06 | G87: -6.055231814e-07 | H87: 4.33832564e-06 | J87: -1.157048019e-05 | K87: -0.0004667708401 | L87: -6.077418852e-05 | M87: -0.001618149042 | N87: 8.408780804e-08
A88: 40.9443 | B88: ='DF raw data'!G93 -> -3.7766631e-06 | C88: ='DF raw data'!H93 -> 2.3912655e-06 | D88: ='DF raw data'!I93 -> 8.3953146e-06 | F88: -3.781315949e-06 | G88: 2.399255175e-06 | H88: 8.405657628e-06 | J88: -1.346170536e-05 | K88: -0.000473503712 | L88: -5.957420104e-05 | M88: -0.001647945078 | N88: 8.595351905e-08
A89: 41.44445 | B89: ='DF raw data'!G94 -> -6.4639362e-06 | C89: ='DF raw data'!H94 -> 9.8039454e-06 | D89: ='DF raw data'!I94 -> 1.1028658e-05 | F89: -6.471899769e-06 | G89: 9.836702255e-06 | H89: 1.104224531e-05 | J89: -1.669862603e-05 | K89: -0.0004818555298 | L89: -5.465437441e-05 | M89: -0.001675280464 | N89: 8.758698132e-08
A90: 41.9446 | B90: ='DF raw data'!G95 -> -4.8618398e-07 | C90: ='DF raw data'!H95 -> -2.1480598e-06 | D90: ='DF raw data'!I95 -> -5.9188167e-08 | F90: -4.867829587e-07 | G90: -2.155236878e-06 | H90: -5.926108682e-08 | J90: -1.694209053e-05 | K90: -0.0004903291164 | L90: -5.573231613e-05 | M90: -0.001703154981 | N90: 8.928405304e-08
A91: 42.44475 | B91: ='DF raw data'!G96 -> 5.4760849e-06 | C91: ='DF raw data'!H96 -> -8.120528e-06 | D91: ='DF raw data'!I96 -> -9.4371262e-06 | F91: 5.482831437e-06 | G91: -8.147660235e-06 | H91: -9.448752739e-06 | J91: -1.419985239e-05 | K91: -0.0004974311726 | L91: -5.98073684e-05 | M91: -0.001733067637 | N91: 9.117389838e-08
A92: 42.9449 | B92: ='DF raw data'!G97 -> 1.195508e-06 | C92: ='DF raw data'!H97 -> 1.3150413e-06 | D92: ='DF raw data'!I97 -> -2.4905366e-06 | F92: 1.196980866e-06 | G92: 1.319435104e-06 | H92: -2.493604941e-06 | J92: -1.360118241e-05 | K92: -0.000504233804 | L92: -5.914745293e-05 | M92: -0.001762650235 | N92: 9.301615757e-08
A93: 43.44505 | B93: ='DF raw data'!G98 -> -8.5173424e-06 | C93: ='DF raw data'!H98 -> -8.5621895e-07 | D93: ='DF raw data'!I98 -> 7.651639e-06 | F93: -8.527835766e-06 | G93: -8.590797411e-07 | H93: 7.661065819e-06 | J93: -1.786637946e-05 | K93: -0.0005131696736 | L93: -5.957712167e-05 | M93: -0.001792447733 | N93: 9.495105834e-08
A94: 43.9452 | B94: ='DF raw data'!G99 -> -1.3428235e-05 | C94: ='DF raw data'!H99 -> -1.5593803e-06 | D94: ='DF raw data'!I99 -> 4.921525e-06 | F94: -1.344477859e-05 | G94: -1.564590487e-06 | H94: 4.927588319e-06 | J94: -2.459078547e-05 | K94: -0.000525468755 | L94: -6.03596516e-05 | M94: -0.001822636612 | N94: 9.707569267e-08
A95: 44.44535 | B95: ='DF raw data'!G100 -> -1.1170098e-05 | C95: ='DF raw data'!H100 -> -1.5659177e-06 | D95: ='DF raw data'!I100 -> 1.8949739e-06 | F95: -1.118385956e-05 | G95: -1.57114973e-06 | H95: 1.897308508e-06 | J95: -3.018439283e-05 | K95: -0.0005405654791 | L95: -6.114546214e-05 | M95: -0.001853218515 | N95: 9.940132271e-08
A96: 44.9455 | B96: ='DF raw data'!G101 -> -5.4502061e-06 | C96: ='DF raw data'!H101 -> 8.1697299e-06 | D96: ='DF raw data'!I101 -> 2.975803e-06 | F96: -5.456920754e-06 | G96: 8.197026528e-06 | H96: 2.979469189e-06 | J96: -3.291367175e-05 | K96: -0.000557027252 | L96: -5.704571932e-05 | M96: -0.001881749932 | N96: 1.015707353e-07
A97: 45.44565 | B97: ='DF raw data'!G102 -> 2.9670437e-06 | C97: ='DF raw data'!H102 -> 9.1245347e-06 | D97: ='DF raw data'!I102 -> -3.2320149e-06 | F97: 2.970699098e-06 | G97: 9.155021514e-06 | H97: -3.235996742e-06 | J97: -3.142787659e-05 | K97: -0.0005727459045 | L97: -5.246683531e-05 | M97: -0.00190799122 | N97: 1.034415365e-07
A98: 45.9458 | B98: ='DF raw data'!G103 -> 5.0934132e-06 | C98: ='DF raw data'!H103 -> -7.118494e-07 | D98: ='DF raw data'!I103 -> -3.5252506e-06 | F98: 5.099688285e-06 | G98: -7.142278248e-07 | H98: -3.529593709e-06 | J98: -2.88772675e-05 | K98: -0.0005871888698 | L98: -5.282405635e-05 | M98: -0.001934411171 | N98: 1.052542189e-07
A99: 46.44595 | B99: ='DF raw data'!G104 -> 1.9967656e-06 | C99: ='DF raw data'!H104 -> -3.2706062e-08 | D99: ='DF raw data'!I104 -> 3.4950008e-06 | F99: 1.999225615e-06 | G99: -3.28153392e-08 | H99: 3.499306641e-06 | J99: -2.787735481e-05 | K99: -0.0006011317288 | L99: -5.284046895e-05 | M99: -0.001960839332 | N99: 1.070393853e-07
A100: 46.9461 | B100: ='DF raw data'!G105 -> 1.2493065e-06 | C100: ='DF raw data'!H105 -> 1.0160063e-05 | D100: ='DF raw data'!I105 -> 1.0174039e-05 | F100: 1.250845646e-06 | G100: 1.019400971e-05 | H100: 1.018657342e-05 | J100: -2.725174436e-05 | K100: -0.0006147616888 | L100: -4.774193499e-05 | M100: -0.001984717461 | N100: 1.085508135e-07
A101: 47.44625 | B101: ='DF raw data'!G106 -> 2.0959515e-06 | C101: ='DF raw data'!H106 -> 5.6519589e-06 | D101: ='DF raw data'!I106 -> 9.893638e-06 | F101: 2.098533712e-06 | G101: 5.670843174e-06 | H101: 9.905826962e-06 | J101: -2.620216272e-05 | K101: -0.0006278667004 | L101: -4.490566277e-05 | M101: -0.002007177028 | N101: 1.099027549e-07
A102: 47.9464 | B102: ='DF raw data'!G107 -> 6.8253854e-07 | C102: ='DF raw data'!H107 -> -1.0307401e-06 | D102: ='DF raw data'!I107 -> 4.8109014e-06 | F102: 6.833794275e-07 | G102: -1.034184e-06 | H102: 4.816828431e-06 | J102: -2.58603705e-05 | K102: -0.0006408007648 | L102: -4.54229099e-05 | M102: -0.002029895296 | N102: 1.112691645e-07
A103: 48.44655 | B103: ='DF raw data'!G108 -> 9.7289285e-07 | C103: ='DF raw data'!H108 -> 1.4896989e-06 | D103: ='DF raw data'!I108 -> 1.2266336e-06 | F103: 9.74091454e-07 | G103: 1.494676269e-06 | H103: 1.228144813e-06 | J103: -2.537317866e-05 | K103: -0.0006534911601 | L103: -4.467534757e-05 | M103: -0.002052239671 | N103: 1.125894029e-07
A104: 48.9467 | B104: ='DF raw data'!G109 -> 1.9180688e-06 | C104: ='DF raw data'!H109 -> 4.472196e-06 | D104: ='DF raw data'!I109 -> -3.7742338e-06 | F104: 1.920431861e-06 | G104: 4.487138461e-06 | H104: -3.778883656e-06 | J104: -2.441267466e-05 | K104: -0.0006657011593 | L104: -4.243110526e-05 | M104: -0.002073461589 | N104: 1.13787951e-07
A105: 49.44685 | B105: ='DF raw data'!G110 -> -5.8062591e-07 | C105: ='DF raw data'!H110 -> -5.7455389e-07 | D105: ='DF raw data'!I110 -> -2.9924904e-06 | F105: -5.813412411e-07 | G105: -5.764735843e-07 | H105: -2.996177148e-06 | J105: -2.470343249e-05 | K105: -0.0006780565811 | L105: -4.271942853e-05 | M105: -0.002094827711 | N105: 1.150059209e-07
A106: 49.947 | B106: ='DF raw data'!G111 -> 1.2362243e-06 | C106: ='DF raw data'!H111 -> 7.6857896e-06 | D106: ='DF raw data'!I111 -> 1.9617237e-06 | F106: 1.237747328e-06 | G106: 7.711469291e-06 | H106: 1.964140544e-06 | J106: -2.408437316e-05 | K106: -0.0006901023803 | L106: -3.886253716e-05 | M106: -0.002114264809 | N106: 1.160514114e-07
A107: 50.44715 | B107: ='DF raw data'!G112 -> 1.5688374e-06 | C107: ='DF raw data'!H112 -> 7.0596157e-06 | D107: ='DF raw data'!I112 -> 3.9376555e-06 | F107: 1.570770208e-06 | G107: 7.083203225e-06 | H107: 3.942506692e-06 | J107: -2.329875244e-05 | K107: -0.0007017552513 | L107: -3.531987307e-05 | M107: -0.002131930043 | N107: 1.169468426e-07
A108: 50.9473 | B108: ='DF raw data'!G113 -> -3.0463607e-06 | C108: ='DF raw data'!H113 -> 4.0333539e-06 | D108: ='DF raw data'!I113 -> 3.0908213e-06 | F108: -3.050113816e-06 | G108: 4.046830106e-06 | H108: 3.094629192e-06 | J108: -2.482426687e-05 | K108: -0.0007141711084 | L108: -3.329585099e-05 | M108: -0.002148582963 | N108: 1.178095302e-07
A109: 51.44745 | B109: ='DF raw data'!G114 -> -8.0651529e-07 | C109: ='DF raw data'!H114 -> 1.9638838e-07 | D109: ='DF raw data'!I114 -> 1.4936467e-06 | F109: -8.075089168e-07 | G109: 1.970445511e-07 | H109: 1.495486873e-06 | J109: -2.522814245e-05 | K109: -0.0007267889638 | L109: -3.319729916e-05 | M109: -0.002165186592 | N109: 1.186790509e-07
A110: 51.9476 | B110: ='DF raw data'!G115 -> 2.8579043e-06 | C110: ='DF raw data'!H115 -> -1.2728969e-05 | D110: ='DF raw data'!I115 -> -8.1964214e-07 | F110: 2.861425238e-06 | G110: -1.277149892e-05 | H110: -8.206519391e-07 | J110: -2.379700062e-05 | K110: -0.0007386910337 | L110: -3.958496434e-05 | M110: -0.002184985012 | N110: 1.197460042e-07
A111: 52.44775 | B111: ='DF raw data'!G116 -> 3.5384828e-06 | C111: ='DF raw data'!H116 -> -9.9999825e-06 | D111: ='DF raw data'!I116 -> 1.8073132e-06 | F111: 3.542842211e-06 | G111: -1.003339435e-05 | H111: 1.80953981e-06 | J111: -2.202504809e-05 | K111: -0.0007497068615 | L111: -4.460316653e-05 | M111: -0.002207293286 | N111: 1.20983648e-07
A112: 52.9479 | B112: ='DF raw data'!G117 -> 6.046258e-06 | C112: ='DF raw data'!H117 -> 6.2985469e-06 | D112: ='DF raw data'!I117 -> 4.6086443e-06 | F112: 6.05370699e-06 | G112: 6.319591549e-06 | H112: 4.61432215e-06 | J112: -1.899728654e-05 | K112: -0.0007592083544 | L112: -4.144242282e-05 | M112: -0.002228020714 | N112: 1.220231454e-07
A113: 53.44805 | B113: ='DF raw data'!G118 -> 4.371318e-06 | C113: ='DF raw data'!H118 -> 1.0357001e-05 | D113: ='DF raw data'!I118 -> 4.9920727e-06 | F113: 4.376703464e-06 | G113: 1.039160572e-05 | H113: 4.998222934e-06 | J113: -1.68082783e-05 | K113: -0.0007676150147 | L113: -3.624506121e-05 | M113: -0.002246148681 | N113: 1.228214962e-07
A114: 53.9482 | B114: ='DF raw data'!G119 -> -2.4685769e-06 | C114: ='DF raw data'!H119 -> 8.0391046e-06 | D114: ='DF raw data'!I119 -> -1.1066205e-06 | F114: -2.471618187e-06 | G114: 8.065964784e-06 | H114: -1.107983856e-06 | J114: -1.804445813e-05 | K114: -0.0007766399505 | L114: -3.221086893e-05 | M114: -0.002262258947 | N114: 1.23503272e-07
A115: 54.44835 | B115: ='DF raw data'!G120 -> -1.8865148e-06 | C115: ='DF raw data'!H120 -> -6.0911105e-07 | D115: ='DF raw data'!I120 -> -1.0232235e-06 | F115: -1.888838986e-06 | G115: -6.111462064e-07 | H115: -1.024484111e-06 | J115: -1.898916095e-05 | K115: -0.0007861373793 | L115: -3.25165337e-05 | M115: -0.002278522092 | N115: 1.242124412e-07
A116: 54.9485 | B116: ='DF raw data'!G121 -> 3.275748e-06 | C116: ='DF raw data'!H121 -> 5.3222476e-07 | D116: ='DF raw data'!I121 -> -1.7745158e-07 | F116: 3.279783722e-06 | G116: 5.340030246e-07 | H116: -1.776702003e-07 | J116: -1.734877712e-05 | K116: -0.0007948143702 | L116: -3.224945209e-05 | M116: -0.002294651655 | N116: 1.24883146e-07
A117: 55.44865 | B117: ='DF raw data'!G122 -> 5.0601038e-06 | C117: ='DF raw data'!H122 -> 9.9495014e-07 | D117: ='DF raw data'!I122 -> -8.5116244e-06 | F117: 5.066337848e-06 | G117: 9.982744585e-07 | H117: -8.522110721e-06 | J117: -1.481484825e-05 | K117: -0.0008022240166 | L117: -3.175016512e-05 | M117: -0.0023105315 | N117: 1.254971065e-07
A118: 55.9488 | B118: ='DF raw data'!G123 -> 2.2060221e-06 | C118: ='DF raw data'!H123 -> 5.6971777e-07 | D118: ='DF raw data'!I123 -> -1.4906333e-05 | F118: 2.208739919e-06 | G118: 5.716213059e-07 | H118: -1.49246976e-05 | J118: -1.371014698e-05 | K118: -0.0008090811466 | L118: -3.146426872e-05 | M118: -0.002326268354 | N118: 1.260862674e-07
A119: 56.44895 | B119: ='DF raw data'!G124 -> -2.6418611e-06 | C119: ='DF raw data'!H124 -> 1.1642839e-05 | D119: ='DF raw data'!I124 -> -7.3865285e-06 | F119: -2.645115873e-06 | G119: 1.168173995e-05 | H119: -7.395628703e-06 | J119: -1.503310168e-05 | K119: -0.0008165999524 | L119: -2.562164649e-05 | M119: -0.002339083021 | N119: 1.265276312e-07
A120: 56.9491 | B120: ='DF raw data'!G125 -> -3.6463653e-06 | C120: ='DF raw data'!H125 -> 1.2737609e-05 | D120: ='DF raw data'!I125 -> -1.5694296e-06 | F120: -3.650857622e-06 | G120: 1.278016779e-05 | H120: -1.571363137e-06 | J120: -1.685907812e-05 | K120: -0.0008250320203 | L120: -1.922964557e-05 | M120: -0.002348700728 | N120: 1.268547332e-07
A121: 57.44925 | B121: ='DF raw data'!G126 -> -1.7403991e-06 | C121: ='DF raw data'!H126 -> 1.891048e-06 | D121: ='DF raw data'!I126 -> -5.5863693e-06 | F121: -1.742543272e-06 | G121: 1.897366353e-06 | H121: -5.593251707e-06 | J121: -1.773061114e-05 | K121: -0.0008338999855 | L121: -1.828067779e-05 | M121: -0.002357843809 | N121: 1.271791093e-07
A122: 57.9494 | B122: ='DF raw data'!G127 -> 2.2490085e-06 | C122: ='DF raw data'!H127 -> -1.062749e-05 | D122: ='DF raw data'!I127 -> -4.3674281e-06 | F122: 2.251779278e-06 | G122: -1.066299847e-05 | H122: -4.372808771e-06 | J122: -1.660438373e-05 | K122: -0.000842204668 | L122: -2.361377648e-05 | M122: -0.002369654239 | N122: 1.275958923e-07
A123: 58.44955 | B123: ='DF raw data'!G128 -> 4.3745777e-06 | C123: ='DF raw data'!H128 -> -1.6761285e-06 | D123: ='DF raw data'!I128 -> -4.597733e-07 | F123: 4.37996718e-06 | G123: -1.681728766e-06 | H123: -4.603397407e-07 | J123: -1.441374315e-05 | K123: -0.0008494137016 | L123: -2.445489312e-05 | M123: -0.002381885354 | N123: 1.279989121e-07
A124: 58.9497 | B124: ='DF raw data'!G129 -> 2.4222345e-06 | C124: ='DF raw data'!H129 -> 3.0138203e-08 | D124: ='DF raw data'!I129 -> -2.3891826e-06 | F124: 2.425218693e-06 | G124: 3.023890049e-08 | H124: -2.392126073e-06 | J124: -1.320077002e-05 | K124: -0.0008560160668 | L124: -2.443976913e-05 | M124: -0.002394108904 | N124: 1.283848092e-07
A125: 59.44985 | B125: ='DF raw data'!G130 -> 6.8921787e-07 | C125: ='DF raw data'!H130 -> -7.0240226e-06 | D125: ='DF raw data'!I130 -> -8.8801315e-08 | F125: 6.900669864e-07 | G125: -7.047491201e-06 | H125: -8.891071822e-08 | J125: -1.285563302e-05 | K125: -0.0008624458116 | L125: -2.796457186e-05 | M125: -0.002408095385 | N125: 1.288585935e-07
A126: 59.95 | B126: ='DF raw data'!G131 -> -1.5047162e-06 | C126: ='DF raw data'!H131 -> -2.2644078e-06 | D126: ='DF raw data'!I131 -> 6.2865383e-06 | F126: -1.50657001e-06 | G126: -2.271973619e-06 | H126: 6.294283315e-06 | J126: -1.360914401e-05 | K126: -0.000869252425 | L126: -2.910089946e-05 | M126: -0.0024226502 | N126: 1.293747839e-07
A127: 60.45015 | B127: ='DF raw data'!G132 -> -4.1433132e-06 | C127: ='DF raw data'!H132 -> 3.1887596e-06 | D127: ='DF raw data'!I132 -> 5.0022445e-06 | F127: -4.148417762e-06 | G127: 3.199413855e-06 | H127: 5.008407265e-06 | J127: -1.568397515e-05 | K127: -0.0008770967652 | L127: -2.750071262e-05 | M127: -0.002436404681 | N127: 1.298760724e-07
A128: 60.9503 | B128: ='DF raw data'!G133 -> -3.3492006e-06 | C128: ='DF raw data'!H133 -> -6.1399337e-06 | D128: ='DF raw data'!I133 -> 3.8220051e-07 | F128: -3.353326815e-06 | G128: -6.160448392e-06 | H128: 3.82671381e-07 | J128: -1.736114156e-05 | K128: -0.0008857799401 | L128: -3.058186089e-05 | M128: -0.002451700199 | N128: 1.304945876e-07
A129: 61.45045 | B129: ='DF raw data'!G134 -> -2.3087096e-06 | C129: ='DF raw data'!H134 -> -7.9279916e-06 | D129: ='DF raw data'!I134 -> 9.9642227e-07 | F129: -2.31155393e-06 | G129: -7.954480535e-06 | H129: 9.976498622e-07 | J129: -1.851726526e-05 | K129: -0.0008950413503 | L129: -3.456029432e-05 | M129: -0.00246898553 | N129: 1.312634698e-07
A130: 61.9506 | B130: ='DF raw data'!G135 -> -4.8433913e-06 | C130: ='DF raw data'!H135 -> -1.0961201e-06 | D130: ='DF raw data'!I135 -> 1.7313813e-06 | F130: -4.849358358e-06 | G130: -1.099782447e-06 | H130: 1.733514362e-06 | J130: -2.094267184e-05 | K130: -0.0009055158276 | L130: -3.511035052e-05 | M130: -0.002486545972 | N130: 1.320993866e-07
A131: 62.45075 | B131: ='DF raw data'!G136 -> -7.4643658e-06 | C131: ='DF raw data'!H136 -> 3.037587e-06 | D131: ='DF raw data'!I136 -> -4.4758544e-06 | F131: -7.473561899e-06 | G131: 3.047736158e-06 | H131: -4.481368653e-06 | J131: -2.468057382e-05 | K131: -0.0009178598166 | L131: -3.358602528e-05 | M131: -0.002503344023 | N131: 1.32968223e-07
A132: 62.9509 | B132: ='DF raw data'!G137 -> -3.3885199e-06 | C132: ='DF raw data'!H137 -> 1.8731527e-07 | D132: ='DF raw data'!I137 -> -6.6658158e-06 | F132: -3.392694557e-06 | G132: 1.879411261e-07 | H132: -6.674028085e-06 | J132: -2.637743e-05 | K132: -0.0009310524883 | L132: -3.349202652e-05 | M132: -0.00252009506 | N132: 1.33877238e-07
A133: 63.45105 | B133: ='DF raw data'!G138 -> 1.6875811e-06 | C133: ='DF raw data'!H138 -> 1.9348111e-06 | D133: ='DF raw data'!I138 -> -4.7438571e-06 | F133: 1.6896602e-06 | G133: 1.941275674e-06 | H133: -4.749701532e-06 | J133: -2.553234646e-05 | K133: -0.0009438224913 | L133: -3.252109749e-05 | M133: -0.002536360487 | N133: 1.347322557e-07
A134: 63.9512 | B134: ='DF raw data'!G139 -> 4.8141652e-07 | C134: ='DF raw data'!H139 -> 7.1203253e-06 | D134: ='DF raw data'!I139 -> -4.4401149e-06 | F134: 4.820096252e-07 | G134: 7.144115667e-06 | H134: -4.445585122e-06 | J134: -2.529126934e-05 | K134: -0.0009564719197 | L134: -2.894796804e-05 | M134: -0.002550838813 | N134: 1.354712939e-07
A135: 64.45135 | B135: ='DF raw data'!G140 -> -5.1000434e-06 | C135: ='DF raw data'!H140 -> -4.1922981e-06 | D135: ='DF raw data'!I140 -> 2.3350906e-07 | F135: -5.106326653e-06 | G135: =(1-$G$1*($B$2-$G$2))*C135*$M$2/$M$1 -> -4.206305369e-06 | H135: 2.337967432e-07 | J135: -2.784519862e-05 | K135: -0.0009703986958 | L135: -3.105175167e-05 | M135: -0.002566369346 | N135: 1.36341338e-07
A136: =A135+$B$1 -> 64.9515 | B136: ='DF raw data'!G141 -> -5.9550994e-06 | C136: ='DF raw data'!H141 -> -4.3359983e-06 | D136: ='DF raw data'!I141 -> 6.2646523e-06 | F136: -5.962436082e-06 | G136: -4.350485699e-06 | H136: 6.272370352e-06 | J136: =F136*$B$1+J135 -> -3.082731102e-05 | K136: =J136*$B$1+K135 -> -0.0009858169754 | L136: =G136*$B$1+L135 -> -3.322764709e-05 | M136: =L136*$B$1+M135 -> -0.002582988154 | N136: =(J136^2+L136^2)*$B$1+N135 -> 1.37368846e-07
A137: 65.45165 | B137: ='DF raw data'!G142 -> 9.0394593e-07 | C137: ='DF raw data'!H142 -> 6.4809424e-06 | D137: ='DF raw data'!I142 -> 7.7874083e-06 | F137: 9.050595914e-07 | G137: 6.502596467e-06 | H137: 7.797002387e-06 | J137: -3.037464547e-05 | K137: -0.001001008854 | L137: -2.997537347e-05 | M137: -0.002597980337 | N137: 1.382796902e-07
A138: 65.9518 | B138: ='DF raw data'!G143 -> 3.4430223e-06 | C138: ='DF raw data'!H143 -> 5.1953716e-06 | D138: ='DF raw data'!I143 -> 7.5778898e-06 | F138: 3.447264103e-06 | G138: 5.212730329e-06 | H138: 7.58722576e-06 | J138: -2.865049633e-05 | K138: -0.0010153384 | L138: -2.73682264e-05 | M138: -0.002611668556 | N138: 1.390648611e-07
A139: 66.45195 | B139: ='DF raw data'!G144 -> -1.2716819e-06 | C139: ='DF raw data'!H144 -> 4.5896118e-06 | D139: ='DF raw data'!I144 -> 4.249925e-06 | F139: -1.273248612e-06 | G139: 4.60494657e-06 | H139: 4.255160908e-06 | J139: -2.928731162e-05 | K139: -0.001029986449 | L139: -2.506506237e-05 | M139: -0.002624204847 | N139: 1.39808086e-07
A140: 66.9521 | B140: ='DF raw data'!G145 -> -2.7104006e-06 | C140: ='DF raw data'!H145 -> 2.4051426e-06 | D140: ='DF raw data'!I145 -> 5.5914516e-06 | F140: -2.713739814e-06 | G140: 2.413178641e-06 | H140: 5.598340268e-06 | J140: -3.064458859e-05 | K140: -0.00104531334 | L140: -2.385811107e-05 | M140: -0.002636137481 | N140: 1.405624623e-07
A141: 67.45225 | B141: ='DF raw data'!G146 -> -1.7138241e-07 | C141: ='DF raw data'!H146 -> -9.0187596e-06 | D141: ='DF raw data'!I146 -> 7.0547776e-06 | F141: -1.715935531e-07 | G141: -9.048892999e-06 | H141: 7.063469086e-06 | J141: -3.07304111e-05 | K141: -0.001060683155 | L141: -2.838391491e-05 | M141: -0.002650333696 | N141: 1.414377272e-07
A142: 67.9524 | B142: ='DF raw data'!G147 -> 2.7530317e-07 | C142: ='DF raw data'!H147 -> -8.0687578e-06 | D142: ='DF raw data'!I147 -> 9.651043e-06 | F142: 2.756423435e-07 | G142: -8.095717061e-06 | H142: 9.662933085e-06 | J142: -3.059254859e-05 | K142: -0.001075984018 | L142: -3.24329878e-05 | M142: -0.002666555055 | N142: 1.424319268e-07
A143: 68.45255 | B143: ='DF raw data'!G148 -> 6.7438947e-07 | C143: ='DF raw data'!H148 -> -9.9371382e-06 | D143: ='DF raw data'!I148 -> 1.578194e-05 | F143: 6.752203178e-07 | G143: -9.970340077e-06 | H143: 1.580138335e-05 | J143: -3.025483714e-05 | K143: -0.001091115975 | L143: -3.741965339e-05 | M143: -0.002685270494 | N143: 1.435900669e-07
A144: 68.9527 | B144: ='DF raw data'!G149 -> 1.9499084e-06 | C144: ='DF raw data'!H149 -> -1.0030138e-05 | D144: ='DF raw data'!I149 -> 1.0259881e-05 | F144: 1.952310687e-06 | G144: -1.006365061e-05 | H144: 1.027252117e-05 | J144: -2.927838895e-05 | K144: -0.001105759561 | L144: -4.245298824e-05 | M144: -0.002706503356 | N144: 1.44920206e-07
A145: 69.45285 | B145: ='DF raw data'!G150 -> 2.7572487e-06 | C145: ='DF raw data'!H150 -> 3.2482687e-06 | D145: ='DF raw data'!I150 -> 3.5949579e-06 | F145: 2.76064563e-06 | G145: 3.259121786e-06 | H145: 3.599386888e-06 | J145: -2.789765204e-05 | K145: -0.001119712572 | L145: -4.082293847e-05 | M145: -0.002726920949 | N145: 1.461429684e-07
A146: 69.953 | B146: ='DF raw data'!G151 -> 1.0785543e-06 | C146: ='DF raw data'!H151 -> 8.5633392e-06 | D146: ='DF raw data'!I151 -> -5.1206207e-06 | F146: 1.079883079e-06 | G146: 8.591950952e-06 | H146: -5.126929305e-06 | J146: -2.735754852e-05 | K146: -0.00113339545 | L146: -3.652567421e-05 | M146: -0.002745189265 | N146: 1.471845609e-07
A147: 70.45315 | B147: ='DF raw data'!G152 -> -1.964353e-06 | C147: ='DF raw data'!H152 -> 8.9034376e-07 | D147: ='DF raw data'!I152 -> -3.9859497e-06 | F147: -1.966773083e-06 | G147: 8.933185686e-07 | H147: -3.99086039e-06 | J147: -2.834123008e-05 | K147: -0.001147570316 | L147: -3.607888092e-05 | M147: -0.002763234117 | N147: 1.482373321e-07
A148: 70.9533 | B148: ='DF raw data'!G153 -> -3.1670397e-06 | C148: ='DF raw data'!H153 -> -3.2847263e-06 | D148: ='DF raw data'!I153 -> -1.8297197e-06 | F148: -3.170941493e-06 | G148: -3.295701198e-06 | H148: -1.831973915e-06 | J148: -2.992717647e-05 | K148: -0.001162538393 | L148: -3.772722588e-05 | M148: -0.002782103389 | N148: 1.493971697e-07
A149: 71.45345 | B149: ='DF raw data'!G154 -> 1.437943e-06 | C149: ='DF raw data'!H154 -> 7.6625594e-07 | D149: ='DF raw data'!I154 -> -3.6605688e-06 | F149: 1.439714546e-06 | G149: 7.688161475e-07 | H149: -3.665078621e-06 | J149: -2.920710324e-05 | K149: -0.001177146326 | L149: -3.734270248e-05 | M149: -0.002800780342 | N149: 1.50521273e-07
A150: 71.9536 | B150: ='DF raw data'!G155 -> 3.2171474e-06 | C150: ='DF raw data'!H155 -> 2.5752618e-06 | D150: ='DF raw data'!I155 -> -6.1690571e-06 | F150: 3.221110926e-06 | G150: 2.583866242e-06 | H150: -6.176657378e-06 | J150: -2.759606461e-05 | K150: -0.001190948498 | L150: -3.605038178e-05 | M150: -0.00281881094 | N150: 1.515521686e-07
A151: 72.45375 | B151: ='DF raw data'!G156 -> -3.8885382e-06 | C151: ='DF raw data'!H156 -> -1.4753211e-06 | D151: ='DF raw data'!I156 -> -6.4747346e-06 | F151: =(1-$G$1*($B$2-$G$2))*B151 -> -3.893328879e-06 | G151: -1.48025043e-06 | H151: -6.482711473e-06 | J151: -2.954331304e-05 | K151: -0.001205724586 | L151: -3.679072903e-05 | M151: -0.002837211824 | N151: 1.526656851e-07
A152: 72.9539 | B152: ='DF raw data'!G157 -> -7.341082e-06 | C152: ='DF raw data'!H157 -> -3.9982938e-06 | D152: ='DF raw data'!I157 -> -5.8365458e-06 | F152: -7.350126213e-06 | G152: -4.011652863e-06 | H152: -5.843736424e-06 | J152: -3.321947867e-05 | K152: -0.001222339308 | L152: -3.879715721e-05 | M152: -0.002856616222 | N152: 1.53970453e-07
A153: 73.45405 | B153: ='DF raw data'!G158 -> -2.5606178e-06 | C153: ='DF raw data'!H158 -> -3.6178942e-06 | D153: ='DF raw data'!I158 -> -8.0659138e-06 | F153: -2.563772481e-06 | G153: -3.629982276e-06 | H153: -8.075851006e-06 | J153: -3.450174948e-05 | K153: -0.001239595358 | L153: -4.061269285e-05 | M153: -0.00287692866 | N153: 1.553907597e-07
A154: 73.9542 | B154: ='DF raw data'!G159 -> -1.2656865e-06 | C154: ='DF raw data'!H159 -> -3.5254295e-06 | D154: ='DF raw data'!I159 -> -6.4070537e-06 | F154: -1.267245826e-06 | G154: -3.537208633e-06 | H154: -6.41494719e-06 | J154: -3.513556248e-05 | K154: -0.00125716841 | L154: -4.238182775e-05 | M154: -0.002898125931 | N154: 1.569065778e-07
A155: 74.45435 | B155: ='DF raw data'!G160 -> -4.350969e-06 | C155: ='DF raw data'!H160 -> -2.6185251e-06 | D155: ='DF raw data'!I160 -> -5.0762374e-06 | F155: -4.356329394e-06 | G155: -2.627274093e-06 | H155: -5.082491324e-06 | J155: -3.731438062e-05 | K155: -0.001275831197 | L155: -4.369585888e-05 | M155: -0.002919980415 | N155: 1.585579186e-07
A156: 74.9545 | B156: ='DF raw data'!G161 -> -4.5454844e-06 | C156: ='DF raw data'!H161 -> 2.950592e-06 | D156: ='DF raw data'!I161 -> -3.888772e-06 | F156: -4.551084437e-06 | G156: 2.960450492e-06 | H156: -3.893562967e-06 | J156: -3.95906055e-05 | K156: -0.001295632438 | L156: -4.221518957e-05 | M156: -0.002941094342 | N156: 1.602331902e-07
A157: 75.45465 | B157: ='DF raw data'!G162 -> -3.5082676e-06 | C157: ='DF raw data'!H162 -> 3.1101711e-06 | D157: ='DF raw data'!I162 -> 1.0203165e-06 | F157: -3.512589786e-06 | G157: 3.120562776e-06 | H157: 1.02157353e-06 | J157: -4.134742728e-05 | K157: -0.001316312354 | L157: -4.06544401e-05 | M157: -0.00296142766 | N157: 1.619148912e-07
A158: 75.9548 | B158: ='DF raw data'!G163 -> -3.316226e-06 | C158: ='DF raw data'!H163 -> -4.995662e-06 | D158: ='DF raw data'!I163 -> 1.5431668e-06 | F158: -3.32031159e-06 | G158: -5.012353461e-06 | H158: 1.545067981e-06 | J158: -4.300808113e-05 | K158: -0.001337822846 | L158: -4.316136868e-05 | M158: -0.002983014819 | N158: 1.637717475e-07
A159: 76.45495 | B159: ='DF raw data'!G164 -> -4.8527918e-06 | C159: ='DF raw data'!H164 -> -2.9035317e-07 | D159: ='DF raw data'!I164 -> -7.2671301e-06 | F159: -4.858770439e-06 | G159: -2.913232954e-07 | H159: -7.276083204e-06 | J159: -4.543819516e-05 | K159: -0.001360548759 | L159: -4.330707403e-05 | M159: -0.003004674852 | N159: 1.657424046e-07
A160: 76.9551 | B160: ='DF raw data'!G165 -> -4.0509958e-06 | C160: ='DF raw data'!H165 -> 7.619476e-06 | D160: ='DF raw data'!I165 -> -1.0622118e-05 | F160: -4.055986627e-06 | G160: 7.644934125e-06 | H160: -1.063520445e-05 | J160: -4.746679687e-05 | K160: -0.001384289278 | L160: -3.948346023e-05 | M160: -0.003024422505 | N160: 1.676489966e-07
A161: 77.45525 | B161: ='DF raw data'!G166 -> -1.1368584e-06 | C161: ='DF raw data'!H166 -> 1.3726304e-05 | D161: ='DF raw data'!I166 -> -2.408834e-07 | F161: -1.13825901e-06 | G161: 1.37721662e-05 | H161: -2.411801683e-07 | J161: -4.803609712e-05 | K161: -0.001408314532 | L161: -3.25953113e-05 | M161: -0.00304072505 | N161: 1.693344626e-07
A162: 77.9554 | B162: ='DF raw data'!G167 -> -1.12203e-06 | C162: ='DF raw data'!H167 -> 5.7635048e-06 | D162: ='DF raw data'!I167 -> 1.792543e-06 | F162: -1.123412341e-06 | G162: 5.782761771e-06 | H162: 1.794751413e-06 | J162: -4.85979718e-05 | K162: -0.001432620807 | L162: -2.9703063e-05 | M162: -0.003055581037 | N162: 1.709569666e-07
A163: 78.45555 | B163: ='DF raw data'!G168 -> -2.9052508e-06 | C163: ='DF raw data'!H168 -> -4.9007963e-06 | D163: ='DF raw data'!I168 -> -8.0559894e-06 | F163: -2.908830069e-06 | G163: -4.917170797e-06 | H163: -8.065914379e-06 | J163: -5.005282316e-05 | K163: -0.001457654727 | L163: -3.216238597e-05 | M163: -0.003071667054 | N163: 1.727273497e-07
A164: 78.9557 | B164: ='DF raw data'!G169 -> -3.4301675e-06 | C164: ='DF raw data'!H169 -> -1.2714959e-05 | D164: ='DF raw data'!I169 -> -7.1523882e-06 | F164: -3.434393466e-06 | G164: -1.275744211e-05 | H164: -7.161199942e-06 | J164: -5.177053505e-05 | K164: -0.00148354776 | L164: -3.854302064e-05 | M164: -0.003090944346 | N164: 1.748108509e-07
A165: 79.45585 | B165: ='DF raw data'!G170 -> -2.8360273e-06 | C165: ='DF raw data'!H170 -> -1.3164742e-05 | D165: ='DF raw data'!I170 -> 1.5299246e-06 | F165: -2.839521286e-06 | G165: -1.320872792e-05 | H165: 1.531809467e-06 | J165: -5.319072162e-05 | K165: -0.001510151099 | L165: -4.514936591e-05 | M165: -0.003113525801 | N165: 1.772454401e-07
A166: 79.956 | B166: ='DF raw data'!G171 -> 1.6827062e-06 | C166: ='DF raw data'!H171 -> -1.2550324e-06 | D166: ='DF raw data'!I171 -> 4.8574238e-06 | F166: 1.684779294e-06 | G166: -1.259225703e-06 | H166: 4.863408146e-06 | J166: -5.234807926e-05 | K166: -0.001536332991 | L166: -4.577916765e-05 | M166: -0.003136422252 | N166: 1.796641923e-07
A167: 80.45615 | B167: ='DF raw data'!G172 -> 3.1518675e-06 | C167: ='DF raw data'!H172 -> 6.5876843e-06 | D167: ='DF raw data'!I172 -> -4.3645759e-06 | F167: 3.155750601e-06 | G167: 6.609695012e-06 | H167: -4.369953058e-06 | J167: -5.076973059e-05 | K167: -0.001561725472 | L167: -4.247332869e-05 | M167: -0.003157665287 | N167: 1.818556241e-07
A168: 80.9563 | B168: ='DF raw data'!G173 -> -2.5921954e-06 | C168: ='DF raw data'!H173 -> 6.1396354e-06 | D168: ='DF raw data'!I173 -> -1.5237374e-05 | F168: -2.595388985e-06 | G168: 6.160149095e-06 | H168: -1.525614644e-05 | J168: -5.20678144e-05 | K168: -0.001587767189 | L168: -3.939233012e-05 | M168: -0.003177367361 | N168: 1.8398767e-07
A169: 81.45645 | B169: ='DF raw data'!G174 -> -4.4596427e-06 | C169: ='DF raw data'!H174 -> 6.002339e-06 | D169: ='DF raw data'!I174 -> -1.3108516e-05 | F169: -4.46513698e-06 | G169: 6.022393961e-06 | H169: -1.312466569e-05 | J169: -5.430105266e-05 | K169: -0.001614925861 | L169: -3.638022978e-05 | M169: -0.003195562933 | N169: 1.861243736e-07
A170: 81.9566 | B170: ='DF raw data'!G175 -> -1.5132582e-06 | C170: ='DF raw data'!H175 -> 8.6117734e-06 | D170: ='DF raw data'!I175 -> -2.8235718e-06 | F170: -1.515122534e-06 | G170: 8.64054698e-06 | H170: -2.82705044e-06 | J170: -5.505884119e-05 | K170: -0.00164246354 | L170: -3.20586602e-05 | M170: -0.003211597072 | N170: 1.881545993e-07
A171: 82.45675 | B171: ='DF raw data'!G176 -> 3.5607082e-09 | C171: ='DF raw data'!H176 -> 1.053406e-05 | D171: ='DF raw data'!I176 -> 2.3989796e-06 | F171: 3.565094993e-09 | G171: 1.056925631e-05 | H171: 2.401935143e-06 | J171: -5.505705811e-05 | K171: -0.001670000328 | L171: -2.677244666e-05 | M171: -0.003224987311 | N171: 1.900291833e-07
A172: 82.9569 | B172: ='DF raw data'!G177 -> -3.3539706e-07 | C172: ='DF raw data'!H177 -> 6.8378599e-06 | D172: ='DF raw data'!I177 -> 9.6225649e-06 | F172: -3.358102692e-07 | G172: 6.860706496e-06 | H172: 9.6344199e-06 | J172: -5.522501362e-05 | K172: -0.001697621118 | L172: -2.334106431e-05 | M172: -0.003236661344 | N172: 1.918270262e-07
A173: 83.45705 | B173: ='DF raw data'!G178 -> 1.5016803e-06 | C173: ='DF raw data'!H178 -> -1.5645826e-06 | D173: ='DF raw data'!I178 -> 9.7267857e-06 | F173: 1.50353037e-06 | G173: -1.569810169e-06 | H173: 9.7387691e-06 | J173: -5.44730229e-05 | K173: -0.001724865801 | L173: -2.412620486e-05 | M173: -0.003248728066 | N173: 1.936022506e-07
A174: 83.9572 | B174: ='DF raw data'!G179 -> 4.0969126e-06 | C174: ='DF raw data'!H179 -> 8.9888209e-07 | D174: ='DF raw data'!I179 -> 2.8098966e-06 | F174: 4.101959996e-06 | G174: 9.018854268e-07 | H174: 2.813358393e-06 | J174: -5.242142761e-05 | K174: -0.001751084378 | L174: -2.367512687e-05 | M174: -0.00326056918 | N174: 1.952570057e-07
A175: 84.45735 | B175: ='DF raw data'!G180 -> 4.1533158e-06 | C175: ='DF raw data'!H180 -> 1.9442843e-06 | D175: ='DF raw data'!I180 -> 5.3945787e-06 | F175: 4.158432685e-06 | G175: 1.950780525e-06 | H175: 5.401224821e-06 | J175: -5.03415875e-05 | K175: -0.001776262723 | L175: -2.269944399e-05 | M175: -0.003271922307 | N175: 1.967822332e-07
A176: 84.9575 | B176: ='DF raw data'!G181 -> 6.3734578e-06 | C176: ='DF raw data'!H181 -> 2.7791367e-07 | D176: ='DF raw data'!I181 -> 8.1812705e-06 | F176: 6.3813099e-06 | G176: 2.788422327e-07 | H176: 8.191349825e-06 | J176: -4.714997535e-05 | K176: -0.001799844783 | L176: -2.255998105e-05 | M176: -0.003283205682 | N176: 1.981486795e-07
A177: 85.45765 | B177: ='DF raw data'!G182 -> 8.5296733e-06 | C177: ='DF raw data'!H182 -> -6.1943724e-06 | D177: ='DF raw data'!I182 -> 2.0536336e-06 | F177: 8.540181858e-06 | G177: -6.215068982e-06 | H177: 2.056163677e-06 | J177: -4.28786034e-05 | K177: -0.001821290516 | L177: -2.56684478e-05 | M177: -0.003296043756 | N177: 1.99397776e-07
A178: 85.9578 | B178: ='DF raw data'!G183 -> 8.0618875e-06 | C178: ='DF raw data'!H183 -> -8.3761743e-06 | D178: ='DF raw data'!I183 -> -7.2000457e-06 | F178: 8.071819745e-06 | G178: -8.404160699e-06 | H178: -7.208916156e-06 | J178: -3.884148275e-05 | K178: -0.001840717084 | L178: -2.987178877e-05 | M178: -0.003310984131 | N178: 2.005986285e-07
A179: 86.45795 | B179: ='DF raw data'!G184 -> 8.9116174e-06 | C179: ='DF raw data'!H184 -> 3.1129732e-06 | D179: ='DF raw data'!I184 -> -8.4454714e-06 | F179: 8.922596513e-06 | G179: 3.123374238e-06 | H179: -8.455876221e-06 | J179: -3.437884611e-05 | K179: -0.001857911664 | L179: -2.830963315e-05 | M179: -0.003325143194 | N179: 2.015905962e-07
A180: 86.9581 | B180: ='DF raw data'!G185 -> 9.4155648e-06 | C180: ='DF raw data'!H185 -> 2.1969956e-06 | D180: ='DF raw data'!I185 -> -8.3429095e-06 | F180: 9.427164776e-06 | G180: 2.204336182e-06 | H180: -8.353187965e-06 | J180: -2.966384964e-05 | K180: -0.001872748038 | L180: -2.72071344e-05 | M180: -0.003338750842 | N180: 2.024009253e-07
A181: 87.45825 | B181: ='DF raw data'!G186 -> 7.0546475e-06 | C181: ='DF raw data'!H186 -> 5.6694385e-06 | D181: ='DF raw data'!I186 -> -5.7585476e-06 | F181: 7.063338826e-06 | G181: 5.688381177e-06 | H181: -5.765642131e-06 | J181: -2.613112073e-05 | K181: -0.001885817518 | L181: -2.436209056e-05 | M181: -0.003350935542 | N181: 2.030392902e-07
A182: 87.9584 | B182: ='DF raw data'!G187 -> 3.1819754e-06 | C182: ='DF raw data'!H187 -> -5.2515757e-06 | D182: ='DF raw data'!I187 -> 4.4408981e-07 | F182: 3.185895594e-06 | G182: -5.269122218e-06 | H182: 4.446369286e-07 | J182: -2.453769505e-05 | K182: -0.001898090047 | L182: -2.699744204e-05 | M182: -0.003364438313 | N182: 2.0370497e-07
A183: 88.45855 | B183: ='DF raw data'!G188 -> -2.0519265e-06 | C183: ='DF raw data'!H188 -> -9.1170941e-06 | D183: ='DF raw data'!I188 -> -7.356546e-08 | F183: -2.054454473e-06 | G183: -9.147556053e-06 | H183: -7.365609265e-08 | J183: -2.556523045e-05 | K183: -0.001910876497 | L183: -3.15725922e-05 | M183: -0.003380229345 | N183: 2.045304224e-07
A184: 88.9587 | B184: ='DF raw data'!G189 -> -3.874452e-06 | C184: ='DF raw data'!H189 -> 3.8504254e-06 | D184: ='DF raw data'!I189 -> 1.1443716e-06 | F184: -3.879225325e-06 | G184: 3.863290407e-06 | H184: 1.145781466e-06 | J184: -2.7505425e-05 | K184: -0.001924633335 | L184: -2.96403675e-05 | M184: -0.003395053974 | N184: 2.053482175e-07
A185: 89.45885 | B185: ='DF raw data'!G190 -> 9.1669341e-07 | C185: ='DF raw data'!H190 -> 1.0769825e-05 | D185: ='DF raw data'!I190 -> -1.433995e-06 | F185: 9.178227763e-07 | G185: 1.080580904e-05 | H185: -1.435761682e-06 | J185: -2.704637594e-05 | K185: -0.00193816058 | L185: -2.423584211e-05 | M185: -0.003407175531 | N185: 2.060078566e-07
A186: 89.959 | B186: ='DF raw data'!G191 -> 7.0432243e-06 | C186: ='DF raw data'!H191 -> -3.8241728e-06 | D186: ='DF raw data'!I191 -> -8.4834664e-06 | F186: 7.051901552e-06 | G186: -3.836950092e-06 | H186: -8.493918031e-06 | J186: -2.351936738e-05 | K186: -0.001949923791 | L186: -2.615489269e-05 | M186: -0.0034202569 | N186: 2.066266617e-07
A187: 90.45915 | B187: ='DF raw data'!G192 -> 5.4772199e-06 | C187: ='DF raw data'!H192 -> 7.0496085e-06 | D187: ='DF raw data'!I192 -> -8.4135881e-06 | F187: 5.483967835e-06 | G187: 7.073162589e-06 | H187: -8.423953641e-06 | J187: -2.077656087e-05 | K187: -0.001960315188 | L187: -2.261725043e-05 | M187: -0.003431568918 | N187: 2.070984059e-07
A188: 90.9593 | B188: ='DF raw data'!G193 -> -2.5409551e-07 | C188: ='DF raw data'!H193 -> 1.3854929e-05 | D188: ='DF raw data'!I193 -> -4.0031209e-06 | F188: -2.544085557e-07 | G188: 1.390122096e-05 | H188: -4.008052745e-06 | J188: -2.09038033e-05 | K188: -0.001970770226 | L188: -1.566455476e-05 | M188: -0.003439403545 | N188: 2.074396819e-07
A189: 91.45945 | B189: ='DF raw data'!G194 -> -4.22694e-07 | C189: ='DF raw data'!H194 -> 5.388441e-06 | D189: ='DF raw data'!I194 -> 2.6454309e-06 | F189: -4.23214759e-07 | G189: 5.406444811e-06 | H189: 2.648690071e-06 | J189: -2.111547417e-05 | K189: -0.00198133113 | L189: -1.296052139e-05 | M189: -0.00344588575 | N189: 2.077466932e-07
A190: 91.9596 | B190: ='DF raw data'!G195 -> 7.0189259e-07 | C190: ='DF raw data'!H195 -> 5.2183209e-06 | D190: ='DF raw data'!I195 -> 5.9551767e-06 | F190: 7.027573217e-07 | G190: 5.235756307e-06 | H190: 5.962513478e-06 | J190: -2.076399009e-05 | K190: -0.00199171624 | L190: -1.034185787e-05 | M190: -0.00345105823 | N190: 2.080158225e-07
A191: 92.45975 | B191: ='DF raw data'!G196 -> 1.9717363e-06 | C191: ='DF raw data'!H196 -> 5.7685743e-06 | D191: ='DF raw data'!I196 -> 4.8921011e-06 | F191: 1.974165479e-06 | G191: 5.787848209e-06 | H191: 4.898128169e-06 | J191: -1.977661123e-05 | K191: -0.002001607512 | L191: -7.447065589e-06 | M191: -0.00345478288 | N191: 2.082391761e-07
A192: 92.9599 | B192: ='DF raw data'!G197 -> 5.3846406e-06 | C192: ='DF raw data'!H197 -> 2.9032255e-06 | D192: ='DF raw data'!I197 -> -6.9763888e-07 | F192: 5.391274477e-06 | G192: 2.912925731e-06 | H192: -6.984983711e-07 | J192: -1.70801653e-05 | K192: -0.002010150156 | L192: -5.990165785e-06 | M192: -0.003457778862 | N192: 2.084030323e-07
A193: 93.46005 | B193: ='DF raw data'!G198 -> 3.475735e-06 | C193: ='DF raw data'!H198 -> 2.7577818e-07 | D193: ='DF raw data'!I198 -> -4.6643308e-06 | F193: 3.480017106e-06 | G193: 2.766996076e-07 | H193: -4.670077256e-06 | J193: -1.533963474e-05 | K193: -0.002017822275 | L193: -5.851774476e-06 | M193: -0.003460705627 | N193: 2.085378466e-07
A194: 93.9602 | B194: ='DF raw data'!G199 -> -5.4405695e-07 | C194: ='DF raw data'!H199 -> 3.0912245e-06 | D194: ='DF raw data'!I199 -> -2.6399557e-06 | F194: -5.447272282e-07 | G194: 3.101552872e-06 | H194: -2.643208125e-06 | J194: -1.561208007e-05 | K194: -0.002025630657 | L194: -4.300532807e-06 | M194: -0.003462856538 | N194: 2.086690017e-07
A195: 94.46035 | B195: ='DF raw data'!G200 -> -5.0414104e-07 | C195: ='DF raw data'!H200 -> 3.5547503e-06 | D195: ='DF raw data'!I200 -> 1.8346502e-07 | F195: -5.047621418e-07 | G195: 3.5666274e-06 | H195: 1.836910489e-07 | J195: -1.586453685e-05 | K195: -0.002033565305 | L195: -2.516684113e-06 | M195: -0.003464115258 | N195: 2.08798049e-07
A196: 94.9605 | B196: ='DF raw data'!G201 -> 4.1027218e-07 | C196: ='DF raw data'!H201 -> 4.5938818e-06 | D196: ='DF raw data'!I201 -> -7.8961366e-06 | F196: 4.107776353e-07 | G196: 4.609230837e-06 | H196: -7.90586464e-06 | J196: -1.565908642e-05 | K196: -0.002041397197 | L196: -2.113773102e-07 | M196: -0.003464220978 | N196: 2.089207117e-07
A197: 95.46065 | B197: ='DF raw data'!G202 -> 1.4859352e-06 | C197: ='DF raw data'!H202 -> -2.9691716e-06 | D197: ='DF raw data'!I202 -> -1.4874056e-05 | F197: 1.487765872e-06 | G197: -2.97909217e-06 | H197: -1.489238084e-05 | J197: -1.491498032e-05 | K197: -0.002048856924 | L197: -1.701370259e-06 | M197: -0.003465071918 | N197: 2.090334211e-07
A198: 95.9608 | B198: ='DF raw data'!G203 -> 2.7037704e-06 | C198: ='DF raw data'!H203 -> -2.7700978e-06 | D198: ='DF raw data'!I203 -> -3.7659829e-06 | F198: 2.707101445e-06 | G198: -2.779353226e-06 | H198: -3.770622591e-06 | J198: -1.356102353e-05 | K198: -0.00205563947 | L198: -3.091463775e-06 | M198: -0.003466618114 | N198: 2.091301794e-07
A199: 96.46095 | B199: ='DF raw data'!G204 -> 3.0446636e-06 | C199: ='DF raw data'!H204 -> 1.5062444e-05 | D199: ='DF raw data'!I204 -> -1.0093119e-06 | F199: 3.048414626e-06 | G199: =(1-$G$1*($B$2-$G$2))*C199*$M$2/$M$1 -> 1.51127705e-05 | H199: -1.010555372e-06 | J199: -1.203635895e-05 | K199: -0.002061659455 | L199: 4.467188392e-06 | M199: -0.00346438385 | N199: 2.09212619e-07
A200: =A199+$B$1 -> 96.9611 | B200: ='DF raw data'!G205 -> 1.3546332e-06 | C200: ='DF raw data'!H205 -> 1.4596516e-05 | D200: ='DF raw data'!I205 -> -6.1647441e-08 | F200: 1.356302108e-06 | G200: 1.464528575e-05 | H200: -6.172339065e-08 | J200: =F200*$B$1+J199 -> -1.135800445e-05 | K200: =J200*$B$1+K199 -> -0.002067340161 | L200: =G200*$B$1+L199 -> 1.179202806e-05 | M200: =L200*$B$1+M199 -> -0.003458486067 | N200: =(J200^2+L200^2)*$B$1+N199 -> 2.093466873e-07
A201: 97.46125 | B201: ='DF raw data'!G206 -> -3.8596381e-06 | C201: ='DF raw data'!H206 -> 5.3609542e-06 | D201: ='DF raw data'!I206 -> 6.3506977e-06 | F201: -3.864393174e-06 | G201: 5.378866172e-06 | H201: 6.35852176e-06 | J201: -1.32907807e-05 | K201: -0.002073987545 | L201: 1.448226798e-05 | M201: -0.00345124276 | N201: 2.095399357e-07
... 1002 more rows

Sheet 20 mm
A1: dz | B1: ='DF raw data'!K7 -> 0.50014 | C1: mm | F1: T_coeff | G1: -0.0008 | H1: /degC | L1: Hallref | M1: ='PI vs gap'!B50 -> 0.505555 | N1: T | P1: IBy total | Q1: =L1203*1000 -> 5.02127806 | R1: muTm | X1: DF ref | Y1: 21
A2: Tref | B2: ='DF raw data'!K8 -> 21.56 | C2: degC | F2: Tcorr | G2: 20 | H2: degC | L2: NMRref | M2: ='PI vs gap'!B51 -> 0.50662 | N2: T | P2: JBy total | Q2: =M1203 -> -0.6567316232 | R2: muTm^2
A3: Encoder | B3: ='DF raw data'!K9 -> 1595068 | P3: PI total | Q3: =N1203 -> 201.6479581 | R3: T^2mm^3
A5: z [mm] | B5: Bx | C5: By | D5: Bz | F5: Bx_corr | G5: By_corr | H5: Bz_corr | J5: Ix | K5: Jx | L5: Iy | M5: Jy | N5: PI
A6: -0.068 | B6: ='DF raw data'!J11 -> 8.0331365e-06 | C6: ='DF raw data'!K11 -> 4.0390564e-06 | D6: ='DF raw data'!L11 -> -3.8922649e-06 | F6: =(1-$G$1*($B$2-$G$2))*B6 -> 8.043161854e-06 | G6: =(1-$G$1*($B$2-$G$2))*C6*$M$2/$M$1 -> 4.05261642e-06 | H6: =(1-$G$1*($B$2-$G$2))*D6 -> -3.897122447e-06 | J6: =F6*$B$1 -> 4.02270697e-06 | K6: =J6*$B$1 -> 2.011916664e-06 | L6: =G6*$B$1 -> 2.026875576e-06 | M6: =L6*$B$1 -> 1.013721551e-06 | N6: =(J6^2+L6)^2*$B$1 -> 2.054720261e-12
A7: =A6+$B$1 -> 0.43214 | B7: ='DF raw data'!J12 -> 8.0986783e-06 | C7: ='DF raw data'!K12 -> 2.1197063e-06 | D7: ='DF raw data'!L12 -> -4.7376293e-06 | F7: =(1-$G$1*($B$2-$G$2))*B7 -> 8.108785451e-06 | G7: =(1-$G$1*($B$2-$G$2))*C7*$M$2/$M$1 -> 2.12682263e-06 | H7: -4.743541861e-06 | J7: =F7*$B$1+J6 -> 8.078234925e-06 | K7: =J7*$B$1+K6 -> 6.052165079e-06 | L7: =G7*$B$1+L6 -> 3.090584647e-06 | M7: =L7*$B$1+M6 -> 2.559446556e-06 | N7: =(J7^2+L7^2)*$B$1+N6 -> 3.946999009e-11
A8: =A7+$B$1 -> 0.93228 | B8: ='DF raw data'!J13 -> 8.241389e-06 | C8: ='DF raw data'!K13 -> -1.5600821e-06 | D8: ='DF raw data'!L13 -> -3.6816841e-06 | F8: 8.251674253e-06 | G8: -1.565319646e-06 | H8: -3.686278842e-06 | J8: =F8*$B$1+J7 -> 1.220522729e-05 | K8: =J8*$B$1+K7 -> 1.215648745e-05 | L8: =G8*$B$1+L7 -> 2.307705679e-06 | M8: =L8*$B$1+M7 -> 3.713622474e-06 | N8: =(J8^2+L8^2)*$B$1+N7 -> 1.166381304e-10
A9: 1.43242 | B9: ='DF raw data'!J14 -> 8.2802426e-06 | C9: ='DF raw data'!K14 -> -2.1498292e-06 | D9: ='DF raw data'!L14 -> -1.0688294e-06 | F9: 8.290576343e-06 | G9: -2.15704666e-06 | H9: -1.070163299e-06 | J9: 1.635167614e-05 | K9: 2.033461476e-05 | L9: 1.228880362e-06 | M9: 4.328234699e-06 | N9: 2.511195044e-10
A10: 1.93256 | B10: ='DF raw data'!J15 -> 8.0799937e-06 | C10: ='DF raw data'!K15 -> 3.4885359e-06 | D10: ='DF raw data'!L15 -> -1.9345316e-08 | F10: 8.090077532e-06 | G10: 3.500247699e-06 | H10: -1.936945895e-08 | J10: 2.039784752e-05 | K10: 3.053639421e-05 | L10: 2.979494247e-06 | M10: 5.818398951e-06 | N10: 4.63653782e-10
A11: 2.4327 | B11: ='DF raw data'!J16 -> 8.4127378e-06 | C11: ='DF raw data'!K16 -> -5.0239837e-06 | D11: ='DF raw data'!L16 -> 3.3069605e-06 | F11: 8.423236897e-06 | G11: -5.040850342e-06 | H11: 3.311087587e-06 | J11: 2.461064522e-05 | K11: 4.284516231e-05 | L11: 4.583633564e-07 | M11: 6.0476448e-06 | N11: 7.666855846e-10
A12: 2.93284 | B12: ='DF raw data'!J17 -> 8.2363831e-06 | C12: ='DF raw data'!K17 -> 7.4567436e-07 | D12: ='DF raw data'!L17 -> 8.8415345e-06 | F12: 8.246662106e-06 | G12: 7.481777564e-07 | H12: 8.852568735e-06 | J12: 2.87351308e-05 | K12: 5.721675063e-05 | L12: 8.325569795e-07 | M12: 6.464039848e-06 | N12: 1.180001727e-09
A13: 3.43298 | B13: ='DF raw data'!J18 -> 8.2347824e-06 | C13: ='DF raw data'!K18 -> 9.3940946e-07 | D13: ='DF raw data'!L18 -> 9.5700325e-06 | F13: 8.245059408e-06 | G13: 9.425632687e-07 | H13: 9.581975901e-06 | J13: 3.285881482e-05 | K13: 7.365075827e-05 | L13: 1.303970573e-06 | M13: 7.11620769e-06 | N13: 1.720854149e-09
A14: 3.93312 | B14: ='DF raw data'!J19 -> 8.2389879e-06 | C14: ='DF raw data'!K19 -> 5.4900158e-07 | D14: ='DF raw data'!L19 -> 7.9664842e-06 | F14: 8.249270157e-06 | G14: 5.508447017e-07 | H14: 7.976426372e-06 | J14: 3.698460479e-05 | K14: 9.214823851e-05 | L14: 1.579470042e-06 | M14: 7.906163837e-06 | N14: 2.406223857e-09
A15: 4.43326 | B15: ='DF raw data'!J20 -> 7.940761e-06 | C15: ='DF raw data'!K20 -> 8.533284e-06 | D15: ='DF raw data'!L20 -> 7.436634e-06 | F15: 7.95067107e-06 | G15: 8.561932152e-06 | H15: 7.445914919e-06 | J15: 4.096105342e-05 | K15: 0.0001126344998 | L15: 5.861634788e-06 | M15: 1.083780186e-05 | N15: 3.26254689e-09
A16: 4.9334 | B16: ='DF raw data'!J21 -> 8.1566968e-06 | C16: ='DF raw data'!K21 -> 2.9448199e-06 | D16: ='DF raw data'!L21 -> 9.5332307e-06 | F16: 8.166876358e-06 | G16: 2.954706322e-06 | H16: 9.545128172e-06 | J16: 4.504563496e-05 | K16: 0.0001351636236 | L16: 7.339401608e-06 | M16: 1.450853018e-05 | N16: 4.30432653e-09
A17: 5.43354 | B17: ='DF raw data'!J22 -> 8.4629419e-06 | C17: ='DF raw data'!K22 -> -5.3494136e-06 | D17: ='DF raw data'!L22 -> 9.673322e-06 | F17: 8.473503651e-06 | G17: -5.367372784e-06 | H17: 9.685394306e-06 | J17: 4.928357308e-05 | K17: 0.0001598123099 | L17: 4.654963784e-06 | M17: 1.683666377e-05 | N17: 5.529939237e-09
A18: 5.93368 | B18: ='DF raw data'!J23 -> 8.0446907e-06 | C18: ='DF raw data'!K23 -> 5.4728648e-06 | D18: ='DF raw data'!L23 -> 5.8977107e-06 | F18: 8.054730474e-06 | G18: 5.491238437e-06 | H18: 5.905071043e-06 | J18: 5.331206598e-05 | K18: 0.0001864758066 | L18: 7.401351776e-06 | M18: 2.053837585e-05 | N18: 6.978823004e-09
A19: 6.43382 | B19: ='DF raw data'!J24 -> 8.2389879e-06 | C19: ='DF raw data'!K24 -> 7.9738726e-08 | D19: ='DF raw data'!L24 -> 5.4245843e-06 | F19: 8.249270157e-06 | G19: 8.000642682e-08 | H19: 5.431354181e-06 | J19: 5.743785595e-05 | K19: 0.0002152027758 | L19: 7.441366191e-06 | M19: 2.426010073e-05 | N19: 8.656533245e-09
A20: 6.93396 | B20: ='DF raw data'!J25 -> 8.1417375e-06 | C20: ='DF raw data'!K25 -> 3.1897923e-06 | D20: ='DF raw data'!L25 -> 8.3588766e-06 | F20: 8.151898388e-06 | G20: 3.20050115e-06 | H20: 8.369308478e-06 | J20: 6.151494641e-05 | K20: 0.0002459688611 | L20: 9.042064836e-06 | M20: 2.878239904e-05 | N20: 1.058999825e-08
A21: 7.4341 | B21: ='DF raw data'!J26 -> 8.2493343e-06 | C21: ='DF raw data'!K26 -> 6.9998038e-08 | D21: ='DF raw data'!L26 -> 7.5023941e-06 | F21: 8.259629469e-06 | G21: 7.023303715e-08 | H21: 7.511757088e-06 | J21: 6.56459175e-05 | K21: 0.0002788010103 | L21: 9.077191187e-06 | M21: 3.332226544e-05 | N21: 1.278650404e-08
A22: 7.93424 | B22: ='DF raw data'!J27 -> 4.6026826e-06 | C22: ='DF raw data'!K27 -> 1.478989e-06 | D22: ='DF raw data'!L27 -> 2.2227264e-06 | F22: 4.608426748e-06 | G22: 1.483954298e-06 | H22: 2.225500363e-06 | J22: 6.795077605e-05 | K22: 0.0003127859114 | L22: 9.81937609e-06 | M22: 3.82333282e-05 | N22: 1.514402802e-08
A23: 8.43438 | B23: ='DF raw data'!J28 -> -1.74706e-06 | C23: ='DF raw data'!K28 -> -1.0176807e-05 | D23: ='DF raw data'!L28 -> -7.1657121e-07 | F23: =(1-$G$1*($B$2-$G$2))*B23 -> -1.749240331e-06 | G23: -1.021097283e-05 | H23: -7.174654909e-07 | J23: 6.707591099e-05 | K23: 0.0003463332576 | L23: 4.712460139e-06 | M23: 4.059021801e-05 | N23: 1.740535357e-08
A24: 8.93452 | B24: ='DF raw data'!J29 -> -1.2154057e-06 | C24: ='DF raw data'!K29 -> -2.5842676e-06 | D24: ='DF raw data'!L29 -> -1.9727072e-06 | F24: -1.216922526e-06 | G24: -2.592943567e-06 | H24: -1.975169139e-06 | J24: 6.646727936e-05 | K24: 0.0003795762027 | L24: 3.415625344e-06 | M24: 4.229850887e-05 | N24: 1.962075657e-08
A25: 9.43466 | B25: ='DF raw data'!J30 -> 5.7360876e-06 | C25: ='DF raw data'!K30 -> -9.7775937e-06 | D25: ='DF raw data'!L30 -> -3.0555443e-06 | F25: 5.743246237e-06 | G25: -9.81041928e-06 | H25: -3.059357619e-06 | J25: 6.933970653e-05 | K25: 0.0004142557635 | L25: -1.490957755e-06 | M25: 4.155282126e-05 | N25: 2.202653893e-08
A26: 9.9348 | B26: ='DF raw data'!J31 -> 1.1625524e-05 | C26: ='DF raw data'!K31 -> -1.7976692e-05 | D26: ='DF raw data'!L31 -> -4.0313521e-06 | F26: 1.164003265e-05 | G26: -1.80370438e-05 | H26: -4.036383227e-06 | J26: 7.516135246e-05 | K26: 0.0004518469623 | L26: -1.051200484e-05 | M26: 3.629534716e-05 | N26: 2.490721087e-08
A27: 10.43494 | B27: ='DF raw data'!J32 -> 7.2615067e-06 | C27: ='DF raw data'!K32 -> -5.361821e-06 | D27: ='DF raw data'!L32 -> -6.1452506e-06 | F27: 7.27056906e-06 | G27: -5.379821838e-06 | H27: -6.152919873e-06 | J27: 7.879765487e-05 | K27: 0.0004912568214 | L27: -1.320266893e-05 | M27: 2.969216432e-05 | N27: 2.809979498e-08
A28: 10.93508 | B28: ='DF raw data'!J33 -> -1.0403899e-06 | C28: ='DF raw data'!K33 -> -1.032251e-05 | D28: ='DF raw data'!L33 -> -6.1891101e-06 | F28: -1.041688307e-06 | G28: -1.035716499e-05 | H28: -6.196834109e-06 | J28: 7.827666488e-05 | K28: 0.0005304061126 | L28: -1.838270143e-05 | M28: 2.049824003e-05 | N28: 3.133328009e-08
A29: 11.43522 | B29: ='DF raw data'!J34 -> -6.8229574e-06 | C29: ='DF raw data'!K34 -> -6.0336283e-06 | D29: ='DF raw data'!L34 -> -9.0088051e-06 | F29: -6.831472451e-06 | G29: -6.053884546e-06 | H29: -9.020048089e-06 | J29: 7.485997225e-05 | K29: 0.0005678465791 | L29: -2.141049125e-05 | M29: 9.789996934e-06 | N29: 3.436534112e-08
A30: 11.93536 | B30: ='DF raw data'!J35 -> -6.5703071e-06 | C30: ='DF raw data'!K35 -> 1.4037374e-06 | D30: ='DF raw data'!L35 -> -1.1035043e-05 | F30: -6.578506843e-06 | G30: 1.408450062e-06 | H30: -1.104881473e-05 | J30: 7.156979784e-05 | K30: 0.0006036414978 | L30: -2.070606903e-05 | M30: -5.659364319e-07 | N30: 3.714160689e-08
A31: 12.4355 | B31: ='DF raw data'!J36 -> -4.3847404e-06 | C31: ='DF raw data'!K36 -> 9.9625559e-06 | D31: ='DF raw data'!L36 -> -4.0232321e-06 | F31: -4.390212556e-06 | G31: 9.996002439e-06 | H31: -4.028253094e-06 | J31: 6.937407693e-05 | K31: 0.0006383382486 | L31: -1.570666837e-05 | M31: -8.421469551e-06 | N31: 3.96720462e-08
A32: 12.93564 | B32: ='DF raw data'!J37 -> -1.7475984e-06 | C32: ='DF raw data'!K37 -> 1.7051494e-06 | D32: ='DF raw data'!L37 -> 1.1287135e-06 | F32: -1.749779403e-06 | G32: 1.71087397e-06 | H32: 1.130122134e-06 | J32: 6.849894226e-05 | K32: 0.0006725973096 | L32: -1.485099186e-05 | M32: -1.584904462e-05 | N32: 4.21290625e-08
A33: 13.43578 | B33: ='DF raw data'!J38 -> -1.1407835e-06 | C33: ='DF raw data'!K38 -> 3.4168859e-06 | D33: ='DF raw data'!L38 -> -2.9109856e-06 | F33: -1.142207198e-06 | G33: 3.428357154e-06 | H33: -2.91461851e-06 | J33: 6.792767875e-05 | K33: 0.0007065706589 | L33: -1.313633332e-05 | M33: -2.241905037e-05 | N33: 4.452309904e-08
A34: 13.93592 | B34: ='DF raw data'!J39 -> -4.3486225e-06 | C34: ='DF raw data'!K39 -> 1.2128079e-05 | D34: ='DF raw data'!L39 -> -4.1488879e-06 | F34: -4.354049581e-06 | G34: 1.216879569e-05 | H34: -4.154065712e-06 | J34: 6.57500444e-05 | K34: 0.0007394548861 | L34: -7.050231843e-06 | M34: -2.594515332e-05 | N34: 4.671009828e-08
A35: 14.43606 | B35: ='DF raw data'!J40 -> -6.7671508e-06 | C35: ='DF raw data'!K40 -> 1.0407402e-05 | D35: ='DF raw data'!L40 -> -1.2822042e-06 | F35: -6.775596204e-06 | G35: 1.044234199e-05 | H35: -1.283804391e-06 | J35: 6.236129771e-05 | K35: 0.0007706442655 | L35: -1.827598921e-06 | M35: -2.685920865e-05 | N35: 4.865677898e-08
A36: 14.9362 | B36: ='DF raw data'!J41 -> -8.5752699e-06 | C36: ='DF raw data'!K41 -> 8.5240781e-06 | D36: ='DF raw data'!L41 -> 2.1877872e-06 | F36: -8.585971837e-06 | G36: 8.552695346e-06 | H36: 2.190517558e-06 | J36: 5.806710976e-05 | K36: 0.0007996859498 | L36: 2.449946129e-06 | M36: -2.563389259e-05 | N36: 5.034614761e-08
A37: 15.43634 | B37: ='DF raw data'!J42 -> -5.2606929e-06 | C37: ='DF raw data'!K42 -> 9.7054417e-06 | D37: ='DF raw data'!L42 -> 6.1896803e-06 | F37: -5.267258245e-06 | G37: 9.738025049e-06 | H37: 6.197405021e-06 | J37: 5.543274322e-05 | K37: 0.000827410082 | L37: 7.320321977e-06 | M37: -2.197270676e-05 | N37: 5.190977337e-08
A38: 15.93648 | B38: ='DF raw data'!J43 -> 1.2373778e-06 | C38: ='DF raw data'!K43 -> -2.3889299e-06 | D38: ='DF raw data'!L43 -> 9.2803184e-06 | F38: 1.238922047e-06 | G38: -2.396950075e-06 | H38: 9.291900237e-06 | J38: 5.605237769e-05 | K38: 0.0008554441182 | L38: 6.121511367e-06 | M38: -1.891109406e-05 | N38: 5.349988945e-08
A39: 16.43662 | B39: ='DF raw data'!J44 -> 2.6375776e-06 | C39: ='DF raw data'!K44 -> -7.1290638e-06 | D39: ='DF raw data'!L44 -> 5.928066e-06 | F39: 2.640869297e-06 | G39: -7.152997669e-06 | H39: 5.935464226e-06 | J39: 5.737318206e-05 | K39: 0.0008841387414 | L39: 2.544011113e-06 | M39: -1.763873234e-05 | N39: 5.51494282e-08
A40: 16.93676 | B40: ='DF raw data'!J45 -> -5.2541219e-07 | C40: ='DF raw data'!K45 -> -1.923536e-06 | D40: ='DF raw data'!L45 -> 1.0101154e-06 | F40: -5.260679044e-07 | G40: -1.929993743e-06 | H40: 1.011376024e-06 | J40: 5.711007446e-05 | K40: 0.0009127017741 | L40: 1.578744042e-06 | M40: -1.68491393e-05 | N40: 5.678191168e-08
A41: 17.4369 | B41: ='DF raw data'!J46 -> -2.9684459e-06 | C41: ='DF raw data'!K46 -> -7.2684966e-06 | D41: ='DF raw data'!L46 -> 7.2892874e-07 | F41: -2.97215052e-06 | G41: -7.292898577e-06 | H41: 7.298384431e-07 | J41: 5.56235831e-05 | K41: 0.0009405213529 | L41: -2.068726252e-06 | M41: -1.788379205e-05 | N41: 5.833147675e-08
A42: 17.93704 | B42: ='DF raw data'!J47 -> -4.4063645e-06 | C42: ='DF raw data'!K47 -> -6.6758764e-07 | D42: ='DF raw data'!L47 -> 1.4052436e-06 | F42: -4.411863643e-06 | G42: -6.698288817e-07 | H42: 1.406997344e-06 | J42: 5.341703361e-05 | K42: 0.0009672373481 | L42: -2.403734469e-06 | M42: -1.90859958e-05 | N42: 5.976145574e-08
A43: 18.43718 | B43: ='DF raw data'!J48 -> -5.6783474e-06 | C43: ='DF raw data'!K48 -> -4.4479789e-06 | D43: ='DF raw data'!L48 -> 2.4429551e-06 | F43: -5.685433978e-06 | G43: -4.462911765e-06 | H43: 2.446003908e-06 | J43: 5.057352066e-05 | K43: 0.0009925311887 | L43: -4.635815159e-06 | M43: -2.14045524e-05 | N43: 6.105140272e-08
A44: 18.93732 | B44: ='DF raw data'!J49 -> -2.880596e-06 | C44: ='DF raw data'!K49 -> -3.7394805e-06 | D44: ='DF raw data'!L49 -> 3.7884106e-06 | F44: -2.884190984e-06 | G44: -3.752034776e-06 | H44: 3.793138536e-06 | J44: 4.913102139e-05 | K44: 0.001017103578 | L44: -6.512357832e-06 | M44: -2.466164304e-05 | N44: 6.227988063e-08
A45: 19.43746 | B45: ='DF raw data'!J50 -> 1.1282384e-06 | C45: ='DF raw data'!K50 -> -2.2432289e-06 | D45: ='DF raw data'!L50 -> 3.6119104e-06 | F45: 1.129646442e-06 | G45: -2.250759924e-06 | H45: 3.616418064e-06 | J45: 4.969600276e-05 | K45: 0.001041958537 | L45: -7.6380529e-06 | M45: -2.848173882e-05 | N45: 6.354425082e-08
A46: 19.9376 | B46: ='DF raw data'!J51 -> 8.3092817e-07 | C46: ='DF raw data'!K51 -> -1.3139559e-05 | D46: ='DF raw data'!L51 -> 4.4599582e-07 | F46: 8.319651684e-07 | G46: -1.318367145e-05 | H46: 4.465524228e-07 | J46: 5.011210182e-05 | K46: 0.001067021603 | L46: -1.423173434e-05 | M46: -3.559959843e-05 | N46: 6.490151326e-08
A47: 20.43774 | B47: ='DF raw data'!J52 -> -6.0098029e-07 | C47: ='DF raw data'!K52 -> -7.0184528e-06 | D47: ='DF raw data'!L52 -> -2.0381326e-06 | F47: -6.017303134e-07 | G47: -7.042015323e-06 | H47: -2.040676189e-06 | J47: 4.981115242e-05 | K47: 0.001091934153 | L47: -1.775372788e-05 | M47: -4.44789479e-05 | N47: 6.630007762e-08
A48: 20.93788 | B48: ='DF raw data'!J53 -> -1.051071e-06 | C48: ='DF raw data'!K53 -> -2.6465789e-06 | D48: ='DF raw data'!L53 -> -1.6694888e-06 | F48: -1.052382737e-06 | G48: -2.65546406e-06 | H48: -1.671572322e-06 | J48: 4.928481372e-05 | K48: 0.00111658346 | L48: -1.908183168e-05 | M48: -5.402253519e-05 | N48: 6.769702324e-08
A49: 21.43802 | B49: ='DF raw data'!J54 -> -8.2819389e-07 | C49: ='DF raw data'!K54 -> 1.4668473e-06 | D49: ='DF raw data'!L54 -> -1.8892518e-06 | F49: -8.29227476e-07 | G49: 1.471771836e-06 | H49: -1.891609586e-06 | J49: 4.887008389e-05 | K49: 0.001141025343 | L49: -1.834573971e-05 | M49: -6.319797345e-05 | N49: 6.905983035e-08
A50: 21.93816 | B50: ='DF raw data'!J55 -> 1.1890509e-06 | C50: ='DF raw data'!K55 -> -8.2116931e-06 | D50: ='DF raw data'!L55 -> -7.45384e-07 | F50: 1.190534836e-06 | G50: -8.239261599e-06 | H50: -7.463142392e-07 | J50: 4.946551798e-05 | K50: 0.001165765028 | L50: -2.246652401e-05 | M50: -7.443438077e-05 | N50: 7.053603466e-08
A51: 22.4383 | B51: ='DF raw data'!J56 -> 7.1318863e-07 | C51: ='DF raw data'!K56 -> -1.5053572e-05 | D51: ='DF raw data'!L56 -> 5.6692227e-07 | F51: 7.140786894e-07 | G51: -1.510411022e-05 | H51: 5.67629789e-07 | J51: 4.982265729e-05 | K51: 0.001190683331 | L51: -3.00206937e-05 | M51: -8.944893052e-05 | N51: 7.222827797e-08
A52: 22.93844 | B52: ='DF raw data'!J57 -> -2.4578046e-06 | C52: ='DF raw data'!K57 -> 3.7142943e-06 | D52: ='DF raw data'!L57 -> -1.9344444e-07 | F52: -2.46087194e-06 | G52: 3.726764021e-06 | H52: -1.936858587e-07 | J52: 4.85918768e-05 | K52: 0.001214986073 | L52: -2.815678994e-05 | M52: -0.0001035312674 | N52: 7.380570718e-08
A53: 23.43858 | B53: ='DF raw data'!J58 -> -2.1059684e-06 | C53: ='DF raw data'!K58 -> 1.382087e-05 | D53: ='DF raw data'!L58 -> -6.2125616e-07 | F53: -2.108596649e-06 | G53: 1.386726977e-05 | H53: -6.220314877e-07 | J53: 4.753728327e-05 | K53: 0.00123876137 | L53: -2.122121364e-05 | M53: -0.0001141448452 | N53: 7.51611532e-08
A54: 23.93872 | B54: ='DF raw data'!J59 -> -4.5553389e-07 | C54: ='DF raw data'!K59 -> 5.2033424e-06 | D54: ='DF raw data'!L59 -> 3.1513569e-06 | F54: -4.561023963e-07 | G54: 5.22081119e-06 | H54: 3.155289793e-06 | J54: 4.730916822e-05 | K54: 0.001262422577 | L54: -1.861007713e-05 | M54: -0.0001234524892 | N54: 7.645376122e-08
A55: 24.43886 | B55: ='DF raw data'!J60 -> -1.02837e-06 | C55: ='DF raw data'!K60 -> 3.2426303e-06 | D55: ='DF raw data'!L60 -> 5.7433003e-06 | F55: -1.029653406e-06 | G55: 3.253516539e-06 | H55: 5.750467939e-06 | J55: 4.679419737e-05 | K55: 0.001285826227 | L55: -1.698286337e-05 | M55: -0.0001319462985 | N55: 7.769316543e-08
A56: 24.939 | B56: ='DF raw data'!J61 -> -3.9684246e-06 | C56: ='DF raw data'!K61 -> 5.2365033e-07 | D56: ='DF raw data'!L61 -> 3.3007032e-06 | F56: -3.973377194e-06 | G56: 5.254083418e-07 | H56: 3.304822478e-06 | J56: 4.48069525e-05 | K56: 0.001308235976 | L56: -1.672008564e-05 | M56: -0.0001403086821 | N56: 7.883709777e-08
A57: 25.43914 | B57: ='DF raw data'!J62 -> -8.1376647e-06 | C57: ='DF raw data'!K62 -> -1.5116478e-06 | D57: ='DF raw data'!L62 -> 2.9373855e-06 | F57: -8.147820506e-06 | G57: -1.516722741e-06 | H57: 2.941051357e-06 | J57: 4.073190155e-05 | K57: 0.001328607629 | L57: -1.747865935e-05 | M57: -0.0001490504588 | N57: 7.981966848e-08
A58: 25.93928 | B58: ='DF raw data'!J63 -> -4.9504315e-06 | C58: ='DF raw data'!K63 -> -8.3391151e-06 | D58: ='DF raw data'!L63 -> 3.8974918e-06 | F58: -4.956609639e-06 | G58: -8.367111384e-06 | H58: 3.90235587e-06 | J58: 3.825290281e-05 | K58: 0.001347739436 | L58: -2.166338644e-05 | M58: -0.0001598851849 | N58: 8.078623249e-08
A59: 26.43942 | B59: ='DF raw data'!J64 -> 3.7856734e-07 | C59: ='DF raw data'!K64 -> -1.3613089e-05 | D59: ='DF raw data'!L64 -> 3.4453928e-06 | F59: 3.79039792e-07 | G59: -1.36587912e-05 | H59: 3.44969265e-06 | J59: 3.844247577e-05 | K59: 0.001366966056 | L59: -2.849469427e-05 | M59: -0.0001741365213 | N59: 8.193143883e-08
A60: 26.93956 | B60: ='DF raw data'!J65 -> 2.5823094e-06 | C60: ='DF raw data'!K65 -> -1.4081286e-05 | D60: ='DF raw data'!L65 -> 2.8923328e-06 | F60: 2.585532122e-06 | G60: -1.412856004e-05 | H60: 2.895942431e-06 | J60: 3.97356038e-05 | K60: 0.001386839421 | L60: -3.556095229e-05 | M60: -0.000191921976 | N60: 8.335358669e-08
A61: 27.4397 | B61: ='DF raw data'!J66 -> 6.8355866e-06 | C61: ='DF raw data'!K66 -> -8.9641469e-07 | D61: ='DF raw data'!L66 -> 1.4934282e-06 | F61: 6.844117412e-06 | G61: -8.994241556e-07 | H61: 1.495291998e-06 | J61: 4.315862069e-05 | K61: 0.001408424773 | L61: -3.601079029e-05 | M61: -0.0002099324126 | N61: 8.493375079e-08
A62: 27.93984 | B62: ='DF raw data'!J67 -> 1.0925999e-05 | C62: ='DF raw data'!K67 -> 7.3751357e-06 | D62: ='DF raw data'!L67 -> 8.5378417e-07 | F62: 1.093963465e-05 | G62: 7.399895688e-06 | H62: 8.548496926e-07 | J62: 4.862996956e-05 | K62: 0.001432746566 | L62: -3.230980646e-05 | M62: -0.0002260918392 | N62: 8.663862678e-08
A63: 28.43998 | B63: ='DF raw data'!J68 -> 1.3694224e-05 | C63: ='DF raw data'!K68 -> 1.1029411e-07 | D63: ='DF raw data'!L68 -> 6.4292692e-07 | F63: 1.371131439e-05 | G63: 1.106643921e-07 | H63: 6.437292928e-07 | J63: 5.548754634e-05 | K63: 0.001460498108 | L63: -3.225445877e-05 | M63: -0.0002422235842 | N63: 8.869881243e-08
A64: 28.94012 | B64: ='DF raw data'!J69 -> 1.4107601e-05 | C64: ='DF raw data'!K69 -> 1.7849376e-06 | D64: ='DF raw data'!L69 -> 5.3137775e-08 | F64: 1.412520729e-05 | G64: 1.790930037e-06 | H64: 5.320409094e-08 | J64: 6.255212751e-05 | K64: 0.001491782929 | L64: -3.135874302e-05 | M64: -0.000257907346 | N64: 9.11475676e-08
A65: 29.44026 | B65: ='DF raw data'!J70 -> 1.364664e-05 | C65: ='DF raw data'!K70 -> 5.4139639e-07 | D65: ='DF raw data'!L70 -> -1.0775606e-06 | F65: 1.366367101e-05 | G65: 5.432139794e-07 | H65: -1.078905396e-06 | J65: 6.938587593e-05 | K65: 0.001526485581 | L65: -3.108705998e-05 | M65: -0.0002734552282 | N65: 9.403877945e-08
A66: 29.9404 | B66: ='DF raw data'!J71 -> 1.0589035e-05 | C66: ='DF raw data'!K71 -> -7.0628118e-07 | D66: ='DF raw data'!L71 -> -2.0329608e-07 | F66: 1.060225012e-05 | G66: -7.086523247e-07 | H66: -2.035497935e-07 | J66: 7.46884853e-05 | K66: 0.00156384028 | L66: -3.144148535e-05 | M66: -0.0002891803726 | N66: 9.732316724e-08
A67: 30.44054 | B67: ='DF raw data'!J72 -> 3.9535362e-06 | C67: ='DF raw data'!K72 -> 9.9021136e-06 | D67: ='DF raw data'!L72 -> 1.8964143e-06 | F67: 3.958470213e-06 | G67: 9.935357221e-06 | H67: 1.898781025e-06 | J67: 7.666827459e-05 | K67: 0.001602185151 | L67: -2.647241579e-05 | M67: -0.0003024202867 | N67: 1.006134948e-07
A68: 30.94068 | B68: ='DF raw data'!J73 -> -4.1559115e-06 | C68: ='DF raw data'!K73 -> 1.2321815e-05 | D68: ='DF raw data'!L73 -> 4.1229155e-06 | F68: -4.161098078e-06 | G68: 1.23631821e-05 | H68: 4.128060899e-06 | J68: 7.4587143e-05 | K68: 0.001639489164 | L68: -2.02890939e-05 | M68: -0.0003125676741 | N68: 1.036017759e-07
A69: 31.44082 | B69: ='DF raw data'!J74 -> -8.5131187e-06 | C69: ='DF raw data'!K74 -> 1.0759117e-05 | D69: ='DF raw data'!L74 -> 6.1972037e-06 | F69: -8.523743072e-06 | G69: 1.079523777e-05 | H69: 6.20493781e-06 | J69: 7.032407814e-05 | K69: 0.001674661049 | L69: -1.488996368e-05 | M69: -0.0003200147405 | N69: 1.061860928e-07
A70: 31.94096 | B70: ='DF raw data'!J75 -> -3.4221455e-06 | C70: ='DF raw data'!K75 -> -2.978679e-06 | D70: ='DF raw data'!L75 -> 6.1434926e-06 | F70: -3.426416338e-06 | G70: -2.988679095e-06 | H70: 6.151159679e-06 | J70: 6.861039027e-05 | K70: 0.001708975849 | L70: -1.638472164e-05 | M70: -0.0003282093952 | N70: 1.086747118e-07
A71: 32.4411 | B71: ='DF raw data'!J76 -> 3.9411234e-06 | C71: ='DF raw data'!K76 -> -1.5634379e-05 | D71: ='DF raw data'!L76 -> 6.6117502e-07 | F71: 3.946041922e-06 | G71: =(1-$G$1*($B$2-$G$2))*C71*$M$2/$M$1 -> -1.568686712e-05 | H71: 6.620001664e-07 | J71: 7.058396368e-05 | K71: 0.001744277713 | L71: -2.423035136e-05 | M71: -0.0003403279631 | N71: 1.114600944e-07
A72: =A71+$B$1 -> 32.94124 | B72: ='DF raw data'!J77 -> 7.1482345e-06 | C72: ='DF raw data'!K77 -> -2.6689943e-06 | D72: ='DF raw data'!L77 -> -3.1579025e-06 | F72: 7.157155497e-06 | G72: -2.677954714e-06 | H72: -3.161843562e-06 | J72: =F72*$B$1+J71 -> 7.416354343e-05 | K72: =J72*$B$1+K71 -> 0.001781369868 | L72: =G72*$B$1+L71 -> -2.556970363e-05 | M72: =L72*$B$1+M71 -> -0.0003531163947 | N72: =(J72^2+L72^2)*$B$1+N71 -> 1.145379765e-07
A73: 33.44138 | B73: ='DF raw data'!J78 -> 4.0634177e-06 | C73: ='DF raw data'!K78 -> 9.9461449e-06 | D73: ='DF raw data'!L78 -> -2.1695801e-06 | F73: 4.068488845e-06 | G73: 9.979536344e-06 | H73: -2.172287736e-06 | J73: 7.619835744e-05 | K73: 0.001819479714 | L73: -2.057853833e-05 | M73: -0.0003634085449 | N73: 1.176536816e-07
A74: 33.94152 | B74: ='DF raw data'!J79 -> -1.4424156e-06 | C74: ='DF raw data'!K79 -> 1.9926845e-06 | D74: ='DF raw data'!L79 -> -1.4743476e-06 | F74: -1.444215735e-06 | G74: 1.99937439e-06 | H74: -1.476187586e-06 | J74: 7.547604738e-05 | K74: 0.001857228304 | L74: -1.957857122e-05 | M74: -0.0003732005715 | N74: 1.206945099e-07
A75: 34.44166 | B75: ='DF raw data'!J80 -> -4.8177326e-06 | C75: ='DF raw data'!K80 -> 2.0643345e-06 | D75: ='DF raw data'!L80 -> -3.2172015e-06 | F75: -4.82374513e-06 | G75: 2.071264935e-06 | H75: -3.221216567e-06 | J75: 7.306349949e-05 | K75: 0.001893770283 | L75: -1.854264877e-05 | M75: -0.0003824744918 | N75: 1.235363578e-07
A76: 34.9418 | B76: ='DF raw data'!J81 -> -2.7585199e-06 | C76: ='DF raw data'!K81 -> -4.5597903e-06 | D76: ='DF raw data'!L81 -> -3.2719022e-06 | F76: -2.761962533e-06 | G76: -4.575098541e-06 | H76: -3.275985534e-06 | J76: 7.168213155e-05 | K76: 0.001929621384 | L76: -2.083083856e-05 | M76: -0.0003928928274 | N76: 1.263232638e-07
A77: 35.44194 | B77: ='DF raw data'!J82 -> -4.0245513e-06 | C77: ='DF raw data'!K82 -> -2.4158837e-06 | D77: ='DF raw data'!L82 -> -1.8756749e-06 | F77: -4.02957394e-06 | G77: -2.423994365e-06 | H77: -1.878015742e-06 | J77: 6.966678044e-05 | K77: 0.001964464528 | L77: -2.20431751e-05 | M77: -0.000403917501 | N77: 1.289936922e-07
A78: 35.94208 | B78: ='DF raw data'!J83 -> -9.4748548e-06 | C78: ='DF raw data'!K83 -> -1.1181781e-05 | D78: ='DF raw data'!L83 -> -3.3011224e-06 | F78: -9.486679419e-06 | G78: -1.121932075e-05 | H78: -3.305242201e-06 | J78: 6.49221126e-05 | K78: 0.001996934673 | L78: -2.765440618e-05 | M78: -0.0004177485757 | N78: 1.314842128e-07
A79: 36.44222 | B79: ='DF raw data'!J84 -> -5.9851163e-06 | C79: ='DF raw data'!K84 -> -7.6598371e-06 | D79: ='DF raw data'!L84 -> -5.7111088e-06 | F79: -5.992585725e-06 | G79: -7.685552895e-06 | H79: -5.718236264e-06 | J79: 6.192498077e-05 | K79: 0.002027905833 | L79: -3.149825861e-05 | M79: -0.0004335021148 | N79: 1.338983103e-07
A80: 36.94236 | B80: ='DF raw data'!J85 -> 1.3087986e-06 | C80: ='DF raw data'!K85 -> -3.0315152e-06 | D80: ='DF raw data'!L85 -> -3.9775828e-06 | F80: 1.310431981e-06 | G80: -3.041692678e-06 | H80: -3.982546823e-06 | J80: 6.258038022e-05 | K80: 0.002059204785 | L80: -3.301953078e-05 | M80: -0.0004500165029 | N80: 1.36402308e-07
A81: 37.4425 | B81: ='DF raw data'!J86 -> 6.1647579e-06 | C81: ='DF raw data'!K86 -> 8.7287553e-06 | D81: ='DF raw data'!L86 -> 9.824231e-07 | F81: 6.172451518e-06 | G81: 8.758059693e-06 | H81: 9.83649164e-07 | J81: 6.566747013e-05 | K81: 0.002092047713 | L81: -2.863927481e-05 | M81: -0.0004643401498 | N81: 1.389692389e-07
A82: 37.94264 | B82: ='DF raw data'!J87 -> 4.1934391e-06 | C82: ='DF raw data'!K87 -> 1.1072403e-05 | D82: ='DF raw data'!L87 -> 4.2003171e-06 | F82: 4.198672512e-06 | G82: 1.110957555e-05 | H82: 4.205559096e-06 | J82: 6.77673942e-05 | K82: 0.002125940898 | L82: -2.308293169e-05 | M82: -0.0004758848473 | N82: 1.415325771e-07
A83: 38.44278 | B83: ='DF raw data'!J88 -> -1.8204162e-06 | C83: ='DF raw data'!K88 -> 1.4316225e-06 | D83: ='DF raw data'!L88 -> 1.2795296e-06 | F83: -1.822688079e-06 | G83: 1.436428778e-06 | H83: 1.281126453e-06 | J83: 6.685579498e-05 | K83: 0.002159378155 | L83: -2.23645162e-05 | M83: -0.0004870702364 | N83: 1.440182073e-07
A84: 38.94292 | B84: ='DF raw data'!J89 -> -8.8366579e-07 | C84: ='DF raw data'!K89 -> -7.6099354e-06 | D84: ='DF raw data'!L89 -> -4.9608557e-06 | F84: -8.847686049e-07 | G84: -7.635483663e-06 | H84: -4.967046848e-06 | J84: 6.641328681e-05 | K84: 0.002192594096 | L84: -2.6183327e-05 | M84: -0.0005001655656 | N84: 1.465670665e-07
A85: 39.44306 | B85: ='DF raw data'!J90 -> -4.996553e-07 | C85: ='DF raw data'!K90 -> 2.340528e-06 | D85: ='DF raw data'!L90 -> -5.5462647e-06 | F85: -5.002788698e-07 | G85: 2.348385679e-06 | H85: -5.553186438e-06 | J85: 6.616307734e-05 | K85: 0.002225684898 | L85: -2.500880539e-05 | M85: -0.0005126734695 | N85: 1.490692635e-07
A86: 39.9432 | B86: ='DF raw data'!J91 -> -4.7408403e-06 | C86: ='DF raw data'!K91 -> -8.3229697e-06 | D86: ='DF raw data'!L91 -> -6.3384357e-07 | F86: -4.746756869e-06 | G86: -8.35091178e-06 | H86: -6.346346068e-07 | J86: 6.378903436e-05 | K86: 0.002257588345 | L86: -2.918543041e-05 | M86: -0.0005272702707 | N86: 1.515303675e-07
A87: 40.44334 | B87: ='DF raw data'!J92 -> -8.9595424e-06 | C87: ='DF raw data'!K92 -> 4.8575714e-07 | D87: ='DF raw data'!L92 -> 3.7819495e-06 | F87: =(1-$G$1*($B$2-$G$2))*B87 -> -8.970723909e-06 | G87: 4.873879359e-07 | H87: 3.786669373e-06 | J87: 5.93024165e-05 | K87: 0.002287247856 | L87: -2.894166821e-05 | M87: -0.0005417451566 | N87: 1.537081755e-07
A88: 40.94348 | B88: ='DF raw data'!J93 -> -9.4561556e-06 | C88: ='DF raw data'!K93 -> 4.7981234e-06 | D88: ='DF raw data'!L93 -> 6.655036e-06 | F88: -9.467956882e-06 | G88: 4.814231779e-06 | H88: 6.663341485e-06 | J88: 5.456711254e-05 | K88: 0.002314539052 | L88: -2.653387832e-05 | M88: -0.0005550158105 | N88: 1.555494992e-07
A89: 41.44362 | B89: ='DF raw data'!J94 -> -7.4000136e-06 | C89: ='DF raw data'!K94 -> -1.0751479e-05 | D89: ='DF raw data'!L94 -> 7.0660694e-06 | F89: -7.409248817e-06 | G89: -1.078757413e-05 | H89: 7.074887855e-06 | J89: 5.086145084e-05 | K89: 0.002339976898 | L89: -3.192917565e-05 | M89: -0.0005709848684 | N89: 1.573531838e-07
A90: 41.94376 | B90: ='DF raw data'!J95 -> -4.6995274e-06 | C90: ='DF raw data'!K95 -> -7.0562132e-06 | D90: ='DF raw data'!L95 -> 5.1120383e-06 | F90: -4.70539241e-06 | G90: -7.079902494e-06 | H90: 5.118418124e-06 | J90: 4.850809588e-05 | K90: 0.002364237737 | L90: -3.547011808e-05 | M90: -0.0005887248933 | N90: 1.591592717e-07
A91: 42.4439 | B91: ='DF raw data'!J96 -> 1.9294378e-06 | C91: ='DF raw data'!K96 -> -2.2853912e-06 | D91: ='DF raw data'!L96 -> 3.2173789e-06 | F91: 1.931845738e-06 | G91: -2.293063772e-06 | H91: 3.221394189e-06 | J91: 4.947428921e-05 | K91: 0.002388981808 | L91: -3.6616971e-05 | M91: -0.0006070385052 | N91: 1.61054056e-07
A92: 42.94404 | B92: ='DF raw data'!J97 -> 7.8045259e-06 | C92: ='DF raw data'!K97 -> -5.2263936e-06 | D92: ='DF raw data'!L97 -> 1.5197817e-06 | F92: 7.814265948e-06 | G92: -5.243939778e-06 | H92: 1.521678388e-06 | J92: 5.338251618e-05 | K92: 0.002415680539 | L92: -3.923967504e-05 | M92: -0.0006266638362 | N92: 1.632493931e-07
A93: 43.44418 | B93: ='DF raw data'!J98 -> 7.2607063e-06 | C93: ='DF raw data'!K98 -> 2.2487309e-06 | D93: ='DF raw data'!L98 -> 1.5746278e-06 | F93: 7.269767661e-06 | G93: 2.256280395e-06 | H93: 1.576592935e-06 | J93: 5.701841778e-05 | K93: 0.002444197731 | L93: -3.811121896e-05 | M93: -0.0006457247813 | N93: 1.656018341e-07
A94: 43.94432 | B94: ='DF raw data'!J99 -> 3.4949037e-06 | C94: ='DF raw data'!K99 -> -3.1896273e-06 | D94: ='DF raw data'!L99 -> 1.1880853e-06 | F94: 3.49926534e-06 | G94: -3.200335596e-06 | H94: 1.18956803e-06 | J94: 5.876854035e-05 | K94: 0.002473590229 | L94: -3.971183481e-05 | M94: -0.0006655862583 | N94: 1.681179239e-07
A95: 44.44446 | B95: ='DF raw data'!J100 -> 1.2383673e-06 | C95: ='DF raw data'!K100 -> 1.419881e-06 | D95: ='DF raw data'!L100 -> -5.756068e-07 | F95: 1.239912782e-06 | G95: 1.42464786e-06 | H95: -5.763251573e-07 | J95: 5.938867032e-05 | K95: 0.002503292878 | L95: -3.899931143e-05 | M95: -0.000685091374 | N95: 1.706426109e-07
A96: 44.9446 | B96: ='DF raw data'!J101 -> -4.7891081e-08 | C96: ='DF raw data'!K101 -> 1.1297895e-05 | D96: ='DF raw data'!L101 -> -2.3760863e-06 | F96: -4.795084907e-08 | G96: 1.133582457e-05 | H96: -2.379051656e-06 | J96: 5.936468819e-05 | K96: 0.002532983533 | L96: -3.332981212e-05 | M96: -0.0007017609462 | N96: 1.729607811e-07
A97: 45.44474 | B97: ='DF raw data'!J102 -> -3.5369455e-06 | C97: ='DF raw data'!K102 -> 3.403409e-06 | D97: ='DF raw data'!L102 -> -3.8133207e-06 | F97: -3.541359608e-06 | G97: 3.414835009e-06 | H97: -3.818079724e-06 | J97: 5.759351259e-05 | K97: 0.002561788353 | L97: -3.162191654e-05 | M97: -0.0007175763315 | N97: 1.751198646e-07
A98: 45.94488 | B98: ='DF raw data'!J103 -> -3.9238957e-06 | C98: ='DF raw data'!K103 -> -3.9038628e-06 | D98: ='DF raw data'!L103 -> -5.8651844e-06 | F98: -3.928792722e-06 | G98: -3.916968945e-06 | H98: -5.87250415e-06 | J98: 5.56285662e-05 | K98: 0.002589610424 | L98: -3.358094939e-05 | M98: -0.0007343715076 | N98: 1.772315645e-07
A99: 46.44502 | B99: ='DF raw data'!J104 -> -1.3366232e-06 | C99: ='DF raw data'!K104 -> 8.126598e-06 | D99: ='DF raw data'!L104 -> -7.0548472e-06 | F99: -1.338291306e-06 | G99: 8.153880816e-06 | H99: -7.063651649e-06 | J99: 5.495923319e-05 | K99: 0.002617097735 | L99: -2.950286744e-05 | M99: -0.0007491270717 | N99: 1.791775775e-07
A100: 46.94516 | B100: ='DF raw data'!J105 -> 1.9037391e-06 | C100: ='DF raw data'!K105 -> 8.0476093e-06 | D100: ='DF raw data'!L105 -> -6.5323898e-06 | F100: 1.906114966e-06 | G100: 8.074626933e-06 | H100: -6.540542222e-06 | J100: 5.591255753e-05 | K100: 0.002645061841 | L100: -2.546442353e-05 | M100: -0.0007618628485 | N100: 1.810654314e-07
A101: 47.4453 | B101: ='DF raw data'!J106 -> 2.747852e-06 | C101: ='DF raw data'!K106 -> 4.588243e-06 | D101: ='DF raw data'!L106 -> -6.5334314e-07 | F101: 2.751281319e-06 | G101: 4.603646763e-06 | H101: -6.541585122e-07 | J101: 5.728858337e-05 | K101: 0.002673714153 | L101: -2.316195563e-05 | M101: -0.000773447069 | N101: 1.82975195e-07
A102: 47.94544 | B102: ='DF raw data'!J107 -> -8.191717e-07 | C102: ='DF raw data'!K107 -> 6.3521497e-06 | D102: ='DF raw data'!L107 -> 5.1433249e-06 | F102: -8.201940263e-07 | G102: 6.373475294e-06 | H102: 5.149743769e-06 | J102: 5.687837153e-05 | K102: 0.002702161302 | L102: -1.99743257e-05 | M102: -0.0007834370282 | N102: 1.847927652e-07
A103: 48.44558 | B103: ='DF raw data'!J108 -> -6.1580658e-06 | C103: ='DF raw data'!K108 -> -4.0860536e-07 | D103: ='DF raw data'!L108 -> 3.7269142e-06 | F103: -6.165751066e-06 | G103: -4.0997714e-07 | H103: 3.731565389e-06 | J103: 5.379463279e-05 | K103: 0.00272906615 | L103: -2.017937167e-05 | M103: -0.0007935295392 | N103: 1.864437621e-07
A104: 48.94572 | B104: ='DF raw data'!J109 -> -5.4000566e-06 | C104: ='DF raw data'!K109 -> -4.471643e-07 | D104: ='DF raw data'!L109 -> -7.590337e-07 | F104: -5.406795871e-06 | G104: -4.486655311e-07 | H104: -7.599809741e-07 | J104: 5.10904779e-05 | K104: 0.002754618541 | L104: -2.040376725e-05 | M104: -0.0008037342793 | N104: 1.879574611e-07
A105: 49.44586 | B105: ='DF raw data'!J110 -> 6.3769329e-07 | C105: ='DF raw data'!K110 -> -1.7985152e-06 | D105: ='DF raw data'!L110 -> -1.4476594e-06 | F105: 6.384891312e-07 | G105: -1.80455322e-06 | H105: -1.449466079e-06 | J105: 5.140981185e-05 | K105: 0.002780330645 | L105: -2.130629649e-05 | M105: -0.0008143904104 | N105: 1.895063582e-07
A106: 49.946 | B106: ='DF raw data'!J111 -> 4.1600715e-06 | C106: ='DF raw data'!K111 -> -6.8973009e-06 | D106: ='DF raw data'!L111 -> 1.8717197e-06 | F106: 4.165263269e-06 | G106: -6.920456689e-06 | H106: 1.874055606e-06 | J106: 5.349302663e-05 | K106: 0.002807084647 | L106: -2.47674937e-05 | M106: -0.0008267776247 | N106: 1.91244311e-07
A107: 50.44614 | B107: ='DF raw data'!J112 -> 1.7257843e-08 | C107: ='DF raw data'!K112 -> -3.6861095e-06 | D107: ='DF raw data'!L112 -> 5.4769566e-06 | F107: 1.727938079e-08 | G107: -3.698484598e-06 | H107: 5.483791842e-06 | J107: 5.350166874e-05 | K107: 0.002833842972 | L107: -2.661725379e-05 | M107: -0.000840089978 | N107: 1.930302643e-07
A108: 50.94628 | B108: ='DF raw data'!J113 -> -6.0352477e-06 | C108: ='DF raw data'!K113 -> 8.4300118e-06 | D108: ='DF raw data'!L113 -> 8.1067064e-06 | F108: -6.042779689e-06 | G108: 8.458313244e-06 | H108: 8.11682357e-06 | J108: 5.04794329e-05 | K108: 0.002859089755 | L108: -2.2386913e-05 | M108: -0.0008512865687 | N108: 1.945553647e-07
A109: 51.44642 | B109: ='DF raw data'!J114 -> -4.6522628e-06 | C109: ='DF raw data'!K114 -> 4.5129896e-06 | D109: ='DF raw data'!L114 -> 7.367556e-06 | F109: -4.658068824e-06 | G109: 4.52814072e-06 | H109: 7.37675071e-06 | J109: 4.814974636e-05 | K109: 0.002883171369 | L109: -2.01222087e-05 | M109: -0.0008613504902 | N109: 1.959173967e-07
A110: 51.94656 | B110: ='DF raw data'!J115 -> -1.4609693e-06 | C110: ='DF raw data'!K115 -> 1.01663e-05 | D110: ='DF raw data'!L115 -> 3.4771451e-06 | F110: -1.46279259e-06 | G110: 1.020043055e-05 | H110: 3.481484577e-06 | J110: 4.741814527e-05 | K110: 0.00290688708 | L110: -1.502056536e-05 | M110: -0.0008688628757 | N110: 1.97154792e-07
A111: 52.4467 | B111: ='DF raw data'!J116 -> 5.9837402e-07 | C111: ='DF raw data'!K116 -> 3.9798147e-06 | D111: ='DF raw data'!L116 -> 2.8506619e-07 | F111: 5.991207908e-07 | G111: 3.993175832e-06 | H111: 2.854219526e-07 | J111: 4.771778955e-05 | K111: 0.002930752656 | L111: -1.30234184e-05 | M111: -0.0008753764082 | N111: 1.98378433e-07
A112: 52.94684 | B112: ='DF raw data'!J117 -> 2.6676855e-06 | C112: ='DF raw data'!K117 -> -4.37691e-07 | D112: ='DF raw data'!L117 -> 1.6920384e-07 | F112: 2.671014772e-06 | G112: -4.391604271e-07 | H112: 1.694150064e-07 | J112: 4.905367087e-05 | K112: 0.002955286359 | L112: -1.32430601e-05 | M112: -0.0008819997923 | N112: 1.99669615e-07
A113: 53.44698 | B113: ='DF raw data'!J118 -> 4.428467e-06 | C113: ='DF raw data'!K118 -> 9.989177e-07 | D113: ='DF raw data'!L118 -> 1.3791723e-07 | F113: 4.433993727e-06 | G113: 1.002271291e-06 | H113: 1.380893507e-07 | J113: 5.12712885e-05 | K113: 0.002980929181 | L113: -1.274178414e-05 | M113: -0.0008883724682 | N113: 2.010655548e-07
A114: 53.94712 | B114: ='DF raw data'!J119 -> 5.3195681e-06 | C114: ='DF raw data'!K119 -> 4.9937275e-06 | D114: ='DF raw data'!L119 -> -2.5316317e-06 | F114: 5.326206921e-06 | G114: 5.010492566e-06 | H114: -2.534791176e-06 | J114: 5.393513763e-05 | K114: 0.003007904301 | L114: -1.023583638e-05 | M114: -0.0008934918194 | N114: 2.025728625e-07
A115: 54.44726 | B115: ='DF raw data'!J120 -> 5.9137083e-06 | C115: ='DF raw data'!K120 -> 9.0685944e-06 | D115: ='DF raw data'!L120 -> -4.3391688e-06 | F115: 5.921088608e-06 | G115: 9.09903971e-06 | H115: -4.344584083e-06 | J115: 5.689651088e-05 | K115: 0.003036360522 | L115: -5.685042664e-06 | M115: -0.0008963351367 | N115: 2.042080865e-07
A116: 54.9474 | B116: ='DF raw data'!J121 -> 6.5003687e-06 | C116: ='DF raw data'!K121 -> 6.8589873e-07 | D116: ='DF raw data'!L121 -> -4.6386617e-06 | F116: 6.50848116e-06 | G116: 6.882014462e-07 | H116: -4.64445075e-06 | J116: 6.015166265e-05 | K116: 0.003066444774 | L116: -5.340845593e-06 | M116: -0.0008990063072 | N116: 2.060319706e-07
A117: 55.44754 | B117: ='DF raw data'!J122 -> 1.7244449e-06 | C117: ='DF raw data'!K122 -> -2.2350889e-06 | D117: ='DF raw data'!L122 -> -1.8882478e-06 | F117: 1.726597007e-06 | G117: -2.242592596e-06 | H117: -1.890604333e-06 | J117: 6.101520288e-05 | K117: 0.003096960918 | L117: -6.462455854e-06 | M117: -0.0009022384398 | N117: 2.079148068e-07
A118: 55.94768 | B118: ='DF raw data'!J123 -> -4.9433593e-06 | C118: ='DF raw data'!K123 -> 2.5682891e-06 | D118: ='DF raw data'!L123 -> -1.1445663e-07 | F118: -4.949528612e-06 | G118: 2.576911424e-06 | H118: -1.145994719e-07 | J118: 5.853974564e-05 | K118: 0.003126238986 | L118: -5.173639374e-06 | M118: -0.0009048259838 | N118: 2.096421245e-07
A119: 56.44782 | B119: ='DF raw data'!J124 -> -3.0034869e-06 | C119: ='DF raw data'!K124 -> 5.037225e-06 | D119: ='DF raw data'!L124 -> -2.4282695e-06 | F119: -3.007235252e-06 | G119: 5.054136096e-06 | H119: -2.43129998e-06 | J119: 5.7035707e-05 | K119: 0.003154764825 | L119: -2.645863747e-06 | M119: -0.0009061492861 | N119: 2.112726172e-07
A120: 56.94796 | B120: ='DF raw data'!J125 -> 5.1205852e-06 | C120: ='DF raw data'!K125 -> -4.4767989e-06 | D120: ='DF raw data'!L125 -> -5.6126796e-06 | F120: 5.12697569e-06 | G120: -4.49182852e-06 | H120: -5.619684224e-06 | J120: 5.959991262e-05 | K120: 0.003184573125 | L120: -4.892406863e-06 | M120: -0.0009085961745 | N120: 2.130611604e-07
A121: 57.4481 | B121: ='DF raw data'!J126 -> 9.0845124e-06 | C121: ='DF raw data'!K126 -> -1.2413848e-05 | D121: ='DF raw data'!L126 -> -8.1373491e-06 | F121: 9.095849871e-06 | G121: -1.245552408e-05 | H121: -8.147504512e-06 | J121: 6.414911097e-05 | K121: 0.003216656661 | L121: -1.112191268e-05 | M121: -0.0009141586879 | N121: 2.151811566e-07
A122: 57.94824 | B122: ='DF raw data'!J127 -> 5.7091229e-06 | C122: ='DF raw data'!K127 -> 1.0432086e-05 | D122: ='DF raw data'!L127 -> -7.4804616e-06 | F122: 5.716247885e-06 | G122: 1.046710886e-05 | H122: -7.489797216e-06 | J122: 6.700803519e-05 | K122: 0.00325017006 | L122: -5.886892851e-06 | M122: -0.0009171029585 | N122: 2.174441562e-07
A123: 58.44838 | B123: ='DF raw data'!J128 -> 3.1412631e-06 | C123: ='DF raw data'!K128 -> 7.2127555e-06 | D123: ='DF raw data'!L128 -> -2.0690845e-06 | F123: 3.145183396e-06 | G123: 7.236970341e-06 | H123: -2.071666717e-06 | J123: 6.858106722e-05 | K123: 0.003284470195 | L123: -2.267394505e-06 | M123: -0.0009182369732 | N123: 2.197990673e-07
A124: 58.94852 | B124: ='DF raw data'!J129 -> 1.0060896e-06 | C124: ='DF raw data'!K129 -> -6.4356971e-07 | D124: ='DF raw data'!L129 -> 3.2398762e-06 | F124: 1.0073452e-06 | G124: -6.457303182e-07 | H124: 3.243919565e-06 | J124: 6.908488084e-05 | K124: 0.003319022307 | L124: -2.590350066e-06 | M124: -0.0009195325109 | N124: 2.221894518e-07
A125: 59.44866 | B125: ='DF raw data'!J130 -> 5.0886518e-07 | C125: ='DF raw data'!K130 -> 2.1908234e-06 | D125: ='DF raw data'!L130 -> 3.1004397e-06 | F125: 5.095002437e-07 | G125: 2.198178487e-06 | H125: 3.104309049e-06 | J125: 6.93397023e-05 | K125: 0.003353701866 | L125: -1.490953078e-06 | M125: -0.0009202781961 | N125: 2.245952338e-07
A126: 59.9488 | B126: ='DF raw data'!J131 -> -4.3383699e-07 | C126: ='DF raw data'!K131 -> -1.3349838e-05 | D126: ='DF raw data'!L131 -> -6.0927994e-07 | F126: -4.343784186e-07 | G126: -1.339465641e-05 | H126: -6.100403214e-07 | J126: 6.912245227e-05 | K126: 0.003388272769 | L126: -8.190156533e-06 | M126: -0.000924374421 | N126: 2.270184081e-07
A127: 60.44894 | B127: ='DF raw data'!J132 -> -7.794225e-06 | C127: ='DF raw data'!K132 -> -6.6171594e-07 | D127: ='DF raw data'!L132 -> -3.9222709e-06 | F127: -7.803952193e-06 | G127: -6.639374691e-07 | H127: -3.927165894e-06 | J127: 6.521938362e-05 | K127: 0.003420891592 | L127: -8.522218219e-06 | M127: -0.0009286367233 | N127: 2.291821119e-07
A128: 60.94908 | B128: ='DF raw data'!J133 -> -9.9367617e-06 | C128: ='DF raw data'!K133 -> 1.6212018e-05 | D128: ='DF raw data'!L133 -> -7.1239979e-06 | F128: -9.949162779e-06 | G128: 1.626644539e-05 | H128: -7.132888649e-06 | J128: 6.024340935e-05 | K128: 0.00345102173 | L128: -3.867182225e-07 | M128: -0.0009288301365 | N128: 2.30997329e-07
A129: 61.44922 | B129: ='DF raw data'!J134 -> -1.160676e-06 | C129: ='DF raw data'!K134 -> 8.3737059e-06 | D129: ='DF raw data'!L134 -> -9.382964e-06 | F129: -1.162124524e-06 | G129: 8.401818313e-06 | H129: -9.394673939e-06 | J129: 5.966218439e-05 | K129: 0.003480861175 | L129: 3.815367188e-06 | M129: -0.0009269219188 | N129: 2.32784896e-07
A130: 61.94936 | B130: ='DF raw data'!J135 -> 3.8474091e-06 | C130: ='DF raw data'!K135 -> 3.9703423e-06 | D130: ='DF raw data'!L135 -> -8.3865216e-06 | F130: 3.852210667e-06 | G130: 3.983671631e-06 | H130: -8.396987979e-06 | J130: 6.158882904e-05 | K130: 0.003511664212 | L130: 5.807760718e-06 | M130: -0.0009240172253 | N130: 2.346988888e-07
A131: 62.4495 | B131: ='DF raw data'!J136 -> 5.0052694e-07 | C131: ='DF raw data'!K136 -> -1.6323278e-07 | D131: ='DF raw data'!L136 -> -5.6023041e-06 | F131: 5.011515976e-07 | G131: -1.637807891e-07 | H131: -5.609295776e-06 | J131: 6.1839475e-05 | K131: 0.003542592607 | L131: 5.725847394e-06 | M131: -0.0009211535 | N131: 2.366278817e-07
A132: 62.94964 | B132: ='DF raw data'!J137 -> -2.5289053e-06 | C132: ='DF raw data'!K137 -> -1.7380738e-06 | D132: ='DF raw data'!L137 -> -5.4180769e-06 | F132: -2.532061374e-06 | G132: -1.743908904e-06 | H132: -5.42483866e-06 | J132: 6.057308982e-05 | K132: 0.003572887632 | L132: 4.853648795e-06 | M132: -0.0009187259961 | N132: 2.384747272e-07
A133: 63.44978 | B133: ='DF raw data'!J138 -> -5.9443192e-07 | C133: ='DF raw data'!K138 -> -1.2026243e-05 | D133: ='DF raw data'!L138 -> -7.9415386e-06 | F133: -5.95173771e-07 | G133: -1.20666178e-05 | H133: -7.95144964e-06 | J133: 6.027541961e-05 | K133: 0.003603033781 | L133: -1.181349432e-06 | M133: -0.0009193168362 | N133: 2.40292497e-07
A134: 63.94992 | B134: ='DF raw data'!J139 -> -2.0143932e-06 | C134: ='DF raw data'!K139 -> -6.3702651e-06 | D134: ='DF raw data'!L139 -> -6.5556146e-06 | F134: -2.016907163e-06 | G134: -6.391651512e-06 | H134: -6.563796007e-06 | J134: 5.926668366e-05 | K134: 0.00363267542 | L134: -4.378070019e-06 | M134: -0.0009215064841 | N134: 2.420588451e-07
A135: 64.45006 | B135: ='DF raw data'!J140 -> -8.4476496e-06 | C135: ='DF raw data'!K140 -> 7.4717377e-06 | D135: ='DF raw data'!L140 -> -1.606188e-06 | F135: -8.458192267e-06 | G135: =(1-$G$1*($B$2-$G$2))*C135*$M$2/$M$1 -> 7.496822003e-06 | H135: -1.608192523e-06 | J135: 5.503640338e-05 | K135: 0.003660201327 | L135: -6.286094625e-07 | M135: -0.0009218208769 | N135: 2.435739696e-07
A136: =A135+$B$1 -> 64.9502 | B136: ='DF raw data'!J141 -> -9.3408898e-06 | C136: ='DF raw data'!K141 -> 3.6423769e-06 | D136: ='DF raw data'!L141 -> 2.6581924e-06 | F136: -9.35254723e-06 | G136: 3.654605178e-06 | H136: 2.661509824e-06 | J136: =F136*$B$1+J135 -> 5.035882041e-05 | K136: =J136*$B$1+K135 -> 0.003685387787 | L136: =G136*$B$1+L135 -> 1.199204771e-06 | M136: =L136*$B$1+M135 -> -0.0009212211066 | N136: =(J136^2+L136^2)*$B$1+N135 -> 2.448430493e-07
A137: 65.45034 | B137: ='DF raw data'!J142 -> -4.942166e-06 | C137: ='DF raw data'!K142 -> -4.6144154e-07 | D137: ='DF raw data'!L142 -> 4.2239494e-06 | F137: -4.948333823e-06 | G137: -4.62990703e-07 | H137: 4.229220889e-06 | J137: 4.788396073e-05 | K137: 0.003709336471 | L137: 9.67644601e-07 | M137: -0.0009207371488 | N137: 2.459902754e-07
A138: 65.95048 | B138: ='DF raw data'!J143 -> -2.7916255e-06 | C138: ='DF raw data'!K143 -> 5.1457721e-07 | D138: ='DF raw data'!L143 -> 6.4969004e-06 | F138: -2.795109449e-06 | G138: 5.163047613e-07 | H138: 6.505008532e-06 | J138: 4.648601469e-05 | K138: 0.003732585987 | L138: 1.225869264e-06 | M138: -0.0009201240426 | N138: 2.470718043e-07
A139: 66.45062 | B139: ='DF raw data'!J144 -> -5.1684483e-06 | C139: ='DF raw data'!K144 -> -1.4989713e-06 | D139: ='DF raw data'!L144 -> 1.0074576e-05 | F139: -5.174898523e-06 | G139: -1.504003684e-06 | H139: 1.008714907e-05 | J139: 4.389784094e-05 | K139: 0.003754541053 | L139: 4.73656862e-07 | M139: -0.0009198871478 | N139: 2.480356965e-07
A140: 66.95076 | B140: ='DF raw data'!J145 -> -3.9732267e-06 | C140: ='DF raw data'!K145 -> 5.9398603e-06 | D140: ='DF raw data'!L145 -> 9.3072103e-06 | F140: -3.978185287e-06 | G140: 5.959801746e-06 | H140: 9.318825698e-06 | J140: 4.190819135e-05 | K140: 0.003775501016 | L140: 3.454392107e-06 | M140: -0.0009181594682 | N140: 2.489200588e-07
A141: 67.4509 | B141: ='DF raw data'!J146 -> 3.7345301e-06 | C141: ='DF raw data'!K146 -> 6.0267207e-06 | D141: ='DF raw data'!L146 -> 4.1868711e-06 | F141: 3.739190794e-06 | G141: 6.046953756e-06 | H141: 4.192096315e-06 | J141: 4.377831024e-05 | K141: 0.0037973963 | L141: 6.478715559e-06 | M141: -0.0009149192034 | N141: 2.498995901e-07
A142: 67.95104 | B142: ='DF raw data'!J147 -> 6.5854101e-06 | C142: ='DF raw data'!K147 -> 2.8499542e-06 | D142: ='DF raw data'!L147 -> 8.9703246e-07 | F142: 6.593628692e-06 | G142: 2.859522137e-06 | H142: 8.981519565e-07 | J142: 4.707604769e-05 | K142: 0.003820940914 | L142: 7.90887696e-06 | M142: -0.0009109636576 | N142: 2.510392614e-07
A143: 68.45118 | B143: ='DF raw data'!J148 -> -2.9263326e-06 | C143: ='DF raw data'!K148 -> 8.2332883e-07 | D143: ='DF raw data'!L148 -> -6.9712985e-07 | F143: -2.929984663e-06 | G143: 8.260929299e-07 | H143: -6.979998681e-07 | J143: 4.561064516e-05 | K143: 0.003843752622 | L143: 8.322039078e-06 | M143: -0.000906801473 | N143: 2.52114356e-07
A144: 68.95132 | B144: ='DF raw data'!J149 -> -1.3185855e-05 | C144: ='DF raw data'!K149 -> -3.1243819e-06 | D144: ='DF raw data'!L149 -> -3.2783632e-06 | F144: -1.320231095e-05 | G144: -3.134871152e-06 | H144: -3.282454597e-06 | J144: 3.900764137e-05 | K144: 0.003863261904 | L144: 6.75416462e-06 | M144: -0.0009034234451 | N144: 2.528981828e-07
A145: 69.45146 | B145: ='DF raw data'!J150 -> -1.0578283e-05 | C145: ='DF raw data'!K150 -> -3.2991704e-06 | D145: ='DF raw data'!L150 -> -3.0594006e-06 | F145: -1.05914847e-05 | G145: -3.310246457e-06 | H145: -3.063218732e-06 | J145: 3.371041621e-05 | K145: 0.003880121832 | L145: 5.098577957e-06 | M145: -0.0009008734423 | N145: 2.534795393e-07
A146: 69.9516 | B146: ='DF raw data'!J151 -> -3.0007511e-06 | C146: ='DF raw data'!K151 -> -5.3691606e-06 | D146: ='DF raw data'!L151 -> 5.3065015e-08 | F146: -3.004496037e-06 | G146: -5.387186079e-06 | H146: 5.313124014e-08 | J146: 3.220774756e-05 | K146: 0.003896230215 | L146: 2.404230712e-06 | M146: -0.0008996709904 | N146: 2.540012451e-07
A147: 70.45174 | B147: ='DF raw data'!J152 -> -5.4156853e-06 | C147: ='DF raw data'!K152 -> -4.2407669e-06 | D147: ='DF raw data'!L152 -> 3.55168e-06 | F147: -5.422444075e-06 | G147: -4.255004108e-06 | H147: 3.556112497e-06 | J147: 2.949576638e-05 | K147: 0.003910982227 | L147: 2.761329575e-07 | M147: -0.0008995328853 | N147: 2.544364051e-07
A148: 70.95188 | B148: ='DF raw data'!J153 -> -1.1710684e-05 | C148: ='DF raw data'!K153 -> -6.2012118e-06 | D148: ='DF raw data'!L153 -> 5.5262003e-06 | F148: -1.172529893e-05 | G148: -6.222030662e-06 | H148: 5.533096998e-06 | J148: 2.363147537e-05 | K148: 0.003922801273 | L148: -2.835753458e-06 | M148: -0.000900951159 | N148: 2.547197285e-07
A149: 71.45202 | B149: ='DF raw data'!J154 -> -1.076104e-05 | C149: ='DF raw data'!K154 -> -4.1105418e-06 | D149: ='DF raw data'!L154 -> 3.3242627e-06 | F149: -1.077446978e-05 | G149: -4.124341813e-06 | H149: 3.32841138e-06 | J149: 1.824273206e-05 | K149: 0.003931925193 | L149: -4.898501772e-06 | M149: -0.0009034010957 | N149: 2.548981747e-07
A150: 71.95216 | B150: ='DF raw data'!J155 -> -5.4578713e-06 | C150: ='DF raw data'!K155 -> -5.3403405e-06 | D150: ='DF raw data'!L155 -> 1.4437828e-07 | F150: -5.464682723e-06 | G150: -5.358269223e-06 | H150: 1.445584641e-07 | J150: 1.550962564e-05 | K150: 0.003939682177 | L150: -7.578386541e-06 | M150: -0.0009071913499 | N150: 2.550472067e-07
A151: 72.4523 | B151: ='DF raw data'!J156 -> 1.8927604e-07 | C151: ='DF raw data'!K156 -> 5.6541433e-07 | D151: ='DF raw data'!L156 -> 9.5353755e-07 | F151: =(1-$G$1*($B$2-$G$2))*B151 -> 1.895122565e-07 | G151: 5.67312553e-07 | H151: 9.547275649e-07 | J151: 1.56044083e-05 | K151: 0.003947486566 | L151: -7.294650841e-06 | M151: -0.0009108396966 | N151: 2.551956029e-07
A152: 72.95244 | B152: ='DF raw data'!J157 -> 4.2856254e-06 | C152: ='DF raw data'!K157 -> -6.517434e-06 | D152: ='DF raw data'!L157 -> 4.2322004e-06 | F152: 4.29097386e-06 | G152: -6.539314491e-06 | H152: 4.237482186e-06 | J152: 1.775049597e-05 | K152: 0.003956364299 | L152: -1.056522359e-05 | M152: -0.0009161237875 | N152: 2.554090147e-07
A153: 73.45258 | B153: ='DF raw data'!J158 -> 1.3660022e-06 | C153: ='DF raw data'!K158 -> -8.4850853e-06 | D153: ='DF raw data'!L158 -> 4.5501306e-06 | F153: 1.367706971e-06 | G153: -8.513571638e-06 | H153: 4.555809163e-06 | J153: 1.843454093e-05 | K153: 0.003965584151 | L153: -1.482320131e-05 | M153: -0.0009235374634 | N153: 2.556888728e-07
A154: 73.95272 | B154: ='DF raw data'!J159 -> 3.7549688e-07 | C154: ='DF raw data'!K159 -> 4.3767609e-06 | D154: ='DF raw data'!L159 -> 3.1686591e-06 | F154: 3.759655001e-07 | G154: 4.39145467e-06 | H154: 3.172613587e-06 | J154: 1.862257632e-05 | K154: 0.003974898046 | L154: -1.262685917e-05 | M154: -0.0009298526608 | N154: 2.559420627e-07
A155: 74.45286 | B155: ='DF raw data'!J160 -> 4.2371676e-06 | C155: ='DF raw data'!K160 -> 7.6812184e-06 | D155: ='DF raw data'!L160 -> 4.9143796e-06 | F155: 4.242455585e-06 | G155: 7.707005977e-06 | H155: 4.920512746e-06 | J155: 2.074439805e-05 | K155: 0.003985273149 | L155: -8.772277202e-06 | M155: -0.0009342400275 | N155: 2.561957751e-07
A156: 74.953 | B156: ='DF raw data'!J161 -> 4.0419245e-06 | C156: ='DF raw data'!K161 -> 6.5823119e-06 | D156: ='DF raw data'!L161 -> 5.3818453e-06 | F156: 4.046968822e-06 | G156: 6.6044102e-06 | H156: 5.388561843e-06 | J156: 2.276844904e-05 | K156: 0.003996660561 | L156: -5.469147484e-06 | M156: -0.0009369753669 | N156: 2.564700088e-07
A157: 75.45314 | B157: ='DF raw data'!J162 -> -4.0746091e-08 | C157: ='DF raw data'!K162 -> 1.3035784e-05 | D157: ='DF raw data'!L162 -> 3.5661883e-06 | F157: -4.079694212e-08 | G157: 1.307954806e-05 | H157: 3.570638903e-06 | J157: 2.274804486e-05 | K157: 0.004008037768 | L157: 1.072457681e-06 | M157: -0.0009364389879 | N157: 2.567293933e-07
A158: 75.95328 | B158: ='DF raw data'!J163 -> -2.7901558e-06 | C158: ='DF raw data'!K163 -> 1.3469155e-05 | D158: ='DF raw data'!L163 -> 4.3336272e-06 | F158: -2.793637914e-06 | G158: 1.351437398e-05 | H158: 4.339035567e-06 | J158: 2.135083479e-05 | K158: 0.004018716175 | L158: 7.831536684e-06 | M158: -0.0009325221232 | N158: 2.569880613e-07
A159: 76.45342 | B159: ='DF raw data'!J164 -> -1.2170792e-06 | C159: ='DF raw data'!K164 -> 6.4800554e-07 | D159: ='DF raw data'!L164 -> 7.5588264e-06 | F159: -1.218598115e-06 | G159: 6.501810402e-07 | H159: 7.568259815e-06 | J159: 2.074136513e-05 | K159: 0.004029089761 | L159: 8.156718229e-06 | M159: -0.0009284426221 | N159: 2.572364989e-07
A160: 76.95356 | B160: ='DF raw data'!J165 -> 1.108215e-06 | C160: ='DF raw data'!K165 -> -1.7371389e-06 | D160: ='DF raw data'!L165 -> 6.8445747e-06 | F160: 1.109598052e-06 | G160: -1.742970866e-06 | H160: 6.853116729e-06 | J160: 2.12963195e-05 | K160: 0.004039740902 | L160: 7.28498878e-06 | M160: -0.0009247991078 | N160: 2.57489872e-07
A161: 77.4537 | B161: ='DF raw data'!J166 -> 2.0989094e-06 | C161: ='DF raw data'!K166 -> 5.1388965e-06 | D161: ='DF raw data'!L166 -> 2.5936401e-06 | F161: 2.101528839e-06 | G161: 5.156148931e-06 | H161: 2.596876963e-06 | J161: 2.234737813e-05 | K161: 0.00405091772 | L161: 9.863785106e-06 | M161: -0.0009198658343 | N161: 2.577883053e-07
A162: 77.95384 | B162: ='DF raw data'!J167 -> 3.3841054e-06 | C162: ='DF raw data'!K167 -> -2.1382205e-06 | D162: ='DF raw data'!L167 -> 1.7264334e-06 | F162: 3.388328764e-06 | G162: -2.145398987e-06 | H162: 1.728587989e-06 | J162: 2.404201688e-05 | K162: 0.004062942094 | L162: 8.790785257e-06 | M162: -0.000915469211 | N162: 2.581160453e-07
A163: 78.45398 | B163: ='DF raw data'!J168 -> 3.904016e-06 | C163: ='DF raw data'!K168 -> -7.8938683e-06 | D163: ='DF raw data'!L168 -> 3.867282e-06 | F163: 3.908888212e-06 | G163: -7.92036979e-06 | H163: 3.872108368e-06 | J163: 2.599700823e-05 | K163: 0.004075944238 | L163: 4.82949151e-06 | M163: -0.0009130537891 | N163: 2.584657274e-07
A164: 78.95412 | B164: ='DF raw data'!J169 -> 4.4115723e-06 | C164: ='DF raw data'!K169 -> -1.0522566e-06 | D164: ='DF raw data'!L169 -> 6.1851547e-06 | F164: 4.417077942e-06 | G164: -1.055789262e-06 | H164: 6.192873773e-06 | J164: 2.820616559e-05 | K164: 0.00409005127 | L164: 4.301449069e-06 | M164: -0.0009109024624 | N164: 2.588728865e-07
A165: 79.45426 | B165: ='DF raw data'!J170 -> 5.5107366e-06 | C165: ='DF raw data'!K170 -> -1.6951093e-06 | D165: ='DF raw data'!L170 -> 5.5023061e-06 | F165: 5.517613999e-06 | G165: -1.700800163e-06 | H165: 5.509172978e-06 | J165: 3.096574506e-05 | K165: 0.004105538478 | L165: 3.450810875e-06 | M165: -0.0009091765738 | N165: 2.593584151e-07
A166: 79.9544 | B166: ='DF raw data'!J171 -> 5.6555136e-06 | C166: ='DF raw data'!K171 -> -2.0436203e-06 | D166: ='DF raw data'!L171 -> 1.0417949e-06 | F166: 5.662571681e-06 | G166: -2.050481193e-06 | H166: 1.04309506e-06 | J166: 3.379782366e-05 | K166: 0.004122442121 | L166: 2.425283212e-06 | M166: -0.0009079635927 | N166: 2.599326633e-07
A167: 80.45454 | B167: ='DF raw data'!J172 -> 1.9332358e-06 | C167: ='DF raw data'!K172 -> 4.5508827e-06 | D167: ='DF raw data'!L172 -> -2.0923676e-06 | F167: 1.935648478e-06 | G167: 4.566161036e-06 | H167: -2.094978875e-06 | J167: 3.476591889e-05 | K167: 0.004139829948 | L167: 4.709002992e-06 | M167: -0.0009056084319 | N167: 2.605482576e-07
A168: 80.95468 | B168: ='DF raw data'!J173 -> -1.1521922e-06 | C168: ='DF raw data'!K173 -> 8.7429692e-07 | D168: ='DF raw data'!L173 -> -2.6947587e-06 | F168: -1.153630136e-06 | G168: 8.772321313e-07 | H168: -2.698121759e-06 | J168: 3.418894231e-05 | K168: 0.004156929205 | L168: 5.14774187e-06 | M168: -0.0009030338403 | N168: 2.611461164e-07
A169: 81.45482 | B169: ='DF raw data'!J174 -> 6.0765814e-07 | C169: ='DF raw data'!K174 -> -1.6788312e-06 | D169: ='DF raw data'!L174 -> -3.4566679e-06 | F169: 6.084164974e-07 | G169: -1.684467414e-06 | H169: -3.460981822e-06 | J169: 3.449323574e-05 | K169: 0.004174180652 | L169: 4.305272338e-06 | M169: -0.0009008806014 | N169: 2.617504449e-07
A170: 81.95496 | B170: ='DF raw data'!J175 -> 1.4403624e-06 | C170: ='DF raw data'!K175 -> 5.4779352e-06 | D170: ='DF raw data'!L175 -> 5.333801e-07 | F170: 1.442159972e-06 | G170: 5.49632586e-06 | H170: 5.340457584e-07 | J170: 3.521451763e-05 | K170: 0.004191792841 | L170: 7.054204754e-06 | M170: -0.0008973525114 | N170: 2.623955375e-07
A171: 82.4551 | B171: ='DF raw data'!J176 -> -2.1699241e-06 | C171: ='DF raw data'!K176 -> 2.5673542e-06 | D171: ='DF raw data'!L176 -> 7.1681657e-06 | F171: -2.172632165e-06 | G171: 2.575973385e-06 | H171: 7.177111571e-06 | J171: 3.412789738e-05 | K171: 0.004208861568 | L171: 8.342552082e-06 | M171: -0.0008931800674 | N171: 2.630128661e-07
A172: 82.95524 | B172: ='DF raw data'!J177 -> -6.939169e-06 | C172: ='DF raw data'!K177 -> 1.1675227e-05 | D172: ='DF raw data'!L177 -> 9.4007792e-06 | F172: -6.947829083e-06 | G172: 1.171442336e-05 | H172: 9.412511372e-06 | J172: 3.065301014e-05 | K172: 0.004224192364 | L172: 1.420140378e-05 | M172: -0.0008860773773 | N172: 2.635836693e-07
A173: 83.45538 | B173: ='DF raw data'!J178 -> -2.938076e-06 | C173: ='DF raw data'!K178 -> 8.3254045e-06 | D173: ='DF raw data'!L178 -> 5.6583171e-06 | F173: -2.941742719e-06 | G173: 8.353354754e-06 | H173: 5.66537868e-06 | J173: 2.918172694e-05 | K173: 0.004238787313 | L173: 1.837925063e-05 | M173: -0.0008768851789 | N173: 2.641785209e-07
A174: 83.95552 | B174: ='DF raw data'!J179 -> 4.875691e-06 | C174: ='DF raw data'!K179 -> -7.1422733e-06 | D174: ='DF raw data'!L179 -> 2.3036554e-07 | F174: 4.881775862e-06 | G174: -7.166251517e-06 | H174: 2.306530362e-07 | J174: 3.162329832e-05 | K174: 0.00425460339 | L174: 1.47951216e-05 | M174: -0.0008694855468 | N174: 2.647881558e-07
A175: 84.45566 | B175: ='DF raw data'!J180 -> 2.2289307e-06 | C175: ='DF raw data'!K180 -> 4.0918935e-06 | D175: ='DF raw data'!L180 -> -2.6339549e-07 | F175: 2.231712406e-06 | G175: 4.105630906e-06 | H175: -2.637242076e-07 | J175: 3.273946696e-05 | K175: 0.004270977707 | L175: 1.684851184e-05 | M175: -0.0008610589321 | N175: 2.654662182e-07
A176: 84.9558 | B176: ='DF raw data'!J181 -> -3.7415309e-06 | C176: ='DF raw data'!K181 -> 4.4054473e-06 | D176: ='DF raw data'!L181 -> 3.3769697e-06 | F176: -3.746200331e-06 | G176: 4.420237377e-06 | H176: 3.381184158e-06 | J176: 3.086584233e-05 | K176: 0.004286414949 | L176: 1.905924936e-05 | M176: -0.0008515266391 | N176: 2.6612438e-07
A177: 85.45594 | B177: ='DF raw data'!J182 -> -1.903464e-06 | C177: ='DF raw data'!K182 -> -4.7328454e-06 | D177: ='DF raw data'!L182 -> 4.4290005e-06 | F177: -1.905839523e-06 | G177: -4.748734626e-06 | H177: 4.434527893e-06 | J177: 2.991265575e-05 | K177: 0.004301375465 | L177: 1.668421722e-05 | M177: -0.0008431821947 | N177: 2.667111093e-07
A178: 85.95608 | B178: ='DF raw data'!J183 -> -2.3587497e-06 | C178: ='DF raw data'!K183 -> -9.0247653e-08 | D178: ='DF raw data'!L183 -> 1.1936005e-06 | F178: -2.36169342e-06 | G178: -9.055063465e-08 | H178: 1.195090113e-06 | J178: 2.87314784e-05 | K178: 0.004315745226 | L178: 1.663892923e-05 | M178: -0.0008348604007 | N178: 2.672624395e-07
A179: 86.45622 | B179: ='DF raw data'!J184 -> -4.0746245e-06 | C179: ='DF raw data'!K184 -> 1.1199369e-06 | D179: ='DF raw data'!L184 -> -6.4675112e-07 | F179: -4.079709631e-06 | G179: 1.12369678e-06 | H179: -6.475582654e-07 | J179: 2.669105242e-05 | K179: 0.004329094489 | L179: 1.720093494e-05 | M179: -0.0008262575251 | N179: 2.677667229e-07
A180: 86.95636 | B180: ='DF raw data'!J185 -> -9.0208047e-08 | C180: ='DF raw data'!K185 -> -6.7347869e-06 | D180: ='DF raw data'!L185 -> -1.3313896e-06 | F180: -9.032062664e-08 | G180: -6.757397093e-06 | H180: -1.333051174e-06 | J180: 2.664587947e-05 | K180: 0.004342421159 | L180: 1.382129035e-05 | M180: -0.0008193449449 | N180: 2.682173645e-07
A181: 87.4565 | B181: ='DF raw data'!J186 -> 2.5260372e-06 | C181: ='DF raw data'!K186 -> 3.0272784e-06 | D181: ='DF raw data'!L186 -> -3.4549362e-06 | F181: 2.529189694e-06 | G181: 3.037441654e-06 | H181: -3.45924796e-06 | J181: 2.79108284e-05 | K181: 0.004356380481 | L181: 1.534043642e-05 | M181: -0.000811672579 | N181: 2.687246782e-07
A182: 87.95664 | B182: ='DF raw data'!J187 -> 5.1058441e-06 | C182: ='DF raw data'!K187 -> 8.9598507e-06 | D182: ='DF raw data'!L187 -> -4.1136868e-06 | F182: 5.112216193e-06 | G182: 8.989930933e-06 | H182: -4.118820681e-06 | J182: 3.046765221e-05 | K182: 0.004371618573 | L182: 1.983666048e-05 | M182: -0.0008017514717 | N182: 2.693857487e-07
A183: 88.45678 | B183: ='DF raw data'!J188 -> 4.55389e-06 | C183: ='DF raw data'!K188 -> 4.7606304e-06 | D183: ='DF raw data'!L188 -> -2.6781113e-06 | F183: 4.559573255e-06 | G183: 4.776612906e-06 | H183: -2.681453583e-06 | J183: 3.274807717e-05 | K183: 0.004387997196 | L183: 2.222563566e-05 | M183: -0.0007906355422 | N183: 2.701691757e-07
A184: 88.95692 | B184: ='DF raw data'!J189 -> 2.7314229e-06 | C184: ='DF raw data'!K189 -> 7.7080376e-06 | D184: ='DF raw data'!L189 -> -1.5397003e-06 | F184: 2.734831716e-06 | G184: 7.733915215e-06 | H184: -1.541621846e-06 | J184: 3.411587591e-05 | K184: 0.00440505991 | L184: 2.609367601e-05 | M184: -0.0007775850511 | N184: 2.710918205e-07
A185: 89.45706 | B185: ='DF raw data'!J190 -> 4.8184228e-07 | C185: ='DF raw data'!K190 -> 4.9532996e-06 | D185: ='DF raw data'!L190 -> -7.8906304e-08 | F185: 4.824436192e-07 | G185: 4.96992894e-06 | H185: -7.900477907e-08 | J185: 3.435716526e-05 | K185: 0.004422243303 | L185: 2.857933627e-05 | M185: -0.0007632913819 | N185: 2.720906967e-07
A186: 89.9572 | B186: ='DF raw data'!J191 -> -3.5493729e-06 | C186: ='DF raw data'!K191 -> 9.5199784e-06 | D186: ='DF raw data'!L191 -> 3.2550538e-06 | F186: -3.553802517e-06 | G186: 9.551939107e-06 | H186: 3.259116107e-06 | J186: 3.257976647e-05 | K186: 0.004438537747 | L186: 3.33566431e-05 | M186: -0.0007466083904 | N186: 2.731780545e-07
A187: 90.45734 | B187: ='DF raw data'!J192 -> -1.4889381e-06 | C187: ='DF raw data'!K192 -> 3.9415204e-06 | D187: ='DF raw data'!L192 -> 4.1946564e-06 | F187: -1.490796295e-06 | G187: 3.95475297e-06 | H187: 4.199891331e-06 | J187: 3.183415961e-05 | K187: 0.004454459284 | L187: 3.533457325e-05 | M187: -0.0007289361569 | N187: 2.74309344e-07
A188: 90.95748 | B188: ='DF raw data'!J193 -> 2.2490269e-06 | C188: ='DF raw data'!K193 -> 1.4405629e-06 | D188: ='DF raw data'!L193 -> 1.6208738e-06 | F188: 2.251833686e-06 | G188: 1.445399193e-06 | H188: 1.622896651e-06 | J188: 3.296039171e-05 | K188: 0.004470944094 | L188: 3.60574752e-05 | M188: -0.0007109023713 | N188: 2.755029426e-07
A189: 91.45762 | B189: ='DF raw data'!J194 -> 4.4719417e-07 | C189: ='DF raw data'!K194 -> 1.0039143e-05 | D189: ='DF raw data'!L194 -> 4.0027371e-07 | F189: 4.477522683e-07 | G189: 1.007284666e-05 | H189: 4.007732516e-07 | J189: 3.318433053e-05 | K189: 0.004487540905 | L189: 4.109530873e-05 | M189: -0.0006903489636 | N189: 2.768983453e-07
A190: 91.95776 | B190: ='DF raw data'!J195 -> -8.9747556e-07 | C190: ='DF raw data'!K195 -> 1.5616799e-05 | D190: ='DF raw data'!L195 -> 1.2582256e-06 | F190: -8.985956095e-07 | G190: 1.56692281e-05 | H190: 1.259795866e-06 | J190: 3.273490692e-05 | K190: 0.004503912941 | L190: 4.893211647e-05 | M190: -0.0006658760548 | N190: 2.786317936e-07
A191: 92.4579 | B191: ='DF raw data'!J196 -> 1.5554972e-06 | C191: ='DF raw data'!K196 -> 3.3022714e-06 | D191: ='DF raw data'!L196 -> 3.1156523e-07 | F191: 1.557438461e-06 | G191: 3.313357867e-06 | H191: 3.119540634e-07 | J191: 3.351384419e-05 | K191: 0.004520674556 | L191: 5.058925928e-05 | M191: -0.0006405743427 | N191: 2.804735346e-07
A192: 92.95804 | B192: ='DF raw data'!J197 -> 6.8689332e-07 | C192: ='DF raw data'!K197 -> 3.5659983e-07 | D192: ='DF raw data'!L197 -> -1.1966243e-06 | F192: 6.877505629e-07 | G192: 3.577970158e-07 | H192: -1.198117687e-06 | J192: 3.385781576e-05 | K192: 0.004537608203 | L192: 5.076820788e-05 | M192: -0.0006151831312 | N192: 2.823359373e-07
A193: 93.45818 | B193: ='DF raw data'!J198 -> 4.3793991e-09 | C193: ='DF raw data'!K198 -> 3.9517959e-06 | D193: ='DF raw data'!L198 -> -9.9935858e-07 | F193: 4.38486459e-09 | G193: 3.965062967e-06 | H193: -1.00060578e-06 | J193: 3.386000881e-05 | K193: 0.004554542948 | L193: 5.275129447e-05 | M193: -0.0005888000988 | N193: 2.84301087e-07
A194: 93.95832 | B194: ='DF raw data'!J199 -> 3.513923e-06 | C194: ='DF raw data'!K199 -> 8.5718448e-06 | D194: ='DF raw data'!L199 -> 1.0129676e-06 | F194: 3.518308376e-06 | G194: 8.60062241e-06 | H194: 1.014231784e-06 | J194: 3.561965556e-05 | K194: 0.004572357763 | L194: 5.705280976e-05 | M194: -0.0005602657065 | N194: 2.865636118e-07
A195: 94.45846 | B195: ='DF raw data'!J200 -> 4.4105827e-06 | C195: ='DF raw data'!K200 -> 9.2192331e-06 | D195: ='DF raw data'!L200 -> 3.8021913e-06 | F195: 4.416087107e-06 | G195: 9.250184138e-06 | H195: 3.806936435e-06 | J195: 3.782831736e-05 | K195: 0.004591277217 | L195: 6.167919686e-05 | M195: -0.000529417473 | N195: 2.891819972e-07
A196: 94.9586 | B196: ='DF raw data'!J201 -> 2.2971581e-07 | C196: ='DF raw data'!K201 -> 7.3419128e-06 | D196: ='DF raw data'!L201 -> 3.8650846e-06 | F196: 2.300024953e-07 | G196: 7.366561251e-06 | H196: 3.869908226e-06 | J196: 3.794335081e-05 | K196: 0.004610254205 | L196: 6.53635088e-05 | M196: -0.0004967265677 | N196: 2.9203884e-07
A197: 95.45874 | B197: ='DF raw data'!J202 -> -4.0385794e-06 | C197: ='DF raw data'!K202 -> 9.4385878e-06 | D197: ='DF raw data'!L202 -> 5.0385656e-06 | F197: -4.043619547e-06 | G197: 9.470275261e-06 | H197: 5.04485373e-06 | J197: 3.592097493e-05 | K197: 0.004628219721 | L197: 7.009997227e-05 | M197: -0.0004616667676 | N197: 2.951418698e-07
A198: 95.95888 | B198: ='DF raw data'!J203 -> -4.5018105e-06 | C198: ='DF raw data'!K203 -> -4.7627332e-06 | D198: ='DF raw data'!L203 -> 9.0666235e-06 | F198: -4.50742876e-06 | G198: -4.778722766e-06 | H198: 9.077938646e-06 | J198: 3.366662951e-05 | K198: 0.004645057749 | L198: 6.770994186e-05 | M198: -0.0004278023173 | N198: 2.980017095e-07
A199: 96.45902 | B199: ='DF raw data'!J204 -> -5.0087119e-06 | C199: ='DF raw data'!K204 -> -5.7422226e-06 | D199: ='DF raw data'!L204 -> 4.4869025e-06 | F199: -5.014962772e-06 | G199: =(1-$G$1*($B$2-$G$2))*C199*$M$2/$M$1 -> -5.761500532e-06 | H199: 4.492502154e-06 | J199: 3.115844603e-05 | K199: 0.004660641335 | L199: 6.482838499e-05 | M199: -0.0003953790488 | N199: 3.005892179e-07
A200: =A199+$B$1 -> 96.95916 | B200: ='DF raw data'!J205 -> -5.921248e-06 | C200: ='DF raw data'!K205 -> 8.5650399e-06 | D200: ='DF raw data'!L205 -> -6.1090454e-06 | F200: -5.928637718e-06 | G200: 8.593794664e-06 | H200: -6.116669489e-06 | J200: =F200*$B$1+J199 -> 2.819329716e-05 | K200: =J200*$B$1+K199 -> 0.00467474193 | L200: =G200*$B$1+L199 -> 6.912648545e-05 | M200: =L200*$B$1+M199 -> -0.0003608061284 | N200: =(J200^2+L200^2)*$B$1+N199 -> 3.033766647e-07
A201: 97.4593 | B201: ='DF raw data'!J206 -> -6.3391644e-06 | C201: ='DF raw data'!K206 -> 8.491922e-06 | D201: ='DF raw data'!L206 -> -1.1435832e-05 | F201: -6.347075677e-06 | G201: 8.520431291e-06 | H201: -1.145010392e-05 | J201: 2.501887073e-05 | K201: 0.004687254868 | L201: 7.338789396e-05 | M201: -0.0003241019071 | N201: 3.063833697e-07
... 1002 more rows

Sheet 30 mm
A1: dz | B1: ='DF raw data'!N7 -> 0.50012 | C1: mm | F1: T_coeff | G1: -0.0008 | H1: /degC | L1: Hallref | M1: ='PI vs gap'!B50 -> 0.505555 | N1: T | P1: IBy total | Q1: =L1203*1000 -> 1.145699199 | R1: muTm | X1: DF ref | Y1: 22
A2: Tref | B2: ='DF raw data'!N8 -> 21.56 | C2: degC | F2: Tcorr | G2: 20 | H2: degC | L2: NMRref | M2: ='PI vs gap'!B51 -> 0.50662 | N2: T | P2: JBy total | Q2: =M1203 -> -1.352360183 | R2: muTm^2
A3: Encoder | B3: ='DF raw data'!N9 -> 1555062 | P3: PI total | Q3: =N1203 -> 68.10189053 | R3: T^2mm^3
A5: z [mm] | B5: Bx | C5: By | D5: Bz | F5: Bx_corr | G5: By_corr | H5: Bz_corr | J5: Ix | K5: Jx | L5: Iy | M5: Jy | N5: PI
A6: -0.068 | B6: ='DF raw data'!M11 -> 3.8091965e-08 | C6: ='DF raw data'!N11 -> 1.7876097e-06 | D6: ='DF raw data'!O11 -> 5.9789903e-07 | F6: =(1-$G$1*($B$2-$G$2))*B6 -> 3.813950377e-08 | G6: =(1-$G$1*($B$2-$G$2))*C6*$M$2/$M$1 -> 1.793611108e-06 | H6: =(1-$G$1*($B$2-$G$2))*D6 -> 5.98645208e-07 | J6: =F6*$B$1 -> 1.907432863e-08 | K6: =J6*$B$1 -> 9.539453233e-09 | L6: =G6*$B$1 -> 8.970207871e-07 | M6: =L6*$B$1 -> 4.48618036e-07 | N6: =(J6^2+L6)^2*$B$1 -> 4.024197041e-13
A7: =A6+$B$1 -> 0.43212 | B7: ='DF raw data'!M12 -> 2.9280869e-07 | C7: ='DF raw data'!N12 -> -5.588779e-06 | D7: ='DF raw data'!O12 -> -2.3704151e-06 | F7: =(1-$G$1*($B$2-$G$2))*B7 -> 2.931741152e-07 | G7: =(1-$G$1*($B$2-$G$2))*C7*$M$2/$M$1 -> -5.607541787e-06 | H7: -2.373373378e-06 | J7: =F7*$B$1+J6 -> 1.656965671e-07 | K7: =J7*$B$1+K6 -> 9.240762039e-08 | L7: =G7*$B$1+L6 -> -1.907423012e-06 | M7: =L7*$B$1+M6 -> -5.053223605e-07 | N7: =(J7^2+L7^2)*$B$1+N6 -> 2.235718539e-12
A8: =A7+$B$1 -> 0.93224 | B8: ='DF raw data'!M13 -> 1.093818e-07 | C8: ='DF raw data'!N13 -> -1.1312435e-06 | D8: ='DF raw data'!O13 -> -6.2724821e-06 | F8: 1.095183085e-07 | G8: -1.135041339e-06 | H8: -6.280310158e-06 | J8: =F8*$B$1+J7 -> 2.204688636e-07 | K8: =J8*$B$1+K7 -> 2.026685084e-07 | L8: =G8*$B$1+L7 -> -2.475079886e-06 | M8: =L8*$B$1+M7 -> -1.743159313e-06 | N8: =(J8^2+L8^2)*$B$1+N7 -> 5.323772975e-12
A9: 1.43236 | B9: ='DF raw data'!M14 -> -9.0794344e-08 | C9: ='DF raw data'!N14 -> 4.8148045e-06 | D9: ='DF raw data'!O14 -> -3.3807692e-06 | F9: -9.090765534e-08 | G9: 4.830968881e-06 | H9: -3.3849884e-06 | J9: 1.75004127e-07 | K9: 2.901915724e-07 | L9: -5.901572912e-08 | M9: -1.772674259e-06 | N9: 5.340831718e-12
A10: 1.93248 | B10: ='DF raw data'!M15 -> -1.315106e-07 | C10: ='DF raw data'!N15 -> 5.8104383e-06 | D10: ='DF raw data'!O15 -> -3.4879295e-06 | F10: -1.316747252e-07 | G10: 5.829945247e-06 | H10: -3.492282436e-06 | J10: 1.091509634e-07 | K10: 3.447801523e-07 | L10: 2.856656488e-06 | M10: -3.440032167e-07 | N10: 9.428012518e-12
A11: 2.4326 | B11: ='DF raw data'!M16 -> -7.2502587e-08 | C11: ='DF raw data'!N16 -> 4.0688133e-06 | D11: ='DF raw data'!O16 -> -3.8084499e-06 | F11: -7.259307023e-08 | G11: 4.082473221e-06 | H11: -3.813202845e-06 | J11: 7.284571713e-08 | K11: 3.812117523e-07 | L11: 4.898382995e-06 | M11: 2.105776087e-06 | N11: 2.143062369e-11
A12: 2.93272 | B12: ='DF raw data'!M17 -> 3.057599e-07 | C12: ='DF raw data'!N17 -> -6.2801987e-06 | D12: ='DF raw data'!O17 -> -4.1859412e-06 | F12: 3.061414884e-07 | G12: -6.301282739e-06 | H12: -4.191165255e-06 | J12: 2.259531983e-07 | K12: 4.942154658e-07 | L12: 1.746985472e-06 | M12: 2.979478461e-06 | N12: 2.298250259e-11
A13: 3.43284 | B13: ='DF raw data'!M18 -> 1.5364873e-07 | C13: ='DF raw data'!N18 -> -1.9544891e-06 | D13: ='DF raw data'!O18 -> -3.6588999e-06 | F13: 1.538404836e-07 | G13: -1.961050759e-06 | H13: -3.663466207e-06 | J13: 3.02891901e-07 | K13: 6.456977633e-07 | L13: 7.662247662e-07 | M13: 3.362682791e-06 | N13: 2.3322006e-11
A14: 3.93296 | B14: ='DF raw data'!M19 -> 1.3801997e-07 | C14: ='DF raw data'!N19 -> -1.3639414e-06 | D14: ='DF raw data'!O19 -> -2.8142049e-06 | F14: 1.381922189e-07 | G14: -1.368520458e-06 | H14: -2.817717028e-06 | J14: 3.720045935e-07 | K14: 8.317447006e-07 | L14: 8.180031485e-08 | M14: 3.403592765e-06 | N14: 2.339456276e-11
A15: 4.43308 | B15: ='DF raw data'!M20 -> -4.7007635e-08 | C15: ='DF raw data'!N20 -> 4.0038344e-06 | D15: ='DF raw data'!O20 -> -4.6869812e-07 | F15: -4.706630053e-08 | G15: 4.017276172e-06 | H15: -4.692830553e-07 | J15: 3.484657953e-07 | K15: 1.006019414e-06 | L15: 2.090920474e-06 | M15: 4.449303912e-06 | N15: 2.564179039e-11
A16: 4.9332 | B16: ='DF raw data'!M21 -> 1.6905921e-07 | C16: ='DF raw data'!N21 -> -1.5758227e-06 | D16: ='DF raw data'!O21 -> 1.8059845e-06 | F16: 1.692701959e-07 | G16: -1.581113091e-06 | H16: 1.808238369e-06 | J16: 4.331212056e-07 | K16: 1.222631992e-06 | L16: 1.300174195e-06 | M16: 5.09954703e-06 | N16: 2.658103921e-11
A17: 5.43332 | B17: ='DF raw data'!M22 -> 3.2786426e-07 | C17: ='DF raw data'!N22 -> -6.7047636e-06 | D17: ='DF raw data'!O22 -> -3.3367205e-06 | F17: 3.282734346e-07 | G17: -6.727272998e-06 | H17: -3.340884727e-06 | J17: 5.972973157e-07 | K17: 1.521352325e-06 | L17: -2.064269577e-06 | M17: 4.06716453e-06 | N17: 2.889057985e-11
A18: 5.93344 | B18: ='DF raw data'!M23 -> 4.7303416e-07 | C18: ='DF raw data'!N23 -> -1.1255031e-05 | D18: ='DF raw data'!O23 -> -7.7842515e-06 | F18: 4.736245066e-07 | G18: -1.129281667e-05 | H18: -7.793966246e-06 | J18: 8.34166404e-07 | K18: 1.938535627e-06 | L18: -7.712033049e-06 | M18: 2.102225609e-07 | N18: 5.898344408e-11
A19: 6.43356 | B19: ='DF raw data'!M24 -> -1.9946805e-07 | C19: ='DF raw data'!N24 -> 6.6455591e-06 | D19: ='DF raw data'!O24 -> -1.0761559e-05 | F19: -1.997169861e-07 | G19: 6.667869736e-06 | H19: -1.077498943e-05 | J19: 7.342839449e-07 | K19: 2.305765714e-06 | L19: -4.377298037e-06 | M19: -1.978951733e-06 | N19: 6.883576358e-11
A20: 6.93368 | B20: ='DF raw data'!M25 -> -1.8463965e-07 | C20: ='DF raw data'!N25 -> 7.6317201e-06 | D20: ='DF raw data'!O25 -> -1.9449317e-06 | F20: -1.848700803e-07 | G20: 7.6573415e-06 | H20: -1.947358975e-06 | J20: 6.418267203e-07 | K20: 2.626756093e-06 | L20: -5.477084064e-07 | M20: -2.252871662e-06 | N20: 6.919181203e-11
A21: 7.4338 | B21: ='DF raw data'!M26 -> -1.1561991e-07 | C21: ='DF raw data'!N26 -> 6.2096528e-06 | D21: ='DF raw data'!O26 -> 1.2457358e-06 | F21: -1.157642036e-07 | G21: 6.2305e-06 | H21: 1.247290478e-06 | J21: 5.839307268e-07 | K21: 2.918791528e-06 | L21: 2.568289254e-06 | M21: -9.684188402e-07 | N21: 7.266118687e-11
A22: 7.93392 | B22: ='DF raw data'!M27 -> -1.0673443e-06 | C22: ='DF raw data'!N27 -> 5.388008e-06 | D22: ='DF raw data'!O27 -> -2.1335536e-06 | F22: -1.068676346e-06 | G22: 5.406096754e-06 | H22: -2.136216275e-06 | J22: 4.946431281e-08 | K22: 2.94352962e-06 | L22: 5.271986362e-06 | M22: 1.668206979e-06 | N22: 8.656266589e-11
A23: 8.43404 | B23: ='DF raw data'!M28 -> -1.6218305e-06 | C23: ='DF raw data'!N28 -> 8.6285545e-06 | D23: ='DF raw data'!O28 -> 4.8189116e-07 | F23: =(1-$G$1*($B$2-$G$2))*B23 -> -1.623854544e-06 | G23: 8.657522497e-06 | H23: 4.824925602e-07 | J23: -7.62657822e-07 | K23: 2.56210919e-06 | L23: 9.601786513e-06 | M23: 6.47025245e-06 | N23: 1.329617746e-10
A24: 8.93416 | B24: ='DF raw data'!M29 -> 1.1233737e-06 | C24: ='DF raw data'!N29 -> 7.9714255e-06 | D24: ='DF raw data'!O29 -> 6.4701175e-07 | F24: 1.12477567e-06 | G24: 7.998187367e-06 | H24: 6.478192207e-07 | J24: -2.001350137e-07 | K24: 2.462017667e-06 | L24: 1.360183998e-05 | M24: 1.327280466e-05 | N24: 2.25509033e-10
A25: 9.43428 | B25: ='DF raw data'!M30 -> 2.927884e-06 | C25: ='DF raw data'!N30 -> 1.3117711e-05 | D25: ='DF raw data'!O30 -> -5.3101057e-06 | F25: 2.931537999e-06 | G25: 1.31617501e-05 | H25: -5.316732712e-06 | J25: 1.26598577e-06 | K25: 3.095162471e-06 | L25: 2.018429444e-05 | M25: 2.3367374e-05 | N25: 4.300623451e-10
A26: 9.9344 | B26: ='DF raw data'!M31 -> 5.294884e-06 | C26: ='DF raw data'!N31 -> 1.3380963e-05 | D26: ='DF raw data'!O31 -> -7.9072443e-06 | F26: 5.301492015e-06 | G26: 1.34258859e-05 | H26: -7.917112541e-06 | J26: 3.917367957e-06 | K26: 5.054316533e-06 | L26: 2.68988485e-05 | M26: 3.682002611e-05 | N26: 7.995979234e-10
A27: 10.43452 | B27: ='DF raw data'!M32 -> 7.3825454e-06 | C27: ='DF raw data'!N32 -> 8.8741936e-06 | D27: ='DF raw data'!O32 -> 8.3796198e-07 | F27: 7.391758817e-06 | G27: 8.903986262e-06 | H27: 8.390077566e-07 | J27: 7.614134377e-06 | K27: 8.862297418e-06 | L27: 3.135191011e-05 | M27: 5.249974339e-05 | N27: 1.320181488e-09
A28: 10.93464 | B28: ='DF raw data'!M33 -> 9.9058043e-06 | C28: ='DF raw data'!N33 -> -5.4821699e-06 | D28: ='DF raw data'!O33 -> 9.9689687e-06 | F28: 9.918166744e-06 | G28: -5.500574776e-06 | H28: 9.981409973e-06 | J28: 1.257440793e-05 | K28: 1.515101031e-05 | L28: 2.860096265e-05 | M28: 6.680365683e-05 | N28: 1.808364024e-09
A29: 11.43476 | B29: ='DF raw data'!M34 -> 9.1901265e-06 | C29: ='DF raw data'!N34 -> 3.9197753e-06 | D29: ='DF raw data'!O34 -> 8.6706323e-06 | F29: 9.201595778e-06 | G29: 3.932934867e-06 | H29: 8.681453249e-06 | J29: 1.717631001e-05 | K29: 2.374122647e-05 | L29: 3.056790204e-05 | M29: 8.2091276e-05 | N29: 2.423222685e-09
A30: 11.93488 | B30: ='DF raw data'!M35 -> 3.8442909e-06 | C30: ='DF raw data'!N35 -> 1.6454058e-05 | D30: ='DF raw data'!O35 -> 2.7444667e-06 | F30: 3.849088575e-06 | G30: 1.650929797e-05 | H30: 2.747891794e-06 | J30: 1.910131619e-05 | K30: 3.329417672e-05 | L30: 3.882453214e-05 | M30: 0.000101508201 | N30: 3.359549637e-09
A31: 12.435 | B31: ='DF raw data'!M36 -> -2.7187925e-08 | C31: ='DF raw data'!N36 -> 4.4049161e-06 | D31: ='DF raw data'!O36 -> -1.5672367e-06 | F31: -2.722185553e-08 | G31: 4.419704393e-06 | H31: -1.569192611e-06 | J31: 1.908770199e-05 | K31: 4.284031824e-05 | L31: 4.10349147e-05 | M31: 0.0001220305825 | N31: 4.383897717e-09
A32: 12.93512 | B32: ='DF raw data'!M37 -> -2.6479006e-06 | C32: ='DF raw data'!N37 -> 8.1678299e-06 | D32: ='DF raw data'!O37 -> 5.0172139e-06 | F32: -2.65120518e-06 | G32: 8.195251141e-06 | H32: 5.023475383e-06 | J32: 1.776178126e-05 | K32: 5.172334029e-05 | L32: 4.51335237e-05 | M32: 0.0001446027604 | N32: 5.560437937e-09
A33: 13.43524 | B33: ='DF raw data'!M38 -> -2.0357452e-06 | C33: ='DF raw data'!N38 -> -7.434744e-06 | D33: ='DF raw data'!O38 -> 8.5988913e-06 | F33: -2.03828581e-06 | G33: -7.459704107e-06 | H33: 8.609622716e-06 | J33: 1.674239376e-05 | K33: 6.009654625e-05 | L33: 4.140277648e-05 | M33: 0.000165309117 | N33: 6.557926101e-09
A34: 13.93536 | B34: ='DF raw data'!M39 -> -2.6113171e-06 | C34: ='DF raw data'!N39 -> -7.5577641e-06 | D34: ='DF raw data'!O39 -> 3.7719192e-06 | F34: -2.614576024e-06 | G34: -7.583137213e-06 | H34: 3.776626555e-06 | J34: 1.5434792e-05 | K34: 6.781579443e-05 | L34: 3.76102979e-05 | M34: 0.0001841187792 | N34: 7.384508089e-09
A35: 14.43548 | B35: ='DF raw data'!M40 -> -4.3355881e-06 | C35: ='DF raw data'!N40 -> 2.9494927e-06 | D35: ='DF raw data'!O40 -> 1.093833e-05 | F35: -4.340998914e-06 | G35: 2.95939481e-06 | H35: 1.095198104e-05 | J35: 1.326377162e-05 | K35: 7.444927189e-05 | L35: 3.909035043e-05 | M35: 0.0002036686452 | N35: 8.236704134e-09
A36: 14.9356 | B36: ='DF raw data'!M41 -> -3.8036719e-06 | C36: ='DF raw data'!N41 -> -3.8647663e-06 | D36: ='DF raw data'!O41 -> 1.1454295e-06 | F36: -3.808418883e-06 | G36: -3.877741189e-06 | H36: 1.146858996e-06 | J36: 1.135910517e-05 | K36: 8.013018757e-05 | L36: 3.715101451e-05 | M36: 0.0002222486106 | N36: 8.991498816e-09
A37: 15.43572 | B37: ='DF raw data'!M42 -> -5.8061464e-06 | C37: ='DF raw data'!N42 -> -9.9619874e-06 | D37: ='DF raw data'!O42 -> -5.5475784e-06 | F37: -5.813392471e-06 | G37: -9.995432031e-06 | H37: -5.554501778e-06 | J37: 8.451711327e-06 | K37: 8.435705744e-05 | L37: 3.215209904e-05 | M37: 0.0002383285184 | N37: 9.544225887e-09
A38: 15.93584 | B38: ='DF raw data'!M43 -> -6.960579e-06 | C38: ='DF raw data'!N43 -> -5.4170573e-06 | D38: ='DF raw data'!O43 -> -3.1723857e-06 | F38: -6.969265803e-06 | G38: -5.435243579e-06 | H38: -3.176344837e-06 | J38: 4.966242114e-06 | K38: 8.684077444e-05 | L38: 2.943382502e-05 | M38: 0.000253048963 | N38: 9.989839617e-09
A39: 16.43596 | B39: ='DF raw data'!M44 -> -3.6718316e-06 | C39: ='DF raw data'!N44 -> -1.5382733e-05 | D39: ='DF raw data'!O44 -> -5.3120993e-06 | F39: -3.676414046e-06 | G39: -1.543437629e-05 | H39: -5.3187288e-06 | J39: 3.127593921e-06 | K39: 8.840494671e-05 | L39: 2.171478475e-05 | M39: 0.0002639089611 | N39: 1.023055423e-08
A40: 16.93608 | B40: ='DF raw data'!M45 -> -4.7534326e-07 | C40: ='DF raw data'!N45 -> -7.0200526e-06 | D40: ='DF raw data'!O45 -> 1.6577005e-06 | F40: -4.759364884e-07 | G40: -7.043620494e-06 | H40: 1.65976931e-06 | J40: 2.889568565e-06 | K40: 8.985007775e-05 | L40: 1.819212927e-05 | M40: 0.0002730072088 | N40: 1.040024654e-08
A41: 17.4362 | B41: ='DF raw data'!M46 -> -1.7674079e-06 | C41: ='DF raw data'!N46 -> -3.2578059e-06 | D41: ='DF raw data'!O46 -> -4.7740322e-08 | F41: -1.769613625e-06 | G41: -3.268743087e-06 | H41: -4.779990192e-08 | J41: 2.004549398e-06 | K41: 9.085259299e-05 | L41: 1.655736548e-05 | M41: 0.0002812878784 | N41: 1.05393622e-08
A42: 17.93632 | B42: ='DF raw data'!M47 -> -4.3704981e-06 | C42: ='DF raw data'!N47 -> -1.7440738e-06 | D42: ='DF raw data'!O47 -> -4.7685562e-06 | F42: -4.375952482e-06 | G42: -1.749929048e-06 | H42: -4.774507358e-06 | J42: -1.839519568e-07 | K42: 9.076059494e-05 | L42: 1.568219096e-05 | M42: 0.0002891308558 | N42: 1.066237419e-08
A43: 18.43644 | B43: ='DF raw data'!M48 -> 1.6840008e-06 | C43: ='DF raw data'!N48 -> 3.2234188e-06 | D43: ='DF raw data'!O48 -> -4.2884042e-07 | F43: 1.686102433e-06 | G43: 3.234240541e-06 | H43: -4.293756128e-07 | J43: 6.59301592e-07 | K43: 9.109032485e-05 | L43: 1.729969934e-05 | M43: 0.0002977827814 | N43: 1.08122673e-08
A44: 18.93656 | B44: ='DF raw data'!M49 -> 9.3162043e-06 | C44: ='DF raw data'!N49 -> -1.0909492e-06 | D44: ='DF raw data'!O49 -> 3.5160965e-06 | F44: 9.327830923e-06 | G44: -1.094611762e-06 | H44: 3.520484588e-06 | J44: 5.324336393e-06 | K44: 9.375313197e-05 | L44: 1.675226211e-05 | M44: 0.0003061609227 | N44: 1.09667978e-08
A45: 19.43668 | B45: ='DF raw data'!M50 -> 9.6492249e-06 | C45: ='DF raw data'!N50 -> -6.7347842e-06 | D45: ='DF raw data'!O50 -> -3.819105e-07 | F45: 9.661267133e-06 | G45: -6.757394384e-06 | H45: -3.823871243e-07 | J45: 1.015612931e-05 | K45: 9.883241536e-05 | L45: 1.337275403e-05 | M45: 0.0003128489045 | N45: 1.110782039e-08
A46: 19.9368 | B46: ='DF raw data'!M51 -> 5.5447986e-06 | C46: ='DF raw data'!N51 -> -1.8470795e-06 | D46: ='DF raw data'!O51 -> -5.2220521e-06 | F46: 5.551718509e-06 | G46: -1.853280561e-06 | H46: -5.228569221e-06 | J46: 1.293265477e-05 | K46: 0.0001053002947 | L46: 1.244589135e-05 | M46: 0.0003190733436 | N46: 1.126893594e-08
A47: 20.43692 | B47: ='DF raw data'!M52 -> 1.6235376e-06 | C47: ='DF raw data'!N52 -> 4.9773193e-06 | D47: ='DF raw data'!O52 -> 7.9309842e-07 | F47: 1.625563775e-06 | G47: 4.99402928e-06 | H47: 7.940882068e-07 | J47: 1.374563173e-05 | K47: 0.00011217476 | L47: 1.494350528e-05 | M47: 0.0003265468895 | N47: 1.147511078e-08
A48: 20.93704 | B48: ='DF raw data'!M53 -> -2.6914262e-07 | C48: ='DF raw data'!N53 -> -1.0545538e-07 | D48: ='DF raw data'!O53 -> 8.8243733e-06 | F48: -2.6947851e-07 | G48: -1.058094174e-07 | H48: 8.835386118e-06 | J48: 1.361086013e-05 | K48: 0.0001189818234 | L48: 1.489058787e-05 | M48: 0.0003339939703 | N48: 1.167865218e-08
A49: 21.43716 | B49: ='DF raw data'!M54 -> -1.136495e-06 | C49: ='DF raw data'!N54 -> 5.1252896e-06 | D49: ='DF raw data'!O54 -> 4.644714e-06 | F49: -1.137913346e-06 | G49: 5.142496349e-06 | H49: 4.650510603e-06 | J49: 1.304176691e-05 | K49: 0.0001255042718 | L49: 1.746245314e-05 | M49: 0.0003427272924 | N49: 1.191622166e-08
A50: 21.93728 | B50: ='DF raw data'!M55 -> 1.2758342e-06 | C50: ='DF raw data'!N55 -> 1.1311241e-05 | D50: ='DF raw data'!O55 -> 4.7315743e-06 | F50: 1.277426441e-06 | G50: 1.134921538e-05 | H50: 4.737479305e-06 | J50: 1.368063342e-05 | K50: 0.0001323462302 | L50: 2.313842274e-05 | M50: 0.0003542992803 | N50: 1.227758153e-08
A51: 22.4374 | B51: ='DF raw data'!M56 -> 5.2412165e-06 | C51: ='DF raw data'!N56 -> 8.8154857e-06 | D51: ='DF raw data'!O56 -> 5.6193285e-06 | F51: 5.247757538e-06 | G51: 8.845081267e-06 | H51: 5.626341422e-06 | J51: 1.630514192e-05 | K51: 0.0001405007578 | L51: 2.756202478e-05 | M51: 0.0003680836002 | N51: 1.279046602e-08
A52: 22.93752 | B52: ='DF raw data'!M57 -> 7.4081131e-06 | C52: ='DF raw data'!N57 -> 6.0502066e-06 | D52: ='DF raw data'!O57 -> -2.6697044e-06 | F52: 7.417358425e-06 | G52: 6.070518503e-06 | H52: -2.673036191e-06 | J52: 2.001471122e-05 | K52: 0.0001505105152 | L52: 3.05980125e-05 | M52: 0.0003833862782 | N52: 1.345903996e-08
A53: 23.43764 | B53: ='DF raw data'!M58 -> 2.7709561e-06 | C53: ='DF raw data'!N58 -> 1.2798019e-05 | D53: ='DF raw data'!O58 -> -1.1546026e-06 | F53: 2.774414253e-06 | G53: 1.284098483e-05 | H53: -1.156043544e-06 | J53: 2.140225128e-05 | K53: 0.0001612142091 | L53: 3.702004583e-05 | M53: 0.0004019007435 | N53: 1.437352946e-08
A54: 23.93776 | B54: ='DF raw data'!M59 -> -7.9291249e-06 | C54: ='DF raw data'!N59 -> 9.259531e-06 | D54: ='DF raw data'!O59 -> 6.1924993e-06 | F54: -7.939020448e-06 | G54: 9.290617327e-06 | H54: 6.200227539e-06 | J54: 1.743178837e-05 | K54: 0.0001699321951 | L54: 4.166646936e-05 | M54: 0.0004227389782 | N54: 1.539375521e-08
A55: 24.43788 | B55: ='DF raw data'!M60 -> -1.0679059e-05 | C55: ='DF raw data'!N60 -> 5.3164908e-06 | D55: ='DF raw data'!O60 -> 4.7155963e-06 | F55: -1.069238647e-05 | G55: 5.334339455e-06 | H55: 4.721481364e-06 | J55: 1.208431205e-05 | K55: 0.0001759758012 | L55: 4.433427921e-05 | M55: 0.0004449114379 | N55: 1.644978806e-08
A56: 24.938 | B56: ='DF raw data'!M61 -> -4.8472334e-06 | C56: ='DF raw data'!N61 -> 3.2793246e-06 | D56: ='DF raw data'!O61 -> -2.6474836e-06 | F56: -4.853282747e-06 | G56: 3.29033403e-06 | H56: -2.65078766e-06 | J56: 9.657088283e-06 | K56: 0.0001808055042 | L56: 4.597984107e-05 | M56: 0.000467906876 | N56: 1.755375551e-08
A57: 25.43812 | B57: ='DF raw data'!M62 -> -5.4308242e-07 | C57: ='DF raw data'!N62 -> 1.636036e-06 | D57: ='DF raw data'!O62 -> -7.0041087e-06 | F57: -5.437601869e-07 | G57: 1.641528541e-06 | H57: -7.012849828e-06 | J57: 9.385142938e-06 | K57: 0.0001854992019 | L57: 4.680080232e-05 | M57: 0.0004913128933 | N57: 1.869322693e-08
A58: 25.93824 | B58: ='DF raw data'!M63 -> 3.110918e-06 | C58: ='DF raw data'!N63 -> -5.592648e-06 | D58: ='DF raw data'!O63 -> -5.6987874e-06 | F58: 3.114800426e-06 | G58: -5.611423776e-06 | H58: -5.705899487e-06 | J58: 1.094291693e-05 | K58: 0.0001909719735 | L58: 4.399441706e-05 | M58: 0.0005133153811 | N58: 1.972110164e-08
A59: 26.43836 | B59: ='DF raw data'!M64 -> 3.8039093e-06 | C59: ='DF raw data'!N64 -> 1.2685783e-06 | D59: ='DF raw data'!O64 -> -1.4105708e-06 | F59: 3.808656579e-06 | G59: 1.272837202e-06 | H59: -1.412331192e-06 | J59: 1.284770226e-05 | K59: 0.0001973973664 | L59: 4.46309884e-05 | M59: 0.000535636231 | N59: 2.079985477e-08
A60: 26.93848 | B60: ='DF raw data'!M65 -> 1.663177e-06 | C60: ='DF raw data'!N65 -> -2.6490071e-07 | D60: ='DF raw data'!O65 -> 2.4796509e-06 | F60: 1.665252645e-06 | G60: -2.657900412e-07 | H60: 2.482745504e-06 | J60: 1.368052841e-05 | K60: 0.0002042392722 | L60: 4.449806149e-05 | M60: 0.0005578906016 | N60: 2.1883732e-08
A61: 27.4386 | B61: ='DF raw data'!M66 -> -6.9306901e-07 | C61: ='DF raw data'!N66 -> -6.5020881e-06 | D61: ='DF raw data'!O66 -> 3.3378647e-06 | F61: -6.939339601e-07 | G61: -6.523917071e-06 | H61: 3.342030355e-06 | J61: 1.333347816e-05 | K61: 0.0002109076113 | L61: 4.123532008e-05 | M61: 0.0005785132098 | N61: 2.282302401e-08
A62: 27.93872 | B62: ='DF raw data'!M67 -> 9.5898076e-07 | C62: ='DF raw data'!N67 -> -3.8036574e-06 | D62: ='DF raw data'!O67 -> 4.8813135e-06 | F62: 9.60177568e-07 | G62: -3.816427133e-06 | H62: 4.887405379e-06 | J62: 1.381368216e-05 | K62: 0.0002178161101 | L62: 3.932664854e-05 | M62: 0.0005981812533 | N62: 2.369193405e-08
A63: 28.43884 | B63: ='DF raw data'!M68 -> 2.6955336e-06 | C63: ='DF raw data'!N68 -> 6.6320831e-06 | D63: ='DF raw data'!O68 -> 5.2476289e-06 | F63: 2.698897626e-06 | G63: 6.654348494e-06 | H63: 5.254177941e-06 | J63: 1.516345484e-05 | K63: 0.0002253996571 | L63: 4.265462131e-05 | M63: 0.0006195136825 | N63: 2.471685351e-08
A64: 28.93896 | B64: ='DF raw data'!M69 -> 6.402925e-06 | C64: ='DF raw data'!N69 -> 6.4040302e-07 | D64: ='DF raw data'!O69 -> 1.7408356e-06 | F64: 6.41091585e-06 | G64: 6.425529969e-07 | H64: 1.743008163e-06 | J64: 1.836968208e-05 | K64: 0.0002345867025 | L64: 4.297597492e-05 | M64: 0.0006410068271 | N64: 2.580930545e-08
A65: 29.43908 | B65: ='DF raw data'!M70 -> 9.4776142e-06 | C65: ='DF raw data'!N70 -> -2.2205436e-06 | D65: ='DF raw data'!O70 -> -1.2173068e-06 | F65: 9.489442263e-06 | G65: -2.227998464e-06 | H65: -1.218825999e-06 | J65: 2.311554194e-05 | K65: 0.0002461472473 | L65: 4.186170833e-05 | M65: 0.0006619427047 | N65: 2.695294531e-08
A66: 29.9392 | B66: ='DF raw data'!M71 -> 7.2874195e-06 | C66: ='DF raw data'!N71 -> 3.6565239e-06 | D66: ='DF raw data'!O71 -> 8.6351693e-06 | F66: 7.2965142e-06 | G66: 3.668799673e-06 | H66: 8.645945991e-06 | J66: 2.676467462e-05 | K66: 0.0002595327964 | L66: 4.369654842e-05 | M66: 0.0006837962225 | N66: 2.826612848e-08
A67: 30.43932 | B67: ='DF raw data'!M72 -> -2.2656371e-07 | C67: ='DF raw data'!N72 -> 8.6006676e-06 | D67: ='DF raw data'!O72 -> 5.1773432e-06 | F67: -2.268464615e-07 | G67: 8.629541974e-06 | H67: 5.183804524e-06 | J67: 2.665122417e-05 | K67: 0.0002728616066 | L67: 4.801235495e-05 | M67: 0.0007078081614 | N67: 2.977422732e-08
A68: 30.93944 | B68: ='DF raw data'!M73 -> -4.0784703e-06 | C68: ='DF raw data'!N73 -> 3.3946058e-06 | D68: ='DF raw data'!O73 -> 3.1817226e-06 | F68: -4.083560231e-06 | G68: 3.406002255e-06 | H68: 3.18569339e-06 | J68: 2.460895403e-05 | K68: 0.0002851690367 | L68: 4.97157648e-05 | M68: 0.0007326720097 | N68: 3.131322554e-08
A69: 31.43956 | B69: ='DF raw data'!M74 -> -1.6715544e-06 | C69: ='DF raw data'!N74 -> 4.791455e-06 | D69: ='DF raw data'!O74 -> 5.0835124e-06 | F69: -1.6736405e-06 | G69: 4.807540991e-06 | H69: 5.089856623e-06 | J69: 2.377193294e-05 | K69: 0.0002970578558 | L69: 5.21201122e-05 | M69: 0.0007587383202 | N69: 3.295442478e-08
A70: 31.93968 | B70: ='DF raw data'!M75 -> 3.4895152e-06 | C70: ='DF raw data'!N75 -> 2.5642889e-06 | D70: ='DF raw data'!O75 -> 1.976955e-06 | F70: 3.493870115e-06 | G70: 2.572897794e-06 | H70: 1.97942224e-06 | J70: 2.551928726e-05 | K70: 0.0003098205618 | L70: 5.340686984e-05 | M70: 0.000785448164 | N70: 3.470660909e-08
A71: 32.4398 | B71: ='DF raw data'!M76 -> 9.1330539e-06 | C71: ='DF raw data'!N76 -> 3.3133488e-06 | D71: ='DF raw data'!O76 -> -2.3417333e-06 | F71: 9.144451951e-06 | G71: =(1-$G$1*($B$2-$G$2))*C71*$M$2/$M$1 -> 3.324472457e-06 | H71: -2.344655783e-06 | J71: 3.009261057e-05 | K71: 0.0003248704782 | L71: 5.506950501e-05 | M71: 0.0008129895248 | N71: 3.667618947e-08
A72: =A71+$B$1 -> 32.93992 | B72: ='DF raw data'!M77 -> 1.2210464e-05 | C72: ='DF raw data'!N77 -> 3.3681877e-06 | D72: ='DF raw data'!O77 -> -2.8086752e-06 | F72: 1.222570266e-05 | G72: 3.379495463e-06 | H72: -2.812180427e-06 | J72: =F72*$B$1+J71 -> 3.620692899e-05 | K72: =J72*$B$1+K71 -> 0.0003429782875 | L72: =G72*$B$1+L71 -> 5.675965828e-05 | M72: =L72*$B$1+M71 -> 0.0008413761651 | N72: =(J72^2+L72^2)*$B$1+N71 -> 3.894303364e-08
A73: 33.44004 | B73: ='DF raw data'!M78 -> 1.1241466e-05 | C73: ='DF raw data'!N78 -> -6.6137668e-06 | D73: ='DF raw data'!O78 -> 7.354528e-06 | F73: 1.125549535e-05 | G73: -6.635970702e-06 | H73: 7.363706451e-06 | J73: 4.183602732e-05 | K73: 0.0003639013215 | L73: 5.344087661e-05 | M73: 0.0008681030163 | N73: 4.124667662e-08
A74: 33.94016 | B74: ='DF raw data'!M79 -> 8.8529005e-06 | C74: ='DF raw data'!N79 -> -1.1949919e-05 | D74: ='DF raw data'!O79 -> 1.0863664e-05 | F74: 8.86394892e-06 | G74: -1.199003756e-05 | H74: 1.087722185e-05 | J74: 4.626906545e-05 | K74: 0.0003870414065 | L74: 4.744441903e-05 | M74: 0.0008918309192 | N74: 4.344310329e-08
A75: 34.44028 | B75: ='DF raw data'!M80 -> 7.3936194e-06 | C75: ='DF raw data'!N80 -> -2.5413024e-06 | D75: ='DF raw data'!O80 -> -4.4849103e-06 | F75: 7.402846637e-06 | G75: -2.549834123e-06 | H75: -4.490507468e-06 | J75: 4.997137711e-05 | K75: 0.0004120330916 | L75: 4.616919598e-05 | M75: 0.0009149210575 | N75: 4.575802533e-08
A76: 34.9404 | B76: ='DF raw data'!M81 -> 7.0226329e-06 | C76: ='DF raw data'!N81 -> -2.9706712e-06 | D76: ='DF raw data'!O81 -> -1.1540828e-05 | F76: 7.031397146e-06 | G76: -2.980644411e-06 | H76: -1.155523095e-05 | J76: 5.348791946e-05 | K76: 0.0004387834699 | L76: 4.46785161e-05 | M76: 0.0009372656769 | N76: 4.818717185e-08
A77: 35.44052 | B77: ='DF raw data'!M82 -> 6.6181333e-06 | C77: ='DF raw data'!N82 -> -1.1023533e-05 | D77: ='DF raw data'!O82 -> -7.8393596e-06 | F77: 6.62639273e-06 | G77: -1.106054148e-05 | H77: -7.849143121e-06 | J77: 5.680191099e-05 | K77: 0.0004671912416 | L77: 3.91469181e-05 | M77: 0.0009568438336 | N77: 5.056721207e-08
A78: 35.94064 | B78: ='DF raw data'!M83 -> 3.3194324e-06 | C78: ='DF raw data'!N83 -> -6.1240876e-06 | D78: ='DF raw data'!O83 -> -9.3398949e-06 | F78: 3.323575052e-06 | G78: -6.144647538e-06 | H78: -9.351551089e-06 | J78: 5.846409734e-05 | K78: 0.000496430306 | L78: 3.607385697e-05 | M78: 0.000974885091 | N78: 5.292746531e-08
A79: 36.44076 | B79: ='DF raw data'!M84 -> 2.9328899e-06 | C79: ='DF raw data'!N84 -> -5.3819726e-08 | D79: ='DF raw data'!O84 -> -7.1702916e-06 | F79: 2.936550147e-06 | G79: -5.400041092e-08 | H79: -7.179240124e-06 | J79: 5.99327248e-05 | K79: 0.0005264038603 | L79: 3.604685029e-05 | M79: 0.0009929128417 | N79: 5.537370573e-08
A80: 36.94088 | B80: ='DF raw data'!M85 -> 5.5557416e-06 | C80: ='DF raw data'!N85 -> 1.3626069e-05 | D80: ='DF raw data'!O85 -> -8.4063313e-06 | F80: 5.562675166e-06 | G80: 1.367181478e-05 | H80: -8.416822401e-06 | J80: 6.271472991e-05 | K80: 0.000557768751 | L80: 4.288439829e-05 | M80: 0.001014360187 | N80: 5.826050287e-08
A81: 37.441 | B81: ='DF raw data'!M86 -> 6.6785383e-06 | C81: ='DF raw data'!N86 -> 1.8559405e-05 | D81: ='DF raw data'!O86 -> -1.1756735e-05 | F81: 6.686873116e-06 | G81: 1.862171309e-05 | H81: -1.177140741e-05 | J81: 6.605896889e-05 | K81: 0.0005908061626 | L81: 5.219748944e-05 | M81: 0.001040465195 | N81: 6.180553611e-08
A82: 37.94112 | B82: ='DF raw data'!M87 -> 5.5935911e-06 | C82: ='DF raw data'!N87 -> 3.4350346e-06 | D82: ='DF raw data'!O87 -> -7.1868662e-06 | F82: 5.600571902e-06 | G82: 3.446566783e-06 | H82: -7.195835409e-06 | J82: 6.885992691e-05 | K82: 0.0006252443892 | L82: 5.392118642e-05 | M82: 0.001067432259 | N82: 6.563104596e-08
A83: 38.44124 | B83: ='DF raw data'!M88 -> 2.7873125e-06 | C83: ='DF raw data'!N88 -> -4.130286e-06 | D83: ='DF raw data'!O88 -> -2.197582e-06 | F83: 2.790791066e-06 | G83: -4.144152298e-06 | H83: -2.200324582e-06 | J83: 7.025565734e-05 | K83: 0.0006603806485 | L83: 5.184861298e-05 | M83: 0.001093362787 | N83: 6.944402888e-08
